Workbook

Sheet Title
B9: 0-7126-P1
H10: Click here to
B11: Decision Support Framework
B14: CTR RS/Research Team: Angela Haddad, Kenneth A. Perrine,
C15: Lisa Macias, Chandra R. Bhat
B17: TxDOT Project 0-7126: Synthesis on Automated Pedestrian Data Collecting
C18: Techniques and Applications in Transportation Planning, Design and
C19: Management
B21: 2022-08-01
B23: Performing Organization: | F23: Sponsoring Organization:
B24: Center for Transportation Research | F24: Texas Department of Transportation
B25: The University of Texas at Austin | F25: Research and Technology Implementation Division
B26: 3925 W. Braker Lane, 4th Floor | F26: P.O. Box 5080

Sheet User Input
B2: Decision Criteria Matrix
B4: Location Conditions
B5: Urban vs rural | C5: Corridor Type | D5: Number of Lanes | E5: Traffic Volume at Location | F5: Location Type | G5: Lighting at Location | H5: Occlusion at Location | I5: Power Supply at Location | J5: Mounting Infrastructure | K5: Cameras at Location
B6: Urban | C6: High Speed | D6: ≤ 2 lanes | E6: High | F6: Intersection | G6: No | H6: No | I6: Available | J6: Available | K6: Yes
B7: Rural | C7: Medium Speed | D7: 3-4 lanes | E7: Medium | F7: Midblock Crossing | G7: Yes | H7: Yes | I7: Not Available | J7: Not Available | K7: No
C8: Low Speed | D8: > 4 lanes | E8: Low | F8: Shared Path | K8: Maybe
F9: Trail
F10: Sidewalk
B11: Application Requirements
B12: Time Frame | C12: Study Type | D12: Accuracy Required (detection) | E12: Real-time data access | F12: Outputs needed | G12: Night Vision | H12: Video Internal Storage | I12: Accuracy Required (count)
B13: Permanent | C13: Before - After | D13: <80% | E13: Yes | F13: Counts | G13: Needed | H13: Needed | I13: <80%
B14: Temporary 1 day | C14: Vision Zero | D14: 80% - 90% | E14: No | F14: trajectory heat maps on image | G14: Not Needed | H14: Not Needed | I14: 80% - 90%
B15: Temporary > 1 day | C15: Pedestrian volume counts | D15: 90% 95% | F15: trajectory maps as GIS coordinates | I15: 90% 95%
C16: Multi-modal volume counts | D16: >95% | F16: Near-miss and other safety related detection | I16: >95%
C17: Safety Assessement | F17: Red-light runner detection
C18: Real-time operations and signal control | F18: Detection and classification of vehicles, cyclists, pedestrians
F19: Jaywalking detection
B21: Agency Considerations
A22: 0 | B22: Procurement Budget | C22: Recurring Costs Budget | D22: Inter-division Collaboration | E22: Equipment Ownership | F22: Size of pedestrian program | G22: Quality Control Requirements | H22: Public view on video detection | I22: Agency Goals | J22: Installation capacity | K22: Possibility of manual data transmisstion
A23: 500 | B23: <$500 | C23: 0 | D23: Yes | E23: Agency owned | F23: less than 5 employees | G23: Yes | H23: Positive | I23: Nationwide counts | J23: Available | K23: Yes
A24: 1000 | B24: <$1,000 | C24: up to $1,000 per sensor per year | D24: No | E24: Not agency owned | F24: 5 to 15 employees | G24: No | H24: Negative | I24: Smart corridors | J24: Not available | K24: No
A25: 2000 | B25: <$2000 | C25: up to $2,000 per sensor per year | E25: Doesn't matter | F25: more than 15 employees | I25: None
A26: 5000 | B26: <$5000 | C26: Up to $10 per hour
B27: >$5000 | C27: Up to $20 per hour
C28: Not important
F32: Decision Criteria Matrix
F33: Location Conditions
B34: Urban vs rural | C34: Corridor Type | D34: Number of Lanes | E34: Traffic Volume at Location | F34: Location Type | G34: Lighting at Location | H34: Occlusion at Location | I34: Power Supply at Location | J34: Mounting Infrastructure | K34: Want to Use Cameras at Location
B35: Rural | C35: Medium Speed | D35: > 4 lanes | E35: High | F35: Intersection | G35: Yes | H35: No | I35: Available | J35: Not Available | K35: Yes
F36: Application Requirements
B37: Time Frame | C37: Study Type | D37: Accuracy Required (detection) | E37: Real-time data access | F37: Outputs needed | G37: Night Vision | H37: Internal Video Storage | I37: Accuracy Required (count)
B38: Permanent | C38: Vision Zero | D38: 90% 95% | E38: Yes | F38: Counts | G38: Not Needed | H38: Needed | I38: >95%
F39: trajectory heat maps on image
F40: trajectory maps as GIS coordinates
F41: Turning movement
F42: Speed of road users
F43: Near-miss and other safety related detection
F44: Red-light runner detection
F45: Jaywalking detection
F46: Advanced traffic signal performance metrics
F47: Wrong way detection
F50: Agency Considerations
B51: Procurement Budget | C51: Recurring Costs Budget | D51: Inter-division Collaboration | E51: Equipment Ownership | F51: Size of pedestrian program | G51: Quality Control Requirements | H51: Public view on video detection | I51: Agency Goals | J51: Installation capacity | K51: Possibility of manual data transmisstion
B52: <$2000 | C52: up to $1,000 per sensor per year | D52: Yes | E52: Agency owned | F52: more than 15 employees | G52: Yes | H52: Negative | I52: None | J52: Available | K52: Yes
F58: TRUE
F59: FALSE
F60: FALSE
F61: TRUE
F62: TRUE
F63: TRUE
F64: TRUE
F65: TRUE
F66: TRUE
F67: TRUE
C77: Weighting Matrix
C78: Criterion | D78: Weights (%)
C79: Number of Lanes | D79: =1/24 -> 0.04166666667
B80: User Input | C80: Location Type | D80: 0.04166666667
B81: Default | C81: Lighting at Location | D81: 0.04166666667
C82: Occlusion at Location | D82: 0.04166666667
C83: Power Supply at Location | D83: 0.04166666667
C84: Cameras at Location | D84: 0.04166666667
C85: Time Frame | D85: 0.04166666667
B86: 2 | C86: Study Type | D86: 0.04166666667
C87: Accuracy Required (COUNT) | D87: 0.04166666667
C88: Accuracy Required (Detection) | D88: 0.04166666667
C89: Real-time data access | D89: 0.04166666667
C90: Outputs needed | D90: 0.04166666667
C91: Night Vision | D91: 0.04166666667
C92: Video Internal Storage | D92: 0.04166666667
C93: Procurement Budget | D93: 0.04166666667
C94: Recurring Costs Budget | D94: 0.04166666667
C95: Inter-division Collaboration | D95: 0.04166666667
C96: Equipment Ownership | D96: 0.04166666667
C97: Size of pedestrian program | D97: 0.04166666667
C98: Quality Control Requirements | D98: 0.04166666667
C99: Public view on video detection | D99: 0.04166666667
C100: Agency Goals | D100: 0.04166666667
C101: Installation capacity | D101: 0.04166666667
C102: Possibility of manual data transmisstion | D102: 0.04166666667
C103: TOTAL | D103: =SUM(D79:D102) -> 1

Sheet Ranking
A1: ≤ 2 lanes | B1: 3-4 lanes | C1: > 4 lanes | D1: Midblock | E1: Intersection | F1: Shared Path | G1: Trail | H1: Sidewalk | I1: Lighting at Location | J1: Occlusion at Location | K1: Power Supply at Location | L1: Cameras at Location | M1: Permanent | N1: Temporary 1 day | O1: Temporary > 1 day | P1: Before - After | Q1: Vision Zero | R1: Pedestrian volume counts | S1: Multi-modal volume counts | T1: Safety Assessement | U1: Real-time operations and signal control | V1: Accuracy Required (count) | W1: Accuracy Required (detection) | X1: Real-time data access | Y1: Counts | Z1: trajectory heat maps on image | AA1: trajectory maps as GIS coordinates | AB1: Turning movement | AC1: Speed of road users | AD1: Near-miss and other safety related detection | AE1: Red-light runner detection | AF1: Jaywalking detection | AG1: Advanced traffic signal performance metrics | AH1: Wrong way detection | AI1: Night Vision | AJ1: Video Internal Storage | AK1: <$500 | AL1: <$1,000 | AM1: <$2000 | AN1: <$5000 | AO1: >$5000 | AP1: 0 | AQ1: up to $1,000 per sensor per year | AR1: up to $2,000 per intersection per year | AS1: Up to $10 per hour | AT1: Up to $20 per hour | AU1: Inter-division Collaboration | AV1: Equipment Ownership | AW1: less than 5 employees | AX1: 5 to 15 employees | AY1: more than 15 employees | AZ1: Quality Control Requirements | BA1: Public view on video detection | BB1: Nationwide counts | BC1: Smart corridors | BD1: None | BE1: Installation capacity | BF1: Possibility of manual data transmisstion | BI1: Product | BJ1: Website | BK1: Sensor Type | BL1: Technology Type | BM1: Number of Sensors | BN1: ≤ 2 lanes | BO1: 3-4 lanes | BP1: > 4 lanes | BQ1: Midblock | BR1: Intersection | BS1: Shared Path | BT1: Trail | BU1: Sidewalk | BV1: Lighting Need | BW1: Occlusion matters | BX1: Need power supply | BY1: Counting Accuracy | BZ1: Detection Accuracy | CA1: Permanent | CB1: Temporary 1 day | CC1: Temporary > 1 day | CD1: unknown | CE1: 0 | CF1: up to $1,000 per sensor per year | CG1: up to $2,000 per intersection per year | CH1: Up to $10 per hour | CI1: Up to $20 per hour | CJ1: Procurement Cost (unit price) | CK1: Recurrent Cost | CL1: Min procurement cost | CM1: Equipment ownership | CN1: Power Type | CO1: Manual Data transmission | CP1: Automated Data Transmission | CQ1: View Angle | CR1: View Range | CS1: Online Platform | CT1: Edge Processing | CU1: Live Feed | CV1: Night Vision | CW1: Traffic Controller Connection | CX1: Reputation | CY1: Security Level | CZ1: Use agency Cameras at Location | DA1: Before - After | DB1: Vision Zero | DC1: Pedestrian volume counts | DD1: Multi-modal volume counts | DE1: Safety Assessement | DF1: Real-time operations and signal control | DG1: Video Internal Storage | DH1: Quality Control | DI1: Counts | DJ1: trajectory heat maps on image | DK1: trajectory maps as GIS coordinates | DL1: Turning movement | DM1: Speed of road users | DN1: Near-miss and other safety related detection | DO1: Red-light runner detection | DP1: Jaywalking detection | DQ1: Advanced traffic signal performance metrics | DR1: Wrong way detection | DS1: less than 5 employees | DT1: 5 to 15 employees | DU1: more than 15 employees | DV1: Nationwide counts | DW1: Smart corridors | DX1: None | DY1: Installation capacity
A2: =IF(AND('User Input'!$D$35='User Input'!$D$6,Ranking!BN2=1),1,0) -> 0 | B2: =IF(AND('User Input'!$D$35='User Input'!$D$7,Ranking!BO2=1),1,0) -> 0 | C2: =IF(AND('User Input'!$D$35='User Input'!$D$8,Ranking!BP2=1),1,0) -> 1 | D2: =IF(AND('User Input'!$F$35='User Input'!$F$7,Ranking!BQ2=1),1,0) -> 0 | E2: =IF(AND('User Input'!$F$35='User Input'!$F$6,Ranking!BR2=1),1,0) -> 1 | F2: =IF(AND('User Input'!$F$35='User Input'!$F$8,Ranking!BS2=1),1,0) -> 0 | G2: =IF(AND('User Input'!$F$35='User Input'!$F$9,Ranking!BT2=1),1,0) -> 0 | H2: =IF(AND('User Input'!$F$35='User Input'!$F$10,Ranking!BU2=1),1,0) -> 0 | I2: =IF(BV2=0,1,IF(AND(BV2=1,'User Input'!$G$35='User Input'!$G$6),0,IF(AND(BV2=1,'User Input'!$G$35='User Input'!$G$7),1,0))) -> 1 | J2: =IF(BW2=0,1,IF(AND(BW2=1,'User Input'!$H$35='User Input'!$H$6),1,IF(AND(BW2=1,'User Input'!$H$35='User Input'!$H$7),0))) -> 1 | K2: =IF('User Input'!$I$35='User Input'!$I$6,1,IF(AND('User Input'!$I$35='User Input'!$I$7,Ranking!BX2=0),1,0)) -> 1 | L2: =IF('User Input'!$K$35='User Input'!$K$7,1,IF(AND(OR('User Input'!$K$35='User Input'!$K$6,'User Input'!$K$35='User Input'!$K$8),Ranking!$CZ2="Y"),1,0)) -> 0 | M2: =IF(AND('User Input'!$B$38='User Input'!$B$13,Ranking!CA2=1),1,0) -> 1 | N2: =IF(AND('User Input'!$B$38='User Input'!$B$14,Ranking!CB2=1),1,0) -> 0 | O2: =IF(AND('User Input'!$B$38='User Input'!$B$15,Ranking!CC2=1),1,0) -> 0 | P2: =IF(AND('User Input'!$C$38='User Input'!$C$13,DA2=1),1,0) -> 0 | Q2: =IF(AND('User Input'!$C$38='User Input'!$C$14,Ranking!DB2=1),1,0) -> 1 | R2: =IF(AND('User Input'!$C$38='User Input'!$C$15,Ranking!DC2=1),1,0) -> 0 | S2: =IF(AND('User Input'!$C$38='User Input'!$C$16,Ranking!DD2=1),1,0) -> 0 | T2: =IF(AND('User Input'!$C$38='User Input'!$C$17,Ranking!DE2=1),1,0) -> 0 | U2: =IF(AND('User Input'!$C$38='User Input'!$C$18,Ranking!DF2=1),1,0) -> 0 | V2: =IF('User Input'!$I$38='User Input'!$I$13,1,IF(AND('User Input'!$I$38='User Input'!$I14,Ranking!$BY2>0.8),1,IF(AND('User Input'!$I$38='User Input'!$I$15,Ranking!$BY2>0.9),1,IF(AND('User Input'!$I$38='User Input'!$D$16,Ranking!$BY2>0.95),1,0)))) -> 1 | W2: =IF('User Input'!$D$38='User Input'!$D$13,1,IF(AND('User Input'!$D$38='User Input'!$D$14,Ranking!$BZ2>0.8),1,IF(AND('User Input'!$D$38='User Input'!$D$15,Ranking!$BZ2>0.9),1,IF(AND('User Input'!$D$38='User Input'!$D$16,Ranking!$BZ2>0.95),1,0)))) -> 1 | X2: =IF(AND('User Input'!$E$38='User Input'!$E$13,Ranking!DF2=1),1,0) -> 1 | Y2: =IF(AND('User Input'!$F$58=TRUE,Ranking!DI2=1),1,IF(AND('User Input'!$F$58=FALSE,Ranking!DI2=0),1,0)) -> 1 | Z2: =IF(AND('User Input'!$F$59=TRUE,Ranking!DJ2=1),1,IF(AND('User Input'!$F$59=FALSE,Ranking!DJ2=0),1,0)) -> 0 | AA2: =IF(AND('User Input'!$F$60=TRUE,Ranking!DK2=1),1,IF(AND('User Input'!$F$60=FALSE,Ranking!DK2=0),1,0)) -> 1 | AB2: =IF(AND('User Input'!$F$61=TRUE,Ranking!DL2=1),1,IF(AND('User Input'!$F$61=FALSE,Ranking!DL2=0),1,0)) -> 1 | AC2: =IF(AND('User Input'!$F$62=TRUE,Ranking!DM2=1),1,IF(AND('User Input'!$F$62=FALSE,Ranking!DM2=0),1,0)) -> 1 | AD2: =IF(AND('User Input'!$F$63=TRUE,Ranking!DN2=1),1,IF(AND('User Input'!$F$63=FALSE,Ranking!DN2=0),1,0)) -> 1 | AE2: =IF(AND('User Input'!$F$64=TRUE,Ranking!DO2=1),1,IF(AND('User Input'!$F$64=FALSE,Ranking!DO2=0),1,0)) -> 1 | AF2: =IF(AND('User Input'!$F$65=TRUE,Ranking!DP2=1),1,IF(AND('User Input'!$F$65=FALSE,Ranking!DP2=0),1,0)) -> 1 | AG2: =IF(AND('User Input'!$F$66=TRUE,Ranking!DQ2=1),1,IF(AND('User Input'!$F$66=FALSE,Ranking!DQ2=0),1,0)) -> 1 | AH2: =IF(AND('User Input'!$F$67=TRUE,Ranking!DR2=1),1,IF(AND('User Input'!$F$67=FALSE,Ranking!DR2=0),1,0)) -> 1 | AI2: =IF(Ranking!CV2="Y",1,IF(AND('User Input'!$G$38='User Input'!$G$14,Ranking!CV2="N"),1,0)) -> 1 | AJ2: =IF(OR(Ranking!DG2="Y",'User Input'!$H$38='User Input'!$H$14),1,IF(AND('User Input'!$H$38='User Input'!$H$13,Ranking!DG2="Y"),1,0)) -> 0 | AK2: =IF(AND('User Input'!$B$52='User Input'!$B$23,Ranking!CL2<'User Input'!$A$23),1,0) -> 0 | AL2: =IF(AND('User Input'!$B$52='User Input'!$B$24,Ranking!CL2<'User Input'!$A$24),1,0) -> 0 | AM2: =IF(AND('User Input'!$B$52='User Input'!$B$25,Ranking!CL2<'User Input'!$A$25),1,0) -> 0 | AN2: =IF(AND('User Input'!$B$52='User Input'!$B$26,Ranking!CL2<'User Input'!$A$26),1,0) -> 0 | AO2: =IF('User Input'!$B$52='User Input'!$B$27,1,0) -> 0 | AP2: =IF(AND('User Input'!$C$52='User Input'!$C$23,CE2=1),1,0) -> 0 | AQ2: =IF(CD2=1,0,IF(AND('User Input'!$C$52='User Input'!$C$24,Ranking!CF2=1),1,0)) -> 0 | AR2: =IF(CE2=1,0,IF(AND('User Input'!$C$52='User Input'!$C$25,Ranking!CG2=1),1,0)) -> 0 | AS2: =IF(CF2=1,0,IF(AND('User Input'!$C$52='User Input'!$C$26,Ranking!CH2=1),1,0)) -> 0 | AT2: =IF(CG2=1,0,IF(AND('User Input'!$C$52='User Input'!$C$27,Ranking!CI2=1),1,0)) -> 0 | AU2: =IF(AND('User Input'!$D$52='User Input'!$D$23,Ranking!CJ2>5000),1,0) -> 0 | AV2: =IF('User Input'!$E$52='User Input'!$E$25,1,IF(AND('User Input'!$E$52='User Input'!$E$23,Ranking!CM2=1),1,IF(AND('User Input'!$E$52='User Input'!$E$24,Ranking!CM2=0),1,0))) -> 1 | AW2: =IF(AND('User Input'!$F$52='User Input'!$F$23,Ranking!DS2=1),1,0) -> 0 | AX2: =IF(AND('User Input'!$F$52='User Input'!$F$24,Ranking!DT2=1),1,0) -> 0 | AY2: =IF(AND('User Input'!$F$52='User Input'!$F$25,Ranking!DU2=1),1,0) -> 1 | AZ2: =IF('User Input'!$G$52='User Input'!$G$24,1,IF(AND('User Input'!$G$52='User Input'!$G$23,DH2="Y"),1,0)) -> 0 | BA2: =IF('User Input'!$H$52='User Input'!$H$23,1,IF(AND('User Input'!$H$52='User Input'!$H$24,Ranking!BK16<>"Video"),1,0)) -> 1 | BB2: =IF(AND('User Input'!$I$52='User Input'!$I$23,Ranking!DV2=1),1,0) -> 0 | BC2: =IF(AND('User Input'!$I$52='User Input'!$I$24,Ranking!DW2=1),1,0) -> 0 | BD2: =IF(AND('User Input'!$I$52='User Input'!$I$25,Ranking!DX2=1),1,0) -> 0 | BE2: =IF('User Input'!$J$52='User Input'!$J$23,1,IF(AND('User Input'!$J$52='User Input'!$J$24,Ranking!DY2=0),1,0)) -> 1 | BF2: =IF('User Input'!$K$52='User Input'!$K$24,1,IF(AND('User Input'!$K$52='User Input'!$K$23,Ranking!CO2=1),1,0)) -> 1 | BI2: Blue City AI | BJ2: https://bluecity.ai/ | BK2: LiDAR | BL2: software and hardware | BM2: 1 or 2 | BN2: 1 | BO2: 1 | BP2: 1 | BQ2: 1 | BR2: 1 | BS2: 1 | BT2: 0 | BU2: 1 | BV2: 0 | BW2: 0 | BX2: 1 | BY2: 0.987 | BZ2: 0.987 | CA2: 1 | CB2: 0 | CC2: 0 | CD2: 1 | CE2: 0 | CF2: 0 | CG2: 0 | CH2: 0 | CI2: 0 | CJ2: 4800 | CK2: Unknown | CL2: =CJ2 -> 4800 | CM2: 1 | CN2: AC | CO2: 1 | CP2: 1 | CQ2: 360° | CR2: 100 m | CS2: Y | CT2: Y | CU2: Y | CV2: Y | CW2: Y | CX2: 1 | CY2: High | CZ2: N | DA2: 0 | DB2: 1 | DC2: 1 | DD2: 1 | DE2: 1 | DF2: 1 | DG2: N | DH2: N | DI2: 1 | DJ2: 1 | DK2: 0 | DL2: 1 | DM2: 1 | DN2: 1 | DO2: 1 | DP2: 1 | DQ2: 1 | DR2: 1 | DS2: 0 | DT2: 0 | DU2: 1 | DV2: 1 | DW2: 1 | DX2: 0 | DY2: 1
A3: =IF(AND('User Input'!$D$35='User Input'!$D$6,Ranking!BN3=1),1,0) -> 0 | B3: =IF(AND('User Input'!$D$35='User Input'!$D$7,Ranking!BO3=1),1,0) -> 0 | C3: =IF(AND('User Input'!$D$35='User Input'!$D$8,Ranking!BP3=1),1,0) -> 0 | D3: =IF(AND('User Input'!$F$35='User Input'!$F$7,Ranking!BQ3=1),1,0) -> 0 | E3: =IF(AND('User Input'!$F$35='User Input'!$F$6,Ranking!BR3=1),1,0) -> 1 | F3: =IF(AND('User Input'!$F$35='User Input'!$F$8,Ranking!BS3=1),1,0) -> 0 | G3: =IF(AND('User Input'!$F$35='User Input'!$F$9,Ranking!BT3=1),1,0) -> 0 | H3: =IF(AND('User Input'!$F$35='User Input'!$F$10,Ranking!BU3=1),1,0) -> 0 | I3: =IF(BV3=0,1,IF(AND(BV3=1,'User Input'!$G$35='User Input'!$G$6),0,IF(AND(BV3=1,'User Input'!$G$35='User Input'!$G$7),1,0))) -> 1 | J3: =IF(BW3=0,1,IF(AND(BW3=1,'User Input'!$H$35='User Input'!$H$6),1,IF(AND(BW3=1,'User Input'!$H$35='User Input'!$H$7),0))) -> 1 | K3: =IF('User Input'!$I$35='User Input'!$I$6,1,IF(AND('User Input'!$I$35='User Input'!$I$7,Ranking!BX3=0),1,0)) -> 1 | L3: =IF('User Input'!$K$35='User Input'!$K$7,1,IF(AND(OR('User Input'!$K$35='User Input'!$K$6,'User Input'!$K$35='User Input'!$K$8),Ranking!$CZ3="Y"),1,0)) -> 0 | M3: =IF(AND('User Input'!$B$38='User Input'!$B$13,Ranking!CA3=1),1,0) -> 0 | N3: =IF(AND('User Input'!$B$38='User Input'!$B$14,Ranking!CB3=1),1,0) -> 0 | O3: =IF(AND('User Input'!$B$38='User Input'!$B$15,Ranking!CC3=1),1,0) -> 0 | P3: =IF(AND('User Input'!$C$38='User Input'!$C$13,DA3=1),1,0) -> 0 | Q3: =IF(AND('User Input'!$C$38='User Input'!$C$14,Ranking!DB3=1),1,0) -> 0 | R3: =IF(AND('User Input'!$C$38='User Input'!$C$15,Ranking!DC3=1),1,0) -> 0 | S3: =IF(AND('User Input'!$C$38='User Input'!$C$16,Ranking!DD3=1),1,0) -> 0 | T3: =IF(AND('User Input'!$C$38='User Input'!$C$17,Ranking!DE3=1),1,0) -> 0 | U3: =IF(AND('User Input'!$C$38='User Input'!$C$18,Ranking!DF3=1),1,0) -> 0 | V3: =IF('User Input'!$I$38='User Input'!$I$13,1,IF(AND('User Input'!$I$38='User Input'!$I15,Ranking!$BY3>0.8),1,IF(AND('User Input'!$I$38='User Input'!$I$15,Ranking!$BY3>0.9),1,IF(AND('User Input'!$I$38='User Input'!$D$16,Ranking!$BY3>0.95),1,0)))) -> 0 | W3: =IF('User Input'!$D$38='User Input'!$D$13,1,IF(AND('User Input'!$D$38='User Input'!$D$14,Ranking!$BZ3>0.8),1,IF(AND('User Input'!$D$38='User Input'!$D$15,Ranking!$BZ3>0.9),1,IF(AND('User Input'!$D$38='User Input'!$D$16,Ranking!$BZ3>0.95),1,0)))) -> 1 | X3: =IF(AND('User Input'!$E$38='User Input'!$E$13,Ranking!DF3=1),1,0) -> 0 | Y3: =IF(AND('User Input'!$F$58=TRUE,Ranking!DI3=1),1,IF(AND('User Input'!$F$58=FALSE,Ranking!DI3=0),1,0)) -> 1 | Z3: =IF(AND('User Input'!$F$59=TRUE,Ranking!DJ3=1),1,IF(AND('User Input'!$F$59=FALSE,Ranking!DJ3=0),1,0)) -> 1 | AA3: =IF(AND('User Input'!$F$60=TRUE,Ranking!DK3=1),1,IF(AND('User Input'!$F$60=FALSE,Ranking!DK3=0),1,0)) -> 1 | AB3: =IF(AND('User Input'!$F$61=TRUE,Ranking!DL3=1),1,IF(AND('User Input'!$F$61=FALSE,Ranking!DL3=0),1,0)) -> 1 | AC3: =IF(AND('User Input'!$F$62=TRUE,Ranking!DM3=1),1,IF(AND('User Input'!$F$62=FALSE,Ranking!DM3=0),1,0)) -> 0 | AD3: =IF(AND('User Input'!$F$63=TRUE,Ranking!DN3=1),1,IF(AND('User Input'!$F$63=FALSE,Ranking!DN3=0),1,0)) -> 0 | AE3: =IF(AND('User Input'!$F$64=TRUE,Ranking!DO3=1),1,IF(AND('User Input'!$F$64=FALSE,Ranking!DO3=0),1,0)) -> 0 | AF3: =IF(AND('User Input'!$F$65=TRUE,Ranking!DP3=1),1,IF(AND('User Input'!$F$65=FALSE,Ranking!DP3=0),1,0)) -> 0 | AG3: =IF(AND('User Input'!$F$66=TRUE,Ranking!DQ3=1),1,IF(AND('User Input'!$F$66=FALSE,Ranking!DQ3=0),1,0)) -> 0 | AH3: =IF(AND('User Input'!$F$67=TRUE,Ranking!DR3=1),1,IF(AND('User Input'!$F$67=FALSE,Ranking!DR3=0),1,0)) -> 0 | AI3: =IF(Ranking!CV3="Y",1,IF(AND('User Input'!$G$38='User Input'!$G$14,Ranking!CV3="N"),1,0)) -> 1 | AJ3: =IF(OR(Ranking!DG3="Y",'User Input'!$H$38='User Input'!$H$14),1,IF(AND('User Input'!$H$38='User Input'!$H$13,Ranking!DG3="Y"),1,0)) -> 1 | AK3: =IF(AND('User Input'!$B$52='User Input'!$B$23,Ranking!CL3<'User Input'!$A$23),1,0) -> 0 | AL3: =IF(AND('User Input'!$B$52='User Input'!$B$24,Ranking!CL3<'User Input'!$A$24),1,0) -> 0 | AM3: =IF(AND('User Input'!$B$52='User Input'!$B$25,Ranking!CL3<'User Input'!$A$25),1,0) -> 0 | AN3: =IF(AND('User Input'!$B$52='User Input'!$B$26,Ranking!CL3<'User Input'!$A$26),1,0) -> 0 | AO3: =IF('User Input'!$B$52='User Input'!$B$27,1,0) -> 0 | AP3: =IF(AND('User Input'!$C$52='User Input'!$C$23,CE3=1),1,0) -> 0 | AQ3: =IF(CD3=1,0,IF(AND('User Input'!$C$52='User Input'!$C$24,Ranking!CF3=1),1,0)) -> 0 | AR3: =IF(CE3=1,0,IF(AND('User Input'!$C$52='User Input'!$C$25,Ranking!CG3=1),1,0)) -> 0 | AS3: =IF(CF3=1,0,IF(AND('User Input'!$C$52='User Input'!$C$26,Ranking!CH3=1),1,0)) -> 0 | AT3: =IF(CG3=1,0,IF(AND('User Input'!$C$52='User Input'!$C$27,Ranking!CI3=1),1,0)) -> 0 | AU3: =IF(AND('User Input'!$D$52='User Input'!$D$23,Ranking!CJ3>5000),1,0) -> 0 | AV3: =IF('User Input'!$E$52='User Input'!$E$25,1,IF(AND('User Input'!$E$52='User Input'!$E$23,Ranking!CM3=1),1,IF(AND('User Input'!$E$52='User Input'!$E$24,Ranking!CM3=0),1,0))) -> 1 | AW3: =IF(AND('User Input'!$F$52='User Input'!$F$23,Ranking!DS3=1),1,0) -> 0 | AX3: =IF(AND('User Input'!$F$52='User Input'!$F$24,Ranking!DT3=1),1,0) -> 0 | AY3: =IF(AND('User Input'!$F$52='User Input'!$F$25,Ranking!DU3=1),1,0) -> 1 | AZ3: =IF('User Input'!$G$52='User Input'!$G$24,1,IF(AND('User Input'!$G$52='User Input'!$G$23,DH3="Y"),1,0)) -> 1 | BA3: =IF('User Input'!$H$52='User Input'!$H$23,1,IF(AND('User Input'!$H$52='User Input'!$H$24,Ranking!BK3<>"Video"),1,0)) -> 0 | BB3: =IF(AND('User Input'!$I$52='User Input'!$I$23,Ranking!DV3=1),1,0) -> 0 | BC3: =IF(AND('User Input'!$I$52='User Input'!$I$24,Ranking!DW3=1),1,0) -> 0 | BD3: =IF(AND('User Input'!$I$52='User Input'!$I$25,Ranking!DX3=1),1,0) -> 1 | BE3: =IF('User Input'!$J$52='User Input'!$J$23,1,IF(AND('User Input'!$J$52='User Input'!$J$24,Ranking!DY3=0),1,0)) -> 1 | BF3: =IF('User Input'!$K$52='User Input'!$K$24,1,IF(AND('User Input'!$K$52='User Input'!$K$23,Ranking!CO3=1),1,0)) -> 1 | BI3: Miovision Scout camera | BK3: Video | BL3: software and hardware | BM3: 2 | BN3: 1 | BO3: 1 | BP3: 0 | BQ3: 1 | BR3: 1 | BS3: 1 | BT3: 0 | BU3: 0 | BV3: 1 | BW3: 1 | BX3: 0 | BY3: 0.95 | BZ3: 0.95 | CA3: 0 | CB3: 1 | CC3: 1 | CD3: 0 | CE3: 0 | CF3: 0 | CG3: 0 | CH3: 1 | CI3: 1 | CJ3: 5000 | CK3: $10/ hour | CL3: 5000 | CM3: 1 | CN3: DC | CO3: 1 | CP3: 1 | CQ3: 90° | CR3: . | CS3: Y | CT3: N | CU3: N | CV3: N | CW3: N | CX3: 1 | CY3: Low | CZ3: N | DA3: 1 | DB3: 0 | DC3: 1 | DD3: 1 | DE3: 0 | DF3: 0 | DG3: Y | DH3: Y | DI3: 1 | DJ3: 0 | DK3: 0 | DL3: 1 | DM3: 0 | DN3: 0 | DO3: 0 | DP3: 0 | DQ3: 0 | DR3: 0 | DS3: 1 | DT3: 1 | DU3: 1 | DV3: 1 | DW3: 0 | DX3: 1 | DY3: 1
A4: =IF(AND('User Input'!$D$35='User Input'!$D$6,Ranking!BN4=1),1,0) -> 0 | B4: =IF(AND('User Input'!$D$35='User Input'!$D$7,Ranking!BO4=1),1,0) -> 0 | C4: =IF(AND('User Input'!$D$35='User Input'!$D$8,Ranking!BP4=1),1,0) -> 1 | D4: =IF(AND('User Input'!$F$35='User Input'!$F$7,Ranking!BQ4=1),1,0) -> 0 | E4: =IF(AND('User Input'!$F$35='User Input'!$F$6,Ranking!BR4=1),1,0) -> 1 | F4: =IF(AND('User Input'!$F$35='User Input'!$F$8,Ranking!BS4=1),1,0) -> 0 | G4: =IF(AND('User Input'!$F$35='User Input'!$F$9,Ranking!BT4=1),1,0) -> 0 | H4: =IF(AND('User Input'!$F$35='User Input'!$F$10,Ranking!BU4=1),1,0) -> 0 | I4: =IF(BV4=0,1,IF(AND(BV4=1,'User Input'!$G$35='User Input'!$G$6),0,IF(AND(BV4=1,'User Input'!$G$35='User Input'!$G$7),1,0))) -> 1 | J4: =IF(BW4=0,1,IF(AND(BW4=1,'User Input'!$H$35='User Input'!$H$6),1,IF(AND(BW4=1,'User Input'!$H$35='User Input'!$H$7),0))) -> 1 | K4: =IF('User Input'!$I$35='User Input'!$I$6,1,IF(AND('User Input'!$I$35='User Input'!$I$7,Ranking!BX4=0),1,0)) -> 1 | L4: =IF('User Input'!$K$35='User Input'!$K$7,1,IF(AND(OR('User Input'!$K$35='User Input'!$K$6,'User Input'!$K$35='User Input'!$K$8),Ranking!$CZ4="Y"),1,0)) -> 0 | M4: =IF(AND('User Input'!$B$38='User Input'!$B$13,Ranking!CA4=1),1,0) -> 1 | N4: =IF(AND('User Input'!$B$38='User Input'!$B$14,Ranking!CB4=1),1,0) -> 0 | O4: =IF(AND('User Input'!$B$38='User Input'!$B$15,Ranking!CC4=1),1,0) -> 0 | P4: =IF(AND('User Input'!$C$38='User Input'!$C$13,DA4=1),1,0) -> 0 | Q4: =IF(AND('User Input'!$C$38='User Input'!$C$14,Ranking!DB4=1),1,0) -> 1 | R4: =IF(AND('User Input'!$C$38='User Input'!$C$15,Ranking!DC4=1),1,0) -> 0 | S4: =IF(AND('User Input'!$C$38='User Input'!$C$16,Ranking!DD4=1),1,0) -> 0 | T4: =IF(AND('User Input'!$C$38='User Input'!$C$17,Ranking!DE4=1),1,0) -> 0 | U4: =IF(AND('User Input'!$C$38='User Input'!$C$18,Ranking!DF4=1),1,0) -> 0 | V4: =IF('User Input'!$I$38='User Input'!$I$13,1,IF(AND('User Input'!$I$38='User Input'!$I16,Ranking!$BY4>0.8),1,IF(AND('User Input'!$I$38='User Input'!$I$15,Ranking!$BY4>0.9),1,IF(AND('User Input'!$I$38='User Input'!$D$16,Ranking!$BY4>0.95),1,0)))) -> 1 | W4: =IF('User Input'!$D$38='User Input'!$D$13,1,IF(AND('User Input'!$D$38='User Input'!$D$14,Ranking!$BZ4>0.8),1,IF(AND('User Input'!$D$38='User Input'!$D$15,Ranking!$BZ4>0.9),1,IF(AND('User Input'!$D$38='User Input'!$D$16,Ranking!$BZ4>0.95),1,0)))) -> 1 | X4: =IF(AND('User Input'!$E$38='User Input'!$E$13,Ranking!DF4=1),1,0) -> 1 | Y4: =IF(AND('User Input'!$F$58=TRUE,Ranking!DI4=1),1,IF(AND('User Input'!$F$58=FALSE,Ranking!DI4=0),1,0)) -> 1 | Z4: =IF(AND('User Input'!$F$59=TRUE,Ranking!DJ4=1),1,IF(AND('User Input'!$F$59=FALSE,Ranking!DJ4=0),1,0)) -> 1 | AA4: =IF(AND('User Input'!$F$60=TRUE,Ranking!DK4=1),1,IF(AND('User Input'!$F$60=FALSE,Ranking!DK4=0),1,0)) -> 1 | AB4: =IF(AND('User Input'!$F$61=TRUE,Ranking!DL4=1),1,IF(AND('User Input'!$F$61=FALSE,Ranking!DL4=0),1,0)) -> 1 | AC4: =IF(AND('User Input'!$F$62=TRUE,Ranking!DM4=1),1,IF(AND('User Input'!$F$62=FALSE,Ranking!DM4=0),1,0)) -> 0 | AD4: =IF(AND('User Input'!$F$63=TRUE,Ranking!DN4=1),1,IF(AND('User Input'!$F$63=FALSE,Ranking!DN4=0),1,0)) -> 0 | AE4: =IF(AND('User Input'!$F$64=TRUE,Ranking!DO4=1),1,IF(AND('User Input'!$F$64=FALSE,Ranking!DO4=0),1,0)) -> 1 | AF4: =IF(AND('User Input'!$F$65=TRUE,Ranking!DP4=1),1,IF(AND('User Input'!$F$65=FALSE,Ranking!DP4=0),1,0)) -> 1 | AG4: =IF(AND('User Input'!$F$66=TRUE,Ranking!DQ4=1),1,IF(AND('User Input'!$F$66=FALSE,Ranking!DQ4=0),1,0)) -> 1 | AH4: =IF(AND('User Input'!$F$67=TRUE,Ranking!DR4=1),1,IF(AND('User Input'!$F$67=FALSE,Ranking!DR4=0),1,0)) -> 0 | AI4: =IF(Ranking!CV4="Y",1,IF(AND('User Input'!$G$38='User Input'!$G$14,Ranking!CV4="N"),1,0)) -> 1 | AJ4: =IF(OR(Ranking!DG4="Y",'User Input'!$H$38='User Input'!$H$14),1,IF(AND('User Input'!$H$38='User Input'!$H$13,Ranking!DG4="Y"),1,0)) -> 0 | AK4: =IF(AND('User Input'!$B$52='User Input'!$B$23,Ranking!CL4<'User Input'!$A$23),1,0) -> 0 | AL4: =IF(AND('User Input'!$B$52='User Input'!$B$24,Ranking!CL4<'User Input'!$A$24),1,0) -> 0 | AM4: =IF(AND('User Input'!$B$52='User Input'!$B$25,Ranking!CL4<'User Input'!$A$25),1,0) -> 0 | AN4: =IF(AND('User Input'!$B$52='User Input'!$B$26,Ranking!CL4<'User Input'!$A$26),1,0) -> 0 | AO4: =IF('User Input'!$B$52='User Input'!$B$27,1,0) -> 0 | AP4: =IF(AND('User Input'!$C$52='User Input'!$C$23,CE4=1),1,0) -> 0 | AQ4: =IF(CD4=1,0,IF(AND('User Input'!$C$52='User Input'!$C$24,Ranking!CF4=1),1,0)) -> 1 | AR4: =IF(CE4=1,0,IF(AND('User Input'!$C$52='User Input'!$C$25,Ranking!CG4=1),1,0)) -> 0 | AS4: =IF(CF4=1,0,IF(AND('User Input'!$C$52='User Input'!$C$26,Ranking!CH4=1),1,0)) -> 0 | AT4: =IF(CG4=1,0,IF(AND('User Input'!$C$52='User Input'!$C$27,Ranking!CI4=1),1,0)) -> 0 | AU4: =IF(AND('User Input'!$D$52='User Input'!$D$23,Ranking!CJ4>5000),1,0) -> 1 | AV4: =IF('User Input'!$E$52='User Input'!$E$25,1,IF(AND('User Input'!$E$52='User Input'!$E$23,Ranking!CM4=1),1,IF(AND('User Input'!$E$52='User Input'!$E$24,Ranking!CM4=0),1,0))) -> 1 | AW4: =IF(AND('User Input'!$F$52='User Input'!$F$23,Ranking!DS4=1),1,0) -> 0 | AX4: =IF(AND('User Input'!$F$52='User Input'!$F$24,Ranking!DT4=1),1,0) -> 0 | AY4: =IF(AND('User Input'!$F$52='User Input'!$F$25,Ranking!DU4=1),1,0) -> 1 | AZ4: =IF('User Input'!$G$52='User Input'!$G$24,1,IF(AND('User Input'!$G$52='User Input'!$G$23,DH4="Y"),1,0)) -> 1 | BA4: =IF('User Input'!$H$52='User Input'!$H$23,1,IF(AND('User Input'!$H$52='User Input'!$H$24,Ranking!BK4<>"Video"),1,0)) -> 0 | BB4: =IF(AND('User Input'!$I$52='User Input'!$I$23,Ranking!DV4=1),1,0) -> 0 | BC4: =IF(AND('User Input'!$I$52='User Input'!$I$24,Ranking!DW4=1),1,0) -> 0 | BD4: =IF(AND('User Input'!$I$52='User Input'!$I$25,Ranking!DX4=1),1,0) -> 0 | BE4: =IF('User Input'!$J$52='User Input'!$J$23,1,IF(AND('User Input'!$J$52='User Input'!$J$24,Ranking!DY4=0),1,0)) -> 1 | BF4: =IF('User Input'!$K$52='User Input'!$K$24,1,IF(AND('User Input'!$K$52='User Input'!$K$23,Ranking!CO4=1),1,0)) -> 1 | BI4: Miovision TrafficLink | BK4: Video | BL4: software and hardware | BM4: 1 | BN4: 0 | BO4: 1 | BP4: 1 | BQ4: 0 | BR4: 1 | BS4: 0 | BT4: 0 | BU4: 0 | BV4: 1 | BW4: 1 | BX4: 1 | BY4: 0.99 | BZ4: 0.99 | CA4: 1 | CB4: 0 | CC4: 0 | CD4: 0 | CE4: 0 | CF4: 1 | CG4: 1 | CH4: 0 | CI4: 0 | CJ4: 14900 | CK4: 1000 | CL4: 14900 | CM4: 1 | CN4: AC | CO4: 1 | CP4: 1 | CQ4: 360o | CR4: 90m | CS4: Y | CT4: Y | CU4: Y | CV4: N | CW4: Y | CX4: 1 | CY4: Medium | CZ4: N | DA4: 0 | DB4: 1 | DC4: 1 | DD4: 1 | DE4: 1 | DF4: 1 | DG4: N | DH4: Y | DI4: 1 | DJ4: 0 | DK4: 0 | DL4: 1 | DM4: 0 | DN4: 0 | DO4: 1 | DP4: 1 | DQ4: 1 | DR4: 0 | DS4: 0 | DT4: 1 | DU4: 1 | DV4: 1 | DW4: 1 | DX4: 0 | DY4: 1
A5: =IF(AND('User Input'!$D$35='User Input'!$D$6,Ranking!BN5=1),1,0) -> 0 | B5: =IF(AND('User Input'!$D$35='User Input'!$D$7,Ranking!BO5=1),1,0) -> 0 | C5: =IF(AND('User Input'!$D$35='User Input'!$D$8,Ranking!BP5=1),1,0) -> 0 | D5: =IF(AND('User Input'!$F$35='User Input'!$F$7,Ranking!BQ5=1),1,0) -> 0 | E5: =IF(AND('User Input'!$F$35='User Input'!$F$6,Ranking!BR5=1),1,0) -> 1 | F5: =IF(AND('User Input'!$F$35='User Input'!$F$8,Ranking!BS5=1),1,0) -> 0 | G5: =IF(AND('User Input'!$F$35='User Input'!$F$9,Ranking!BT5=1),1,0) -> 0 | H5: =IF(AND('User Input'!$F$35='User Input'!$F$10,Ranking!BU5=1),1,0) -> 0 | I5: =IF(BV5=0,1,IF(AND(BV5=1,'User Input'!$G$35='User Input'!$G$6),0,IF(AND(BV5=1,'User Input'!$G$35='User Input'!$G$7),1,0))) -> 1 | J5: =IF(BW5=0,1,IF(AND(BW5=1,'User Input'!$H$35='User Input'!$H$6),1,IF(AND(BW5=1,'User Input'!$H$35='User Input'!$H$7),0))) -> 1 | K5: =IF('User Input'!$I$35='User Input'!$I$6,1,IF(AND('User Input'!$I$35='User Input'!$I$7,Ranking!BX5=0),1,0)) -> 1 | L5: =IF('User Input'!$K$35='User Input'!$K$7,1,IF(AND(OR('User Input'!$K$35='User Input'!$K$6,'User Input'!$K$35='User Input'!$K$8),Ranking!$CZ5="Y"),1,0)) -> 0 | M5: =IF(AND('User Input'!$B$38='User Input'!$B$13,Ranking!CA5=1),1,0) -> 0 | N5: =IF(AND('User Input'!$B$38='User Input'!$B$14,Ranking!CB5=1),1,0) -> 0 | O5: =IF(AND('User Input'!$B$38='User Input'!$B$15,Ranking!CC5=1),1,0) -> 0 | P5: =IF(AND('User Input'!$C$38='User Input'!$C$13,DA5=1),1,0) -> 0 | Q5: =IF(AND('User Input'!$C$38='User Input'!$C$14,Ranking!DB5=1),1,0) -> 0 | R5: =IF(AND('User Input'!$C$38='User Input'!$C$15,Ranking!DC5=1),1,0) -> 0 | S5: =IF(AND('User Input'!$C$38='User Input'!$C$16,Ranking!DD5=1),1,0) -> 0 | T5: =IF(AND('User Input'!$C$38='User Input'!$C$17,Ranking!DE5=1),1,0) -> 0 | U5: =IF(AND('User Input'!$C$38='User Input'!$C$18,Ranking!DF5=1),1,0) -> 0 | V5: =IF('User Input'!$I$38='User Input'!$I$13,1,IF(AND('User Input'!$I$38='User Input'!$I17,Ranking!$BY5>0.8),1,IF(AND('User Input'!$I$38='User Input'!$I$15,Ranking!$BY5>0.9),1,IF(AND('User Input'!$I$38='User Input'!$D$16,Ranking!$BY5>0.95),1,0)))) -> 1 | W5: =IF('User Input'!$D$38='User Input'!$D$13,1,IF(AND('User Input'!$D$38='User Input'!$D$14,Ranking!$BZ5>0.8),1,IF(AND('User Input'!$D$38='User Input'!$D$15,Ranking!$BZ5>0.9),1,IF(AND('User Input'!$D$38='User Input'!$D$16,Ranking!$BZ5>0.95),1,0)))) -> 1 | X5: =IF(AND('User Input'!$E$38='User Input'!$E$13,Ranking!DF5=1),1,0) -> 0 | Y5: =IF(AND('User Input'!$F$58=TRUE,Ranking!DI5=1),1,IF(AND('User Input'!$F$58=FALSE,Ranking!DI5=0),1,0)) -> 1 | Z5: =IF(AND('User Input'!$F$59=TRUE,Ranking!DJ5=1),1,IF(AND('User Input'!$F$59=FALSE,Ranking!DJ5=0),1,0)) -> 1 | AA5: =IF(AND('User Input'!$F$60=TRUE,Ranking!DK5=1),1,IF(AND('User Input'!$F$60=FALSE,Ranking!DK5=0),1,0)) -> 1 | AB5: =IF(AND('User Input'!$F$61=TRUE,Ranking!DL5=1),1,IF(AND('User Input'!$F$61=FALSE,Ranking!DL5=0),1,0)) -> 1 | AC5: =IF(AND('User Input'!$F$62=TRUE,Ranking!DM5=1),1,IF(AND('User Input'!$F$62=FALSE,Ranking!DM5=0),1,0)) -> 0 | AD5: =IF(AND('User Input'!$F$63=TRUE,Ranking!DN5=1),1,IF(AND('User Input'!$F$63=FALSE,Ranking!DN5=0),1,0)) -> 0 | AE5: =IF(AND('User Input'!$F$64=TRUE,Ranking!DO5=1),1,IF(AND('User Input'!$F$64=FALSE,Ranking!DO5=0),1,0)) -> 0 | AF5: =IF(AND('User Input'!$F$65=TRUE,Ranking!DP5=1),1,IF(AND('User Input'!$F$65=FALSE,Ranking!DP5=0),1,0)) -> 0 | AG5: =IF(AND('User Input'!$F$66=TRUE,Ranking!DQ5=1),1,IF(AND('User Input'!$F$66=FALSE,Ranking!DQ5=0),1,0)) -> 0 | AH5: =IF(AND('User Input'!$F$67=TRUE,Ranking!DR5=1),1,IF(AND('User Input'!$F$67=FALSE,Ranking!DR5=0),1,0)) -> 0 | AI5: =IF(Ranking!CV5="Y",1,IF(AND('User Input'!$G$38='User Input'!$G$14,Ranking!CV5="N"),1,0)) -> 1 | AJ5: =IF(OR(Ranking!DG5="Y",'User Input'!$H$38='User Input'!$H$14),1,IF(AND('User Input'!$H$38='User Input'!$H$13,Ranking!DG5="Y"),1,0)) -> 1 | AK5: =IF(AND('User Input'!$B$52='User Input'!$B$23,Ranking!CL5<'User Input'!$A$23),1,0) -> 0 | AL5: =IF(AND('User Input'!$B$52='User Input'!$B$24,Ranking!CL5<'User Input'!$A$24),1,0) -> 0 | AM5: =IF(AND('User Input'!$B$52='User Input'!$B$25,Ranking!CL5<'User Input'!$A$25),1,0) -> 1 | AN5: =IF(AND('User Input'!$B$52='User Input'!$B$26,Ranking!CL5<'User Input'!$A$26),1,0) -> 0 | AO5: =IF('User Input'!$B$52='User Input'!$B$27,1,0) -> 0 | AP5: =IF(AND('User Input'!$C$52='User Input'!$C$23,CE5=1),1,0) -> 0 | AQ5: =IF(CD5=1,0,IF(AND('User Input'!$C$52='User Input'!$C$24,Ranking!CF5=1),1,0)) -> 0 | AR5: =IF(CE5=1,0,IF(AND('User Input'!$C$52='User Input'!$C$25,Ranking!CG5=1),1,0)) -> 0 | AS5: =IF(CF5=1,0,IF(AND('User Input'!$C$52='User Input'!$C$26,Ranking!CH5=1),1,0)) -> 0 | AT5: =IF(CG5=1,0,IF(AND('User Input'!$C$52='User Input'!$C$27,Ranking!CI5=1),1,0)) -> 0 | AU5: =IF(AND('User Input'!$D$52='User Input'!$D$23,Ranking!CJ5>5000),1,0) -> 0 | AV5: =IF('User Input'!$E$52='User Input'!$E$25,1,IF(AND('User Input'!$E$52='User Input'!$E$23,Ranking!CM5=1),1,IF(AND('User Input'!$E$52='User Input'!$E$24,Ranking!CM5=0),1,0))) -> 1 | AW5: =IF(AND('User Input'!$F$52='User Input'!$F$23,Ranking!DS5=1),1,0) -> 0 | AX5: =IF(AND('User Input'!$F$52='User Input'!$F$24,Ranking!DT5=1),1,0) -> 0 | AY5: =IF(AND('User Input'!$F$52='User Input'!$F$25,Ranking!DU5=1),1,0) -> 1 | AZ5: =IF('User Input'!$G$52='User Input'!$G$24,1,IF(AND('User Input'!$G$52='User Input'!$G$23,DH5="Y"),1,0)) -> 1 | BA5: =IF('User Input'!$H$52='User Input'!$H$23,1,IF(AND('User Input'!$H$52='User Input'!$H$24,Ranking!BK5<>"Video"),1,0)) -> 0 | BB5: =IF(AND('User Input'!$I$52='User Input'!$I$23,Ranking!DV5=1),1,0) -> 0 | BC5: =IF(AND('User Input'!$I$52='User Input'!$I$24,Ranking!DW5=1),1,0) -> 0 | BD5: =IF(AND('User Input'!$I$52='User Input'!$I$25,Ranking!DX5=1),1,0) -> 1 | BE5: =IF('User Input'!$J$52='User Input'!$J$23,1,IF(AND('User Input'!$J$52='User Input'!$J$24,Ranking!DY5=0),1,0)) -> 1 | BF5: =IF('User Input'!$K$52='User Input'!$K$24,1,IF(AND('User Input'!$K$52='User Input'!$K$23,Ranking!CO5=1),1,0)) -> 1 | BI5: Spack Solutions' countCAM3 | BK5: Video | BL5: software and hardware | BM5: 1 | BN5: 1 | BO5: 1 | BP5: 0 | BQ5: 0 | BR5: 1 | BS5: 0 | BT5: 0 | BU5: 0 | BV5: 1 | BW5: 1 | BX5: 0 | BY5: ?? | BZ5: ?? | CA5: 0 | CB5: 1 | CC5: 1 | CD5: 0 | CE5: 0 | CF5: 0 | CG5: 0 | CH5: 0 | CI5: 1 | CJ5: 1300 | CK5: $300 for 24-hr video | CL5: 1300 | CM5: 1 | CN5: DC | CO5: 1 | CP5: 1 | CQ5: ?? | CR5: ?? | CS5: N | CT5: N | CU5: N | CV5: N | CW5: N | CX5: 0.5 | CY5: Low | CZ5: N | DA5: 1 | DB5: 0 | DC5: 1 | DD5: 1 | DE5: 0 | DF5: 0 | DG5: Y | DH5: Y | DI5: 1 | DJ5: 0 | DK5: 0 | DL5: 1 | DM5: 0 | DN5: 0 | DO5: 0 | DP5: 0 | DQ5: 0 | DR5: 0 | DS5: 1 | DT5: 1 | DU5: 1 | DV5: 1 | DW5: 0 | DX5: 1 | DY5: 1
A6: =IF(AND('User Input'!$D$35='User Input'!$D$6,Ranking!BN6=1),1,0) -> 0 | B6: =IF(AND('User Input'!$D$35='User Input'!$D$7,Ranking!BO6=1),1,0) -> 0 | C6: =IF(AND('User Input'!$D$35='User Input'!$D$8,Ranking!BP6=1),1,0) -> 0 | D6: =IF(AND('User Input'!$F$35='User Input'!$F$7,Ranking!BQ6=1),1,0) -> 0 | E6: =IF(AND('User Input'!$F$35='User Input'!$F$6,Ranking!BR6=1),1,0) -> 1 | F6: =IF(AND('User Input'!$F$35='User Input'!$F$8,Ranking!BS6=1),1,0) -> 0 | G6: =IF(AND('User Input'!$F$35='User Input'!$F$9,Ranking!BT6=1),1,0) -> 0 | H6: =IF(AND('User Input'!$F$35='User Input'!$F$10,Ranking!BU6=1),1,0) -> 0 | I6: =IF(BV6=0,1,IF(AND(BV6=1,'User Input'!$G$35='User Input'!$G$6),0,IF(AND(BV6=1,'User Input'!$G$35='User Input'!$G$7),1,0))) -> 1 | J6: =IF(BW6=0,1,IF(AND(BW6=1,'User Input'!$H$35='User Input'!$H$6),1,IF(AND(BW6=1,'User Input'!$H$35='User Input'!$H$7),0))) -> 1 | K6: =IF('User Input'!$I$35='User Input'!$I$6,1,IF(AND('User Input'!$I$35='User Input'!$I$7,Ranking!BX6=0),1,0)) -> 1 | L6: =IF('User Input'!$K$35='User Input'!$K$7,1,IF(AND(OR('User Input'!$K$35='User Input'!$K$6,'User Input'!$K$35='User Input'!$K$8),Ranking!$CZ6="Y"),1,0)) -> 0 | M6: =IF(AND('User Input'!$B$38='User Input'!$B$13,Ranking!CA6=1),1,0) -> 1 | N6: =IF(AND('User Input'!$B$38='User Input'!$B$14,Ranking!CB6=1),1,0) -> 0 | O6: =IF(AND('User Input'!$B$38='User Input'!$B$15,Ranking!CC6=1),1,0) -> 0 | P6: =IF(AND('User Input'!$C$38='User Input'!$C$13,DA6=1),1,0) -> 0 | Q6: =IF(AND('User Input'!$C$38='User Input'!$C$14,Ranking!DB6=1),1,0) -> 0 | R6: =IF(AND('User Input'!$C$38='User Input'!$C$15,Ranking!DC6=1),1,0) -> 0 | S6: =IF(AND('User Input'!$C$38='User Input'!$C$16,Ranking!DD6=1),1,0) -> 0 | T6: =IF(AND('User Input'!$C$38='User Input'!$C$17,Ranking!DE6=1),1,0) -> 0 | U6: =IF(AND('User Input'!$C$38='User Input'!$C$18,Ranking!DF6=1),1,0) -> 0 | V6: =IF('User Input'!$I$38='User Input'!$I$13,1,IF(AND('User Input'!$I$38='User Input'!$I18,Ranking!$BY6>0.8),1,IF(AND('User Input'!$I$38='User Input'!$I$15,Ranking!$BY6>0.9),1,IF(AND('User Input'!$I$38='User Input'!$D$16,Ranking!$BY6>0.95),1,0)))) -> 0 | W6: =IF('User Input'!$D$38='User Input'!$D$13,1,IF(AND('User Input'!$D$38='User Input'!$D$14,Ranking!$BZ6>0.8),1,IF(AND('User Input'!$D$38='User Input'!$D$15,Ranking!$BZ6>0.9),1,IF(AND('User Input'!$D$38='User Input'!$D$16,Ranking!$BZ6>0.95),1,0)))) -> 1 | X6: =IF(AND('User Input'!$E$38='User Input'!$E$13,Ranking!DF6=1),1,0) -> 0 | Y6: =IF(AND('User Input'!$F$58=TRUE,Ranking!DI6=1),1,IF(AND('User Input'!$F$58=FALSE,Ranking!DI6=0),1,0)) -> 1 | Z6: =IF(AND('User Input'!$F$59=TRUE,Ranking!DJ6=1),1,IF(AND('User Input'!$F$59=FALSE,Ranking!DJ6=0),1,0)) -> 1 | AA6: =IF(AND('User Input'!$F$60=TRUE,Ranking!DK6=1),1,IF(AND('User Input'!$F$60=FALSE,Ranking!DK6=0),1,0)) -> 1 | AB6: =IF(AND('User Input'!$F$61=TRUE,Ranking!DL6=1),1,IF(AND('User Input'!$F$61=FALSE,Ranking!DL6=0),1,0)) -> 1 | AC6: =IF(AND('User Input'!$F$62=TRUE,Ranking!DM6=1),1,IF(AND('User Input'!$F$62=FALSE,Ranking!DM6=0),1,0)) -> 0 | AD6: =IF(AND('User Input'!$F$63=TRUE,Ranking!DN6=1),1,IF(AND('User Input'!$F$63=FALSE,Ranking!DN6=0),1,0)) -> 0 | AE6: =IF(AND('User Input'!$F$64=TRUE,Ranking!DO6=1),1,IF(AND('User Input'!$F$64=FALSE,Ranking!DO6=0),1,0)) -> 0 | AF6: =IF(AND('User Input'!$F$65=TRUE,Ranking!DP6=1),1,IF(AND('User Input'!$F$65=FALSE,Ranking!DP6=0),1,0)) -> 0 | AG6: =IF(AND('User Input'!$F$66=TRUE,Ranking!DQ6=1),1,IF(AND('User Input'!$F$66=FALSE,Ranking!DQ6=0),1,0)) -> 0 | AH6: =IF(AND('User Input'!$F$67=TRUE,Ranking!DR6=1),1,IF(AND('User Input'!$F$67=FALSE,Ranking!DR6=0),1,0)) -> 0 | AI6: =IF(Ranking!CV6="Y",1,IF(AND('User Input'!$G$38='User Input'!$G$14,Ranking!CV6="N"),1,0)) -> 1 | AJ6: =IF(OR(Ranking!DG6="Y",'User Input'!$H$38='User Input'!$H$14),1,IF(AND('User Input'!$H$38='User Input'!$H$13,Ranking!DG6="Y"),1,0)) -> 0 | AK6: =IF(AND('User Input'!$B$52='User Input'!$B$23,Ranking!CL6<'User Input'!$A$23),1,0) -> 0 | AL6: =IF(AND('User Input'!$B$52='User Input'!$B$24,Ranking!CL6<'User Input'!$A$24),1,0) -> 0 | AM6: =IF(AND('User Input'!$B$52='User Input'!$B$25,Ranking!CL6<'User Input'!$A$25),1,0) -> 0 | AN6: =IF(AND('User Input'!$B$52='User Input'!$B$26,Ranking!CL6<'User Input'!$A$26),1,0) -> 0 | AO6: =IF('User Input'!$B$52='User Input'!$B$27,1,0) -> 0 | AP6: =IF(AND('User Input'!$C$52='User Input'!$C$23,CE6=1),1,0) -> 0 | AQ6: =IF(CD6=1,0,IF(AND('User Input'!$C$52='User Input'!$C$24,Ranking!CF6=1),1,0)) -> 1 | AR6: =IF(CE6=1,0,IF(AND('User Input'!$C$52='User Input'!$C$25,Ranking!CG6=1),1,0)) -> 0 | AS6: =IF(CF6=1,0,IF(AND('User Input'!$C$52='User Input'!$C$26,Ranking!CH6=1),1,0)) -> 0 | AT6: =IF(CG6=1,0,IF(AND('User Input'!$C$52='User Input'!$C$27,Ranking!CI6=1),1,0)) -> 0 | AU6: =IF(AND('User Input'!$D$52='User Input'!$D$23,Ranking!CJ6>5000),1,0) -> 1 | AV6: =IF('User Input'!$E$52='User Input'!$E$25,1,IF(AND('User Input'!$E$52='User Input'!$E$23,Ranking!CM6=1),1,IF(AND('User Input'!$E$52='User Input'!$E$24,Ranking!CM6=0),1,0))) -> 1 | AW6: =IF(AND('User Input'!$F$52='User Input'!$F$23,Ranking!DS6=1),1,0) -> 0 | AX6: =IF(AND('User Input'!$F$52='User Input'!$F$24,Ranking!DT6=1),1,0) -> 0 | AY6: =IF(AND('User Input'!$F$52='User Input'!$F$25,Ranking!DU6=1),1,0) -> 1 | AZ6: =IF('User Input'!$G$52='User Input'!$G$24,1,IF(AND('User Input'!$G$52='User Input'!$G$23,DH6="Y"),1,0)) -> 0 | BA6: =IF('User Input'!$H$52='User Input'!$H$23,1,IF(AND('User Input'!$H$52='User Input'!$H$24,Ranking!BK6<>"Video"),1,0)) -> 0 | BB6: =IF(AND('User Input'!$I$52='User Input'!$I$23,Ranking!DV6=1),1,0) -> 0 | BC6: =IF(AND('User Input'!$I$52='User Input'!$I$24,Ranking!DW6=1),1,0) -> 0 | BD6: =IF(AND('User Input'!$I$52='User Input'!$I$25,Ranking!DX6=1),1,0) -> 0 | BE6: =IF('User Input'!$J$52='User Input'!$J$23,1,IF(AND('User Input'!$J$52='User Input'!$J$24,Ranking!DY6=0),1,0)) -> 1 | BF6: =IF('User Input'!$K$52='User Input'!$K$24,1,IF(AND('User Input'!$K$52='User Input'!$K$23,Ranking!CO6=1),1,0)) -> 0 | BI6: Eco-counter CITIX – AI | BK6: Video | BL6: software and hardware | BM6: 2 | BN6: 1 | BO6: 1 | BP6: 0 | BQ6: 0 | BR6: 1 | BS6: 0 | BT6: 0 | BU6: 0 | BV6: 1 | BW6: 1 | BX6: 1 | BY6: 0.95 | BZ6: 0.95 | CA6: 1 | CB6: 0 | CC6: 0 | CD6: 0 | CE6: 0 | CF6: 1 | CG6: 1 | CH6: 0 | CI6: 0 | CJ6: 13800 | CK6: 400 | CL6: =CJ6*2 -> 27600 | CM6: 1 | CN6: AC | CO6: 0 | CP6: 1 | CQ6: ?? | CR6: 10m | CS6: Y | CT6: Y | CU6: Y | CV6: Y | CW6: N | CX6: 0.5 | CY6: Medium | CZ6: N | DA6: 0 | DB6: 0 | DC6: 1 | DD6: 1 | DE6: 0 | DF6: 0 | DG6: ?? | DH6: ?? | DI6: 1 | DJ6: 0 | DK6: 0 | DL6: 1 | DM6: 0 | DN6: 0 | DO6: 0 | DP6: 0 | DQ6: 0 | DR6: 0 | DS6: 0 | DT6: 0 | DU6: 1 | DV6: 1 | DW6: 0 | DX6: 0 | DY6: 1
A7: =IF(AND('User Input'!$D$35='User Input'!$D$6,Ranking!BN7=1),1,0) -> 0 | B7: =IF(AND('User Input'!$D$35='User Input'!$D$7,Ranking!BO7=1),1,0) -> 0 | C7: =IF(AND('User Input'!$D$35='User Input'!$D$8,Ranking!BP7=1),1,0) -> 0 | D7: =IF(AND('User Input'!$F$35='User Input'!$F$7,Ranking!BQ7=1),1,0) -> 0 | E7: =IF(AND('User Input'!$F$35='User Input'!$F$6,Ranking!BR7=1),1,0) -> 1 | F7: =IF(AND('User Input'!$F$35='User Input'!$F$8,Ranking!BS7=1),1,0) -> 0 | G7: =IF(AND('User Input'!$F$35='User Input'!$F$9,Ranking!BT7=1),1,0) -> 0 | H7: =IF(AND('User Input'!$F$35='User Input'!$F$10,Ranking!BU7=1),1,0) -> 0 | I7: =IF(BV7=0,1,IF(AND(BV7=1,'User Input'!$G$35='User Input'!$G$6),0,IF(AND(BV7=1,'User Input'!$G$35='User Input'!$G$7),1,0))) -> 1 | J7: =IF(BW7=0,1,IF(AND(BW7=1,'User Input'!$H$35='User Input'!$H$6),1,IF(AND(BW7=1,'User Input'!$H$35='User Input'!$H$7),0))) -> 1 | K7: =IF('User Input'!$I$35='User Input'!$I$6,1,IF(AND('User Input'!$I$35='User Input'!$I$7,Ranking!BX7=0),1,0)) -> 1 | L7: =IF('User Input'!$K$35='User Input'!$K$7,1,IF(AND(OR('User Input'!$K$35='User Input'!$K$6,'User Input'!$K$35='User Input'!$K$8),Ranking!$CZ7="Y"),1,0)) -> 0 | M7: =IF(AND('User Input'!$B$38='User Input'!$B$13,Ranking!CA7=1),1,0) -> 1 | N7: =IF(AND('User Input'!$B$38='User Input'!$B$14,Ranking!CB7=1),1,0) -> 0 | O7: =IF(AND('User Input'!$B$38='User Input'!$B$15,Ranking!CC7=1),1,0) -> 0 | P7: =IF(AND('User Input'!$C$38='User Input'!$C$13,DA7=1),1,0) -> 0 | Q7: =IF(AND('User Input'!$C$38='User Input'!$C$14,Ranking!DB7=1),1,0) -> 0 | R7: =IF(AND('User Input'!$C$38='User Input'!$C$15,Ranking!DC7=1),1,0) -> 0 | S7: =IF(AND('User Input'!$C$38='User Input'!$C$16,Ranking!DD7=1),1,0) -> 0 | T7: =IF(AND('User Input'!$C$38='User Input'!$C$17,Ranking!DE7=1),1,0) -> 0 | U7: =IF(AND('User Input'!$C$38='User Input'!$C$18,Ranking!DF7=1),1,0) -> 0 | V7: =IF('User Input'!$I$38='User Input'!$I$13,1,IF(AND('User Input'!$I$38='User Input'!$I19,Ranking!$BY7>0.8),1,IF(AND('User Input'!$I$38='User Input'!$I$15,Ranking!$BY7>0.9),1,IF(AND('User Input'!$I$38='User Input'!$D$16,Ranking!$BY7>0.95),1,0)))) -> 0 | W7: =IF('User Input'!$D$38='User Input'!$D$13,1,IF(AND('User Input'!$D$38='User Input'!$D$14,Ranking!$BZ7>0.8),1,IF(AND('User Input'!$D$38='User Input'!$D$15,Ranking!$BZ7>0.9),1,IF(AND('User Input'!$D$38='User Input'!$D$16,Ranking!$BZ7>0.95),1,0)))) -> 1 | X7: =IF(AND('User Input'!$E$38='User Input'!$E$13,Ranking!DF7=1),1,0) -> 0 | Y7: =IF(AND('User Input'!$F$58=TRUE,Ranking!DI7=1),1,IF(AND('User Input'!$F$58=FALSE,Ranking!DI7=0),1,0)) -> 1 | Z7: =IF(AND('User Input'!$F$59=TRUE,Ranking!DJ7=1),1,IF(AND('User Input'!$F$59=FALSE,Ranking!DJ7=0),1,0)) -> 1 | AA7: =IF(AND('User Input'!$F$60=TRUE,Ranking!DK7=1),1,IF(AND('User Input'!$F$60=FALSE,Ranking!DK7=0),1,0)) -> 0 | AB7: =IF(AND('User Input'!$F$61=TRUE,Ranking!DL7=1),1,IF(AND('User Input'!$F$61=FALSE,Ranking!DL7=0),1,0)) -> 1 | AC7: =IF(AND('User Input'!$F$62=TRUE,Ranking!DM7=1),1,IF(AND('User Input'!$F$62=FALSE,Ranking!DM7=0),1,0)) -> 1 | AD7: =IF(AND('User Input'!$F$63=TRUE,Ranking!DN7=1),1,IF(AND('User Input'!$F$63=FALSE,Ranking!DN7=0),1,0)) -> 0 | AE7: =IF(AND('User Input'!$F$64=TRUE,Ranking!DO7=1),1,IF(AND('User Input'!$F$64=FALSE,Ranking!DO7=0),1,0)) -> 0 | AF7: =IF(AND('User Input'!$F$65=TRUE,Ranking!DP7=1),1,IF(AND('User Input'!$F$65=FALSE,Ranking!DP7=0),1,0)) -> 0 | AG7: =IF(AND('User Input'!$F$66=TRUE,Ranking!DQ7=1),1,IF(AND('User Input'!$F$66=FALSE,Ranking!DQ7=0),1,0)) -> 0 | AH7: =IF(AND('User Input'!$F$67=TRUE,Ranking!DR7=1),1,IF(AND('User Input'!$F$67=FALSE,Ranking!DR7=0),1,0)) -> 0 | AI7: =IF(Ranking!CV7="Y",1,IF(AND('User Input'!$G$38='User Input'!$G$14,Ranking!CV7="N"),1,0)) -> 1 | AJ7: =IF(OR(Ranking!DG7="Y",'User Input'!$H$38='User Input'!$H$14),1,IF(AND('User Input'!$H$38='User Input'!$H$13,Ranking!DG7="Y"),1,0)) -> 0 | AK7: =IF(AND('User Input'!$B$52='User Input'!$B$23,Ranking!CL7<'User Input'!$A$23),1,0) -> 0 | AL7: =IF(AND('User Input'!$B$52='User Input'!$B$24,Ranking!CL7<'User Input'!$A$24),1,0) -> 0 | AM7: =IF(AND('User Input'!$B$52='User Input'!$B$25,Ranking!CL7<'User Input'!$A$25),1,0) -> 0 | AN7: =IF(AND('User Input'!$B$52='User Input'!$B$26,Ranking!CL7<'User Input'!$A$26),1,0) -> 0 | AO7: =IF('User Input'!$B$52='User Input'!$B$27,1,0) -> 0 | AP7: =IF(AND('User Input'!$C$52='User Input'!$C$23,CE7=1),1,0) -> 0 | AQ7: =IF(CD7=1,0,IF(AND('User Input'!$C$52='User Input'!$C$24,Ranking!CF7=1),1,0)) -> 0 | AR7: =IF(CE7=1,0,IF(AND('User Input'!$C$52='User Input'!$C$25,Ranking!CG7=1),1,0)) -> 0 | AS7: =IF(CF7=1,0,IF(AND('User Input'!$C$52='User Input'!$C$26,Ranking!CH7=1),1,0)) -> 0 | AT7: =IF(CG7=1,0,IF(AND('User Input'!$C$52='User Input'!$C$27,Ranking!CI7=1),1,0)) -> 0 | AU7: =IF(AND('User Input'!$D$52='User Input'!$D$23,Ranking!CJ7>5000),1,0) -> 1 | AV7: =IF('User Input'!$E$52='User Input'!$E$25,1,IF(AND('User Input'!$E$52='User Input'!$E$23,Ranking!CM7=1),1,IF(AND('User Input'!$E$52='User Input'!$E$24,Ranking!CM7=0),1,0))) -> 0 | AW7: =IF(AND('User Input'!$F$52='User Input'!$F$23,Ranking!DS7=1),1,0) -> 0 | AX7: =IF(AND('User Input'!$F$52='User Input'!$F$24,Ranking!DT7=1),1,0) -> 0 | AY7: =IF(AND('User Input'!$F$52='User Input'!$F$25,Ranking!DU7=1),1,0) -> 1 | AZ7: =IF('User Input'!$G$52='User Input'!$G$24,1,IF(AND('User Input'!$G$52='User Input'!$G$23,DH7="Y"),1,0)) -> 1 | BA7: =IF('User Input'!$H$52='User Input'!$H$23,1,IF(AND('User Input'!$H$52='User Input'!$H$24,Ranking!BK7<>"Video"),1,0)) -> 0 | BB7: =IF(AND('User Input'!$I$52='User Input'!$I$23,Ranking!DV7=1),1,0) -> 0 | BC7: =IF(AND('User Input'!$I$52='User Input'!$I$24,Ranking!DW7=1),1,0) -> 0 | BD7: =IF(AND('User Input'!$I$52='User Input'!$I$25,Ranking!DX7=1),1,0) -> 0 | BE7: =IF('User Input'!$J$52='User Input'!$J$23,1,IF(AND('User Input'!$J$52='User Input'!$J$24,Ranking!DY7=0),1,0)) -> 1 | BF7: =IF('User Input'!$K$52='User Input'!$K$24,1,IF(AND('User Input'!$K$52='User Input'!$K$23,Ranking!CO7=1),1,0)) -> 0 | BI7: Numina | BK7: Video | BL7: software and hardware | BM7: 4 | BN7: 1 | BO7: 1 | BP7: 0 | BQ7: 1 | BR7: 1 | BS7: 0 | BT7: 0 | BU7: 0 | BV7: 1 | BW7: 1 | BX7: 1 | BY7: 0.95 | BZ7: 0.95 | CA7: 1 | CB7: 0 | CC7: 0 | CD7: 0 | CE7: 0 | CF7: 0 | CG7: 1 | CH7: 0 | CI7: 0 | CJ7: ?? | CK7: 1500 | CL7: ?? | CM7: 0 | CN7: AC | CO7: 0 | CP7: 1 | CQ7: 90° | CR7: 40m | CS7: Y | CT7: Y | CU7: N | CV7: N | CW7: N | CX7: 0.5 | CY7: High | CZ7: N | DA7: 0 | DB7: 0 | DC7: 1 | DD7: 1 | DE7: 0 | DF7: 0 | DG7: ?? | DH7: Y | DI7: 1 | DJ7: 0 | DK7: 1 | DL7: 1 | DM7: 1 | DN7: 0 | DO7: 0 | DP7: 0 | DQ7: 0 | DR7: 0 | DS7: 0 | DT7: 1 | DU7: 1 | DV7: 1 | DW7: 0 | DX7: 0 | DY7: 0
A8: =IF(AND('User Input'!$D$35='User Input'!$D$6,Ranking!BN8=1),1,0) -> 0 | B8: =IF(AND('User Input'!$D$35='User Input'!$D$7,Ranking!BO8=1),1,0) -> 0 | C8: =IF(AND('User Input'!$D$35='User Input'!$D$8,Ranking!BP8=1),1,0) -> 1 | D8: =IF(AND('User Input'!$F$35='User Input'!$F$7,Ranking!BQ8=1),1,0) -> 0 | E8: =IF(AND('User Input'!$F$35='User Input'!$F$6,Ranking!BR8=1),1,0) -> 1 | F8: =IF(AND('User Input'!$F$35='User Input'!$F$8,Ranking!BS8=1),1,0) -> 0 | G8: =IF(AND('User Input'!$F$35='User Input'!$F$9,Ranking!BT8=1),1,0) -> 0 | H8: =IF(AND('User Input'!$F$35='User Input'!$F$10,Ranking!BU8=1),1,0) -> 0 | I8: =IF(BV8=0,1,IF(AND(BV8=1,'User Input'!$G$35='User Input'!$G$6),0,IF(AND(BV8=1,'User Input'!$G$35='User Input'!$G$7),1,0))) -> 1 | J8: =IF(BW8=0,1,IF(AND(BW8=1,'User Input'!$H$35='User Input'!$H$6),1,IF(AND(BW8=1,'User Input'!$H$35='User Input'!$H$7),0))) -> 1 | K8: =IF('User Input'!$I$35='User Input'!$I$6,1,IF(AND('User Input'!$I$35='User Input'!$I$7,Ranking!BX8=0),1,0)) -> 1 | L8: =IF('User Input'!$K$35='User Input'!$K$7,1,IF(AND(OR('User Input'!$K$35='User Input'!$K$6,'User Input'!$K$35='User Input'!$K$8),Ranking!$CZ8="Y"),1,0)) -> 0 | M8: =IF(AND('User Input'!$B$38='User Input'!$B$13,Ranking!CA8=1),1,0) -> 0 | N8: =IF(AND('User Input'!$B$38='User Input'!$B$14,Ranking!CB8=1),1,0) -> 0 | O8: =IF(AND('User Input'!$B$38='User Input'!$B$15,Ranking!CC8=1),1,0) -> 0 | P8: =IF(AND('User Input'!$C$38='User Input'!$C$13,DA8=1),1,0) -> 0 | Q8: =IF(AND('User Input'!$C$38='User Input'!$C$14,Ranking!DB8=1),1,0) -> 1 | R8: =IF(AND('User Input'!$C$38='User Input'!$C$15,Ranking!DC8=1),1,0) -> 0 | S8: =IF(AND('User Input'!$C$38='User Input'!$C$16,Ranking!DD8=1),1,0) -> 0 | T8: =IF(AND('User Input'!$C$38='User Input'!$C$17,Ranking!DE8=1),1,0) -> 0 | U8: =IF(AND('User Input'!$C$38='User Input'!$C$18,Ranking!DF8=1),1,0) -> 0 | V8: =IF('User Input'!$I$38='User Input'!$I$13,1,IF(AND('User Input'!$I$38='User Input'!$I20,Ranking!$BY8>0.8),1,IF(AND('User Input'!$I$38='User Input'!$I$15,Ranking!$BY8>0.9),1,IF(AND('User Input'!$I$38='User Input'!$D$16,Ranking!$BY8>0.95),1,0)))) -> 1 | W8: =IF('User Input'!$D$38='User Input'!$D$13,1,IF(AND('User Input'!$D$38='User Input'!$D$14,Ranking!$BZ8>0.8),1,IF(AND('User Input'!$D$38='User Input'!$D$15,Ranking!$BZ8>0.9),1,IF(AND('User Input'!$D$38='User Input'!$D$16,Ranking!$BZ8>0.95),1,0)))) -> 0 | X8: =IF(AND('User Input'!$E$38='User Input'!$E$13,Ranking!DF8=1),1,0) -> 0 | Y8: =IF(AND('User Input'!$F$58=TRUE,Ranking!DI8=1),1,IF(AND('User Input'!$F$58=FALSE,Ranking!DI8=0),1,0)) -> 1 | Z8: =IF(AND('User Input'!$F$59=TRUE,Ranking!DJ8=1),1,IF(AND('User Input'!$F$59=FALSE,Ranking!DJ8=0),1,0)) -> 1 | AA8: =IF(AND('User Input'!$F$60=TRUE,Ranking!DK8=1),1,IF(AND('User Input'!$F$60=FALSE,Ranking!DK8=0),1,0)) -> 0 | AB8: =IF(AND('User Input'!$F$61=TRUE,Ranking!DL8=1),1,IF(AND('User Input'!$F$61=FALSE,Ranking!DL8=0),1,0)) -> 1 | AC8: =IF(AND('User Input'!$F$62=TRUE,Ranking!DM8=1),1,IF(AND('User Input'!$F$62=FALSE,Ranking!DM8=0),1,0)) -> 1 | AD8: =IF(AND('User Input'!$F$63=TRUE,Ranking!DN8=1),1,IF(AND('User Input'!$F$63=FALSE,Ranking!DN8=0),1,0)) -> 1 | AE8: =IF(AND('User Input'!$F$64=TRUE,Ranking!DO8=1),1,IF(AND('User Input'!$F$64=FALSE,Ranking!DO8=0),1,0)) -> 1 | AF8: =IF(AND('User Input'!$F$65=TRUE,Ranking!DP8=1),1,IF(AND('User Input'!$F$65=FALSE,Ranking!DP8=0),1,0)) -> 1 | AG8: =IF(AND('User Input'!$F$66=TRUE,Ranking!DQ8=1),1,IF(AND('User Input'!$F$66=FALSE,Ranking!DQ8=0),1,0)) -> 0 | AH8: =IF(AND('User Input'!$F$67=TRUE,Ranking!DR8=1),1,IF(AND('User Input'!$F$67=FALSE,Ranking!DR8=0),1,0)) -> 1 | AI8: =IF(Ranking!CV8="Y",1,IF(AND('User Input'!$G$38='User Input'!$G$14,Ranking!CV8="N"),1,0)) -> 1 | AJ8: =IF(OR(Ranking!DG8="Y",'User Input'!$H$38='User Input'!$H$14),1,IF(AND('User Input'!$H$38='User Input'!$H$13,Ranking!DG8="Y"),1,0)) -> 1 | AK8: =IF(AND('User Input'!$B$52='User Input'!$B$23,Ranking!CL8<'User Input'!$A$23),1,0) -> 0 | AL8: =IF(AND('User Input'!$B$52='User Input'!$B$24,Ranking!CL8<'User Input'!$A$24),1,0) -> 0 | AM8: =IF(AND('User Input'!$B$52='User Input'!$B$25,Ranking!CL8<'User Input'!$A$25),1,0) -> 0 | AN8: =IF(AND('User Input'!$B$52='User Input'!$B$26,Ranking!CL8<'User Input'!$A$26),1,0) -> 0 | AO8: =IF('User Input'!$B$52='User Input'!$B$27,1,0) -> 0 | AP8: =IF(AND('User Input'!$C$52='User Input'!$C$23,CE8=1),1,0) -> 0 | AQ8: =IF(CD8=1,0,IF(AND('User Input'!$C$52='User Input'!$C$24,Ranking!CF8=1),1,0)) -> 0 | AR8: =IF(CE8=1,0,IF(AND('User Input'!$C$52='User Input'!$C$25,Ranking!CG8=1),1,0)) -> 0 | AS8: =IF(CF8=1,0,IF(AND('User Input'!$C$52='User Input'!$C$26,Ranking!CH8=1),1,0)) -> 0 | AT8: =IF(CG8=1,0,IF(AND('User Input'!$C$52='User Input'!$C$27,Ranking!CI8=1),1,0)) -> 0 | AU8: =IF(AND('User Input'!$D$52='User Input'!$D$23,Ranking!CJ8>5000),1,0) -> 0 | AV8: =IF('User Input'!$E$52='User Input'!$E$25,1,IF(AND('User Input'!$E$52='User Input'!$E$23,Ranking!CM8=1),1,IF(AND('User Input'!$E$52='User Input'!$E$24,Ranking!CM8=0),1,0))) -> 0 | AW8: =IF(AND('User Input'!$F$52='User Input'!$F$23,Ranking!DS8=1),1,0) -> 0 | AX8: =IF(AND('User Input'!$F$52='User Input'!$F$24,Ranking!DT8=1),1,0) -> 0 | AY8: =IF(AND('User Input'!$F$52='User Input'!$F$25,Ranking!DU8=1),1,0) -> 1 | AZ8: =IF('User Input'!$G$52='User Input'!$G$24,1,IF(AND('User Input'!$G$52='User Input'!$G$23,DH8="Y"),1,0)) -> 1 | BA8: =IF('User Input'!$H$52='User Input'!$H$23,1,IF(AND('User Input'!$H$52='User Input'!$H$24,Ranking!BK8<>"Video"),1,0)) -> 0 | BB8: =IF(AND('User Input'!$I$52='User Input'!$I$23,Ranking!DV8=1),1,0) -> 0 | BC8: =IF(AND('User Input'!$I$52='User Input'!$I$24,Ranking!DW8=1),1,0) -> 0 | BD8: =IF(AND('User Input'!$I$52='User Input'!$I$25,Ranking!DX8=1),1,0) -> 0 | BE8: =IF('User Input'!$J$52='User Input'!$J$23,1,IF(AND('User Input'!$J$52='User Input'!$J$24,Ranking!DY8=0),1,0)) -> 1 | BF8: =IF('User Input'!$K$52='User Input'!$K$24,1,IF(AND('User Input'!$K$52='User Input'!$K$23,Ranking!CO8=1),1,0)) -> 1 | BI8: Street Simplified | BK8: Video | BL8: software and hardware | BM8: 2 | BN8: 1 | BO8: 1 | BP8: 1 | BQ8: 1 | BR8: 1 | BS8: 0 | BT8: 0 | BU8: 0 | BV8: 1 | BW8: 1 | BX8: 0 | BY8: 98 | BZ8: 0.9 | CA8: 0 | CB8: 1 | CC8: 1 | CD8: 1 | CE8: 0 | CF8: 0 | CG8: 0 | CH8: 0 | CI8: 0 | CJ8: 5000 | CK8: 0 | CL8: 5000 | CM8: 0 | CN8: AC | CO8: 1 | CP8: 0 | CQ8: ?? | CR8: ?? | CS8: Y | CT8: N | CU8: N | CV8: N | CW8: N | CX8: 0.5 | CY8: Low | CZ8: N | DA8: 1 | DB8: 1 | DC8: 1 | DD8: 1 | DE8: 1 | DF8: 0 | DG8: Y | DH8: Y | DI8: 1 | DJ8: 0 | DK8: 1 | DL8: 1 | DM8: 1 | DN8: 1 | DO8: 1 | DP8: 1 | DQ8: 0 | DR8: 1 | DS8: 1 | DT8: 1 | DU8: 1 | DV8: 1 | DW8: 0 | DX8: 0 | DY8: 0
A9: =IF(AND('User Input'!$D$35='User Input'!$D$6,Ranking!BN9=1),1,0) -> 0 | B9: =IF(AND('User Input'!$D$35='User Input'!$D$7,Ranking!BO9=1),1,0) -> 0 | C9: =IF(AND('User Input'!$D$35='User Input'!$D$8,Ranking!BP9=1),1,0) -> 0 | D9: =IF(AND('User Input'!$F$35='User Input'!$F$7,Ranking!BQ9=1),1,0) -> 0 | E9: =IF(AND('User Input'!$F$35='User Input'!$F$6,Ranking!BR9=1),1,0) -> 1 | F9: =IF(AND('User Input'!$F$35='User Input'!$F$8,Ranking!BS9=1),1,0) -> 0 | G9: =IF(AND('User Input'!$F$35='User Input'!$F$9,Ranking!BT9=1),1,0) -> 0 | H9: =IF(AND('User Input'!$F$35='User Input'!$F$10,Ranking!BU9=1),1,0) -> 0 | I9: =IF(BV9=0,1,IF(AND(BV9=1,'User Input'!$G$35='User Input'!$G$6),0,IF(AND(BV9=1,'User Input'!$G$35='User Input'!$G$7),1,0))) -> 1 | J9: =IF(BW9=0,1,IF(AND(BW9=1,'User Input'!$H$35='User Input'!$H$6),1,IF(AND(BW9=1,'User Input'!$H$35='User Input'!$H$7),0))) -> 1 | K9: =IF('User Input'!$I$35='User Input'!$I$6,1,IF(AND('User Input'!$I$35='User Input'!$I$7,Ranking!BX9=0),1,0)) -> 1 | L9: =IF('User Input'!$K$35='User Input'!$K$7,1,IF(AND(OR('User Input'!$K$35='User Input'!$K$6,'User Input'!$K$35='User Input'!$K$8),Ranking!$CZ9="Y"),1,0)) -> 1 | M9: =IF(AND('User Input'!$B$38='User Input'!$B$13,Ranking!CA9=1),1,0) -> 1 | N9: =IF(AND('User Input'!$B$38='User Input'!$B$14,Ranking!CB9=1),1,0) -> 0 | O9: =IF(AND('User Input'!$B$38='User Input'!$B$15,Ranking!CC9=1),1,0) -> 0 | P9: =IF(AND('User Input'!$C$38='User Input'!$C$13,DA9=1),1,0) -> 0 | Q9: =IF(AND('User Input'!$C$38='User Input'!$C$14,Ranking!DB9=1),1,0) -> 1 | R9: =IF(AND('User Input'!$C$38='User Input'!$C$15,Ranking!DC9=1),1,0) -> 0 | S9: =IF(AND('User Input'!$C$38='User Input'!$C$16,Ranking!DD9=1),1,0) -> 0 | T9: =IF(AND('User Input'!$C$38='User Input'!$C$17,Ranking!DE9=1),1,0) -> 0 | U9: =IF(AND('User Input'!$C$38='User Input'!$C$18,Ranking!DF9=1),1,0) -> 0 | V9: =IF('User Input'!$I$38='User Input'!$I$13,1,IF(AND('User Input'!$I$38='User Input'!$I21,Ranking!$BY9>0.8),1,IF(AND('User Input'!$I$38='User Input'!$I$15,Ranking!$BY9>0.9),1,IF(AND('User Input'!$I$38='User Input'!$D$16,Ranking!$BY9>0.95),1,0)))) -> 1 | W9: =IF('User Input'!$D$38='User Input'!$D$13,1,IF(AND('User Input'!$D$38='User Input'!$D$14,Ranking!$BZ9>0.8),1,IF(AND('User Input'!$D$38='User Input'!$D$15,Ranking!$BZ9>0.9),1,IF(AND('User Input'!$D$38='User Input'!$D$16,Ranking!$BZ9>0.95),1,0)))) -> 1 | X9: =IF(AND('User Input'!$E$38='User Input'!$E$13,Ranking!DF9=1),1,0) -> 1 | Y9: =IF(AND('User Input'!$F$58=TRUE,Ranking!DI9=1),1,IF(AND('User Input'!$F$58=FALSE,Ranking!DI9=0),1,0)) -> 1 | Z9: =IF(AND('User Input'!$F$59=TRUE,Ranking!DJ9=1),1,IF(AND('User Input'!$F$59=FALSE,Ranking!DJ9=0),1,0)) -> 1 | AA9: =IF(AND('User Input'!$F$60=TRUE,Ranking!DK9=1),1,IF(AND('User Input'!$F$60=FALSE,Ranking!DK9=0),1,0)) -> 1 | AB9: =IF(AND('User Input'!$F$61=TRUE,Ranking!DL9=1),1,IF(AND('User Input'!$F$61=FALSE,Ranking!DL9=0),1,0)) -> 1 | AC9: =IF(AND('User Input'!$F$62=TRUE,Ranking!DM9=1),1,IF(AND('User Input'!$F$62=FALSE,Ranking!DM9=0),1,0)) -> 1 | AD9: =IF(AND('User Input'!$F$63=TRUE,Ranking!DN9=1),1,IF(AND('User Input'!$F$63=FALSE,Ranking!DN9=0),1,0)) -> 1 | AE9: =IF(AND('User Input'!$F$64=TRUE,Ranking!DO9=1),1,IF(AND('User Input'!$F$64=FALSE,Ranking!DO9=0),1,0)) -> 1 | AF9: =IF(AND('User Input'!$F$65=TRUE,Ranking!DP9=1),1,IF(AND('User Input'!$F$65=FALSE,Ranking!DP9=0),1,0)) -> 0 | AG9: =IF(AND('User Input'!$F$66=TRUE,Ranking!DQ9=1),1,IF(AND('User Input'!$F$66=FALSE,Ranking!DQ9=0),1,0)) -> 0 | AH9: =IF(AND('User Input'!$F$67=TRUE,Ranking!DR9=1),1,IF(AND('User Input'!$F$67=FALSE,Ranking!DR9=0),1,0)) -> 1 | AI9: =IF(Ranking!CV9="Y",1,IF(AND('User Input'!$G$38='User Input'!$G$14,Ranking!CV9="N"),1,0)) -> 1 | AJ9: =IF(OR(Ranking!DG9="Y",'User Input'!$H$38='User Input'!$H$14),1,IF(AND('User Input'!$H$38='User Input'!$H$13,Ranking!DG9="Y"),1,0)) -> 0 | AK9: =IF(AND('User Input'!$B$52='User Input'!$B$23,Ranking!CL9<'User Input'!$A$23),1,0) -> 0 | AL9: =IF(AND('User Input'!$B$52='User Input'!$B$24,Ranking!CL9<'User Input'!$A$24),1,0) -> 0 | AM9: =IF(AND('User Input'!$B$52='User Input'!$B$25,Ranking!CL9<'User Input'!$A$25),1,0) -> 0 | AN9: =IF(AND('User Input'!$B$52='User Input'!$B$26,Ranking!CL9<'User Input'!$A$26),1,0) -> 0 | AO9: =IF('User Input'!$B$52='User Input'!$B$27,1,0) -> 0 | AP9: =IF(AND('User Input'!$C$52='User Input'!$C$23,CE9=1),1,0) -> 0 | AQ9: =IF(CD9=1,0,IF(AND('User Input'!$C$52='User Input'!$C$24,Ranking!CF9=1),1,0)) -> 0 | AR9: =IF(CE9=1,0,IF(AND('User Input'!$C$52='User Input'!$C$25,Ranking!CG9=1),1,0)) -> 0 | AS9: =IF(CF9=1,0,IF(AND('User Input'!$C$52='User Input'!$C$26,Ranking!CH9=1),1,0)) -> 0 | AT9: =IF(CG9=1,0,IF(AND('User Input'!$C$52='User Input'!$C$27,Ranking!CI9=1),1,0)) -> 0 | AU9: =IF(AND('User Input'!$D$52='User Input'!$D$23,Ranking!CJ9>5000),1,0) -> 1 | AV9: =IF('User Input'!$E$52='User Input'!$E$25,1,IF(AND('User Input'!$E$52='User Input'!$E$23,Ranking!CM9=1),1,IF(AND('User Input'!$E$52='User Input'!$E$24,Ranking!CM9=0),1,0))) -> 1 | AW9: =IF(AND('User Input'!$F$52='User Input'!$F$23,Ranking!DS9=1),1,0) -> 0 | AX9: =IF(AND('User Input'!$F$52='User Input'!$F$24,Ranking!DT9=1),1,0) -> 0 | AY9: =IF(AND('User Input'!$F$52='User Input'!$F$25,Ranking!DU9=1),1,0) -> 1 | AZ9: =IF('User Input'!$G$52='User Input'!$G$24,1,IF(AND('User Input'!$G$52='User Input'!$G$23,DH9="Y"),1,0)) -> 0 | BA9: =IF('User Input'!$H$52='User Input'!$H$23,1,IF(AND('User Input'!$H$52='User Input'!$H$24,Ranking!BK9<>"Video"),1,0)) -> 0 | BB9: =IF(AND('User Input'!$I$52='User Input'!$I$23,Ranking!DV9=1),1,0) -> 0 | BC9: =IF(AND('User Input'!$I$52='User Input'!$I$24,Ranking!DW9=1),1,0) -> 0 | BD9: =IF(AND('User Input'!$I$52='User Input'!$I$25,Ranking!DX9=1),1,0) -> 0 | BE9: =IF('User Input'!$J$52='User Input'!$J$23,1,IF(AND('User Input'!$J$52='User Input'!$J$24,Ranking!DY9=0),1,0)) -> 1 | BF9: =IF('User Input'!$K$52='User Input'!$K$24,1,IF(AND('User Input'!$K$52='User Input'!$K$23,Ranking!CO9=1),1,0)) -> 0 | BI9: Boulder AI DNN Node | BK9: Video | BL9: software | BM9: 4 | BN9: 1 | BO9: 1 | BP9: 0 | BQ9: 0 | BR9: 1 | BS9: 0 | BT9: 0 | BU9: 0 | BV9: 1 | BW9: 1 | BX9: 1 | BY9: ?? | BZ9: ?? | CA9: 1 | CB9: 0 | CC9: 0 | CD9: ?? | CE9: ?? | CF9: ?? | CG9: ?? | CH9: ?? | CI9: ?? | CJ9: ?? | CK9: ?? | CL9: ?? | CM9: 1 | CN9: AC | CO9: 0 | CP9: 1 | CQ9: ?? | CR9: ?? | CS9: Y | CT9: Y | CU9: Y | CV9: N | CW9: Y | CX9: ?? | CY9: High | CZ9: Y | DA9: 0 | DB9: 1 | DC9: 1 | DD9: 1 | DE9: 1 | DF9: 1 | DG9: ?? | DH9: N | DI9: 1 | DJ9: 0 | DK9: 0 | DL9: 1 | DM9: 1 | DN9: 1 | DO9: 1 | DP9: 0 | DQ9: 0 | DR9: 1 | DS9: 0 | DT9: 0 | DU9: 1 | DV9: 1 | DW9: 1 | DX9: 0 | DY9: 1
A10: =IF(AND('User Input'!$D$35='User Input'!$D$6,Ranking!BN10=1),1,0) -> 0 | B10: =IF(AND('User Input'!$D$35='User Input'!$D$7,Ranking!BO10=1),1,0) -> 0 | C10: =IF(AND('User Input'!$D$35='User Input'!$D$8,Ranking!BP10=1),1,0) -> 1 | D10: =IF(AND('User Input'!$F$35='User Input'!$F$7,Ranking!BQ10=1),1,0) -> 0 | E10: =IF(AND('User Input'!$F$35='User Input'!$F$6,Ranking!BR10=1),1,0) -> 1 | F10: =IF(AND('User Input'!$F$35='User Input'!$F$8,Ranking!BS10=1),1,0) -> 0 | G10: =IF(AND('User Input'!$F$35='User Input'!$F$9,Ranking!BT10=1),1,0) -> 0 | H10: =IF(AND('User Input'!$F$35='User Input'!$F$10,Ranking!BU10=1),1,0) -> 0 | I10: =IF(BV10=0,1,IF(AND(BV10=1,'User Input'!$G$35='User Input'!$G$6),0,IF(AND(BV10=1,'User Input'!$G$35='User Input'!$G$7),1,0))) -> 1 | J10: =IF(BW10=0,1,IF(AND(BW10=1,'User Input'!$H$35='User Input'!$H$6),1,IF(AND(BW10=1,'User Input'!$H$35='User Input'!$H$7),0))) -> 1 | K10: =IF('User Input'!$I$35='User Input'!$I$6,1,IF(AND('User Input'!$I$35='User Input'!$I$7,Ranking!BX10=0),1,0)) -> 1 | L10: =IF('User Input'!$K$35='User Input'!$K$7,1,IF(AND(OR('User Input'!$K$35='User Input'!$K$6,'User Input'!$K$35='User Input'!$K$8),Ranking!$CZ10="Y"),1,0)) -> 0 | M10: =IF(AND('User Input'!$B$38='User Input'!$B$13,Ranking!CA10=1),1,0) -> 1 | N10: =IF(AND('User Input'!$B$38='User Input'!$B$14,Ranking!CB10=1),1,0) -> 0 | O10: =IF(AND('User Input'!$B$38='User Input'!$B$15,Ranking!CC10=1),1,0) -> 0 | P10: =IF(AND('User Input'!$C$38='User Input'!$C$13,DA10=1),1,0) -> 0 | Q10: =IF(AND('User Input'!$C$38='User Input'!$C$14,Ranking!DB10=1),1,0) -> 1 | R10: =IF(AND('User Input'!$C$38='User Input'!$C$15,Ranking!DC10=1),1,0) -> 0 | S10: =IF(AND('User Input'!$C$38='User Input'!$C$16,Ranking!DD10=1),1,0) -> 0 | T10: =IF(AND('User Input'!$C$38='User Input'!$C$17,Ranking!DE10=1),1,0) -> 0 | U10: =IF(AND('User Input'!$C$38='User Input'!$C$18,Ranking!DF10=1),1,0) -> 0 | V10: =IF('User Input'!$I$38='User Input'!$I$13,1,IF(AND('User Input'!$I$38='User Input'!$I22,Ranking!$BY10>0.8),1,IF(AND('User Input'!$I$38='User Input'!$I$15,Ranking!$BY10>0.9),1,IF(AND('User Input'!$I$38='User Input'!$D$16,Ranking!$BY10>0.95),1,0)))) -> 1 | W10: =IF('User Input'!$D$38='User Input'!$D$13,1,IF(AND('User Input'!$D$38='User Input'!$D$14,Ranking!$BZ10>0.8),1,IF(AND('User Input'!$D$38='User Input'!$D$15,Ranking!$BZ10>0.9),1,IF(AND('User Input'!$D$38='User Input'!$D$16,Ranking!$BZ10>0.95),1,0)))) -> 1 | X10: =IF(AND('User Input'!$E$38='User Input'!$E$13,Ranking!DF10=1),1,0) -> 1 | Y10: =IF(AND('User Input'!$F$58=TRUE,Ranking!DI10=1),1,IF(AND('User Input'!$F$58=FALSE,Ranking!DI10=0),1,0)) -> 1 | Z10: =IF(AND('User Input'!$F$59=TRUE,Ranking!DJ10=1),1,IF(AND('User Input'!$F$59=FALSE,Ranking!DJ10=0),1,0)) -> 1 | AA10: =IF(AND('User Input'!$F$60=TRUE,Ranking!DK10=1),1,IF(AND('User Input'!$F$60=FALSE,Ranking!DK10=0),1,0)) -> 1 | AB10: =IF(AND('User Input'!$F$61=TRUE,Ranking!DL10=1),1,IF(AND('User Input'!$F$61=FALSE,Ranking!DL10=0),1,0)) -> 1 | AC10: =IF(AND('User Input'!$F$62=TRUE,Ranking!DM10=1),1,IF(AND('User Input'!$F$62=FALSE,Ranking!DM10=0),1,0)) -> 1 | AD10: =IF(AND('User Input'!$F$63=TRUE,Ranking!DN10=1),1,IF(AND('User Input'!$F$63=FALSE,Ranking!DN10=0),1,0)) -> 1 | AE10: =IF(AND('User Input'!$F$64=TRUE,Ranking!DO10=1),1,IF(AND('User Input'!$F$64=FALSE,Ranking!DO10=0),1,0)) -> 1 | AF10: =IF(AND('User Input'!$F$65=TRUE,Ranking!DP10=1),1,IF(AND('User Input'!$F$65=FALSE,Ranking!DP10=0),1,0)) -> 0 | AG10: =IF(AND('User Input'!$F$66=TRUE,Ranking!DQ10=1),1,IF(AND('User Input'!$F$66=FALSE,Ranking!DQ10=0),1,0)) -> 0 | AH10: =IF(AND('User Input'!$F$67=TRUE,Ranking!DR10=1),1,IF(AND('User Input'!$F$67=FALSE,Ranking!DR10=0),1,0)) -> 1 | AI10: =IF(Ranking!CV10="Y",1,IF(AND('User Input'!$G$38='User Input'!$G$14,Ranking!CV10="N"),1,0)) -> 1 | AJ10: =IF(OR(Ranking!DG10="Y",'User Input'!$H$38='User Input'!$H$14),1,IF(AND('User Input'!$H$38='User Input'!$H$13,Ranking!DG10="Y"),1,0)) -> 0 | AK10: =IF(AND('User Input'!$B$52='User Input'!$B$23,Ranking!CL10<'User Input'!$A$23),1,0) -> 0 | AL10: =IF(AND('User Input'!$B$52='User Input'!$B$24,Ranking!CL10<'User Input'!$A$24),1,0) -> 0 | AM10: =IF(AND('User Input'!$B$52='User Input'!$B$25,Ranking!CL10<'User Input'!$A$25),1,0) -> 0 | AN10: =IF(AND('User Input'!$B$52='User Input'!$B$26,Ranking!CL10<'User Input'!$A$26),1,0) -> 0 | AO10: =IF('User Input'!$B$52='User Input'!$B$27,1,0) -> 0 | AP10: =IF(AND('User Input'!$C$52='User Input'!$C$23,CE10=1),1,0) -> 0 | AQ10: =IF(CD10=1,0,IF(AND('User Input'!$C$52='User Input'!$C$24,Ranking!CF10=1),1,0)) -> 0 | AR10: =IF(CE10=1,0,IF(AND('User Input'!$C$52='User Input'!$C$25,Ranking!CG10=1),1,0)) -> 0 | AS10: =IF(CF10=1,0,IF(AND('User Input'!$C$52='User Input'!$C$26,Ranking!CH10=1),1,0)) -> 0 | AT10: =IF(CG10=1,0,IF(AND('User Input'!$C$52='User Input'!$C$27,Ranking!CI10=1),1,0)) -> 0 | AU10: =IF(AND('User Input'!$D$52='User Input'!$D$23,Ranking!CJ10>5000),1,0) -> 1 | AV10: =IF('User Input'!$E$52='User Input'!$E$25,1,IF(AND('User Input'!$E$52='User Input'!$E$23,Ranking!CM10=1),1,IF(AND('User Input'!$E$52='User Input'!$E$24,Ranking!CM10=0),1,0))) -> 1 | AW10: =IF(AND('User Input'!$F$52='User Input'!$F$23,Ranking!DS10=1),1,0) -> 0 | AX10: =IF(AND('User Input'!$F$52='User Input'!$F$24,Ranking!DT10=1),1,0) -> 0 | AY10: =IF(AND('User Input'!$F$52='User Input'!$F$25,Ranking!DU10=1),1,0) -> 1 | AZ10: =IF('User Input'!$G$52='User Input'!$G$24,1,IF(AND('User Input'!$G$52='User Input'!$G$23,DH10="Y"),1,0)) -> 1 | BA10: =IF('User Input'!$H$52='User Input'!$H$23,1,IF(AND('User Input'!$H$52='User Input'!$H$24,Ranking!BK10<>"Video"),1,0)) -> 0 | BB10: =IF(AND('User Input'!$I$52='User Input'!$I$23,Ranking!DV10=1),1,0) -> 0 | BC10: =IF(AND('User Input'!$I$52='User Input'!$I$24,Ranking!DW10=1),1,0) -> 0 | BD10: =IF(AND('User Input'!$I$52='User Input'!$I$25,Ranking!DX10=1),1,0) -> 0 | BE10: =IF('User Input'!$J$52='User Input'!$J$23,1,IF(AND('User Input'!$J$52='User Input'!$J$24,Ranking!DY10=0),1,0)) -> 1 | BF10: =IF('User Input'!$K$52='User Input'!$K$24,1,IF(AND('User Input'!$K$52='User Input'!$K$23,Ranking!CO10=1),1,0)) -> 1 | BI10: Boulder AI DNN Cam | BK10: Video | BL10: software and hardware | BM10: 4 | BN10: 1 | BO10: 1 | BP10: 1 | BQ10: 0 | BR10: 1 | BS10: 0 | BT10: 0 | BU10: 0 | BV10: 1 | BW10: 1 | BX10: 1 | BY10: ?? | BZ10: ?? | CA10: 1 | CB10: 0 | CC10: 0 | CD10: ?? | CE10: ?? | CF10: ?? | CG10: ?? | CH10: ?? | CI10: ?? | CJ10: ?? | CK10: ?? | CL10: ?? | CM10: 1 | CN10: AC | CO10: 1 | CP10: 1 | CQ10: 83° | CR10: 90m | CS10: Y | CT10: Y | CU10: Y | CV10: N | CW10: Y | CX10: 0 | CY10: Low | CZ10: N | DA10: 0 | DB10: 1 | DD10: 1 | DE10: 1 | DF10: 1 | DG10: ?? | DH10: Y | DI10: 1 | DJ10: 0 | DK10: 0 | DL10: 1 | DM10: 1 | DN10: 1 | DO10: 1 | DP10: 0 | DQ10: 0 | DR10: 1 | DS10: 0 | DT10: 1 | DU10: 1 | DV10: 1 | DW10: 1 | DX10: 0 | DY10: ??
A11: =IF(AND('User Input'!$D$35='User Input'!$D$6,Ranking!BN11=1),1,0) -> 0 | B11: =IF(AND('User Input'!$D$35='User Input'!$D$7,Ranking!BO11=1),1,0) -> 0 | C11: =IF(AND('User Input'!$D$35='User Input'!$D$8,Ranking!BP11=1),1,0) -> 0 | D11: =IF(AND('User Input'!$F$35='User Input'!$F$7,Ranking!BQ11=1),1,0) -> 0 | E11: =IF(AND('User Input'!$F$35='User Input'!$F$6,Ranking!BR11=1),1,0) -> 1 | F11: =IF(AND('User Input'!$F$35='User Input'!$F$8,Ranking!BS11=1),1,0) -> 0 | G11: =IF(AND('User Input'!$F$35='User Input'!$F$9,Ranking!BT11=1),1,0) -> 0 | H11: =IF(AND('User Input'!$F$35='User Input'!$F$10,Ranking!BU11=1),1,0) -> 0 | I11: =IF(BV11=0,1,IF(AND(BV11=1,'User Input'!$G$35='User Input'!$G$6),0,IF(AND(BV11=1,'User Input'!$G$35='User Input'!$G$7),1,0))) -> 1 | J11: =IF(BW11=0,1,IF(AND(BW11=1,'User Input'!$H$35='User Input'!$H$6),1,IF(AND(BW11=1,'User Input'!$H$35='User Input'!$H$7),0))) -> 1 | K11: =IF('User Input'!$I$35='User Input'!$I$6,1,IF(AND('User Input'!$I$35='User Input'!$I$7,Ranking!BX11=0),1,0)) -> 1 | L11: =IF('User Input'!$K$35='User Input'!$K$7,1,IF(AND(OR('User Input'!$K$35='User Input'!$K$6,'User Input'!$K$35='User Input'!$K$8),Ranking!$CZ11="Y"),1,0)) -> 1 | M11: =IF(AND('User Input'!$B$38='User Input'!$B$13,Ranking!CA11=1),1,0) -> 1 | N11: =IF(AND('User Input'!$B$38='User Input'!$B$14,Ranking!CB11=1),1,0) -> 0 | O11: =IF(AND('User Input'!$B$38='User Input'!$B$15,Ranking!CC11=1),1,0) -> 0 | P11: =IF(AND('User Input'!$C$38='User Input'!$C$13,DA11=1),1,0) -> 0 | Q11: =IF(AND('User Input'!$C$38='User Input'!$C$14,Ranking!DB11=1),1,0) -> 1 | R11: =IF(AND('User Input'!$C$38='User Input'!$C$15,Ranking!DC11=1),1,0) -> 0 | S11: =IF(AND('User Input'!$C$38='User Input'!$C$16,Ranking!DD11=1),1,0) -> 0 | T11: =IF(AND('User Input'!$C$38='User Input'!$C$17,Ranking!DE11=1),1,0) -> 0 | U11: =IF(AND('User Input'!$C$38='User Input'!$C$18,Ranking!DF11=1),1,0) -> 0 | V11: =IF('User Input'!$I$38='User Input'!$I$13,1,IF(AND('User Input'!$I$38='User Input'!$I23,Ranking!$BY11>0.8),1,IF(AND('User Input'!$I$38='User Input'!$I$15,Ranking!$BY11>0.9),1,IF(AND('User Input'!$I$38='User Input'!$D$16,Ranking!$BY11>0.95),1,0)))) -> 1 | W11: =IF('User Input'!$D$38='User Input'!$D$13,1,IF(AND('User Input'!$D$38='User Input'!$D$14,Ranking!$BZ11>0.8),1,IF(AND('User Input'!$D$38='User Input'!$D$15,Ranking!$BZ11>0.9),1,IF(AND('User Input'!$D$38='User Input'!$D$16,Ranking!$BZ11>0.95),1,0)))) -> 1 | X11: =IF(AND('User Input'!$E$38='User Input'!$E$13,Ranking!DF11=1),1,0) -> 1 | Y11: =IF(AND('User Input'!$F$58=TRUE,Ranking!DI11=1),1,IF(AND('User Input'!$F$58=FALSE,Ranking!DI11=0),1,0)) -> 1 | Z11: =IF(AND('User Input'!$F$59=TRUE,Ranking!DJ11=1),1,IF(AND('User Input'!$F$59=FALSE,Ranking!DJ11=0),1,0)) -> 0 | AA11: =IF(AND('User Input'!$F$60=TRUE,Ranking!DK11=1),1,IF(AND('User Input'!$F$60=FALSE,Ranking!DK11=0),1,0)) -> 1 | AB11: =IF(AND('User Input'!$F$61=TRUE,Ranking!DL11=1),1,IF(AND('User Input'!$F$61=FALSE,Ranking!DL11=0),1,0)) -> 1 | AC11: =IF(AND('User Input'!$F$62=TRUE,Ranking!DM11=1),1,IF(AND('User Input'!$F$62=FALSE,Ranking!DM11=0),1,0)) -> 1 | AD11: =IF(AND('User Input'!$F$63=TRUE,Ranking!DN11=1),1,IF(AND('User Input'!$F$63=FALSE,Ranking!DN11=0),1,0)) -> 0 | AE11: =IF(AND('User Input'!$F$64=TRUE,Ranking!DO11=1),1,IF(AND('User Input'!$F$64=FALSE,Ranking!DO11=0),1,0)) -> 1 | AF11: =IF(AND('User Input'!$F$65=TRUE,Ranking!DP11=1),1,IF(AND('User Input'!$F$65=FALSE,Ranking!DP11=0),1,0)) -> 1 | AG11: =IF(AND('User Input'!$F$66=TRUE,Ranking!DQ11=1),1,IF(AND('User Input'!$F$66=FALSE,Ranking!DQ11=0),1,0)) -> 1 | AH11: =IF(AND('User Input'!$F$67=TRUE,Ranking!DR11=1),1,IF(AND('User Input'!$F$67=FALSE,Ranking!DR11=0),1,0)) -> 1 | AI11: =IF(Ranking!CV11="Y",1,IF(AND('User Input'!$G$38='User Input'!$G$14,Ranking!CV11="N"),1,0)) -> 1 | AJ11: =IF(OR(Ranking!DG11="Y",'User Input'!$H$38='User Input'!$H$14),1,IF(AND('User Input'!$H$38='User Input'!$H$13,Ranking!DG11="Y"),1,0)) -> 0 | AK11: =IF(AND('User Input'!$B$52='User Input'!$B$23,Ranking!CL11<'User Input'!$A$23),1,0) -> 0 | AL11: =IF(AND('User Input'!$B$52='User Input'!$B$24,Ranking!CL11<'User Input'!$A$24),1,0) -> 0 | AM11: =IF(AND('User Input'!$B$52='User Input'!$B$25,Ranking!CL11<'User Input'!$A$25),1,0) -> 0 | AN11: =IF(AND('User Input'!$B$52='User Input'!$B$26,Ranking!CL11<'User Input'!$A$26),1,0) -> 0 | AO11: =IF('User Input'!$B$52='User Input'!$B$27,1,0) -> 0 | AP11: =IF(AND('User Input'!$C$52='User Input'!$C$23,CE11=1),1,0) -> 0 | AQ11: =IF(CD11=1,0,IF(AND('User Input'!$C$52='User Input'!$C$24,Ranking!CF11=1),1,0)) -> 0 | AR11: =IF(CE11=1,0,IF(AND('User Input'!$C$52='User Input'!$C$25,Ranking!CG11=1),1,0)) -> 0 | AS11: =IF(CF11=1,0,IF(AND('User Input'!$C$52='User Input'!$C$26,Ranking!CH11=1),1,0)) -> 0 | AT11: =IF(CG11=1,0,IF(AND('User Input'!$C$52='User Input'!$C$27,Ranking!CI11=1),1,0)) -> 0 | AU11: =IF(AND('User Input'!$D$52='User Input'!$D$23,Ranking!CJ11>5000),1,0) -> 1 | AV11: =IF('User Input'!$E$52='User Input'!$E$25,1,IF(AND('User Input'!$E$52='User Input'!$E$23,Ranking!CM11=1),1,IF(AND('User Input'!$E$52='User Input'!$E$24,Ranking!CM11=0),1,0))) -> 1 | AW11: =IF(AND('User Input'!$F$52='User Input'!$F$23,Ranking!DS11=1),1,0) -> 0 | AX11: =IF(AND('User Input'!$F$52='User Input'!$F$24,Ranking!DT11=1),1,0) -> 0 | AY11: =IF(AND('User Input'!$F$52='User Input'!$F$25,Ranking!DU11=1),1,0) -> 1 | AZ11: =IF('User Input'!$G$52='User Input'!$G$24,1,IF(AND('User Input'!$G$52='User Input'!$G$23,DH11="Y"),1,0)) -> 0 | BA11: =IF('User Input'!$H$52='User Input'!$H$23,1,IF(AND('User Input'!$H$52='User Input'!$H$24,Ranking!BK11<>"Video"),1,0)) -> 0 | BB11: =IF(AND('User Input'!$I$52='User Input'!$I$23,Ranking!DV11=1),1,0) -> 0 | BC11: =IF(AND('User Input'!$I$52='User Input'!$I$24,Ranking!DW11=1),1,0) -> 0 | BD11: =IF(AND('User Input'!$I$52='User Input'!$I$25,Ranking!DX11=1),1,0) -> 0 | BE11: =IF('User Input'!$J$52='User Input'!$J$23,1,IF(AND('User Input'!$J$52='User Input'!$J$24,Ranking!DY11=0),1,0)) -> 1 | BF11: =IF('User Input'!$K$52='User Input'!$K$24,1,IF(AND('User Input'!$K$52='User Input'!$K$23,Ranking!CO11=1),1,0)) -> 0 | BI11: Currux Vision | BK11: Video | BL11: software | BM11: 4 | BN11: 1 | BO11: 1 | BP11: 0 | BQ11: 1 | BR11: 1 | BS11: 0 | BT11: 0 | BU11: 0 | BV11: 1 | BW11: 1 | BX11: 1 | BY11: 0.98 | BZ11: 0.97 | CA11: 1 | CB11: 0 | CC11: 0 | CD11: ?? | CE11: ?? | CF11: ?? | CG11: ?? | CH11: ?? | CI11: ?? | CJ11: ?? | CK11: ?? | CL11: ?? | CM11: 1 | CN11: AC | CO11: 0 | CP11: 1 | CQ11: ?? | CR11: ?? | CS11: Y | CT11: Y | CU11: Y | CV11: Y | CW11: Y | CX11: 1 | CY11: Medium | CZ11: Y | DA11: 0 | DB11: 1 | DC11: 1 | DD11: 1 | DE11: 1 | DF11: 1 | DG11: N | DH11: N | DI11: 1 | DJ11: 1 | DK11: 0 | DL11: 1 | DM11: 1 | DN11: 0 | DO11: 1 | DP11: 1 | DQ11: 1 | DR11: 1 | DS11: 0 | DT11: 0 | DU11: 1 | DV11: 1 | DW11: 1 | DX11: 0 | DY11: 1
A12: =IF(AND('User Input'!$D$35='User Input'!$D$6,Ranking!BN12=1),1,0) -> 0 | B12: =IF(AND('User Input'!$D$35='User Input'!$D$7,Ranking!BO12=1),1,0) -> 0 | C12: =IF(AND('User Input'!$D$35='User Input'!$D$8,Ranking!BP12=1),1,0) -> 0 | D12: =IF(AND('User Input'!$F$35='User Input'!$F$7,Ranking!BQ12=1),1,0) -> 0 | E12: =IF(AND('User Input'!$F$35='User Input'!$F$6,Ranking!BR12=1),1,0) -> 1 | F12: =IF(AND('User Input'!$F$35='User Input'!$F$8,Ranking!BS12=1),1,0) -> 0 | G12: =IF(AND('User Input'!$F$35='User Input'!$F$9,Ranking!BT12=1),1,0) -> 0 | H12: =IF(AND('User Input'!$F$35='User Input'!$F$10,Ranking!BU12=1),1,0) -> 0 | I12: =IF(BV12=0,1,IF(AND(BV12=1,'User Input'!$G$35='User Input'!$G$6),0,IF(AND(BV12=1,'User Input'!$G$35='User Input'!$G$7),1,0))) -> 1 | J12: =IF(BW12=0,1,IF(AND(BW12=1,'User Input'!$H$35='User Input'!$H$6),1,IF(AND(BW12=1,'User Input'!$H$35='User Input'!$H$7),0))) -> 1 | K12: =IF('User Input'!$I$35='User Input'!$I$6,1,IF(AND('User Input'!$I$35='User Input'!$I$7,Ranking!BX12=0),1,0)) -> 1 | L12: =IF('User Input'!$K$35='User Input'!$K$7,1,IF(AND(OR('User Input'!$K$35='User Input'!$K$6,'User Input'!$K$35='User Input'!$K$8),Ranking!$CZ12="Y"),1,0)) -> 0 | M12: =IF(AND('User Input'!$B$38='User Input'!$B$13,Ranking!CA12=1),1,0) -> 1 | N12: =IF(AND('User Input'!$B$38='User Input'!$B$14,Ranking!CB12=1),1,0) -> 0 | O12: =IF(AND('User Input'!$B$38='User Input'!$B$15,Ranking!CC12=1),1,0) -> 0 | P12: =IF(AND('User Input'!$C$38='User Input'!$C$13,DA12=1),1,0) -> 0 | Q12: =IF(AND('User Input'!$C$38='User Input'!$C$14,Ranking!DB12=1),1,0) -> 1 | R12: =IF(AND('User Input'!$C$38='User Input'!$C$15,Ranking!DC12=1),1,0) -> 0 | S12: =IF(AND('User Input'!$C$38='User Input'!$C$16,Ranking!DD12=1),1,0) -> 0 | T12: =IF(AND('User Input'!$C$38='User Input'!$C$17,Ranking!DE12=1),1,0) -> 0 | U12: =IF(AND('User Input'!$C$38='User Input'!$C$18,Ranking!DF12=1),1,0) -> 0 | V12: =IF('User Input'!$I$38='User Input'!$I$13,1,IF(AND('User Input'!$I$38='User Input'!$I24,Ranking!$BY12>0.8),1,IF(AND('User Input'!$I$38='User Input'!$I$15,Ranking!$BY12>0.9),1,IF(AND('User Input'!$I$38='User Input'!$D$16,Ranking!$BY12>0.95),1,0)))) -> 0 | W12: =IF('User Input'!$D$38='User Input'!$D$13,1,IF(AND('User Input'!$D$38='User Input'!$D$14,Ranking!$BZ12>0.8),1,IF(AND('User Input'!$D$38='User Input'!$D$15,Ranking!$BZ12>0.9),1,IF(AND('User Input'!$D$38='User Input'!$D$16,Ranking!$BZ12>0.95),1,0)))) -> 1 | X12: =IF(AND('User Input'!$E$38='User Input'!$E$13,Ranking!DF12=1),1,0) -> 1 | Y12: =IF(AND('User Input'!$F$58=TRUE,Ranking!DI12=1),1,IF(AND('User Input'!$F$58=FALSE,Ranking!DI12=0),1,0)) -> 1 | Z12: =IF(AND('User Input'!$F$59=TRUE,Ranking!DJ12=1),1,IF(AND('User Input'!$F$59=FALSE,Ranking!DJ12=0),1,0)) -> 1 | AA12: =IF(AND('User Input'!$F$60=TRUE,Ranking!DK12=1),1,IF(AND('User Input'!$F$60=FALSE,Ranking!DK12=0),1,0)) -> 1 | AB12: =IF(AND('User Input'!$F$61=TRUE,Ranking!DL12=1),1,IF(AND('User Input'!$F$61=FALSE,Ranking!DL12=0),1,0)) -> 1 | AC12: =IF(AND('User Input'!$F$62=TRUE,Ranking!DM12=1),1,IF(AND('User Input'!$F$62=FALSE,Ranking!DM12=0),1,0)) -> 0 | AD12: =IF(AND('User Input'!$F$63=TRUE,Ranking!DN12=1),1,IF(AND('User Input'!$F$63=FALSE,Ranking!DN12=0),1,0)) -> 0 | AE12: =IF(AND('User Input'!$F$64=TRUE,Ranking!DO12=1),1,IF(AND('User Input'!$F$64=FALSE,Ranking!DO12=0),1,0)) -> 0 | AF12: =IF(AND('User Input'!$F$65=TRUE,Ranking!DP12=1),1,IF(AND('User Input'!$F$65=FALSE,Ranking!DP12=0),1,0)) -> 0 | AG12: =IF(AND('User Input'!$F$66=TRUE,Ranking!DQ12=1),1,IF(AND('User Input'!$F$66=FALSE,Ranking!DQ12=0),1,0)) -> 1 | AH12: =IF(AND('User Input'!$F$67=TRUE,Ranking!DR12=1),1,IF(AND('User Input'!$F$67=FALSE,Ranking!DR12=0),1,0)) -> 0 | AI12: =IF(Ranking!CV12="Y",1,IF(AND('User Input'!$G$38='User Input'!$G$14,Ranking!CV12="N"),1,0)) -> 1 | AJ12: =IF(OR(Ranking!DG12="Y",'User Input'!$H$38='User Input'!$H$14),1,IF(AND('User Input'!$H$38='User Input'!$H$13,Ranking!DG12="Y"),1,0)) -> 1 | AK12: =IF(AND('User Input'!$B$52='User Input'!$B$23,Ranking!CL12<'User Input'!$A$23),1,0) -> 0 | AL12: =IF(AND('User Input'!$B$52='User Input'!$B$24,Ranking!CL12<'User Input'!$A$24),1,0) -> 0 | AM12: =IF(AND('User Input'!$B$52='User Input'!$B$25,Ranking!CL12<'User Input'!$A$25),1,0) -> 0 | AN12: =IF(AND('User Input'!$B$52='User Input'!$B$26,Ranking!CL12<'User Input'!$A$26),1,0) -> 0 | AO12: =IF('User Input'!$B$52='User Input'!$B$27,1,0) -> 0 | AP12: =IF(AND('User Input'!$C$52='User Input'!$C$23,CE12=1),1,0) -> 0 | AQ12: =IF(CD12=1,0,IF(AND('User Input'!$C$52='User Input'!$C$24,Ranking!CF12=1),1,0)) -> 0 | AR12: =IF(CE12=1,0,IF(AND('User Input'!$C$52='User Input'!$C$25,Ranking!CG12=1),1,0)) -> 0 | AS12: =IF(CF12=1,0,IF(AND('User Input'!$C$52='User Input'!$C$26,Ranking!CH12=1),1,0)) -> 0 | AT12: =IF(CG12=1,0,IF(AND('User Input'!$C$52='User Input'!$C$27,Ranking!CI12=1),1,0)) -> 0 | AU12: =IF(AND('User Input'!$D$52='User Input'!$D$23,Ranking!CJ12>5000),1,0) -> 1 | AV12: =IF('User Input'!$E$52='User Input'!$E$25,1,IF(AND('User Input'!$E$52='User Input'!$E$23,Ranking!CM12=1),1,IF(AND('User Input'!$E$52='User Input'!$E$24,Ranking!CM12=0),1,0))) -> 1 | AW12: =IF(AND('User Input'!$F$52='User Input'!$F$23,Ranking!DS12=1),1,0) -> 0 | AX12: =IF(AND('User Input'!$F$52='User Input'!$F$24,Ranking!DT12=1),1,0) -> 0 | AY12: =IF(AND('User Input'!$F$52='User Input'!$F$25,Ranking!DU12=1),1,0) -> 1 | AZ12: =IF('User Input'!$G$52='User Input'!$G$24,1,IF(AND('User Input'!$G$52='User Input'!$G$23,DH12="Y"),1,0)) -> 1 | BA12: =IF('User Input'!$H$52='User Input'!$H$23,1,IF(AND('User Input'!$H$52='User Input'!$H$24,Ranking!BK12<>"Video"),1,0)) -> 0 | BB12: =IF(AND('User Input'!$I$52='User Input'!$I$23,Ranking!DV12=1),1,0) -> 0 | BC12: =IF(AND('User Input'!$I$52='User Input'!$I$24,Ranking!DW12=1),1,0) -> 0 | BD12: =IF(AND('User Input'!$I$52='User Input'!$I$25,Ranking!DX12=1),1,0) -> 0 | BE12: =IF('User Input'!$J$52='User Input'!$J$23,1,IF(AND('User Input'!$J$52='User Input'!$J$24,Ranking!DY12=0),1,0)) -> 1 | BF12: =IF('User Input'!$K$52='User Input'!$K$24,1,IF(AND('User Input'!$K$52='User Input'!$K$23,Ranking!CO12=1),1,0)) -> 1 | BI12: Gridsmart | BK12: Video | BL12: software and hardware | BM12: 1 | BN12: 1 | BO12: 1 | BP12: 0 | BQ12: 0 | BR12: 1 | BS12: 0 | BT12: 0 | BU12: 0 | BV12: 1 | BW12: 1 | BX12: 1 | BY12: 0.92 | BZ12: 0.98 | CA12: 1 | CB12: 0 | CC12: 0 | CD12: 0 | CE12: 1 | CF12: 0 | CG12: 0 | CH12: 0 | CI12: 0 | CJ12: 18000 | CK12: 0 | CL12: 18000 | CM12: 1 | CN12: AC | CO12: 1 | CP12: 1 | CQ12: 180° | CR12: 75m | CS12: Y | CT12: Y | CU12: Y | CV12: N | CW12: Y | CX12: 0 | CY12: Low | CZ12: N | DA12: 0 | DB12: 1 | DC12: 1 | DD12: 1 | DE12: 1 | DF12: 1 | DG12: Y | DH12: Y | DI12: 1 | DJ12: 0 | DK12: 0 | DL12: 1 | DM12: 0 | DN12: 0 | DO12: 0 | DP12: 0 | DQ12: 1 | DR12: 0 | DS12: 0 | DT12: 1 | DU12: 1 | DV12: 1 | DW12: 1 | DX12: 0 | DY12: ??
A13: =IF(AND('User Input'!$D$35='User Input'!$D$6,Ranking!BN13=1),1,0) -> 0 | B13: =IF(AND('User Input'!$D$35='User Input'!$D$7,Ranking!BO13=1),1,0) -> 0 | C13: =IF(AND('User Input'!$D$35='User Input'!$D$8,Ranking!BP13=1),1,0) -> 1 | D13: =IF(AND('User Input'!$F$35='User Input'!$F$7,Ranking!BQ13=1),1,0) -> 0 | E13: =IF(AND('User Input'!$F$35='User Input'!$F$6,Ranking!BR13=1),1,0) -> 1 | F13: =IF(AND('User Input'!$F$35='User Input'!$F$8,Ranking!BS13=1),1,0) -> 0 | G13: =IF(AND('User Input'!$F$35='User Input'!$F$9,Ranking!BT13=1),1,0) -> 0 | H13: =IF(AND('User Input'!$F$35='User Input'!$F$10,Ranking!BU13=1),1,0) -> 0 | I13: =IF(BV13=0,1,IF(AND(BV13=1,'User Input'!$G$35='User Input'!$G$6),0,IF(AND(BV13=1,'User Input'!$G$35='User Input'!$G$7),1,0))) -> 1 | J13: =IF(BW13=0,1,IF(AND(BW13=1,'User Input'!$H$35='User Input'!$H$6),1,IF(AND(BW13=1,'User Input'!$H$35='User Input'!$H$7),0))) -> 1 | K13: =IF('User Input'!$I$35='User Input'!$I$6,1,IF(AND('User Input'!$I$35='User Input'!$I$7,Ranking!BX13=0),1,0)) -> 1 | L13: =IF('User Input'!$K$35='User Input'!$K$7,1,IF(AND(OR('User Input'!$K$35='User Input'!$K$6,'User Input'!$K$35='User Input'!$K$8),Ranking!$CZ13="Y"),1,0)) -> 0 | M13: =IF(AND('User Input'!$B$38='User Input'!$B$13,Ranking!CA13=1),1,0) -> 1 | N13: =IF(AND('User Input'!$B$38='User Input'!$B$14,Ranking!CB13=1),1,0) -> 0 | O13: =IF(AND('User Input'!$B$38='User Input'!$B$15,Ranking!CC13=1),1,0) -> 0 | P13: =IF(AND('User Input'!$C$38='User Input'!$C$13,DA13=1),1,0) -> 0 | Q13: =IF(AND('User Input'!$C$38='User Input'!$C$14,Ranking!DB13=1),1,0) -> 1 | R13: =IF(AND('User Input'!$C$38='User Input'!$C$15,Ranking!DC13=1),1,0) -> 0 | S13: =IF(AND('User Input'!$C$38='User Input'!$C$16,Ranking!DD13=1),1,0) -> 0 | T13: =IF(AND('User Input'!$C$38='User Input'!$C$17,Ranking!DE13=1),1,0) -> 0 | U13: =IF(AND('User Input'!$C$38='User Input'!$C$18,Ranking!DF13=1),1,0) -> 0 | V13: =IF('User Input'!$I$38='User Input'!$I$13,1,IF(AND('User Input'!$I$38='User Input'!$I25,Ranking!$BY13>0.8),1,IF(AND('User Input'!$I$38='User Input'!$I$15,Ranking!$BY13>0.9),1,IF(AND('User Input'!$I$38='User Input'!$D$16,Ranking!$BY13>0.95),1,0)))) -> 0 | W13: =IF('User Input'!$D$38='User Input'!$D$13,1,IF(AND('User Input'!$D$38='User Input'!$D$14,Ranking!$BZ13>0.8),1,IF(AND('User Input'!$D$38='User Input'!$D$15,Ranking!$BZ13>0.9),1,IF(AND('User Input'!$D$38='User Input'!$D$16,Ranking!$BZ13>0.95),1,0)))) -> 1 | X13: =IF(AND('User Input'!$E$38='User Input'!$E$13,Ranking!DF13=1),1,0) -> 1 | Y13: =IF(AND('User Input'!$F$58=TRUE,Ranking!DI13=1),1,IF(AND('User Input'!$F$58=FALSE,Ranking!DI13=0),1,0)) -> 1 | Z13: =IF(AND('User Input'!$F$59=TRUE,Ranking!DJ13=1),1,IF(AND('User Input'!$F$59=FALSE,Ranking!DJ13=0),1,0)) -> 1 | AA13: =IF(AND('User Input'!$F$60=TRUE,Ranking!DK13=1),1,IF(AND('User Input'!$F$60=FALSE,Ranking!DK13=0),1,0)) -> 1 | AB13: =IF(AND('User Input'!$F$61=TRUE,Ranking!DL13=1),1,IF(AND('User Input'!$F$61=FALSE,Ranking!DL13=0),1,0)) -> 1 | AC13: =IF(AND('User Input'!$F$62=TRUE,Ranking!DM13=1),1,IF(AND('User Input'!$F$62=FALSE,Ranking!DM13=0),1,0)) -> 0 | AD13: =IF(AND('User Input'!$F$63=TRUE,Ranking!DN13=1),1,IF(AND('User Input'!$F$63=FALSE,Ranking!DN13=0),1,0)) -> 0 | AE13: =IF(AND('User Input'!$F$64=TRUE,Ranking!DO13=1),1,IF(AND('User Input'!$F$64=FALSE,Ranking!DO13=0),1,0)) -> 0 | AF13: =IF(AND('User Input'!$F$65=TRUE,Ranking!DP13=1),1,IF(AND('User Input'!$F$65=FALSE,Ranking!DP13=0),1,0)) -> 0 | AG13: =IF(AND('User Input'!$F$66=TRUE,Ranking!DQ13=1),1,IF(AND('User Input'!$F$66=FALSE,Ranking!DQ13=0),1,0)) -> 1 | AH13: =IF(AND('User Input'!$F$67=TRUE,Ranking!DR13=1),1,IF(AND('User Input'!$F$67=FALSE,Ranking!DR13=0),1,0)) -> 0 | AI13: =IF(Ranking!CV13="Y",1,IF(AND('User Input'!$G$38='User Input'!$G$14,Ranking!CV13="N"),1,0)) -> 1 | AJ13: =IF(OR(Ranking!DG13="Y",'User Input'!$H$38='User Input'!$H$14),1,IF(AND('User Input'!$H$38='User Input'!$H$13,Ranking!DG13="Y"),1,0)) -> 0 | AK13: =IF(AND('User Input'!$B$52='User Input'!$B$23,Ranking!CL13<'User Input'!$A$23),1,0) -> 0 | AL13: =IF(AND('User Input'!$B$52='User Input'!$B$24,Ranking!CL13<'User Input'!$A$24),1,0) -> 0 | AM13: =IF(AND('User Input'!$B$52='User Input'!$B$25,Ranking!CL13<'User Input'!$A$25),1,0) -> 0 | AN13: =IF(AND('User Input'!$B$52='User Input'!$B$26,Ranking!CL13<'User Input'!$A$26),1,0) -> 0 | AO13: =IF('User Input'!$B$52='User Input'!$B$27,1,0) -> 0 | AP13: =IF(AND('User Input'!$C$52='User Input'!$C$23,CE13=1),1,0) -> 0 | AQ13: =IF(CD13=1,0,IF(AND('User Input'!$C$52='User Input'!$C$24,Ranking!CF13=1),1,0)) -> 0 | AR13: =IF(CE13=1,0,IF(AND('User Input'!$C$52='User Input'!$C$25,Ranking!CG13=1),1,0)) -> 0 | AS13: =IF(CF13=1,0,IF(AND('User Input'!$C$52='User Input'!$C$26,Ranking!CH13=1),1,0)) -> 0 | AT13: =IF(CG13=1,0,IF(AND('User Input'!$C$52='User Input'!$C$27,Ranking!CI13=1),1,0)) -> 0 | AU13: =IF(AND('User Input'!$D$52='User Input'!$D$23,Ranking!CJ13>5000),1,0) -> 1 | AV13: =IF('User Input'!$E$52='User Input'!$E$25,1,IF(AND('User Input'!$E$52='User Input'!$E$23,Ranking!CM13=1),1,IF(AND('User Input'!$E$52='User Input'!$E$24,Ranking!CM13=0),1,0))) -> 1 | AW13: =IF(AND('User Input'!$F$52='User Input'!$F$23,Ranking!DS13=1),1,0) -> 0 | AX13: =IF(AND('User Input'!$F$52='User Input'!$F$24,Ranking!DT13=1),1,0) -> 0 | AY13: =IF(AND('User Input'!$F$52='User Input'!$F$25,Ranking!DU13=1),1,0) -> 1 | AZ13: =IF('User Input'!$G$52='User Input'!$G$24,1,IF(AND('User Input'!$G$52='User Input'!$G$23,DH13="Y"),1,0)) -> 0 | BA13: =IF('User Input'!$H$52='User Input'!$H$23,1,IF(AND('User Input'!$H$52='User Input'!$H$24,Ranking!BK13<>"Video"),1,0)) -> 0 | BB13: =IF(AND('User Input'!$I$52='User Input'!$I$23,Ranking!DV13=1),1,0) -> 0 | BC13: =IF(AND('User Input'!$I$52='User Input'!$I$24,Ranking!DW13=1),1,0) -> 0 | BD13: =IF(AND('User Input'!$I$52='User Input'!$I$25,Ranking!DX13=1),1,0) -> 0 | BE13: =IF('User Input'!$J$52='User Input'!$J$23,1,IF(AND('User Input'!$J$52='User Input'!$J$24,Ranking!DY13=0),1,0)) -> 1 | BF13: =IF('User Input'!$K$52='User Input'!$K$24,1,IF(AND('User Input'!$K$52='User Input'!$K$23,Ranking!CO13=1),1,0)) -> 0 | BI13: Iteris Vantage Vector with Vantage Next | BK13: Video | BL13: software and hardware | BM13: 4 | BN13: 1 | BO13: 1 | BP13: 1 | BQ13: 0 | BR13: 1 | BS13: 0 | BT13: 0 | BU13: 0 | BV13: 0 | BW13: 1 | BX13: 1 | BY13: 0.9 | BZ13: 0.98 | CA13: 1 | CB13: 0 | CC13: 0 | CD13: 1 | CE13: ?? | CF13: ?? | CG13: ?? | CH13: ?? | CI13: ?? | CJ13: 12000 | CL13: =CJ13*4 -> 48000 | CM13: 1 | CN13: AC | CO13: ?? | CP13: 1 | CQ13: 50° | CR13: 120m | CS13: Y | CT13: Y | CU13: Y | CV13: Y | CW13: Y | CX13: 1 | CY13: Medium | CZ13: N | DA13: 0 | DB13: 1 | DC13: 1 | DD13: 1 | DE13: 1 | DF13: 1 | DG13: ?? | DH13: ?? | DI13: 1 | DJ13: 0 | DK13: 0 | DL13: 1 | DM13: 0 | DN13: 0 | DO13: 0 | DP13: 0 | DQ13: 1 | DR13: 0 | DS13: 0 | DT13: 1 | DU13: 1 | DV13: 1 | DW13: 1 | DX13: 0 | DY13: ??
A14: =IF(AND('User Input'!$D$35='User Input'!$D$6,Ranking!BN14=1),1,0) -> 0 | B14: =IF(AND('User Input'!$D$35='User Input'!$D$7,Ranking!BO14=1),1,0) -> 0 | C14: =IF(AND('User Input'!$D$35='User Input'!$D$8,Ranking!BP14=1),1,0) -> 0 | D14: =IF(AND('User Input'!$F$35='User Input'!$F$7,Ranking!BQ14=1),1,0) -> 0 | E14: =IF(AND('User Input'!$F$35='User Input'!$F$6,Ranking!BR14=1),1,0) -> 1 | F14: =IF(AND('User Input'!$F$35='User Input'!$F$8,Ranking!BS14=1),1,0) -> 0 | G14: =IF(AND('User Input'!$F$35='User Input'!$F$9,Ranking!BT14=1),1,0) -> 0 | H14: =IF(AND('User Input'!$F$35='User Input'!$F$10,Ranking!BU14=1),1,0) -> 0 | I14: =IF(BV14=0,1,IF(AND(BV14=1,'User Input'!$G$35='User Input'!$G$6),0,IF(AND(BV14=1,'User Input'!$G$35='User Input'!$G$7),1,0))) -> 1 | J14: =IF(BW14=0,1,IF(AND(BW14=1,'User Input'!$H$35='User Input'!$H$6),1,IF(AND(BW14=1,'User Input'!$H$35='User Input'!$H$7),0))) -> 1 | K14: =IF('User Input'!$I$35='User Input'!$I$6,1,IF(AND('User Input'!$I$35='User Input'!$I$7,Ranking!BX14=0),1,0)) -> 1 | L14: =IF('User Input'!$K$35='User Input'!$K$7,1,IF(AND(OR('User Input'!$K$35='User Input'!$K$6,'User Input'!$K$35='User Input'!$K$8),Ranking!$CZ14="Y"),1,0)) -> 0 | M14: =IF(AND('User Input'!$B$38='User Input'!$B$13,Ranking!CA14=1),1,0) -> 1 | N14: =IF(AND('User Input'!$B$38='User Input'!$B$14,Ranking!CB14=1),1,0) -> 0 | O14: =IF(AND('User Input'!$B$38='User Input'!$B$15,Ranking!CC14=1),1,0) -> 0 | P14: =IF(AND('User Input'!$C$38='User Input'!$C$13,DA14=1),1,0) -> 0 | Q14: =IF(AND('User Input'!$C$38='User Input'!$C$14,Ranking!DB14=1),1,0) -> 1 | R14: =IF(AND('User Input'!$C$38='User Input'!$C$15,Ranking!DC14=1),1,0) -> 0 | S14: =IF(AND('User Input'!$C$38='User Input'!$C$16,Ranking!DD14=1),1,0) -> 0 | T14: =IF(AND('User Input'!$C$38='User Input'!$C$17,Ranking!DE14=1),1,0) -> 0 | U14: =IF(AND('User Input'!$C$38='User Input'!$C$18,Ranking!DF14=1),1,0) -> 0 | V14: =IF('User Input'!$I$38='User Input'!$I$13,1,IF(AND('User Input'!$I$38='User Input'!$I26,Ranking!$BY14>0.8),1,IF(AND('User Input'!$I$38='User Input'!$I$15,Ranking!$BY14>0.9),1,IF(AND('User Input'!$I$38='User Input'!$D$16,Ranking!$BY14>0.95),1,0)))) -> 0 | W14: =IF('User Input'!$D$38='User Input'!$D$13,1,IF(AND('User Input'!$D$38='User Input'!$D$14,Ranking!$BZ14>0.8),1,IF(AND('User Input'!$D$38='User Input'!$D$15,Ranking!$BZ14>0.9),1,IF(AND('User Input'!$D$38='User Input'!$D$16,Ranking!$BZ14>0.95),1,0)))) -> 1 | X14: =IF(AND('User Input'!$E$38='User Input'!$E$13,Ranking!DF14=1),1,0) -> 1 | Y14: =IF(AND('User Input'!$F$58=TRUE,Ranking!DI14=1),1,IF(AND('User Input'!$F$58=FALSE,Ranking!DI14=0),1,0)) -> 0 | Z14: =IF(AND('User Input'!$F$59=TRUE,Ranking!DJ14=1),1,IF(AND('User Input'!$F$59=FALSE,Ranking!DJ14=0),1,0)) -> 1 | AA14: =IF(AND('User Input'!$F$60=TRUE,Ranking!DK14=1),1,IF(AND('User Input'!$F$60=FALSE,Ranking!DK14=0),1,0)) -> 1 | AB14: =IF(AND('User Input'!$F$61=TRUE,Ranking!DL14=1),1,IF(AND('User Input'!$F$61=FALSE,Ranking!DL14=0),1,0)) -> 0 | AC14: =IF(AND('User Input'!$F$62=TRUE,Ranking!DM14=1),1,IF(AND('User Input'!$F$62=FALSE,Ranking!DM14=0),1,0)) -> 1 | AD14: =IF(AND('User Input'!$F$63=TRUE,Ranking!DN14=1),1,IF(AND('User Input'!$F$63=FALSE,Ranking!DN14=0),1,0)) -> 0 | AE14: =IF(AND('User Input'!$F$64=TRUE,Ranking!DO14=1),1,IF(AND('User Input'!$F$64=FALSE,Ranking!DO14=0),1,0)) -> 0 | AF14: =IF(AND('User Input'!$F$65=TRUE,Ranking!DP14=1),1,IF(AND('User Input'!$F$65=FALSE,Ranking!DP14=0),1,0)) -> 0 | AG14: =IF(AND('User Input'!$F$66=TRUE,Ranking!DQ14=1),1,IF(AND('User Input'!$F$66=FALSE,Ranking!DQ14=0),1,0)) -> 1 | AH14: =IF(AND('User Input'!$F$67=TRUE,Ranking!DR14=1),1,IF(AND('User Input'!$F$67=FALSE,Ranking!DR14=0),1,0)) -> 1 | AI14: =IF(Ranking!CV14="Y",1,IF(AND('User Input'!$G$38='User Input'!$G$14,Ranking!CV14="N"),1,0)) -> 1 | AJ14: =IF(OR(Ranking!DG14="Y",'User Input'!$H$38='User Input'!$H$14),1,IF(AND('User Input'!$H$38='User Input'!$H$13,Ranking!DG14="Y"),1,0)) -> 0 | AK14: =IF(AND('User Input'!$B$52='User Input'!$B$23,Ranking!CL14<'User Input'!$A$23),1,0) -> 0 | AL14: =IF(AND('User Input'!$B$52='User Input'!$B$24,Ranking!CL14<'User Input'!$A$24),1,0) -> 0 | AM14: =IF(AND('User Input'!$B$52='User Input'!$B$25,Ranking!CL14<'User Input'!$A$25),1,0) -> 0 | AN14: =IF(AND('User Input'!$B$52='User Input'!$B$26,Ranking!CL14<'User Input'!$A$26),1,0) -> 0 | AO14: =IF('User Input'!$B$52='User Input'!$B$27,1,0) -> 0 | AP14: =IF(AND('User Input'!$C$52='User Input'!$C$23,CE14=1),1,0) -> 0 | AQ14: =IF(CD14=1,0,IF(AND('User Input'!$C$52='User Input'!$C$24,Ranking!CF14=1),1,0)) -> 1 | AR14: =IF(CE14=1,0,IF(AND('User Input'!$C$52='User Input'!$C$25,Ranking!CG14=1),1,0)) -> 0 | AS14: =IF(CF14=1,0,IF(AND('User Input'!$C$52='User Input'!$C$26,Ranking!CH14=1),1,0)) -> 0 | AT14: =IF(CG14=1,0,IF(AND('User Input'!$C$52='User Input'!$C$27,Ranking!CI14=1),1,0)) -> 0 | AU14: =IF(AND('User Input'!$D$52='User Input'!$D$23,Ranking!CJ14>5000),1,0) -> 1 | AV14: =IF('User Input'!$E$52='User Input'!$E$25,1,IF(AND('User Input'!$E$52='User Input'!$E$23,Ranking!CM14=1),1,IF(AND('User Input'!$E$52='User Input'!$E$24,Ranking!CM14=0),1,0))) -> 1 | AW14: =IF(AND('User Input'!$F$52='User Input'!$F$23,Ranking!DS14=1),1,0) -> 0 | AX14: =IF(AND('User Input'!$F$52='User Input'!$F$24,Ranking!DT14=1),1,0) -> 0 | AY14: =IF(AND('User Input'!$F$52='User Input'!$F$25,Ranking!DU14=1),1,0) -> 1 | AZ14: =IF('User Input'!$G$52='User Input'!$G$24,1,IF(AND('User Input'!$G$52='User Input'!$G$23,DH14="Y"),1,0)) -> 0 | BA14: =IF('User Input'!$H$52='User Input'!$H$23,1,IF(AND('User Input'!$H$52='User Input'!$H$24,Ranking!BK14<>"Video"),1,0)) -> 1 | BB14: =IF(AND('User Input'!$I$52='User Input'!$I$23,Ranking!DV14=1),1,0) -> 0 | BC14: =IF(AND('User Input'!$I$52='User Input'!$I$24,Ranking!DW14=1),1,0) -> 0 | BD14: =IF(AND('User Input'!$I$52='User Input'!$I$25,Ranking!DX14=1),1,0) -> 0 | BE14: =IF('User Input'!$J$52='User Input'!$J$23,1,IF(AND('User Input'!$J$52='User Input'!$J$24,Ranking!DY14=0),1,0)) -> 1 | BF14: =IF('User Input'!$K$52='User Input'!$K$24,1,IF(AND('User Input'!$K$52='User Input'!$K$23,Ranking!CO14=1),1,0)) -> 0 | BI14: TrafiOne – FLIR | BK14: Thermal | BL14: software and hardware | BM14: 8 | BN14: 1 | BO14: 0 | BP14: 0 | BQ14: 1 | BR14: 1 | BS14: 0 | BT14: 0 | BU14: 0 | BV14: 0 | BW14: 0 | BX14: 1 | BY14: 0.7 | BZ14: 0.99 | CA14: 1 | CB14: 0 | CC14: 0 | CD14: 0 | CE14: 0 | CF14: 1 | CG14: 1 | CH14: 0 | CI14: 0 | CJ14: 6000 | CK14: 0 | CL14: 24000 | CM14: 1 | CN14: 1 | CO14: 0 | CP14: 1 | CQ14: 95° | CR14: 15m | CS14: Y | CT14: Y | CU14: Y | CV14: Y | CW14: Y | CX14: 0.5 | CY14: High | CZ14: N | DA14: 0 | DB14: 1 | DC14: 0 | DD14: 0 | DE14: 0 | DF14: 1 | DG14: N | DH14: N | DI14: 0 | DJ14: 0 | DK14: 0 | DL14: 0 | DM14: 1 | DN14: 0 | DO14: 0 | DP14: 0 | DQ14: 1 | DR14: 1 | DS14: 0 | DT14: 1 | DU14: 1 | DV14: 0 | DW14: 1 | DX14: 0 | DY14: ??
A15: =IF(AND('User Input'!$D$35='User Input'!$D$6,Ranking!BN15=1),1,0) -> 0 | B15: =IF(AND('User Input'!$D$35='User Input'!$D$7,Ranking!BO15=1),1,0) -> 0 | C15: =IF(AND('User Input'!$D$35='User Input'!$D$8,Ranking!BP15=1),1,0) -> 0 | D15: =IF(AND('User Input'!$F$35='User Input'!$F$7,Ranking!BQ15=1),1,0) -> 0 | E15: =IF(AND('User Input'!$F$35='User Input'!$F$6,Ranking!BR15=1),1,0) -> 1 | F15: =IF(AND('User Input'!$F$35='User Input'!$F$8,Ranking!BS15=1),1,0) -> 0 | G15: =IF(AND('User Input'!$F$35='User Input'!$F$9,Ranking!BT15=1),1,0) -> 0 | H15: =IF(AND('User Input'!$F$35='User Input'!$F$10,Ranking!BU15=1),1,0) -> 0 | I15: =IF(BV15=0,1,IF(AND(BV15=1,'User Input'!$G$35='User Input'!$G$6),0,IF(AND(BV15=1,'User Input'!$G$35='User Input'!$G$7),1,0))) -> 1 | J15: =IF(BW15=0,1,IF(AND(BW15=1,'User Input'!$H$35='User Input'!$H$6),1,IF(AND(BW15=1,'User Input'!$H$35='User Input'!$H$7),0))) -> 1 | K15: =IF('User Input'!$I$35='User Input'!$I$6,1,IF(AND('User Input'!$I$35='User Input'!$I$7,Ranking!BX15=0),1,0)) -> 1 | L15: =IF('User Input'!$K$35='User Input'!$K$7,1,IF(AND(OR('User Input'!$K$35='User Input'!$K$6,'User Input'!$K$35='User Input'!$K$8),Ranking!$CZ15="Y"),1,0)) -> 0 | M15: =IF(AND('User Input'!$B$38='User Input'!$B$13,Ranking!CA15=1),1,0) -> 1 | N15: =IF(AND('User Input'!$B$38='User Input'!$B$14,Ranking!CB15=1),1,0) -> 0 | O15: =IF(AND('User Input'!$B$38='User Input'!$B$15,Ranking!CC15=1),1,0) -> 0 | P15: =IF(AND('User Input'!$C$38='User Input'!$C$13,DA15=1),1,0) -> 0 | Q15: =IF(AND('User Input'!$C$38='User Input'!$C$14,Ranking!DB15=1),1,0) -> 1 | R15: =IF(AND('User Input'!$C$38='User Input'!$C$15,Ranking!DC15=1),1,0) -> 0 | S15: =IF(AND('User Input'!$C$38='User Input'!$C$16,Ranking!DD15=1),1,0) -> 0 | T15: =IF(AND('User Input'!$C$38='User Input'!$C$17,Ranking!DE15=1),1,0) -> 0 | U15: =IF(AND('User Input'!$C$38='User Input'!$C$18,Ranking!DF15=1),1,0) -> 0 | V15: =IF('User Input'!$I$38='User Input'!$I$13,1,IF(AND('User Input'!$I$38='User Input'!$I27,Ranking!$BY15>0.8),1,IF(AND('User Input'!$I$38='User Input'!$I$15,Ranking!$BY15>0.9),1,IF(AND('User Input'!$I$38='User Input'!$D$16,Ranking!$BY15>0.95),1,0)))) -> 0 | W15: =IF('User Input'!$D$38='User Input'!$D$13,1,IF(AND('User Input'!$D$38='User Input'!$D$14,Ranking!$BZ15>0.8),1,IF(AND('User Input'!$D$38='User Input'!$D$15,Ranking!$BZ15>0.9),1,IF(AND('User Input'!$D$38='User Input'!$D$16,Ranking!$BZ15>0.95),1,0)))) -> 1 | X15: =IF(AND('User Input'!$E$38='User Input'!$E$13,Ranking!DF15=1),1,0) -> 1 | Y15: =IF(AND('User Input'!$F$58=TRUE,Ranking!DI15=1),1,IF(AND('User Input'!$F$58=FALSE,Ranking!DI15=0),1,0)) -> 0 | Z15: =IF(AND('User Input'!$F$59=TRUE,Ranking!DJ15=1),1,IF(AND('User Input'!$F$59=FALSE,Ranking!DJ15=0),1,0)) -> 1 | AA15: =IF(AND('User Input'!$F$60=TRUE,Ranking!DK15=1),1,IF(AND('User Input'!$F$60=FALSE,Ranking!DK15=0),1,0)) -> 1 | AB15: =IF(AND('User Input'!$F$61=TRUE,Ranking!DL15=1),1,IF(AND('User Input'!$F$61=FALSE,Ranking!DL15=0),1,0)) -> 0 | AC15: =IF(AND('User Input'!$F$62=TRUE,Ranking!DM15=1),1,IF(AND('User Input'!$F$62=FALSE,Ranking!DM15=0),1,0)) -> 0 | AD15: =IF(AND('User Input'!$F$63=TRUE,Ranking!DN15=1),1,IF(AND('User Input'!$F$63=FALSE,Ranking!DN15=0),1,0)) -> 0 | AE15: =IF(AND('User Input'!$F$64=TRUE,Ranking!DO15=1),1,IF(AND('User Input'!$F$64=FALSE,Ranking!DO15=0),1,0)) -> 0 | AF15: =IF(AND('User Input'!$F$65=TRUE,Ranking!DP15=1),1,IF(AND('User Input'!$F$65=FALSE,Ranking!DP15=0),1,0)) -> 0 | AG15: =IF(AND('User Input'!$F$66=TRUE,Ranking!DQ15=1),1,IF(AND('User Input'!$F$66=FALSE,Ranking!DQ15=0),1,0)) -> 0 | AH15: =IF(AND('User Input'!$F$67=TRUE,Ranking!DR15=1),1,IF(AND('User Input'!$F$67=FALSE,Ranking!DR15=0),1,0)) -> 0 | AI15: =IF(Ranking!CV15="Y",1,IF(AND('User Input'!$G$38='User Input'!$G$14,Ranking!CV15="N"),1,0)) -> 1 | AJ15: =IF(OR(Ranking!DG15="Y",'User Input'!$H$38='User Input'!$H$14),1,IF(AND('User Input'!$H$38='User Input'!$H$13,Ranking!DG15="Y"),1,0)) -> 0 | AK15: =IF(AND('User Input'!$B$52='User Input'!$B$23,Ranking!CL15<'User Input'!$A$23),1,0) -> 0 | AL15: =IF(AND('User Input'!$B$52='User Input'!$B$24,Ranking!CL15<'User Input'!$A$24),1,0) -> 0 | AM15: =IF(AND('User Input'!$B$52='User Input'!$B$25,Ranking!CL15<'User Input'!$A$25),1,0) -> 0 | AN15: =IF(AND('User Input'!$B$52='User Input'!$B$26,Ranking!CL15<'User Input'!$A$26),1,0) -> 0 | AO15: =IF('User Input'!$B$52='User Input'!$B$27,1,0) -> 0 | AP15: =IF(AND('User Input'!$C$52='User Input'!$C$23,CE15=1),1,0) -> 0 | AQ15: =IF(CD15=1,0,IF(AND('User Input'!$C$52='User Input'!$C$24,Ranking!CF15=1),1,0)) -> 1 | AR15: =IF(CE15=1,0,IF(AND('User Input'!$C$52='User Input'!$C$25,Ranking!CG15=1),1,0)) -> 0 | AS15: =IF(CF15=1,0,IF(AND('User Input'!$C$52='User Input'!$C$26,Ranking!CH15=1),1,0)) -> 0 | AT15: =IF(CG15=1,0,IF(AND('User Input'!$C$52='User Input'!$C$27,Ranking!CI15=1),1,0)) -> 0 | AU15: =IF(AND('User Input'!$D$52='User Input'!$D$23,Ranking!CJ15>5000),1,0) -> 1 | AV15: =IF('User Input'!$E$52='User Input'!$E$25,1,IF(AND('User Input'!$E$52='User Input'!$E$23,Ranking!CM15=1),1,IF(AND('User Input'!$E$52='User Input'!$E$24,Ranking!CM15=0),1,0))) -> 1 | AW15: =IF(AND('User Input'!$F$52='User Input'!$F$23,Ranking!DS15=1),1,0) -> 0 | AX15: =IF(AND('User Input'!$F$52='User Input'!$F$24,Ranking!DT15=1),1,0) -> 0 | AY15: =IF(AND('User Input'!$F$52='User Input'!$F$25,Ranking!DU15=1),1,0) -> 1 | AZ15: =IF('User Input'!$G$52='User Input'!$G$24,1,IF(AND('User Input'!$G$52='User Input'!$G$23,DH15="Y"),1,0)) -> 0 | BA15: =IF('User Input'!$H$52='User Input'!$H$23,1,IF(AND('User Input'!$H$52='User Input'!$H$24,Ranking!BK15<>"Video"),1,0)) -> 1 | BB15: =IF(AND('User Input'!$I$52='User Input'!$I$23,Ranking!DV15=1),1,0) -> 0 | BC15: =IF(AND('User Input'!$I$52='User Input'!$I$24,Ranking!DW15=1),1,0) -> 0 | BD15: =IF(AND('User Input'!$I$52='User Input'!$I$25,Ranking!DX15=1),1,0) -> 0 | BE15: =IF('User Input'!$J$52='User Input'!$J$23,1,IF(AND('User Input'!$J$52='User Input'!$J$24,Ranking!DY15=0),1,0)) -> 1 | BF15: =IF('User Input'!$K$52='User Input'!$K$24,1,IF(AND('User Input'!$K$52='User Input'!$K$23,Ranking!CO15=1),1,0)) -> 0 | BI15: TrafiSense AI– FLIR | BK15: Thermal | BL15: software and hardware | BM15: 8 | BN15: 1 | BO15: 1 | BP15: 0 | BQ15: 1 | BR15: 1 | BS15: 0 | BT15: 0 | BU15: 0 | BV15: 0 | BW15: 0 | BX15: 0 | BY15: 0.7 | BZ15: 0.99 | CA15: 1 | CB15: 0 | CC15: 0 | CD15: 0 | CE15: 0 | CF15: 1 | CG15: 1 | CH15: 0 | CI15: 0 | CJ15: ?? | CK15: ?? | CL15: ?? | CM15: 1 | CN15: 1 | CO15: 0 | CP15: 1 | CQ15: 32° | CR15: 90m | CS15: Y | CT15: Y | CU15: N | CV15: Y | CW15: Y | CX15: 0.5 | CY15: High | CZ15: N | DA15: 0 | DB15: 1 | DC15: 0 | DD15: 0 | DE15: 0 | DF15: 1 | DG15: N | DH15: N | DI15: 0 | DJ15: 0 | DK15: 0 | DL15: 0 | DM15: 0 | DN15: 0 | DO15: 0 | DP15: 0 | DQ15: 0 | DR15: 0 | DS15: 0 | DT15: 1 | DU15: 1 | DV15: 0 | DW15: 1 | DX15: 0 | DY15: ??
A16: =IF(AND('User Input'!$D$35='User Input'!$D$6,Ranking!BN16=1),1,0) -> 0 | B16: =IF(AND('User Input'!$D$35='User Input'!$D$7,Ranking!BO16=1),1,0) -> 0 | C16: =IF(AND('User Input'!$D$35='User Input'!$D$8,Ranking!BP16=1),1,0) -> 1 | D16: =IF(AND('User Input'!$F$35='User Input'!$F$7,Ranking!BQ16=1),1,0) -> 0 | E16: =IF(AND('User Input'!$F$35='User Input'!$F$6,Ranking!BR16=1),1,0) -> 1 | F16: =IF(AND('User Input'!$F$35='User Input'!$F$8,Ranking!BS16=1),1,0) -> 0 | G16: =IF(AND('User Input'!$F$35='User Input'!$F$9,Ranking!BT16=1),1,0) -> 0 | H16: =IF(AND('User Input'!$F$35='User Input'!$F$10,Ranking!BU16=1),1,0) -> 0 | I16: =IF(BV16=0,1,IF(AND(BV16=1,'User Input'!$G$35='User Input'!$G$6),0,IF(AND(BV16=1,'User Input'!$G$35='User Input'!$G$7),1,0))) -> 1 | J16: =IF(BW16=0,1,IF(AND(BW16=1,'User Input'!$H$35='User Input'!$H$6),1,IF(AND(BW16=1,'User Input'!$H$35='User Input'!$H$7),0))) -> 1 | K16: =IF('User Input'!$I$35='User Input'!$I$6,1,IF(AND('User Input'!$I$35='User Input'!$I$7,Ranking!BX16=0),1,0)) -> 1 | L16: =IF('User Input'!$K$35='User Input'!$K$7,1,IF(AND(OR('User Input'!$K$35='User Input'!$K$6,'User Input'!$K$35='User Input'!$K$8),Ranking!$CZ16="Y"),1,0)) -> 0 | M16: =IF(AND('User Input'!$B$38='User Input'!$B$13,Ranking!CA16=1),1,0) -> 0 | N16: =IF(AND('User Input'!$B$38='User Input'!$B$14,Ranking!CB16=1),1,0) -> 0 | O16: =IF(AND('User Input'!$B$38='User Input'!$B$15,Ranking!CC16=1),1,0) -> 0 | P16: =IF(AND('User Input'!$C$38='User Input'!$C$13,DA16=1),1,0) -> 0 | Q16: =IF(AND('User Input'!$C$38='User Input'!$C$14,Ranking!DB16=1),1,0) -> 0 | R16: =IF(AND('User Input'!$C$38='User Input'!$C$15,Ranking!DC16=1),1,0) -> 0 | S16: =IF(AND('User Input'!$C$38='User Input'!$C$16,Ranking!DD16=1),1,0) -> 0 | T16: =IF(AND('User Input'!$C$38='User Input'!$C$17,Ranking!DE16=1),1,0) -> 0 | U16: =IF(AND('User Input'!$C$38='User Input'!$C$18,Ranking!DF16=1),1,0) -> 0 | V16: =IF('User Input'!$I$38='User Input'!$I$13,1,IF(AND('User Input'!$I$38='User Input'!$I28,Ranking!$BY16>0.8),1,IF(AND('User Input'!$I$38='User Input'!$I$15,Ranking!$BY16>0.9),1,IF(AND('User Input'!$I$38='User Input'!$D$16,Ranking!$BY16>0.95),1,0)))) -> 1 | W16: =IF('User Input'!$D$38='User Input'!$D$13,1,IF(AND('User Input'!$D$38='User Input'!$D$14,Ranking!$BZ16>0.8),1,IF(AND('User Input'!$D$38='User Input'!$D$15,Ranking!$BZ16>0.9),1,IF(AND('User Input'!$D$38='User Input'!$D$16,Ranking!$BZ16>0.95),1,0)))) -> 1 | X16: =IF(AND('User Input'!$E$38='User Input'!$E$13,Ranking!DF16=1),1,0) -> 1 | Y16: =IF(AND('User Input'!$F$58=TRUE,Ranking!DI16=1),1,IF(AND('User Input'!$F$58=FALSE,Ranking!DI16=0),1,0)) -> 1 | Z16: =IF(AND('User Input'!$F$59=TRUE,Ranking!DJ16=1),1,IF(AND('User Input'!$F$59=FALSE,Ranking!DJ16=0),1,0)) -> 1 | AA16: =IF(AND('User Input'!$F$60=TRUE,Ranking!DK16=1),1,IF(AND('User Input'!$F$60=FALSE,Ranking!DK16=0),1,0)) -> 0 | AB16: =IF(AND('User Input'!$F$61=TRUE,Ranking!DL16=1),1,IF(AND('User Input'!$F$61=FALSE,Ranking!DL16=0),1,0)) -> 1 | AC16: =IF(AND('User Input'!$F$62=TRUE,Ranking!DM16=1),1,IF(AND('User Input'!$F$62=FALSE,Ranking!DM16=0),1,0)) -> 1 | AD16: =IF(AND('User Input'!$F$63=TRUE,Ranking!DN16=1),1,IF(AND('User Input'!$F$63=FALSE,Ranking!DN16=0),1,0)) -> 0 | AE16: =IF(AND('User Input'!$F$64=TRUE,Ranking!DO16=1),1,IF(AND('User Input'!$F$64=FALSE,Ranking!DO16=0),1,0)) -> 0 | AF16: =IF(AND('User Input'!$F$65=TRUE,Ranking!DP16=1),1,IF(AND('User Input'!$F$65=FALSE,Ranking!DP16=0),1,0)) -> 0 | AG16: =IF(AND('User Input'!$F$66=TRUE,Ranking!DQ16=1),1,IF(AND('User Input'!$F$66=FALSE,Ranking!DQ16=0),1,0)) -> 0 | AH16: =IF(AND('User Input'!$F$67=TRUE,Ranking!DR16=1),1,IF(AND('User Input'!$F$67=FALSE,Ranking!DR16=0),1,0)) -> 0 | AI16: =IF(Ranking!CV16="Y",1,IF(AND('User Input'!$G$38='User Input'!$G$14,Ranking!CV16="N"),1,0)) -> 1 | AJ16: =IF(OR(Ranking!DG16="Y",'User Input'!$H$38='User Input'!$H$14),1,IF(AND('User Input'!$H$38='User Input'!$H$13,Ranking!DG16="Y"),1,0)) -> 0 | AK16: =IF(AND('User Input'!$B$52='User Input'!$B$23,Ranking!CL16<'User Input'!$A$23),1,0) -> 0 | AL16: =IF(AND('User Input'!$B$52='User Input'!$B$24,Ranking!CL16<'User Input'!$A$24),1,0) -> 0 | AM16: =IF(AND('User Input'!$B$52='User Input'!$B$25,Ranking!CL16<'User Input'!$A$25),1,0) -> 1 | AN16: =IF(AND('User Input'!$B$52='User Input'!$B$26,Ranking!CL16<'User Input'!$A$26),1,0) -> 0 | AO16: =IF('User Input'!$B$52='User Input'!$B$27,1,0) -> 0 | AP16: =IF(AND('User Input'!$C$52='User Input'!$C$23,CE16=1),1,0) -> 0 | AQ16: =IF(CD16=1,0,IF(AND('User Input'!$C$52='User Input'!$C$24,Ranking!CF16=1),1,0)) -> 1 | AR16: =IF(CE16=1,0,IF(AND('User Input'!$C$52='User Input'!$C$25,Ranking!CG16=1),1,0)) -> 0 | AS16: =IF(CF16=1,0,IF(AND('User Input'!$C$52='User Input'!$C$26,Ranking!CH16=1),1,0)) -> 0 | AT16: =IF(CG16=1,0,IF(AND('User Input'!$C$52='User Input'!$C$27,Ranking!CI16=1),1,0)) -> 0 | AU16: =IF(AND('User Input'!$D$52='User Input'!$D$23,Ranking!CJ16>5000),1,0) -> 0 | AV16: =IF('User Input'!$E$52='User Input'!$E$25,1,IF(AND('User Input'!$E$52='User Input'!$E$23,Ranking!CM16=1),1,IF(AND('User Input'!$E$52='User Input'!$E$24,Ranking!CM16=0),1,0))) -> 0 | AW16: =IF(AND('User Input'!$F$52='User Input'!$F$23,Ranking!DS16=1),1,0) -> 0 | AX16: =IF(AND('User Input'!$F$52='User Input'!$F$24,Ranking!DT16=1),1,0) -> 0 | AY16: =IF(AND('User Input'!$F$52='User Input'!$F$25,Ranking!DU16=1),1,0) -> 1 | AZ16: =IF('User Input'!$G$52='User Input'!$G$24,1,IF(AND('User Input'!$G$52='User Input'!$G$23,DH16="Y"),1,0)) -> 0 | BA16: =IF('User Input'!$H$52='User Input'!$H$23,1,IF(AND('User Input'!$H$52='User Input'!$H$24,Ranking!BK16<>"Video"),1,0)) -> 1 | BB16: =IF(AND('User Input'!$I$52='User Input'!$I$23,Ranking!DV16=1),1,0) -> 0 | BC16: =IF(AND('User Input'!$I$52='User Input'!$I$24,Ranking!DW16=1),1,0) -> 0 | BD16: =IF(AND('User Input'!$I$52='User Input'!$I$25,Ranking!DX16=1),1,0) -> 0 | BE16: =IF('User Input'!$J$52='User Input'!$J$23,1,IF(AND('User Input'!$J$52='User Input'!$J$24,Ranking!DY16=0),1,0)) -> 1 | BF16: =IF('User Input'!$K$52='User Input'!$K$24,1,IF(AND('User Input'!$K$52='User Input'!$K$23,Ranking!CO16=1),1,0)) -> 1 | BI16: LiDAR Matrix Inc. | BK16: LiDAR | BL16: software and hardware | BM16: 1 | BN16: 1 | BO16: 1 | BP16: 1 | BQ16: 1 | BR16: 1 | BS16: 0 | BT16: 0 | BU16: 0 | BV16: 0 | BW16: 0 | BX16: 0 | BY16: 0.98 | BZ16: 0.995 | CA16: 0 | CB16: 1 | CC16: 1 | CD16: 0 | CE16: 0 | CF16: 1 | CG16: 1 | CH16: 0 | CI16: 0 | CJ16: 0 | CK16: 0 | CL16: 0 | CM16: 0 | CN16: DC | CO16: 1 | CP16: 0 | CQ16: 360° | CR16: 90m | CS16: N | CT16: N | CU16: N | CV16: Y | CW16: N | CX16: 0 | CY16: High | CZ16: N | DA16: 1 | DB16: 0 | DC16: 1 | DD16: 1 | DE16: 1 | DF16: 1 | DG16: N | DH16: N | DI16: 1 | DJ16: 0 | DK16: 1 | DL16: 1 | DM16: 1 | DN16: 0 | DO16: 0 | DP16: 0 | DQ16: 0 | DR16: 0 | DS16: 1 | DT16: 1 | DU16: 1 | DV16: 1 | DW16: 0 | DX16: 0 | DY16: 0
A17: =IF(AND('User Input'!$D$35='User Input'!$D$6,Ranking!BN17=1),1,0) -> 0 | B17: =IF(AND('User Input'!$D$35='User Input'!$D$7,Ranking!BO17=1),1,0) -> 0 | C17: =IF(AND('User Input'!$D$35='User Input'!$D$8,Ranking!BP17=1),1,0) -> 0 | D17: =IF(AND('User Input'!$F$35='User Input'!$F$7,Ranking!BQ17=1),1,0) -> 0 | E17: =IF(AND('User Input'!$F$35='User Input'!$F$6,Ranking!BR17=1),1,0) -> 0 | F17: =IF(AND('User Input'!$F$35='User Input'!$F$8,Ranking!BS17=1),1,0) -> 0 | G17: =IF(AND('User Input'!$F$35='User Input'!$F$9,Ranking!BT17=1),1,0) -> 0 | H17: =IF(AND('User Input'!$F$35='User Input'!$F$10,Ranking!BU17=1),1,0) -> 0 | I17: =IF(BV17=0,1,IF(AND(BV17=1,'User Input'!$G$35='User Input'!$G$6),0,IF(AND(BV17=1,'User Input'!$G$35='User Input'!$G$7),1,0))) -> 1 | J17: =IF(BW17=0,1,IF(AND(BW17=1,'User Input'!$H$35='User Input'!$H$6),1,IF(AND(BW17=1,'User Input'!$H$35='User Input'!$H$7),0))) -> 1 | K17: =IF('User Input'!$I$35='User Input'!$I$6,1,IF(AND('User Input'!$I$35='User Input'!$I$7,Ranking!BX17=0),1,0)) -> 1 | L17: =IF('User Input'!$K$35='User Input'!$K$7,1,IF(AND(OR('User Input'!$K$35='User Input'!$K$6,'User Input'!$K$35='User Input'!$K$8),Ranking!$CZ17="Y"),1,0)) -> 0 | M17: =IF(AND('User Input'!$B$38='User Input'!$B$13,Ranking!CA17=1),1,0) -> 0 | N17: =IF(AND('User Input'!$B$38='User Input'!$B$14,Ranking!CB17=1),1,0) -> 0 | O17: =IF(AND('User Input'!$B$38='User Input'!$B$15,Ranking!CC17=1),1,0) -> 0 | P17: =IF(AND('User Input'!$C$38='User Input'!$C$13,DA17=1),1,0) -> 0 | Q17: =IF(AND('User Input'!$C$38='User Input'!$C$14,Ranking!DB17=1),1,0) -> 0 | R17: =IF(AND('User Input'!$C$38='User Input'!$C$15,Ranking!DC17=1),1,0) -> 0 | S17: =IF(AND('User Input'!$C$38='User Input'!$C$16,Ranking!DD17=1),1,0) -> 0 | T17: =IF(AND('User Input'!$C$38='User Input'!$C$17,Ranking!DE17=1),1,0) -> 0 | U17: =IF(AND('User Input'!$C$38='User Input'!$C$18,Ranking!DF17=1),1,0) -> 0 | V17: =IF('User Input'!$I$38='User Input'!$I$13,1,IF(AND('User Input'!$I$38='User Input'!$I29,Ranking!$BY17>0.8),1,IF(AND('User Input'!$I$38='User Input'!$I$15,Ranking!$BY17>0.9),1,IF(AND('User Input'!$I$38='User Input'!$D$16,Ranking!$BY17>0.95),1,0)))) -> 0 | W17: =IF('User Input'!$D$38='User Input'!$D$13,1,IF(AND('User Input'!$D$38='User Input'!$D$14,Ranking!$BZ17>0.8),1,IF(AND('User Input'!$D$38='User Input'!$D$15,Ranking!$BZ17>0.9),1,IF(AND('User Input'!$D$38='User Input'!$D$16,Ranking!$BZ17>0.95),1,0)))) -> 0 | X17: =IF(AND('User Input'!$E$38='User Input'!$E$13,Ranking!DF17=1),1,0) -> 0 | Y17: =IF(AND('User Input'!$F$58=TRUE,Ranking!DI17=1),1,IF(AND('User Input'!$F$58=FALSE,Ranking!DI17=0),1,0)) -> 0 | Z17: =IF(AND('User Input'!$F$59=TRUE,Ranking!DJ17=1),1,IF(AND('User Input'!$F$59=FALSE,Ranking!DJ17=0),1,0)) -> 1 | AA17: =IF(AND('User Input'!$F$60=TRUE,Ranking!DK17=1),1,IF(AND('User Input'!$F$60=FALSE,Ranking!DK17=0),1,0)) -> 1 | AB17: =IF(AND('User Input'!$F$61=TRUE,Ranking!DL17=1),1,IF(AND('User Input'!$F$61=FALSE,Ranking!DL17=0),1,0)) -> 0 | AC17: =IF(AND('User Input'!$F$62=TRUE,Ranking!DM17=1),1,IF(AND('User Input'!$F$62=FALSE,Ranking!DM17=0),1,0)) -> 0 | AD17: =IF(AND('User Input'!$F$63=TRUE,Ranking!DN17=1),1,IF(AND('User Input'!$F$63=FALSE,Ranking!DN17=0),1,0)) -> 0 | AE17: =IF(AND('User Input'!$F$64=TRUE,Ranking!DO17=1),1,IF(AND('User Input'!$F$64=FALSE,Ranking!DO17=0),1,0)) -> 0 | AF17: =IF(AND('User Input'!$F$65=TRUE,Ranking!DP17=1),1,IF(AND('User Input'!$F$65=FALSE,Ranking!DP17=0),1,0)) -> 0 | AG17: =IF(AND('User Input'!$F$66=TRUE,Ranking!DQ17=1),1,IF(AND('User Input'!$F$66=FALSE,Ranking!DQ17=0),1,0)) -> 0 | AH17: =IF(AND('User Input'!$F$67=TRUE,Ranking!DR17=1),1,IF(AND('User Input'!$F$67=FALSE,Ranking!DR17=0),1,0)) -> 0 | AI17: =IF(Ranking!CV17="Y",1,IF(AND('User Input'!$G$38='User Input'!$G$14,Ranking!CV17="N"),1,0)) -> 0 | AJ17: =IF(OR(Ranking!DG17="Y",'User Input'!$H$38='User Input'!$H$14),1,IF(AND('User Input'!$H$38='User Input'!$H$13,Ranking!DG17="Y"),1,0)) -> 0 | AK17: =IF(AND('User Input'!$B$52='User Input'!$B$23,Ranking!CL17<'User Input'!$A$23),1,0) -> 0 | AL17: =IF(AND('User Input'!$B$52='User Input'!$B$24,Ranking!CL17<'User Input'!$A$24),1,0) -> 0 | AM17: =IF(AND('User Input'!$B$52='User Input'!$B$25,Ranking!CL17<'User Input'!$A$25),1,0) -> 1 | AN17: =IF(AND('User Input'!$B$52='User Input'!$B$26,Ranking!CL17<'User Input'!$A$26),1,0) -> 0 | AO17: =IF('User Input'!$B$52='User Input'!$B$27,1,0) -> 0 | AP17: =IF(AND('User Input'!$C$52='User Input'!$C$23,CE17=1),1,0) -> 0 | AQ17: =IF(CD17=1,0,IF(AND('User Input'!$C$52='User Input'!$C$24,Ranking!CF17=1),1,0)) -> 0 | AR17: =IF(CE17=1,0,IF(AND('User Input'!$C$52='User Input'!$C$25,Ranking!CG17=1),1,0)) -> 0 | AS17: =IF(CF17=1,0,IF(AND('User Input'!$C$52='User Input'!$C$26,Ranking!CH17=1),1,0)) -> 0 | AT17: =IF(CG17=1,0,IF(AND('User Input'!$C$52='User Input'!$C$27,Ranking!CI17=1),1,0)) -> 0 | AU17: =IF(AND('User Input'!$D$52='User Input'!$D$23,Ranking!CJ17>5000),1,0) -> 0 | AV17: =IF('User Input'!$E$52='User Input'!$E$25,1,IF(AND('User Input'!$E$52='User Input'!$E$23,Ranking!CM17=1),1,IF(AND('User Input'!$E$52='User Input'!$E$24,Ranking!CM17=0),1,0))) -> 0 | AW17: =IF(AND('User Input'!$F$52='User Input'!$F$23,Ranking!DS17=1),1,0) -> 0 | AX17: =IF(AND('User Input'!$F$52='User Input'!$F$24,Ranking!DT17=1),1,0) -> 0 | AY17: =IF(AND('User Input'!$F$52='User Input'!$F$25,Ranking!DU17=1),1,0) -> 0 | AZ17: =IF('User Input'!$G$52='User Input'!$G$24,1,IF(AND('User Input'!$G$52='User Input'!$G$23,DH17="Y"),1,0)) -> 0 | BA17: =IF('User Input'!$H$52='User Input'!$H$23,1,IF(AND('User Input'!$H$52='User Input'!$H$24,Ranking!BK17<>"Video"),1,0)) -> 1 | BB17: =IF(AND('User Input'!$I$52='User Input'!$I$23,Ranking!DV17=1),1,0) -> 0 | BC17: =IF(AND('User Input'!$I$52='User Input'!$I$24,Ranking!DW17=1),1,0) -> 0 | BD17: =IF(AND('User Input'!$I$52='User Input'!$I$25,Ranking!DX17=1),1,0) -> 0 | BE17: =IF('User Input'!$J$52='User Input'!$J$23,1,IF(AND('User Input'!$J$52='User Input'!$J$24,Ranking!DY17=0),1,0)) -> 1 | BF17: =IF('User Input'!$K$52='User Input'!$K$24,1,IF(AND('User Input'!$K$52='User Input'!$K$23,Ranking!CO17=1),1,0)) -> 0 | BI17: Placeholder
A18: =IF(AND('User Input'!$D$35='User Input'!$D$6,Ranking!BN18=1),1,0) -> 0 | B18: =IF(AND('User Input'!$D$35='User Input'!$D$7,Ranking!BO18=1),1,0) -> 0 | C18: =IF(AND('User Input'!$D$35='User Input'!$D$8,Ranking!BP18=1),1,0) -> 0 | D18: =IF(AND('User Input'!$F$35='User Input'!$F$7,Ranking!BQ18=1),1,0) -> 0 | E18: =IF(AND('User Input'!$F$35='User Input'!$F$6,Ranking!BR18=1),1,0) -> 0 | F18: =IF(AND('User Input'!$F$35='User Input'!$F$8,Ranking!BS18=1),1,0) -> 0 | G18: =IF(AND('User Input'!$F$35='User Input'!$F$9,Ranking!BT18=1),1,0) -> 0 | H18: =IF(AND('User Input'!$F$35='User Input'!$F$10,Ranking!BU18=1),1,0) -> 0 | I18: =IF(BV18=0,1,IF(AND(BV18=1,'User Input'!$G$35='User Input'!$G$6),0,IF(AND(BV18=1,'User Input'!$G$35='User Input'!$G$7),1,0))) -> 1 | J18: =IF(BW18=0,1,IF(AND(BW18=1,'User Input'!$H$35='User Input'!$H$6),1,IF(AND(BW18=1,'User Input'!$H$35='User Input'!$H$7),0))) -> 1 | K18: =IF('User Input'!$I$35='User Input'!$I$6,1,IF(AND('User Input'!$I$35='User Input'!$I$7,Ranking!BX18=0),1,0)) -> 1 | L18: =IF('User Input'!$K$35='User Input'!$K$7,1,IF(AND(OR('User Input'!$K$35='User Input'!$K$6,'User Input'!$K$35='User Input'!$K$8),Ranking!$CZ18="Y"),1,0)) -> 0 | M18: =IF(AND('User Input'!$B$38='User Input'!$B$13,Ranking!CA18=1),1,0) -> 0 | N18: =IF(AND('User Input'!$B$38='User Input'!$B$14,Ranking!CB18=1),1,0) -> 0 | O18: =IF(AND('User Input'!$B$38='User Input'!$B$15,Ranking!CC18=1),1,0) -> 0 | P18: =IF(AND('User Input'!$C$38='User Input'!$C$13,DA18=1),1,0) -> 0 | Q18: =IF(AND('User Input'!$C$38='User Input'!$C$14,Ranking!DB18=1),1,0) -> 0 | R18: =IF(AND('User Input'!$C$38='User Input'!$C$15,Ranking!DC18=1),1,0) -> 0 | S18: =IF(AND('User Input'!$C$38='User Input'!$C$16,Ranking!DD18=1),1,0) -> 0 | T18: =IF(AND('User Input'!$C$38='User Input'!$C$17,Ranking!DE18=1),1,0) -> 0 | U18: =IF(AND('User Input'!$C$38='User Input'!$C$18,Ranking!DF18=1),1,0) -> 0 | V18: =IF('User Input'!$I$38='User Input'!$I$13,1,IF(AND('User Input'!$I$38='User Input'!$I30,Ranking!$BY18>0.8),1,IF(AND('User Input'!$I$38='User Input'!$I$15,Ranking!$BY18>0.9),1,IF(AND('User Input'!$I$38='User Input'!$D$16,Ranking!$BY18>0.95),1,0)))) -> 0 | W18: =IF('User Input'!$D$38='User Input'!$D$13,1,IF(AND('User Input'!$D$38='User Input'!$D$14,Ranking!$BZ18>0.8),1,IF(AND('User Input'!$D$38='User Input'!$D$15,Ranking!$BZ18>0.9),1,IF(AND('User Input'!$D$38='User Input'!$D$16,Ranking!$BZ18>0.95),1,0)))) -> 0 | X18: =IF(AND('User Input'!$E$38='User Input'!$E$13,Ranking!DF18=1),1,0) -> 0 | Y18: =IF(AND('User Input'!$F$58=TRUE,Ranking!DI18=1),1,IF(AND('User Input'!$F$58=FALSE,Ranking!DI18=0),1,0)) -> 0 | Z18: =IF(AND('User Input'!$F$59=TRUE,Ranking!DJ18=1),1,IF(AND('User Input'!$F$59=FALSE,Ranking!DJ18=0),1,0)) -> 1 | AA18: =IF(AND('User Input'!$F$60=TRUE,Ranking!DK18=1),1,IF(AND('User Input'!$F$60=FALSE,Ranking!DK18=0),1,0)) -> 1 | AB18: =IF(AND('User Input'!$F$61=TRUE,Ranking!DL18=1),1,IF(AND('User Input'!$F$61=FALSE,Ranking!DL18=0),1,0)) -> 0 | AC18: =IF(AND('User Input'!$F$62=TRUE,Ranking!DM18=1),1,IF(AND('User Input'!$F$62=FALSE,Ranking!DM18=0),1,0)) -> 0 | AD18: =IF(AND('User Input'!$F$63=TRUE,Ranking!DN18=1),1,IF(AND('User Input'!$F$63=FALSE,Ranking!DN18=0),1,0)) -> 0 | AE18: =IF(AND('User Input'!$F$64=TRUE,Ranking!DO18=1),1,IF(AND('User Input'!$F$64=FALSE,Ranking!DO18=0),1,0)) -> 0 | AF18: =IF(AND('User Input'!$F$65=TRUE,Ranking!DP18=1),1,IF(AND('User Input'!$F$65=FALSE,Ranking!DP18=0),1,0)) -> 0 | AG18: =IF(AND('User Input'!$F$66=TRUE,Ranking!DQ18=1),1,IF(AND('User Input'!$F$66=FALSE,Ranking!DQ18=0),1,0)) -> 0 | AH18: =IF(AND('User Input'!$F$67=TRUE,Ranking!DR18=1),1,IF(AND('User Input'!$F$67=FALSE,Ranking!DR18=0),1,0)) -> 0 | AI18: =IF(Ranking!CV18="Y",1,IF(AND('User Input'!$G$38='User Input'!$G$14,Ranking!CV18="N"),1,0)) -> 0 | AJ18: =IF(OR(Ranking!DG18="Y",'User Input'!$H$38='User Input'!$H$14),1,IF(AND('User Input'!$H$38='User Input'!$H$13,Ranking!DG18="Y"),1,0)) -> 0 | AK18: =IF(AND('User Input'!$B$52='User Input'!$B$23,Ranking!CL18<'User Input'!$A$23),1,0) -> 0 | AL18: =IF(AND('User Input'!$B$52='User Input'!$B$24,Ranking!CL18<'User Input'!$A$24),1,0) -> 0 | AM18: =IF(AND('User Input'!$B$52='User Input'!$B$25,Ranking!CL18<'User Input'!$A$25),1,0) -> 1 | AN18: =IF(AND('User Input'!$B$52='User Input'!$B$26,Ranking!CL18<'User Input'!$A$26),1,0) -> 0 | AO18: =IF('User Input'!$B$52='User Input'!$B$27,1,0) -> 0 | AP18: =IF(AND('User Input'!$C$52='User Input'!$C$23,CE18=1),1,0) -> 0 | AQ18: =IF(CD18=1,0,IF(AND('User Input'!$C$52='User Input'!$C$24,Ranking!CF18=1),1,0)) -> 0 | AR18: =IF(CE18=1,0,IF(AND('User Input'!$C$52='User Input'!$C$25,Ranking!CG18=1),1,0)) -> 0 | AS18: =IF(CF18=1,0,IF(AND('User Input'!$C$52='User Input'!$C$26,Ranking!CH18=1),1,0)) -> 0 | AT18: =IF(CG18=1,0,IF(AND('User Input'!$C$52='User Input'!$C$27,Ranking!CI18=1),1,0)) -> 0 | AU18: =IF(AND('User Input'!$D$52='User Input'!$D$23,Ranking!CJ18>5000),1,0) -> 0 | AV18: =IF('User Input'!$E$52='User Input'!$E$25,1,IF(AND('User Input'!$E$52='User Input'!$E$23,Ranking!CM18=1),1,IF(AND('User Input'!$E$52='User Input'!$E$24,Ranking!CM18=0),1,0))) -> 0 | AW18: =IF(AND('User Input'!$F$52='User Input'!$F$23,Ranking!DS18=1),1,0) -> 0 | AX18: =IF(AND('User Input'!$F$52='User Input'!$F$24,Ranking!DT18=1),1,0) -> 0 | AY18: =IF(AND('User Input'!$F$52='User Input'!$F$25,Ranking!DU18=1),1,0) -> 0 | AZ18: =IF('User Input'!$G$52='User Input'!$G$24,1,IF(AND('User Input'!$G$52='User Input'!$G$23,DH18="Y"),1,0)) -> 0 | BA18: =IF('User Input'!$H$52='User Input'!$H$23,1,IF(AND('User Input'!$H$52='User Input'!$H$24,Ranking!BK18<>"Video"),1,0)) -> 1 | BB18: =IF(AND('User Input'!$I$52='User Input'!$I$23,Ranking!DV18=1),1,0) -> 0 | BC18: =IF(AND('User Input'!$I$52='User Input'!$I$24,Ranking!DW18=1),1,0) -> 0 | BD18: =IF(AND('User Input'!$I$52='User Input'!$I$25,Ranking!DX18=1),1,0) -> 0 | BE18: =IF('User Input'!$J$52='User Input'!$J$23,1,IF(AND('User Input'!$J$52='User Input'!$J$24,Ranking!DY18=0),1,0)) -> 1 | BF18: =IF('User Input'!$K$52='User Input'!$K$24,1,IF(AND('User Input'!$K$52='User Input'!$K$23,Ranking!CO18=1),1,0)) -> 0 | BI18: Placeholder
A19: =IF(AND('User Input'!$D$35='User Input'!$D$6,Ranking!BN19=1),1,0) -> 0 | B19: =IF(AND('User Input'!$D$35='User Input'!$D$7,Ranking!BO19=1),1,0) -> 0 | C19: =IF(AND('User Input'!$D$35='User Input'!$D$8,Ranking!BP19=1),1,0) -> 0 | D19: =IF(AND('User Input'!$F$35='User Input'!$F$7,Ranking!BQ19=1),1,0) -> 0 | E19: =IF(AND('User Input'!$F$35='User Input'!$F$6,Ranking!BR19=1),1,0) -> 0 | F19: =IF(AND('User Input'!$F$35='User Input'!$F$8,Ranking!BS19=1),1,0) -> 0 | G19: =IF(AND('User Input'!$F$35='User Input'!$F$9,Ranking!BT19=1),1,0) -> 0 | H19: =IF(AND('User Input'!$F$35='User Input'!$F$10,Ranking!BU19=1),1,0) -> 0 | I19: =IF(BV19=0,1,IF(AND(BV19=1,'User Input'!$G$35='User Input'!$G$6),0,IF(AND(BV19=1,'User Input'!$G$35='User Input'!$G$7),1,0))) -> 1 | J19: =IF(BW19=0,1,IF(AND(BW19=1,'User Input'!$H$35='User Input'!$H$6),1,IF(AND(BW19=1,'User Input'!$H$35='User Input'!$H$7),0))) -> 1 | K19: =IF('User Input'!$I$35='User Input'!$I$6,1,IF(AND('User Input'!$I$35='User Input'!$I$7,Ranking!BX19=0),1,0)) -> 1 | L19: =IF('User Input'!$K$35='User Input'!$K$7,1,IF(AND(OR('User Input'!$K$35='User Input'!$K$6,'User Input'!$K$35='User Input'!$K$8),Ranking!$CZ19="Y"),1,0)) -> 0 | M19: =IF(AND('User Input'!$B$38='User Input'!$B$13,Ranking!CA19=1),1,0) -> 0 | N19: =IF(AND('User Input'!$B$38='User Input'!$B$14,Ranking!CB19=1),1,0) -> 0 | O19: =IF(AND('User Input'!$B$38='User Input'!$B$15,Ranking!CC19=1),1,0) -> 0 | P19: =IF(AND('User Input'!$C$38='User Input'!$C$13,DA19=1),1,0) -> 0 | Q19: =IF(AND('User Input'!$C$38='User Input'!$C$14,Ranking!DB19=1),1,0) -> 0 | R19: =IF(AND('User Input'!$C$38='User Input'!$C$15,Ranking!DC19=1),1,0) -> 0 | S19: =IF(AND('User Input'!$C$38='User Input'!$C$16,Ranking!DD19=1),1,0) -> 0 | T19: =IF(AND('User Input'!$C$38='User Input'!$C$17,Ranking!DE19=1),1,0) -> 0 | U19: =IF(AND('User Input'!$C$38='User Input'!$C$18,Ranking!DF19=1),1,0) -> 0 | V19: =IF('User Input'!$I$38='User Input'!$I$13,1,IF(AND('User Input'!$I$38='User Input'!$I31,Ranking!$BY19>0.8),1,IF(AND('User Input'!$I$38='User Input'!$I$15,Ranking!$BY19>0.9),1,IF(AND('User Input'!$I$38='User Input'!$D$16,Ranking!$BY19>0.95),1,0)))) -> 0 | W19: =IF('User Input'!$D$38='User Input'!$D$13,1,IF(AND('User Input'!$D$38='User Input'!$D$14,Ranking!$BZ19>0.8),1,IF(AND('User Input'!$D$38='User Input'!$D$15,Ranking!$BZ19>0.9),1,IF(AND('User Input'!$D$38='User Input'!$D$16,Ranking!$BZ19>0.95),1,0)))) -> 0 | X19: =IF(AND('User Input'!$E$38='User Input'!$E$13,Ranking!DF19=1),1,0) -> 0 | Y19: =IF(AND('User Input'!$F$58=TRUE,Ranking!DI19=1),1,IF(AND('User Input'!$F$58=FALSE,Ranking!DI19=0),1,0)) -> 0 | Z19: =IF(AND('User Input'!$F$59=TRUE,Ranking!DJ19=1),1,IF(AND('User Input'!$F$59=FALSE,Ranking!DJ19=0),1,0)) -> 1 | AA19: =IF(AND('User Input'!$F$60=TRUE,Ranking!DK19=1),1,IF(AND('User Input'!$F$60=FALSE,Ranking!DK19=0),1,0)) -> 1 | AB19: =IF(AND('User Input'!$F$61=TRUE,Ranking!DL19=1),1,IF(AND('User Input'!$F$61=FALSE,Ranking!DL19=0),1,0)) -> 0 | AC19: =IF(AND('User Input'!$F$62=TRUE,Ranking!DM19=1),1,IF(AND('User Input'!$F$62=FALSE,Ranking!DM19=0),1,0)) -> 0 | AD19: =IF(AND('User Input'!$F$63=TRUE,Ranking!DN19=1),1,IF(AND('User Input'!$F$63=FALSE,Ranking!DN19=0),1,0)) -> 0 | AE19: =IF(AND('User Input'!$F$64=TRUE,Ranking!DO19=1),1,IF(AND('User Input'!$F$64=FALSE,Ranking!DO19=0),1,0)) -> 0 | AF19: =IF(AND('User Input'!$F$65=TRUE,Ranking!DP19=1),1,IF(AND('User Input'!$F$65=FALSE,Ranking!DP19=0),1,0)) -> 0 | AG19: =IF(AND('User Input'!$F$66=TRUE,Ranking!DQ19=1),1,IF(AND('User Input'!$F$66=FALSE,Ranking!DQ19=0),1,0)) -> 0 | AH19: =IF(AND('User Input'!$F$67=TRUE,Ranking!DR19=1),1,IF(AND('User Input'!$F$67=FALSE,Ranking!DR19=0),1,0)) -> 0 | AI19: =IF(Ranking!CV19="Y",1,IF(AND('User Input'!$G$38='User Input'!$G$14,Ranking!CV19="N"),1,0)) -> 0 | AJ19: =IF(OR(Ranking!DG19="Y",'User Input'!$H$38='User Input'!$H$14),1,IF(AND('User Input'!$H$38='User Input'!$H$13,Ranking!DG19="Y"),1,0)) -> 0 | AK19: =IF(AND('User Input'!$B$52='User Input'!$B$23,Ranking!CL19<'User Input'!$A$23),1,0) -> 0 | AL19: =IF(AND('User Input'!$B$52='User Input'!$B$24,Ranking!CL19<'User Input'!$A$24),1,0) -> 0 | AM19: =IF(AND('User Input'!$B$52='User Input'!$B$25,Ranking!CL19<'User Input'!$A$25),1,0) -> 1 | AN19: =IF(AND('User Input'!$B$52='User Input'!$B$26,Ranking!CL19<'User Input'!$A$26),1,0) -> 0 | AO19: =IF('User Input'!$B$52='User Input'!$B$27,1,0) -> 0 | AP19: =IF(AND('User Input'!$C$52='User Input'!$C$23,CE19=1),1,0) -> 0 | AQ19: =IF(CD19=1,0,IF(AND('User Input'!$C$52='User Input'!$C$24,Ranking!CF19=1),1,0)) -> 0 | AR19: =IF(CE19=1,0,IF(AND('User Input'!$C$52='User Input'!$C$25,Ranking!CG19=1),1,0)) -> 0 | AS19: =IF(CF19=1,0,IF(AND('User Input'!$C$52='User Input'!$C$26,Ranking!CH19=1),1,0)) -> 0 | AT19: =IF(CG19=1,0,IF(AND('User Input'!$C$52='User Input'!$C$27,Ranking!CI19=1),1,0)) -> 0 | AU19: =IF(AND('User Input'!$D$52='User Input'!$D$23,Ranking!CJ19>5000),1,0) -> 0 | AV19: =IF('User Input'!$E$52='User Input'!$E$25,1,IF(AND('User Input'!$E$52='User Input'!$E$23,Ranking!CM19=1),1,IF(AND('User Input'!$E$52='User Input'!$E$24,Ranking!CM19=0),1,0))) -> 0 | AW19: =IF(AND('User Input'!$F$52='User Input'!$F$23,Ranking!DS19=1),1,0) -> 0 | AX19: =IF(AND('User Input'!$F$52='User Input'!$F$24,Ranking!DT19=1),1,0) -> 0 | AY19: =IF(AND('User Input'!$F$52='User Input'!$F$25,Ranking!DU19=1),1,0) -> 0 | AZ19: =IF('User Input'!$G$52='User Input'!$G$24,1,IF(AND('User Input'!$G$52='User Input'!$G$23,DH19="Y"),1,0)) -> 0 | BA19: =IF('User Input'!$H$52='User Input'!$H$23,1,IF(AND('User Input'!$H$52='User Input'!$H$24,Ranking!BK19<>"Video"),1,0)) -> 1 | BB19: =IF(AND('User Input'!$I$52='User Input'!$I$23,Ranking!DV19=1),1,0) -> 0 | BC19: =IF(AND('User Input'!$I$52='User Input'!$I$24,Ranking!DW19=1),1,0) -> 0 | BD19: =IF(AND('User Input'!$I$52='User Input'!$I$25,Ranking!DX19=1),1,0) -> 0 | BE19: =IF('User Input'!$J$52='User Input'!$J$23,1,IF(AND('User Input'!$J$52='User Input'!$J$24,Ranking!DY19=0),1,0)) -> 1 | BF19: =IF('User Input'!$K$52='User Input'!$K$24,1,IF(AND('User Input'!$K$52='User Input'!$K$23,Ranking!CO19=1),1,0)) -> 0 | BI19: Placeholder
A20: =IF(AND('User Input'!$D$35='User Input'!$D$6,Ranking!BN20=1),1,0) -> 0 | B20: =IF(AND('User Input'!$D$35='User Input'!$D$7,Ranking!BO20=1),1,0) -> 0 | C20: =IF(AND('User Input'!$D$35='User Input'!$D$8,Ranking!BP20=1),1,0) -> 0 | D20: =IF(AND('User Input'!$F$35='User Input'!$F$7,Ranking!BQ20=1),1,0) -> 0 | E20: =IF(AND('User Input'!$F$35='User Input'!$F$6,Ranking!BR20=1),1,0) -> 0 | F20: =IF(AND('User Input'!$F$35='User Input'!$F$8,Ranking!BS20=1),1,0) -> 0 | G20: =IF(AND('User Input'!$F$35='User Input'!$F$9,Ranking!BT20=1),1,0) -> 0 | H20: =IF(AND('User Input'!$F$35='User Input'!$F$10,Ranking!BU20=1),1,0) -> 0 | I20: =IF(BV20=0,1,IF(AND(BV20=1,'User Input'!$G$35='User Input'!$G$6),0,IF(AND(BV20=1,'User Input'!$G$35='User Input'!$G$7),1,0))) -> 1 | J20: =IF(BW20=0,1,IF(AND(BW20=1,'User Input'!$H$35='User Input'!$H$6),1,IF(AND(BW20=1,'User Input'!$H$35='User Input'!$H$7),0))) -> 1 | K20: =IF('User Input'!$I$35='User Input'!$I$6,1,IF(AND('User Input'!$I$35='User Input'!$I$7,Ranking!BX20=0),1,0)) -> 1 | L20: =IF('User Input'!$K$35='User Input'!$K$7,1,IF(AND(OR('User Input'!$K$35='User Input'!$K$6,'User Input'!$K$35='User Input'!$K$8),Ranking!$CZ20="Y"),1,0)) -> 0 | M20: =IF(AND('User Input'!$B$38='User Input'!$B$13,Ranking!CA20=1),1,0) -> 0 | N20: =IF(AND('User Input'!$B$38='User Input'!$B$14,Ranking!CB20=1),1,0) -> 0 | O20: =IF(AND('User Input'!$B$38='User Input'!$B$15,Ranking!CC20=1),1,0) -> 0 | P20: =IF(AND('User Input'!$C$38='User Input'!$C$13,DA20=1),1,0) -> 0 | Q20: =IF(AND('User Input'!$C$38='User Input'!$C$14,Ranking!DB20=1),1,0) -> 0 | R20: =IF(AND('User Input'!$C$38='User Input'!$C$15,Ranking!DC20=1),1,0) -> 0 | S20: =IF(AND('User Input'!$C$38='User Input'!$C$16,Ranking!DD20=1),1,0) -> 0 | T20: =IF(AND('User Input'!$C$38='User Input'!$C$17,Ranking!DE20=1),1,0) -> 0 | U20: =IF(AND('User Input'!$C$38='User Input'!$C$18,Ranking!DF20=1),1,0) -> 0 | V20: =IF('User Input'!$I$38='User Input'!$I$13,1,IF(AND('User Input'!$I$38='User Input'!$I32,Ranking!$BY20>0.8),1,IF(AND('User Input'!$I$38='User Input'!$I$15,Ranking!$BY20>0.9),1,IF(AND('User Input'!$I$38='User Input'!$D$16,Ranking!$BY20>0.95),1,0)))) -> 0 | W20: =IF('User Input'!$D$38='User Input'!$D$13,1,IF(AND('User Input'!$D$38='User Input'!$D$14,Ranking!$BZ20>0.8),1,IF(AND('User Input'!$D$38='User Input'!$D$15,Ranking!$BZ20>0.9),1,IF(AND('User Input'!$D$38='User Input'!$D$16,Ranking!$BZ20>0.95),1,0)))) -> 0 | X20: =IF(AND('User Input'!$E$38='User Input'!$E$13,Ranking!DF20=1),1,0) -> 0 | Y20: =IF(AND('User Input'!$F$58=TRUE,Ranking!DI20=1),1,IF(AND('User Input'!$F$58=FALSE,Ranking!DI20=0),1,0)) -> 0 | Z20: =IF(AND('User Input'!$F$59=TRUE,Ranking!DJ20=1),1,IF(AND('User Input'!$F$59=FALSE,Ranking!DJ20=0),1,0)) -> 1 | AA20: =IF(AND('User Input'!$F$60=TRUE,Ranking!DK20=1),1,IF(AND('User Input'!$F$60=FALSE,Ranking!DK20=0),1,0)) -> 1 | AB20: =IF(AND('User Input'!$F$61=TRUE,Ranking!DL20=1),1,IF(AND('User Input'!$F$61=FALSE,Ranking!DL20=0),1,0)) -> 0 | AC20: =IF(AND('User Input'!$F$62=TRUE,Ranking!DM20=1),1,IF(AND('User Input'!$F$62=FALSE,Ranking!DM20=0),1,0)) -> 0 | AD20: =IF(AND('User Input'!$F$63=TRUE,Ranking!DN20=1),1,IF(AND('User Input'!$F$63=FALSE,Ranking!DN20=0),1,0)) -> 0 | AE20: =IF(AND('User Input'!$F$64=TRUE,Ranking!DO20=1),1,IF(AND('User Input'!$F$64=FALSE,Ranking!DO20=0),1,0)) -> 0 | AF20: =IF(AND('User Input'!$F$65=TRUE,Ranking!DP20=1),1,IF(AND('User Input'!$F$65=FALSE,Ranking!DP20=0),1,0)) -> 0 | AG20: =IF(AND('User Input'!$F$66=TRUE,Ranking!DQ20=1),1,IF(AND('User Input'!$F$66=FALSE,Ranking!DQ20=0),1,0)) -> 0 | AH20: =IF(AND('User Input'!$F$67=TRUE,Ranking!DR20=1),1,IF(AND('User Input'!$F$67=FALSE,Ranking!DR20=0),1,0)) -> 0 | AI20: =IF(Ranking!CV20="Y",1,IF(AND('User Input'!$G$38='User Input'!$G$14,Ranking!CV20="N"),1,0)) -> 0 | AJ20: =IF(OR(Ranking!DG20="Y",'User Input'!$H$38='User Input'!$H$14),1,IF(AND('User Input'!$H$38='User Input'!$H$13,Ranking!DG20="Y"),1,0)) -> 0 | AK20: =IF(AND('User Input'!$B$52='User Input'!$B$23,Ranking!CL20<'User Input'!$A$23),1,0) -> 0 | AL20: =IF(AND('User Input'!$B$52='User Input'!$B$24,Ranking!CL20<'User Input'!$A$24),1,0) -> 0 | AM20: =IF(AND('User Input'!$B$52='User Input'!$B$25,Ranking!CL20<'User Input'!$A$25),1,0) -> 1 | AN20: =IF(AND('User Input'!$B$52='User Input'!$B$26,Ranking!CL20<'User Input'!$A$26),1,0) -> 0 | AO20: =IF('User Input'!$B$52='User Input'!$B$27,1,0) -> 0 | AP20: =IF(AND('User Input'!$C$52='User Input'!$C$23,CE20=1),1,0) -> 0 | AQ20: =IF(CD20=1,0,IF(AND('User Input'!$C$52='User Input'!$C$24,Ranking!CF20=1),1,0)) -> 0 | AR20: =IF(CE20=1,0,IF(AND('User Input'!$C$52='User Input'!$C$25,Ranking!CG20=1),1,0)) -> 0 | AS20: =IF(CF20=1,0,IF(AND('User Input'!$C$52='User Input'!$C$26,Ranking!CH20=1),1,0)) -> 0 | AT20: =IF(CG20=1,0,IF(AND('User Input'!$C$52='User Input'!$C$27,Ranking!CI20=1),1,0)) -> 0 | AU20: =IF(AND('User Input'!$D$52='User Input'!$D$23,Ranking!CJ20>5000),1,0) -> 0 | AV20: =IF('User Input'!$E$52='User Input'!$E$25,1,IF(AND('User Input'!$E$52='User Input'!$E$23,Ranking!CM20=1),1,IF(AND('User Input'!$E$52='User Input'!$E$24,Ranking!CM20=0),1,0))) -> 0 | AW20: =IF(AND('User Input'!$F$52='User Input'!$F$23,Ranking!DS20=1),1,0) -> 0 | AX20: =IF(AND('User Input'!$F$52='User Input'!$F$24,Ranking!DT20=1),1,0) -> 0 | AY20: =IF(AND('User Input'!$F$52='User Input'!$F$25,Ranking!DU20=1),1,0) -> 0 | AZ20: =IF('User Input'!$G$52='User Input'!$G$24,1,IF(AND('User Input'!$G$52='User Input'!$G$23,DH20="Y"),1,0)) -> 0 | BA20: =IF('User Input'!$H$52='User Input'!$H$23,1,IF(AND('User Input'!$H$52='User Input'!$H$24,Ranking!BK20<>"Video"),1,0)) -> 1 | BB20: =IF(AND('User Input'!$I$52='User Input'!$I$23,Ranking!DV20=1),1,0) -> 0 | BC20: =IF(AND('User Input'!$I$52='User Input'!$I$24,Ranking!DW20=1),1,0) -> 0 | BD20: =IF(AND('User Input'!$I$52='User Input'!$I$25,Ranking!DX20=1),1,0) -> 0 | BE20: =IF('User Input'!$J$52='User Input'!$J$23,1,IF(AND('User Input'!$J$52='User Input'!$J$24,Ranking!DY20=0),1,0)) -> 1 | BF20: =IF('User Input'!$K$52='User Input'!$K$24,1,IF(AND('User Input'!$K$52='User Input'!$K$23,Ranking!CO20=1),1,0)) -> 0 | BI20: Placeholder
A21: =IF(AND('User Input'!$D$35='User Input'!$D$6,Ranking!BN21=1),1,0) -> 0 | B21: =IF(AND('User Input'!$D$35='User Input'!$D$7,Ranking!BO21=1),1,0) -> 0 | C21: =IF(AND('User Input'!$D$35='User Input'!$D$8,Ranking!BP21=1),1,0) -> 0 | D21: =IF(AND('User Input'!$F$35='User Input'!$F$7,Ranking!BQ21=1),1,0) -> 0 | E21: =IF(AND('User Input'!$F$35='User Input'!$F$6,Ranking!BR21=1),1,0) -> 0 | F21: =IF(AND('User Input'!$F$35='User Input'!$F$8,Ranking!BS21=1),1,0) -> 0 | G21: =IF(AND('User Input'!$F$35='User Input'!$F$9,Ranking!BT21=1),1,0) -> 0 | H21: =IF(AND('User Input'!$F$35='User Input'!$F$10,Ranking!BU21=1),1,0) -> 0 | I21: =IF(BV21=0,1,IF(AND(BV21=1,'User Input'!$G$35='User Input'!$G$6),0,IF(AND(BV21=1,'User Input'!$G$35='User Input'!$G$7),1,0))) -> 1 | J21: =IF(BW21=0,1,IF(AND(BW21=1,'User Input'!$H$35='User Input'!$H$6),1,IF(AND(BW21=1,'User Input'!$H$35='User Input'!$H$7),0))) -> 1 | K21: =IF('User Input'!$I$35='User Input'!$I$6,1,IF(AND('User Input'!$I$35='User Input'!$I$7,Ranking!BX21=0),1,0)) -> 1 | L21: =IF('User Input'!$K$35='User Input'!$K$7,1,IF(AND(OR('User Input'!$K$35='User Input'!$K$6,'User Input'!$K$35='User Input'!$K$8),Ranking!$CZ21="Y"),1,0)) -> 0 | M21: =IF(AND('User Input'!$B$38='User Input'!$B$13,Ranking!CA21=1),1,0) -> 0 | N21: =IF(AND('User Input'!$B$38='User Input'!$B$14,Ranking!CB21=1),1,0) -> 0 | O21: =IF(AND('User Input'!$B$38='User Input'!$B$15,Ranking!CC21=1),1,0) -> 0 | P21: =IF(AND('User Input'!$C$38='User Input'!$C$13,DA21=1),1,0) -> 0 | Q21: =IF(AND('User Input'!$C$38='User Input'!$C$14,Ranking!DB21=1),1,0) -> 0 | R21: =IF(AND('User Input'!$C$38='User Input'!$C$15,Ranking!DC21=1),1,0) -> 0 | S21: =IF(AND('User Input'!$C$38='User Input'!$C$16,Ranking!DD21=1),1,0) -> 0 | T21: =IF(AND('User Input'!$C$38='User Input'!$C$17,Ranking!DE21=1),1,0) -> 0 | U21: =IF(AND('User Input'!$C$38='User Input'!$C$18,Ranking!DF21=1),1,0) -> 0 | V21: =IF('User Input'!$I$38='User Input'!$I$13,1,IF(AND('User Input'!$I$38='User Input'!$I33,Ranking!$BY21>0.8),1,IF(AND('User Input'!$I$38='User Input'!$I$15,Ranking!$BY21>0.9),1,IF(AND('User Input'!$I$38='User Input'!$D$16,Ranking!$BY21>0.95),1,0)))) -> 0 | W21: =IF('User Input'!$D$38='User Input'!$D$13,1,IF(AND('User Input'!$D$38='User Input'!$D$14,Ranking!$BZ21>0.8),1,IF(AND('User Input'!$D$38='User Input'!$D$15,Ranking!$BZ21>0.9),1,IF(AND('User Input'!$D$38='User Input'!$D$16,Ranking!$BZ21>0.95),1,0)))) -> 0 | X21: =IF(AND('User Input'!$E$38='User Input'!$E$13,Ranking!DF21=1),1,0) -> 0 | Y21: =IF(AND('User Input'!$F$58=TRUE,Ranking!DI21=1),1,IF(AND('User Input'!$F$58=FALSE,Ranking!DI21=0),1,0)) -> 0 | Z21: =IF(AND('User Input'!$F$59=TRUE,Ranking!DJ21=1),1,IF(AND('User Input'!$F$59=FALSE,Ranking!DJ21=0),1,0)) -> 1 | AA21: =IF(AND('User Input'!$F$60=TRUE,Ranking!DK21=1),1,IF(AND('User Input'!$F$60=FALSE,Ranking!DK21=0),1,0)) -> 1 | AB21: =IF(AND('User Input'!$F$61=TRUE,Ranking!DL21=1),1,IF(AND('User Input'!$F$61=FALSE,Ranking!DL21=0),1,0)) -> 0 | AC21: =IF(AND('User Input'!$F$62=TRUE,Ranking!DM21=1),1,IF(AND('User Input'!$F$62=FALSE,Ranking!DM21=0),1,0)) -> 0 | AD21: =IF(AND('User Input'!$F$63=TRUE,Ranking!DN21=1),1,IF(AND('User Input'!$F$63=FALSE,Ranking!DN21=0),1,0)) -> 0 | AE21: =IF(AND('User Input'!$F$64=TRUE,Ranking!DO21=1),1,IF(AND('User Input'!$F$64=FALSE,Ranking!DO21=0),1,0)) -> 0 | AF21: =IF(AND('User Input'!$F$65=TRUE,Ranking!DP21=1),1,IF(AND('User Input'!$F$65=FALSE,Ranking!DP21=0),1,0)) -> 0 | AG21: =IF(AND('User Input'!$F$66=TRUE,Ranking!DQ21=1),1,IF(AND('User Input'!$F$66=FALSE,Ranking!DQ21=0),1,0)) -> 0 | AH21: =IF(AND('User Input'!$F$67=TRUE,Ranking!DR21=1),1,IF(AND('User Input'!$F$67=FALSE,Ranking!DR21=0),1,0)) -> 0 | AI21: =IF(Ranking!CV21="Y",1,IF(AND('User Input'!$G$38='User Input'!$G$14,Ranking!CV21="N"),1,0)) -> 0 | AJ21: =IF(OR(Ranking!DG21="Y",'User Input'!$H$38='User Input'!$H$14),1,IF(AND('User Input'!$H$38='User Input'!$H$13,Ranking!DG21="Y"),1,0)) -> 0 | AK21: =IF(AND('User Input'!$B$52='User Input'!$B$23,Ranking!CL21<'User Input'!$A$23),1,0) -> 0 | AL21: =IF(AND('User Input'!$B$52='User Input'!$B$24,Ranking!CL21<'User Input'!$A$24),1,0) -> 0 | AM21: =IF(AND('User Input'!$B$52='User Input'!$B$25,Ranking!CL21<'User Input'!$A$25),1,0) -> 1 | AN21: =IF(AND('User Input'!$B$52='User Input'!$B$26,Ranking!CL21<'User Input'!$A$26),1,0) -> 0 | AO21: =IF('User Input'!$B$52='User Input'!$B$27,1,0) -> 0 | AP21: =IF(AND('User Input'!$C$52='User Input'!$C$23,CE21=1),1,0) -> 0 | AQ21: =IF(CD21=1,0,IF(AND('User Input'!$C$52='User Input'!$C$24,Ranking!CF21=1),1,0)) -> 0 | AR21: =IF(CE21=1,0,IF(AND('User Input'!$C$52='User Input'!$C$25,Ranking!CG21=1),1,0)) -> 0 | AS21: =IF(CF21=1,0,IF(AND('User Input'!$C$52='User Input'!$C$26,Ranking!CH21=1),1,0)) -> 0 | AT21: =IF(CG21=1,0,IF(AND('User Input'!$C$52='User Input'!$C$27,Ranking!CI21=1),1,0)) -> 0 | AU21: =IF(AND('User Input'!$D$52='User Input'!$D$23,Ranking!CJ21>5000),1,0) -> 0 | AV21: =IF('User Input'!$E$52='User Input'!$E$25,1,IF(AND('User Input'!$E$52='User Input'!$E$23,Ranking!CM21=1),1,IF(AND('User Input'!$E$52='User Input'!$E$24,Ranking!CM21=0),1,0))) -> 0 | AW21: =IF(AND('User Input'!$F$52='User Input'!$F$23,Ranking!DS21=1),1,0) -> 0 | AX21: =IF(AND('User Input'!$F$52='User Input'!$F$24,Ranking!DT21=1),1,0) -> 0 | AY21: =IF(AND('User Input'!$F$52='User Input'!$F$25,Ranking!DU21=1),1,0) -> 0 | AZ21: =IF('User Input'!$G$52='User Input'!$G$24,1,IF(AND('User Input'!$G$52='User Input'!$G$23,DH21="Y"),1,0)) -> 0 | BA21: =IF('User Input'!$H$52='User Input'!$H$23,1,IF(AND('User Input'!$H$52='User Input'!$H$24,Ranking!BK21<>"Video"),1,0)) -> 1 | BB21: =IF(AND('User Input'!$I$52='User Input'!$I$23,Ranking!DV21=1),1,0) -> 0 | BC21: =IF(AND('User Input'!$I$52='User Input'!$I$24,Ranking!DW21=1),1,0) -> 0 | BD21: =IF(AND('User Input'!$I$52='User Input'!$I$25,Ranking!DX21=1),1,0) -> 0 | BE21: =IF('User Input'!$J$52='User Input'!$J$23,1,IF(AND('User Input'!$J$52='User Input'!$J$24,Ranking!DY21=0),1,0)) -> 1 | BF21: =IF('User Input'!$K$52='User Input'!$K$24,1,IF(AND('User Input'!$K$52='User Input'!$K$23,Ranking!CO21=1),1,0)) -> 0 | BI21: Placeholder
A22: =IF(AND('User Input'!$D$35='User Input'!$D$6,Ranking!BN22=1),1,0) -> 0 | B22: =IF(AND('User Input'!$D$35='User Input'!$D$7,Ranking!BO22=1),1,0) -> 0 | C22: =IF(AND('User Input'!$D$35='User Input'!$D$8,Ranking!BP22=1),1,0) -> 0 | D22: =IF(AND('User Input'!$F$35='User Input'!$F$7,Ranking!BQ22=1),1,0) -> 0 | E22: =IF(AND('User Input'!$F$35='User Input'!$F$6,Ranking!BR22=1),1,0) -> 0 | F22: =IF(AND('User Input'!$F$35='User Input'!$F$8,Ranking!BS22=1),1,0) -> 0 | G22: =IF(AND('User Input'!$F$35='User Input'!$F$9,Ranking!BT22=1),1,0) -> 0 | H22: =IF(AND('User Input'!$F$35='User Input'!$F$10,Ranking!BU22=1),1,0) -> 0 | I22: =IF(BV22=0,1,IF(AND(BV22=1,'User Input'!$G$35='User Input'!$G$6),0,IF(AND(BV22=1,'User Input'!$G$35='User Input'!$G$7),1,0))) -> 1 | J22: =IF(BW22=0,1,IF(AND(BW22=1,'User Input'!$H$35='User Input'!$H$6),1,IF(AND(BW22=1,'User Input'!$H$35='User Input'!$H$7),0))) -> 1 | K22: =IF('User Input'!$I$35='User Input'!$I$6,1,IF(AND('User Input'!$I$35='User Input'!$I$7,Ranking!BX22=0),1,0)) -> 1 | L22: =IF('User Input'!$K$35='User Input'!$K$7,1,IF(AND(OR('User Input'!$K$35='User Input'!$K$6,'User Input'!$K$35='User Input'!$K$8),Ranking!$CZ22="Y"),1,0)) -> 0 | M22: =IF(AND('User Input'!$B$38='User Input'!$B$13,Ranking!CA22=1),1,0) -> 0 | N22: =IF(AND('User Input'!$B$38='User Input'!$B$14,Ranking!CB22=1),1,0) -> 0 | O22: =IF(AND('User Input'!$B$38='User Input'!$B$15,Ranking!CC22=1),1,0) -> 0 | P22: =IF(AND('User Input'!$C$38='User Input'!$C$13,DA22=1),1,0) -> 0 | Q22: =IF(AND('User Input'!$C$38='User Input'!$C$14,Ranking!DB22=1),1,0) -> 0 | R22: =IF(AND('User Input'!$C$38='User Input'!$C$15,Ranking!DC22=1),1,0) -> 0 | S22: =IF(AND('User Input'!$C$38='User Input'!$C$16,Ranking!DD22=1),1,0) -> 0 | T22: =IF(AND('User Input'!$C$38='User Input'!$C$17,Ranking!DE22=1),1,0) -> 0 | U22: =IF(AND('User Input'!$C$38='User Input'!$C$18,Ranking!DF22=1),1,0) -> 0 | V22: =IF('User Input'!$I$38='User Input'!$I$13,1,IF(AND('User Input'!$I$38='User Input'!$I34,Ranking!$BY22>0.8),1,IF(AND('User Input'!$I$38='User Input'!$I$15,Ranking!$BY22>0.9),1,IF(AND('User Input'!$I$38='User Input'!$D$16,Ranking!$BY22>0.95),1,0)))) -> 0 | W22: =IF('User Input'!$D$38='User Input'!$D$13,1,IF(AND('User Input'!$D$38='User Input'!$D$14,Ranking!$BZ22>0.8),1,IF(AND('User Input'!$D$38='User Input'!$D$15,Ranking!$BZ22>0.9),1,IF(AND('User Input'!$D$38='User Input'!$D$16,Ranking!$BZ22>0.95),1,0)))) -> 0 | X22: =IF(AND('User Input'!$E$38='User Input'!$E$13,Ranking!DF22=1),1,0) -> 0 | Y22: =IF(AND('User Input'!$F$58=TRUE,Ranking!DI22=1),1,IF(AND('User Input'!$F$58=FALSE,Ranking!DI22=0),1,0)) -> 0 | Z22: =IF(AND('User Input'!$F$59=TRUE,Ranking!DJ22=1),1,IF(AND('User Input'!$F$59=FALSE,Ranking!DJ22=0),1,0)) -> 1 | AA22: =IF(AND('User Input'!$F$60=TRUE,Ranking!DK22=1),1,IF(AND('User Input'!$F$60=FALSE,Ranking!DK22=0),1,0)) -> 1 | AB22: =IF(AND('User Input'!$F$61=TRUE,Ranking!DL22=1),1,IF(AND('User Input'!$F$61=FALSE,Ranking!DL22=0),1,0)) -> 0 | AC22: =IF(AND('User Input'!$F$62=TRUE,Ranking!DM22=1),1,IF(AND('User Input'!$F$62=FALSE,Ranking!DM22=0),1,0)) -> 0 | AD22: =IF(AND('User Input'!$F$63=TRUE,Ranking!DN22=1),1,IF(AND('User Input'!$F$63=FALSE,Ranking!DN22=0),1,0)) -> 0 | AE22: =IF(AND('User Input'!$F$64=TRUE,Ranking!DO22=1),1,IF(AND('User Input'!$F$64=FALSE,Ranking!DO22=0),1,0)) -> 0 | AF22: =IF(AND('User Input'!$F$65=TRUE,Ranking!DP22=1),1,IF(AND('User Input'!$F$65=FALSE,Ranking!DP22=0),1,0)) -> 0 | AG22: =IF(AND('User Input'!$F$66=TRUE,Ranking!DQ22=1),1,IF(AND('User Input'!$F$66=FALSE,Ranking!DQ22=0),1,0)) -> 0 | AH22: =IF(AND('User Input'!$F$67=TRUE,Ranking!DR22=1),1,IF(AND('User Input'!$F$67=FALSE,Ranking!DR22=0),1,0)) -> 0 | AI22: =IF(Ranking!CV22="Y",1,IF(AND('User Input'!$G$38='User Input'!$G$14,Ranking!CV22="N"),1,0)) -> 0 | AJ22: =IF(OR(Ranking!DG22="Y",'User Input'!$H$38='User Input'!$H$14),1,IF(AND('User Input'!$H$38='User Input'!$H$13,Ranking!DG22="Y"),1,0)) -> 0 | AK22: =IF(AND('User Input'!$B$52='User Input'!$B$23,Ranking!CL22<'User Input'!$A$23),1,0) -> 0 | AL22: =IF(AND('User Input'!$B$52='User Input'!$B$24,Ranking!CL22<'User Input'!$A$24),1,0) -> 0 | AM22: =IF(AND('User Input'!$B$52='User Input'!$B$25,Ranking!CL22<'User Input'!$A$25),1,0) -> 1 | AN22: =IF(AND('User Input'!$B$52='User Input'!$B$26,Ranking!CL22<'User Input'!$A$26),1,0) -> 0 | AO22: =IF('User Input'!$B$52='User Input'!$B$27,1,0) -> 0 | AP22: =IF(AND('User Input'!$C$52='User Input'!$C$23,CE22=1),1,0) -> 0 | AQ22: =IF(CD22=1,0,IF(AND('User Input'!$C$52='User Input'!$C$24,Ranking!CF22=1),1,0)) -> 0 | AR22: =IF(CE22=1,0,IF(AND('User Input'!$C$52='User Input'!$C$25,Ranking!CG22=1),1,0)) -> 0 | AS22: =IF(CF22=1,0,IF(AND('User Input'!$C$52='User Input'!$C$26,Ranking!CH22=1),1,0)) -> 0 | AT22: =IF(CG22=1,0,IF(AND('User Input'!$C$52='User Input'!$C$27,Ranking!CI22=1),1,0)) -> 0 | AU22: =IF(AND('User Input'!$D$52='User Input'!$D$23,Ranking!CJ22>5000),1,0) -> 0 | AV22: =IF('User Input'!$E$52='User Input'!$E$25,1,IF(AND('User Input'!$E$52='User Input'!$E$23,Ranking!CM22=1),1,IF(AND('User Input'!$E$52='User Input'!$E$24,Ranking!CM22=0),1,0))) -> 0 | AW22: =IF(AND('User Input'!$F$52='User Input'!$F$23,Ranking!DS22=1),1,0) -> 0 | AX22: =IF(AND('User Input'!$F$52='User Input'!$F$24,Ranking!DT22=1),1,0) -> 0 | AY22: =IF(AND('User Input'!$F$52='User Input'!$F$25,Ranking!DU22=1),1,0) -> 0 | AZ22: =IF('User Input'!$G$52='User Input'!$G$24,1,IF(AND('User Input'!$G$52='User Input'!$G$23,DH22="Y"),1,0)) -> 0 | BA22: =IF('User Input'!$H$52='User Input'!$H$23,1,IF(AND('User Input'!$H$52='User Input'!$H$24,Ranking!BK22<>"Video"),1,0)) -> 1 | BB22: =IF(AND('User Input'!$I$52='User Input'!$I$23,Ranking!DV22=1),1,0) -> 0 | BC22: =IF(AND('User Input'!$I$52='User Input'!$I$24,Ranking!DW22=1),1,0) -> 0 | BD22: =IF(AND('User Input'!$I$52='User Input'!$I$25,Ranking!DX22=1),1,0) -> 0 | BE22: =IF('User Input'!$J$52='User Input'!$J$23,1,IF(AND('User Input'!$J$52='User Input'!$J$24,Ranking!DY22=0),1,0)) -> 1 | BF22: =IF('User Input'!$K$52='User Input'!$K$24,1,IF(AND('User Input'!$K$52='User Input'!$K$23,Ranking!CO22=1),1,0)) -> 0 | BI22: Placeholder
A23: =IF(AND('User Input'!$D$35='User Input'!$D$6,Ranking!BN23=1),1,0) -> 0 | B23: =IF(AND('User Input'!$D$35='User Input'!$D$7,Ranking!BO23=1),1,0) -> 0 | C23: =IF(AND('User Input'!$D$35='User Input'!$D$8,Ranking!BP23=1),1,0) -> 0 | D23: =IF(AND('User Input'!$F$35='User Input'!$F$7,Ranking!BQ23=1),1,0) -> 0 | E23: =IF(AND('User Input'!$F$35='User Input'!$F$6,Ranking!BR23=1),1,0) -> 0 | F23: =IF(AND('User Input'!$F$35='User Input'!$F$8,Ranking!BS23=1),1,0) -> 0 | G23: =IF(AND('User Input'!$F$35='User Input'!$F$9,Ranking!BT23=1),1,0) -> 0 | H23: =IF(AND('User Input'!$F$35='User Input'!$F$10,Ranking!BU23=1),1,0) -> 0 | I23: =IF(BV23=0,1,IF(AND(BV23=1,'User Input'!$G$35='User Input'!$G$6),0,IF(AND(BV23=1,'User Input'!$G$35='User Input'!$G$7),1,0))) -> 1 | J23: =IF(BW23=0,1,IF(AND(BW23=1,'User Input'!$H$35='User Input'!$H$6),1,IF(AND(BW23=1,'User Input'!$H$35='User Input'!$H$7),0))) -> 1 | K23: =IF('User Input'!$I$35='User Input'!$I$6,1,IF(AND('User Input'!$I$35='User Input'!$I$7,Ranking!BX23=0),1,0)) -> 1 | L23: =IF('User Input'!$K$35='User Input'!$K$7,1,IF(AND(OR('User Input'!$K$35='User Input'!$K$6,'User Input'!$K$35='User Input'!$K$8),Ranking!$CZ23="Y"),1,0)) -> 0 | M23: =IF(AND('User Input'!$B$38='User Input'!$B$13,Ranking!CA23=1),1,0) -> 0 | N23: =IF(AND('User Input'!$B$38='User Input'!$B$14,Ranking!CB23=1),1,0) -> 0 | O23: =IF(AND('User Input'!$B$38='User Input'!$B$15,Ranking!CC23=1),1,0) -> 0 | P23: =IF(AND('User Input'!$C$38='User Input'!$C$13,DA23=1),1,0) -> 0 | Q23: =IF(AND('User Input'!$C$38='User Input'!$C$14,Ranking!DB23=1),1,0) -> 0 | R23: =IF(AND('User Input'!$C$38='User Input'!$C$15,Ranking!DC23=1),1,0) -> 0 | S23: =IF(AND('User Input'!$C$38='User Input'!$C$16,Ranking!DD23=1),1,0) -> 0 | T23: =IF(AND('User Input'!$C$38='User Input'!$C$17,Ranking!DE23=1),1,0) -> 0 | U23: =IF(AND('User Input'!$C$38='User Input'!$C$18,Ranking!DF23=1),1,0) -> 0 | V23: =IF('User Input'!$I$38='User Input'!$I$13,1,IF(AND('User Input'!$I$38='User Input'!$I35,Ranking!$BY23>0.8),1,IF(AND('User Input'!$I$38='User Input'!$I$15,Ranking!$BY23>0.9),1,IF(AND('User Input'!$I$38='User Input'!$D$16,Ranking!$BY23>0.95),1,0)))) -> 0 | W23: =IF('User Input'!$D$38='User Input'!$D$13,1,IF(AND('User Input'!$D$38='User Input'!$D$14,Ranking!$BZ23>0.8),1,IF(AND('User Input'!$D$38='User Input'!$D$15,Ranking!$BZ23>0.9),1,IF(AND('User Input'!$D$38='User Input'!$D$16,Ranking!$BZ23>0.95),1,0)))) -> 0 | X23: =IF(AND('User Input'!$E$38='User Input'!$E$13,Ranking!DF23=1),1,0) -> 0 | Y23: =IF(AND('User Input'!$F$58=TRUE,Ranking!DI23=1),1,IF(AND('User Input'!$F$58=FALSE,Ranking!DI23=0),1,0)) -> 0 | Z23: =IF(AND('User Input'!$F$59=TRUE,Ranking!DJ23=1),1,IF(AND('User Input'!$F$59=FALSE,Ranking!DJ23=0),1,0)) -> 1 | AA23: =IF(AND('User Input'!$F$60=TRUE,Ranking!DK23=1),1,IF(AND('User Input'!$F$60=FALSE,Ranking!DK23=0),1,0)) -> 1 | AB23: =IF(AND('User Input'!$F$61=TRUE,Ranking!DL23=1),1,IF(AND('User Input'!$F$61=FALSE,Ranking!DL23=0),1,0)) -> 0 | AC23: =IF(AND('User Input'!$F$62=TRUE,Ranking!DM23=1),1,IF(AND('User Input'!$F$62=FALSE,Ranking!DM23=0),1,0)) -> 0 | AD23: =IF(AND('User Input'!$F$63=TRUE,Ranking!DN23=1),1,IF(AND('User Input'!$F$63=FALSE,Ranking!DN23=0),1,0)) -> 0 | AE23: =IF(AND('User Input'!$F$64=TRUE,Ranking!DO23=1),1,IF(AND('User Input'!$F$64=FALSE,Ranking!DO23=0),1,0)) -> 0 | AF23: =IF(AND('User Input'!$F$65=TRUE,Ranking!DP23=1),1,IF(AND('User Input'!$F$65=FALSE,Ranking!DP23=0),1,0)) -> 0 | AG23: =IF(AND('User Input'!$F$66=TRUE,Ranking!DQ23=1),1,IF(AND('User Input'!$F$66=FALSE,Ranking!DQ23=0),1,0)) -> 0 | AH23: =IF(AND('User Input'!$F$67=TRUE,Ranking!DR23=1),1,IF(AND('User Input'!$F$67=FALSE,Ranking!DR23=0),1,0)) -> 0 | AI23: =IF(Ranking!CV23="Y",1,IF(AND('User Input'!$G$38='User Input'!$G$14,Ranking!CV23="N"),1,0)) -> 0 | AJ23: =IF(OR(Ranking!DG23="Y",'User Input'!$H$38='User Input'!$H$14),1,IF(AND('User Input'!$H$38='User Input'!$H$13,Ranking!DG23="Y"),1,0)) -> 0 | AK23: =IF(AND('User Input'!$B$52='User Input'!$B$23,Ranking!CL23<'User Input'!$A$23),1,0) -> 0 | AL23: =IF(AND('User Input'!$B$52='User Input'!$B$24,Ranking!CL23<'User Input'!$A$24),1,0) -> 0 | AM23: =IF(AND('User Input'!$B$52='User Input'!$B$25,Ranking!CL23<'User Input'!$A$25),1,0) -> 1 | AN23: =IF(AND('User Input'!$B$52='User Input'!$B$26,Ranking!CL23<'User Input'!$A$26),1,0) -> 0 | AO23: =IF('User Input'!$B$52='User Input'!$B$27,1,0) -> 0 | AP23: =IF(AND('User Input'!$C$52='User Input'!$C$23,CE23=1),1,0) -> 0 | AQ23: =IF(CD23=1,0,IF(AND('User Input'!$C$52='User Input'!$C$24,Ranking!CF23=1),1,0)) -> 0 | AR23: =IF(CE23=1,0,IF(AND('User Input'!$C$52='User Input'!$C$25,Ranking!CG23=1),1,0)) -> 0 | AS23: =IF(CF23=1,0,IF(AND('User Input'!$C$52='User Input'!$C$26,Ranking!CH23=1),1,0)) -> 0 | AT23: =IF(CG23=1,0,IF(AND('User Input'!$C$52='User Input'!$C$27,Ranking!CI23=1),1,0)) -> 0 | AU23: =IF(AND('User Input'!$D$52='User Input'!$D$23,Ranking!CJ23>5000),1,0) -> 0 | AV23: =IF('User Input'!$E$52='User Input'!$E$25,1,IF(AND('User Input'!$E$52='User Input'!$E$23,Ranking!CM23=1),1,IF(AND('User Input'!$E$52='User Input'!$E$24,Ranking!CM23=0),1,0))) -> 0 | AW23: =IF(AND('User Input'!$F$52='User Input'!$F$23,Ranking!DS23=1),1,0) -> 0 | AX23: =IF(AND('User Input'!$F$52='User Input'!$F$24,Ranking!DT23=1),1,0) -> 0 | AY23: =IF(AND('User Input'!$F$52='User Input'!$F$25,Ranking!DU23=1),1,0) -> 0 | AZ23: =IF('User Input'!$G$52='User Input'!$G$24,1,IF(AND('User Input'!$G$52='User Input'!$G$23,DH23="Y"),1,0)) -> 0 | BA23: =IF('User Input'!$H$52='User Input'!$H$23,1,IF(AND('User Input'!$H$52='User Input'!$H$24,Ranking!BK23<>"Video"),1,0)) -> 1 | BB23: =IF(AND('User Input'!$I$52='User Input'!$I$23,Ranking!DV23=1),1,0) -> 0 | BC23: =IF(AND('User Input'!$I$52='User Input'!$I$24,Ranking!DW23=1),1,0) -> 0 | BD23: =IF(AND('User Input'!$I$52='User Input'!$I$25,Ranking!DX23=1),1,0) -> 0 | BE23: =IF('User Input'!$J$52='User Input'!$J$23,1,IF(AND('User Input'!$J$52='User Input'!$J$24,Ranking!DY23=0),1,0)) -> 1 | BF23: =IF('User Input'!$K$52='User Input'!$K$24,1,IF(AND('User Input'!$K$52='User Input'!$K$23,Ranking!CO23=1),1,0)) -> 0 | BI23: Placeholder
A24: =IF(AND('User Input'!$D$35='User Input'!$D$6,Ranking!BN24=1),1,0) -> 0 | B24: =IF(AND('User Input'!$D$35='User Input'!$D$7,Ranking!BO24=1),1,0) -> 0 | C24: =IF(AND('User Input'!$D$35='User Input'!$D$8,Ranking!BP24=1),1,0) -> 0 | D24: =IF(AND('User Input'!$F$35='User Input'!$F$7,Ranking!BQ24=1),1,0) -> 0 | E24: =IF(AND('User Input'!$F$35='User Input'!$F$6,Ranking!BR24=1),1,0) -> 0 | F24: =IF(AND('User Input'!$F$35='User Input'!$F$8,Ranking!BS24=1),1,0) -> 0 | G24: =IF(AND('User Input'!$F$35='User Input'!$F$9,Ranking!BT24=1),1,0) -> 0 | H24: =IF(AND('User Input'!$F$35='User Input'!$F$10,Ranking!BU24=1),1,0) -> 0 | I24: =IF(BV24=0,1,IF(AND(BV24=1,'User Input'!$G$35='User Input'!$G$6),0,IF(AND(BV24=1,'User Input'!$G$35='User Input'!$G$7),1,0))) -> 1 | J24: =IF(BW24=0,1,IF(AND(BW24=1,'User Input'!$H$35='User Input'!$H$6),1,IF(AND(BW24=1,'User Input'!$H$35='User Input'!$H$7),0))) -> 1 | K24: =IF('User Input'!$I$35='User Input'!$I$6,1,IF(AND('User Input'!$I$35='User Input'!$I$7,Ranking!BX24=0),1,0)) -> 1 | L24: =IF('User Input'!$K$35='User Input'!$K$7,1,IF(AND(OR('User Input'!$K$35='User Input'!$K$6,'User Input'!$K$35='User Input'!$K$8),Ranking!$CZ24="Y"),1,0)) -> 0 | M24: =IF(AND('User Input'!$B$38='User Input'!$B$13,Ranking!CA24=1),1,0) -> 0 | N24: =IF(AND('User Input'!$B$38='User Input'!$B$14,Ranking!CB24=1),1,0) -> 0 | O24: =IF(AND('User Input'!$B$38='User Input'!$B$15,Ranking!CC24=1),1,0) -> 0 | P24: =IF(AND('User Input'!$C$38='User Input'!$C$13,DA24=1),1,0) -> 0 | Q24: =IF(AND('User Input'!$C$38='User Input'!$C$14,Ranking!DB24=1),1,0) -> 0 | R24: =IF(AND('User Input'!$C$38='User Input'!$C$15,Ranking!DC24=1),1,0) -> 0 | S24: =IF(AND('User Input'!$C$38='User Input'!$C$16,Ranking!DD24=1),1,0) -> 0 | T24: =IF(AND('User Input'!$C$38='User Input'!$C$17,Ranking!DE24=1),1,0) -> 0 | U24: =IF(AND('User Input'!$C$38='User Input'!$C$18,Ranking!DF24=1),1,0) -> 0 | V24: =IF('User Input'!$I$38='User Input'!$I$13,1,IF(AND('User Input'!$I$38='User Input'!$I36,Ranking!$BY24>0.8),1,IF(AND('User Input'!$I$38='User Input'!$I$15,Ranking!$BY24>0.9),1,IF(AND('User Input'!$I$38='User Input'!$D$16,Ranking!$BY24>0.95),1,0)))) -> 0 | W24: =IF('User Input'!$D$38='User Input'!$D$13,1,IF(AND('User Input'!$D$38='User Input'!$D$14,Ranking!$BZ24>0.8),1,IF(AND('User Input'!$D$38='User Input'!$D$15,Ranking!$BZ24>0.9),1,IF(AND('User Input'!$D$38='User Input'!$D$16,Ranking!$BZ24>0.95),1,0)))) -> 0 | X24: =IF(AND('User Input'!$E$38='User Input'!$E$13,Ranking!DF24=1),1,0) -> 0 | Y24: =IF(AND('User Input'!$F$58=TRUE,Ranking!DI24=1),1,IF(AND('User Input'!$F$58=FALSE,Ranking!DI24=0),1,0)) -> 0 | Z24: =IF(AND('User Input'!$F$59=TRUE,Ranking!DJ24=1),1,IF(AND('User Input'!$F$59=FALSE,Ranking!DJ24=0),1,0)) -> 1 | AA24: =IF(AND('User Input'!$F$60=TRUE,Ranking!DK24=1),1,IF(AND('User Input'!$F$60=FALSE,Ranking!DK24=0),1,0)) -> 1 | AB24: =IF(AND('User Input'!$F$61=TRUE,Ranking!DL24=1),1,IF(AND('User Input'!$F$61=FALSE,Ranking!DL24=0),1,0)) -> 0 | AC24: =IF(AND('User Input'!$F$62=TRUE,Ranking!DM24=1),1,IF(AND('User Input'!$F$62=FALSE,Ranking!DM24=0),1,0)) -> 0 | AD24: =IF(AND('User Input'!$F$63=TRUE,Ranking!DN24=1),1,IF(AND('User Input'!$F$63=FALSE,Ranking!DN24=0),1,0)) -> 0 | AE24: =IF(AND('User Input'!$F$64=TRUE,Ranking!DO24=1),1,IF(AND('User Input'!$F$64=FALSE,Ranking!DO24=0),1,0)) -> 0 | AF24: =IF(AND('User Input'!$F$65=TRUE,Ranking!DP24=1),1,IF(AND('User Input'!$F$65=FALSE,Ranking!DP24=0),1,0)) -> 0 | AG24: =IF(AND('User Input'!$F$66=TRUE,Ranking!DQ24=1),1,IF(AND('User Input'!$F$66=FALSE,Ranking!DQ24=0),1,0)) -> 0 | AH24: =IF(AND('User Input'!$F$67=TRUE,Ranking!DR24=1),1,IF(AND('User Input'!$F$67=FALSE,Ranking!DR24=0),1,0)) -> 0 | AI24: =IF(Ranking!CV24="Y",1,IF(AND('User Input'!$G$38='User Input'!$G$14,Ranking!CV24="N"),1,0)) -> 0 | AJ24: =IF(OR(Ranking!DG24="Y",'User Input'!$H$38='User Input'!$H$14),1,IF(AND('User Input'!$H$38='User Input'!$H$13,Ranking!DG24="Y"),1,0)) -> 0 | AK24: =IF(AND('User Input'!$B$52='User Input'!$B$23,Ranking!CL24<'User Input'!$A$23),1,0) -> 0 | AL24: =IF(AND('User Input'!$B$52='User Input'!$B$24,Ranking!CL24<'User Input'!$A$24),1,0) -> 0 | AM24: =IF(AND('User Input'!$B$52='User Input'!$B$25,Ranking!CL24<'User Input'!$A$25),1,0) -> 1 | AN24: =IF(AND('User Input'!$B$52='User Input'!$B$26,Ranking!CL24<'User Input'!$A$26),1,0) -> 0 | AO24: =IF('User Input'!$B$52='User Input'!$B$27,1,0) -> 0 | AP24: =IF(AND('User Input'!$C$52='User Input'!$C$23,CE24=1),1,0) -> 0 | AQ24: =IF(CD24=1,0,IF(AND('User Input'!$C$52='User Input'!$C$24,Ranking!CF24=1),1,0)) -> 0 | AR24: =IF(CE24=1,0,IF(AND('User Input'!$C$52='User Input'!$C$25,Ranking!CG24=1),1,0)) -> 0 | AS24: =IF(CF24=1,0,IF(AND('User Input'!$C$52='User Input'!$C$26,Ranking!CH24=1),1,0)) -> 0 | AT24: =IF(CG24=1,0,IF(AND('User Input'!$C$52='User Input'!$C$27,Ranking!CI24=1),1,0)) -> 0 | AU24: =IF(AND('User Input'!$D$52='User Input'!$D$23,Ranking!CJ24>5000),1,0) -> 0 | AV24: =IF('User Input'!$E$52='User Input'!$E$25,1,IF(AND('User Input'!$E$52='User Input'!$E$23,Ranking!CM24=1),1,IF(AND('User Input'!$E$52='User Input'!$E$24,Ranking!CM24=0),1,0))) -> 0 | AW24: =IF(AND('User Input'!$F$52='User Input'!$F$23,Ranking!DS24=1),1,0) -> 0 | AX24: =IF(AND('User Input'!$F$52='User Input'!$F$24,Ranking!DT24=1),1,0) -> 0 | AY24: =IF(AND('User Input'!$F$52='User Input'!$F$25,Ranking!DU24=1),1,0) -> 0 | AZ24: =IF('User Input'!$G$52='User Input'!$G$24,1,IF(AND('User Input'!$G$52='User Input'!$G$23,DH24="Y"),1,0)) -> 0 | BA24: =IF('User Input'!$H$52='User Input'!$H$23,1,IF(AND('User Input'!$H$52='User Input'!$H$24,Ranking!BK24<>"Video"),1,0)) -> 1 | BB24: =IF(AND('User Input'!$I$52='User Input'!$I$23,Ranking!DV24=1),1,0) -> 0 | BC24: =IF(AND('User Input'!$I$52='User Input'!$I$24,Ranking!DW24=1),1,0) -> 0 | BD24: =IF(AND('User Input'!$I$52='User Input'!$I$25,Ranking!DX24=1),1,0) -> 0 | BE24: =IF('User Input'!$J$52='User Input'!$J$23,1,IF(AND('User Input'!$J$52='User Input'!$J$24,Ranking!DY24=0),1,0)) -> 1 | BF24: =IF('User Input'!$K$52='User Input'!$K$24,1,IF(AND('User Input'!$K$52='User Input'!$K$23,Ranking!CO24=1),1,0)) -> 0 | BI24: Placeholder
A25: =IF(AND('User Input'!$D$35='User Input'!$D$6,Ranking!BN25=1),1,0) -> 0 | B25: =IF(AND('User Input'!$D$35='User Input'!$D$7,Ranking!BO25=1),1,0) -> 0 | C25: =IF(AND('User Input'!$D$35='User Input'!$D$8,Ranking!BP25=1),1,0) -> 0 | D25: =IF(AND('User Input'!$F$35='User Input'!$F$7,Ranking!BQ25=1),1,0) -> 0 | E25: =IF(AND('User Input'!$F$35='User Input'!$F$6,Ranking!BR25=1),1,0) -> 0 | F25: =IF(AND('User Input'!$F$35='User Input'!$F$8,Ranking!BS25=1),1,0) -> 0 | G25: =IF(AND('User Input'!$F$35='User Input'!$F$9,Ranking!BT25=1),1,0) -> 0 | H25: =IF(AND('User Input'!$F$35='User Input'!$F$10,Ranking!BU25=1),1,0) -> 0 | I25: =IF(BV25=0,1,IF(AND(BV25=1,'User Input'!$G$35='User Input'!$G$6),0,IF(AND(BV25=1,'User Input'!$G$35='User Input'!$G$7),1,0))) -> 1 | J25: =IF(BW25=0,1,IF(AND(BW25=1,'User Input'!$H$35='User Input'!$H$6),1,IF(AND(BW25=1,'User Input'!$H$35='User Input'!$H$7),0))) -> 1 | K25: =IF('User Input'!$I$35='User Input'!$I$6,1,IF(AND('User Input'!$I$35='User Input'!$I$7,Ranking!BX25=0),1,0)) -> 1 | L25: =IF('User Input'!$K$35='User Input'!$K$7,1,IF(AND(OR('User Input'!$K$35='User Input'!$K$6,'User Input'!$K$35='User Input'!$K$8),Ranking!$CZ25="Y"),1,0)) -> 0 | M25: =IF(AND('User Input'!$B$38='User Input'!$B$13,Ranking!CA25=1),1,0) -> 0 | N25: =IF(AND('User Input'!$B$38='User Input'!$B$14,Ranking!CB25=1),1,0) -> 0 | O25: =IF(AND('User Input'!$B$38='User Input'!$B$15,Ranking!CC25=1),1,0) -> 0 | P25: =IF(AND('User Input'!$C$38='User Input'!$C$13,DA25=1),1,0) -> 0 | Q25: =IF(AND('User Input'!$C$38='User Input'!$C$14,Ranking!DB25=1),1,0) -> 0 | R25: =IF(AND('User Input'!$C$38='User Input'!$C$15,Ranking!DC25=1),1,0) -> 0 | S25: =IF(AND('User Input'!$C$38='User Input'!$C$16,Ranking!DD25=1),1,0) -> 0 | T25: =IF(AND('User Input'!$C$38='User Input'!$C$17,Ranking!DE25=1),1,0) -> 0 | U25: =IF(AND('User Input'!$C$38='User Input'!$C$18,Ranking!DF25=1),1,0) -> 0 | V25: =IF('User Input'!$I$38='User Input'!$I$13,1,IF(AND('User Input'!$I$38='User Input'!$I37,Ranking!$BY25>0.8),1,IF(AND('User Input'!$I$38='User Input'!$I$15,Ranking!$BY25>0.9),1,IF(AND('User Input'!$I$38='User Input'!$D$16,Ranking!$BY25>0.95),1,0)))) -> 0 | W25: =IF('User Input'!$D$38='User Input'!$D$13,1,IF(AND('User Input'!$D$38='User Input'!$D$14,Ranking!$BZ25>0.8),1,IF(AND('User Input'!$D$38='User Input'!$D$15,Ranking!$BZ25>0.9),1,IF(AND('User Input'!$D$38='User Input'!$D$16,Ranking!$BZ25>0.95),1,0)))) -> 0 | X25: =IF(AND('User Input'!$E$38='User Input'!$E$13,Ranking!DF25=1),1,0) -> 0 | Y25: =IF(AND('User Input'!$F$58=TRUE,Ranking!DI25=1),1,IF(AND('User Input'!$F$58=FALSE,Ranking!DI25=0),1,0)) -> 0 | Z25: =IF(AND('User Input'!$F$59=TRUE,Ranking!DJ25=1),1,IF(AND('User Input'!$F$59=FALSE,Ranking!DJ25=0),1,0)) -> 1 | AA25: =IF(AND('User Input'!$F$60=TRUE,Ranking!DK25=1),1,IF(AND('User Input'!$F$60=FALSE,Ranking!DK25=0),1,0)) -> 1 | AB25: =IF(AND('User Input'!$F$61=TRUE,Ranking!DL25=1),1,IF(AND('User Input'!$F$61=FALSE,Ranking!DL25=0),1,0)) -> 0 | AC25: =IF(AND('User Input'!$F$62=TRUE,Ranking!DM25=1),1,IF(AND('User Input'!$F$62=FALSE,Ranking!DM25=0),1,0)) -> 0 | AD25: =IF(AND('User Input'!$F$63=TRUE,Ranking!DN25=1),1,IF(AND('User Input'!$F$63=FALSE,Ranking!DN25=0),1,0)) -> 0 | AE25: =IF(AND('User Input'!$F$64=TRUE,Ranking!DO25=1),1,IF(AND('User Input'!$F$64=FALSE,Ranking!DO25=0),1,0)) -> 0 | AF25: =IF(AND('User Input'!$F$65=TRUE,Ranking!DP25=1),1,IF(AND('User Input'!$F$65=FALSE,Ranking!DP25=0),1,0)) -> 0 | AG25: =IF(AND('User Input'!$F$66=TRUE,Ranking!DQ25=1),1,IF(AND('User Input'!$F$66=FALSE,Ranking!DQ25=0),1,0)) -> 0 | AH25: =IF(AND('User Input'!$F$67=TRUE,Ranking!DR25=1),1,IF(AND('User Input'!$F$67=FALSE,Ranking!DR25=0),1,0)) -> 0 | AI25: =IF(Ranking!CV25="Y",1,IF(AND('User Input'!$G$38='User Input'!$G$14,Ranking!CV25="N"),1,0)) -> 0 | AJ25: =IF(OR(Ranking!DG25="Y",'User Input'!$H$38='User Input'!$H$14),1,IF(AND('User Input'!$H$38='User Input'!$H$13,Ranking!DG25="Y"),1,0)) -> 0 | AK25: =IF(AND('User Input'!$B$52='User Input'!$B$23,Ranking!CL25<'User Input'!$A$23),1,0) -> 0 | AL25: =IF(AND('User Input'!$B$52='User Input'!$B$24,Ranking!CL25<'User Input'!$A$24),1,0) -> 0 | AM25: =IF(AND('User Input'!$B$52='User Input'!$B$25,Ranking!CL25<'User Input'!$A$25),1,0) -> 1 | AN25: =IF(AND('User Input'!$B$52='User Input'!$B$26,Ranking!CL25<'User Input'!$A$26),1,0) -> 0 | AO25: =IF('User Input'!$B$52='User Input'!$B$27,1,0) -> 0 | AP25: =IF(AND('User Input'!$C$52='User Input'!$C$23,CE25=1),1,0) -> 0 | AQ25: =IF(CD25=1,0,IF(AND('User Input'!$C$52='User Input'!$C$24,Ranking!CF25=1),1,0)) -> 0 | AR25: =IF(CE25=1,0,IF(AND('User Input'!$C$52='User Input'!$C$25,Ranking!CG25=1),1,0)) -> 0 | AS25: =IF(CF25=1,0,IF(AND('User Input'!$C$52='User Input'!$C$26,Ranking!CH25=1),1,0)) -> 0 | AT25: =IF(CG25=1,0,IF(AND('User Input'!$C$52='User Input'!$C$27,Ranking!CI25=1),1,0)) -> 0 | AU25: =IF(AND('User Input'!$D$52='User Input'!$D$23,Ranking!CJ25>5000),1,0) -> 0 | AV25: =IF('User Input'!$E$52='User Input'!$E$25,1,IF(AND('User Input'!$E$52='User Input'!$E$23,Ranking!CM25=1),1,IF(AND('User Input'!$E$52='User Input'!$E$24,Ranking!CM25=0),1,0))) -> 0 | AW25: =IF(AND('User Input'!$F$52='User Input'!$F$23,Ranking!DS25=1),1,0) -> 0 | AX25: =IF(AND('User Input'!$F$52='User Input'!$F$24,Ranking!DT25=1),1,0) -> 0 | AY25: =IF(AND('User Input'!$F$52='User Input'!$F$25,Ranking!DU25=1),1,0) -> 0 | AZ25: =IF('User Input'!$G$52='User Input'!$G$24,1,IF(AND('User Input'!$G$52='User Input'!$G$23,DH25="Y"),1,0)) -> 0 | BA25: =IF('User Input'!$H$52='User Input'!$H$23,1,IF(AND('User Input'!$H$52='User Input'!$H$24,Ranking!BK25<>"Video"),1,0)) -> 1 | BB25: =IF(AND('User Input'!$I$52='User Input'!$I$23,Ranking!DV25=1),1,0) -> 0 | BC25: =IF(AND('User Input'!$I$52='User Input'!$I$24,Ranking!DW25=1),1,0) -> 0 | BD25: =IF(AND('User Input'!$I$52='User Input'!$I$25,Ranking!DX25=1),1,0) -> 0 | BE25: =IF('User Input'!$J$52='User Input'!$J$23,1,IF(AND('User Input'!$J$52='User Input'!$J$24,Ranking!DY25=0),1,0)) -> 1 | BF25: =IF('User Input'!$K$52='User Input'!$K$24,1,IF(AND('User Input'!$K$52='User Input'!$K$23,Ranking!CO25=1),1,0)) -> 0 | BI25: Placeholder
A26: =IF(AND('User Input'!$D$35='User Input'!$D$6,Ranking!BN26=1),1,0) -> 0 | B26: =IF(AND('User Input'!$D$35='User Input'!$D$7,Ranking!BO26=1),1,0) -> 0 | C26: =IF(AND('User Input'!$D$35='User Input'!$D$8,Ranking!BP26=1),1,0) -> 0 | D26: =IF(AND('User Input'!$F$35='User Input'!$F$7,Ranking!BQ26=1),1,0) -> 0 | E26: =IF(AND('User Input'!$F$35='User Input'!$F$6,Ranking!BR26=1),1,0) -> 0 | F26: =IF(AND('User Input'!$F$35='User Input'!$F$8,Ranking!BS26=1),1,0) -> 0 | G26: =IF(AND('User Input'!$F$35='User Input'!$F$9,Ranking!BT26=1),1,0) -> 0 | H26: =IF(AND('User Input'!$F$35='User Input'!$F$10,Ranking!BU26=1),1,0) -> 0 | I26: =IF(BV26=0,1,IF(AND(BV26=1,'User Input'!$G$35='User Input'!$G$6),0,IF(AND(BV26=1,'User Input'!$G$35='User Input'!$G$7),1,0))) -> 1 | J26: =IF(BW26=0,1,IF(AND(BW26=1,'User Input'!$H$35='User Input'!$H$6),1,IF(AND(BW26=1,'User Input'!$H$35='User Input'!$H$7),0))) -> 1 | K26: =IF('User Input'!$I$35='User Input'!$I$6,1,IF(AND('User Input'!$I$35='User Input'!$I$7,Ranking!BX26=0),1,0)) -> 1 | L26: =IF('User Input'!$K$35='User Input'!$K$7,1,IF(AND(OR('User Input'!$K$35='User Input'!$K$6,'User Input'!$K$35='User Input'!$K$8),Ranking!$CZ26="Y"),1,0)) -> 0 | M26: =IF(AND('User Input'!$B$38='User Input'!$B$13,Ranking!CA26=1),1,0) -> 0 | N26: =IF(AND('User Input'!$B$38='User Input'!$B$14,Ranking!CB26=1),1,0) -> 0 | O26: =IF(AND('User Input'!$B$38='User Input'!$B$15,Ranking!CC26=1),1,0) -> 0 | P26: =IF(AND('User Input'!$C$38='User Input'!$C$13,DA26=1),1,0) -> 0 | Q26: =IF(AND('User Input'!$C$38='User Input'!$C$14,Ranking!DB26=1),1,0) -> 0 | R26: =IF(AND('User Input'!$C$38='User Input'!$C$15,Ranking!DC26=1),1,0) -> 0 | S26: =IF(AND('User Input'!$C$38='User Input'!$C$16,Ranking!DD26=1),1,0) -> 0 | T26: =IF(AND('User Input'!$C$38='User Input'!$C$17,Ranking!DE26=1),1,0) -> 0 | U26: =IF(AND('User Input'!$C$38='User Input'!$C$18,Ranking!DF26=1),1,0) -> 0 | V26: =IF('User Input'!$I$38='User Input'!$I$13,1,IF(AND('User Input'!$I$38='User Input'!$I38,Ranking!$BY26>0.8),1,IF(AND('User Input'!$I$38='User Input'!$I$15,Ranking!$BY26>0.9),1,IF(AND('User Input'!$I$38='User Input'!$D$16,Ranking!$BY26>0.95),1,0)))) -> 0 | W26: =IF('User Input'!$D$38='User Input'!$D$13,1,IF(AND('User Input'!$D$38='User Input'!$D$14,Ranking!$BZ26>0.8),1,IF(AND('User Input'!$D$38='User Input'!$D$15,Ranking!$BZ26>0.9),1,IF(AND('User Input'!$D$38='User Input'!$D$16,Ranking!$BZ26>0.95),1,0)))) -> 0 | X26: =IF(AND('User Input'!$E$38='User Input'!$E$13,Ranking!DF26=1),1,0) -> 0 | Y26: =IF(AND('User Input'!$F$58=TRUE,Ranking!DI26=1),1,IF(AND('User Input'!$F$58=FALSE,Ranking!DI26=0),1,0)) -> 0 | Z26: =IF(AND('User Input'!$F$59=TRUE,Ranking!DJ26=1),1,IF(AND('User Input'!$F$59=FALSE,Ranking!DJ26=0),1,0)) -> 1 | AA26: =IF(AND('User Input'!$F$60=TRUE,Ranking!DK26=1),1,IF(AND('User Input'!$F$60=FALSE,Ranking!DK26=0),1,0)) -> 1 | AB26: =IF(AND('User Input'!$F$61=TRUE,Ranking!DL26=1),1,IF(AND('User Input'!$F$61=FALSE,Ranking!DL26=0),1,0)) -> 0 | AC26: =IF(AND('User Input'!$F$62=TRUE,Ranking!DM26=1),1,IF(AND('User Input'!$F$62=FALSE,Ranking!DM26=0),1,0)) -> 0 | AD26: =IF(AND('User Input'!$F$63=TRUE,Ranking!DN26=1),1,IF(AND('User Input'!$F$63=FALSE,Ranking!DN26=0),1,0)) -> 0 | AE26: =IF(AND('User Input'!$F$64=TRUE,Ranking!DO26=1),1,IF(AND('User Input'!$F$64=FALSE,Ranking!DO26=0),1,0)) -> 0 | AF26: =IF(AND('User Input'!$F$65=TRUE,Ranking!DP26=1),1,IF(AND('User Input'!$F$65=FALSE,Ranking!DP26=0),1,0)) -> 0 | AG26: =IF(AND('User Input'!$F$66=TRUE,Ranking!DQ26=1),1,IF(AND('User Input'!$F$66=FALSE,Ranking!DQ26=0),1,0)) -> 0 | AH26: =IF(AND('User Input'!$F$67=TRUE,Ranking!DR26=1),1,IF(AND('User Input'!$F$67=FALSE,Ranking!DR26=0),1,0)) -> 0 | AI26: =IF(Ranking!CV26="Y",1,IF(AND('User Input'!$G$38='User Input'!$G$14,Ranking!CV26="N"),1,0)) -> 0 | AJ26: =IF(OR(Ranking!DG26="Y",'User Input'!$H$38='User Input'!$H$14),1,IF(AND('User Input'!$H$38='User Input'!$H$13,Ranking!DG26="Y"),1,0)) -> 0 | AK26: =IF(AND('User Input'!$B$52='User Input'!$B$23,Ranking!CL26<'User Input'!$A$23),1,0) -> 0 | AL26: =IF(AND('User Input'!$B$52='User Input'!$B$24,Ranking!CL26<'User Input'!$A$24),1,0) -> 0 | AM26: =IF(AND('User Input'!$B$52='User Input'!$B$25,Ranking!CL26<'User Input'!$A$25),1,0) -> 1 | AN26: =IF(AND('User Input'!$B$52='User Input'!$B$26,Ranking!CL26<'User Input'!$A$26),1,0) -> 0 | AO26: =IF('User Input'!$B$52='User Input'!$B$27,1,0) -> 0 | AP26: =IF(AND('User Input'!$C$52='User Input'!$C$23,CE26=1),1,0) -> 0 | AQ26: =IF(CD26=1,0,IF(AND('User Input'!$C$52='User Input'!$C$24,Ranking!CF26=1),1,0)) -> 0 | AR26: =IF(CE26=1,0,IF(AND('User Input'!$C$52='User Input'!$C$25,Ranking!CG26=1),1,0)) -> 0 | AS26: =IF(CF26=1,0,IF(AND('User Input'!$C$52='User Input'!$C$26,Ranking!CH26=1),1,0)) -> 0 | AT26: =IF(CG26=1,0,IF(AND('User Input'!$C$52='User Input'!$C$27,Ranking!CI26=1),1,0)) -> 0 | AU26: =IF(AND('User Input'!$D$52='User Input'!$D$23,Ranking!CJ26>5000),1,0) -> 0 | AV26: =IF('User Input'!$E$52='User Input'!$E$25,1,IF(AND('User Input'!$E$52='User Input'!$E$23,Ranking!CM26=1),1,IF(AND('User Input'!$E$52='User Input'!$E$24,Ranking!CM26=0),1,0))) -> 0 | AW26: =IF(AND('User Input'!$F$52='User Input'!$F$23,Ranking!DS26=1),1,0) -> 0 | AX26: =IF(AND('User Input'!$F$52='User Input'!$F$24,Ranking!DT26=1),1,0) -> 0 | AY26: =IF(AND('User Input'!$F$52='User Input'!$F$25,Ranking!DU26=1),1,0) -> 0 | AZ26: =IF('User Input'!$G$52='User Input'!$G$24,1,IF(AND('User Input'!$G$52='User Input'!$G$23,DH26="Y"),1,0)) -> 0 | BA26: =IF('User Input'!$H$52='User Input'!$H$23,1,IF(AND('User Input'!$H$52='User Input'!$H$24,Ranking!BK26<>"Video"),1,0)) -> 1 | BB26: =IF(AND('User Input'!$I$52='User Input'!$I$23,Ranking!DV26=1),1,0) -> 0 | BC26: =IF(AND('User Input'!$I$52='User Input'!$I$24,Ranking!DW26=1),1,0) -> 0 | BD26: =IF(AND('User Input'!$I$52='User Input'!$I$25,Ranking!DX26=1),1,0) -> 0 | BE26: =IF('User Input'!$J$52='User Input'!$J$23,1,IF(AND('User Input'!$J$52='User Input'!$J$24,Ranking!DY26=0),1,0)) -> 1 | BF26: =IF('User Input'!$K$52='User Input'!$K$24,1,IF(AND('User Input'!$K$52='User Input'!$K$23,Ranking!CO26=1),1,0)) -> 0 | BI26: Placeholder
A27: =IF(AND('User Input'!$D$35='User Input'!$D$6,Ranking!BN27=1),1,0) -> 0 | B27: =IF(AND('User Input'!$D$35='User Input'!$D$7,Ranking!BO27=1),1,0) -> 0 | C27: =IF(AND('User Input'!$D$35='User Input'!$D$8,Ranking!BP27=1),1,0) -> 0 | D27: =IF(AND('User Input'!$F$35='User Input'!$F$7,Ranking!BQ27=1),1,0) -> 0 | E27: =IF(AND('User Input'!$F$35='User Input'!$F$6,Ranking!BR27=1),1,0) -> 0 | F27: =IF(AND('User Input'!$F$35='User Input'!$F$8,Ranking!BS27=1),1,0) -> 0 | G27: =IF(AND('User Input'!$F$35='User Input'!$F$9,Ranking!BT27=1),1,0) -> 0 | H27: =IF(AND('User Input'!$F$35='User Input'!$F$10,Ranking!BU27=1),1,0) -> 0 | I27: =IF(BV27=0,1,IF(AND(BV27=1,'User Input'!$G$35='User Input'!$G$6),0,IF(AND(BV27=1,'User Input'!$G$35='User Input'!$G$7),1,0))) -> 1 | J27: =IF(BW27=0,1,IF(AND(BW27=1,'User Input'!$H$35='User Input'!$H$6),1,IF(AND(BW27=1,'User Input'!$H$35='User Input'!$H$7),0))) -> 1 | K27: =IF('User Input'!$I$35='User Input'!$I$6,1,IF(AND('User Input'!$I$35='User Input'!$I$7,Ranking!BX27=0),1,0)) -> 1 | L27: =IF('User Input'!$K$35='User Input'!$K$7,1,IF(AND(OR('User Input'!$K$35='User Input'!$K$6,'User Input'!$K$35='User Input'!$K$8),Ranking!$CZ27="Y"),1,0)) -> 0 | M27: =IF(AND('User Input'!$B$38='User Input'!$B$13,Ranking!CA27=1),1,0) -> 0 | N27: =IF(AND('User Input'!$B$38='User Input'!$B$14,Ranking!CB27=1),1,0) -> 0 | O27: =IF(AND('User Input'!$B$38='User Input'!$B$15,Ranking!CC27=1),1,0) -> 0 | P27: =IF(AND('User Input'!$C$38='User Input'!$C$13,DA27=1),1,0) -> 0 | Q27: =IF(AND('User Input'!$C$38='User Input'!$C$14,Ranking!DB27=1),1,0) -> 0 | R27: =IF(AND('User Input'!$C$38='User Input'!$C$15,Ranking!DC27=1),1,0) -> 0 | S27: =IF(AND('User Input'!$C$38='User Input'!$C$16,Ranking!DD27=1),1,0) -> 0 | T27: =IF(AND('User Input'!$C$38='User Input'!$C$17,Ranking!DE27=1),1,0) -> 0 | U27: =IF(AND('User Input'!$C$38='User Input'!$C$18,Ranking!DF27=1),1,0) -> 0 | V27: =IF('User Input'!$I$38='User Input'!$I$13,1,IF(AND('User Input'!$I$38='User Input'!$I39,Ranking!$BY27>0.8),1,IF(AND('User Input'!$I$38='User Input'!$I$15,Ranking!$BY27>0.9),1,IF(AND('User Input'!$I$38='User Input'!$D$16,Ranking!$BY27>0.95),1,0)))) -> 0 | W27: =IF('User Input'!$D$38='User Input'!$D$13,1,IF(AND('User Input'!$D$38='User Input'!$D$14,Ranking!$BZ27>0.8),1,IF(AND('User Input'!$D$38='User Input'!$D$15,Ranking!$BZ27>0.9),1,IF(AND('User Input'!$D$38='User Input'!$D$16,Ranking!$BZ27>0.95),1,0)))) -> 0 | X27: =IF(AND('User Input'!$E$38='User Input'!$E$13,Ranking!DF27=1),1,0) -> 0 | Y27: =IF(AND('User Input'!$F$58=TRUE,Ranking!DI27=1),1,IF(AND('User Input'!$F$58=FALSE,Ranking!DI27=0),1,0)) -> 0 | Z27: =IF(AND('User Input'!$F$59=TRUE,Ranking!DJ27=1),1,IF(AND('User Input'!$F$59=FALSE,Ranking!DJ27=0),1,0)) -> 1 | AA27: =IF(AND('User Input'!$F$60=TRUE,Ranking!DK27=1),1,IF(AND('User Input'!$F$60=FALSE,Ranking!DK27=0),1,0)) -> 1 | AB27: =IF(AND('User Input'!$F$61=TRUE,Ranking!DL27=1),1,IF(AND('User Input'!$F$61=FALSE,Ranking!DL27=0),1,0)) -> 0 | AC27: =IF(AND('User Input'!$F$62=TRUE,Ranking!DM27=1),1,IF(AND('User Input'!$F$62=FALSE,Ranking!DM27=0),1,0)) -> 0 | AD27: =IF(AND('User Input'!$F$63=TRUE,Ranking!DN27=1),1,IF(AND('User Input'!$F$63=FALSE,Ranking!DN27=0),1,0)) -> 0 | AE27: =IF(AND('User Input'!$F$64=TRUE,Ranking!DO27=1),1,IF(AND('User Input'!$F$64=FALSE,Ranking!DO27=0),1,0)) -> 0 | AF27: =IF(AND('User Input'!$F$65=TRUE,Ranking!DP27=1),1,IF(AND('User Input'!$F$65=FALSE,Ranking!DP27=0),1,0)) -> 0 | AG27: =IF(AND('User Input'!$F$66=TRUE,Ranking!DQ27=1),1,IF(AND('User Input'!$F$66=FALSE,Ranking!DQ27=0),1,0)) -> 0 | AH27: =IF(AND('User Input'!$F$67=TRUE,Ranking!DR27=1),1,IF(AND('User Input'!$F$67=FALSE,Ranking!DR27=0),1,0)) -> 0 | AI27: =IF(Ranking!CV27="Y",1,IF(AND('User Input'!$G$38='User Input'!$G$14,Ranking!CV27="N"),1,0)) -> 0 | AJ27: =IF(OR(Ranking!DG27="Y",'User Input'!$H$38='User Input'!$H$14),1,IF(AND('User Input'!$H$38='User Input'!$H$13,Ranking!DG27="Y"),1,0)) -> 0 | AK27: =IF(AND('User Input'!$B$52='User Input'!$B$23,Ranking!CL27<'User Input'!$A$23),1,0) -> 0 | AL27: =IF(AND('User Input'!$B$52='User Input'!$B$24,Ranking!CL27<'User Input'!$A$24),1,0) -> 0 | AM27: =IF(AND('User Input'!$B$52='User Input'!$B$25,Ranking!CL27<'User Input'!$A$25),1,0) -> 1 | AN27: =IF(AND('User Input'!$B$52='User Input'!$B$26,Ranking!CL27<'User Input'!$A$26),1,0) -> 0 | AO27: =IF('User Input'!$B$52='User Input'!$B$27,1,0) -> 0 | AP27: =IF(AND('User Input'!$C$52='User Input'!$C$23,CE27=1),1,0) -> 0 | AQ27: =IF(CD27=1,0,IF(AND('User Input'!$C$52='User Input'!$C$24,Ranking!CF27=1),1,0)) -> 0 | AR27: =IF(CE27=1,0,IF(AND('User Input'!$C$52='User Input'!$C$25,Ranking!CG27=1),1,0)) -> 0 | AS27: =IF(CF27=1,0,IF(AND('User Input'!$C$52='User Input'!$C$26,Ranking!CH27=1),1,0)) -> 0 | AT27: =IF(CG27=1,0,IF(AND('User Input'!$C$52='User Input'!$C$27,Ranking!CI27=1),1,0)) -> 0 | AU27: =IF(AND('User Input'!$D$52='User Input'!$D$23,Ranking!CJ27>5000),1,0) -> 0 | AV27: =IF('User Input'!$E$52='User Input'!$E$25,1,IF(AND('User Input'!$E$52='User Input'!$E$23,Ranking!CM27=1),1,IF(AND('User Input'!$E$52='User Input'!$E$24,Ranking!CM27=0),1,0))) -> 0 | AW27: =IF(AND('User Input'!$F$52='User Input'!$F$23,Ranking!DS27=1),1,0) -> 0 | AX27: =IF(AND('User Input'!$F$52='User Input'!$F$24,Ranking!DT27=1),1,0) -> 0 | AY27: =IF(AND('User Input'!$F$52='User Input'!$F$25,Ranking!DU27=1),1,0) -> 0 | AZ27: =IF('User Input'!$G$52='User Input'!$G$24,1,IF(AND('User Input'!$G$52='User Input'!$G$23,DH27="Y"),1,0)) -> 0 | BA27: =IF('User Input'!$H$52='User Input'!$H$23,1,IF(AND('User Input'!$H$52='User Input'!$H$24,Ranking!BK27<>"Video"),1,0)) -> 1 | BB27: =IF(AND('User Input'!$I$52='User Input'!$I$23,Ranking!DV27=1),1,0) -> 0 | BC27: =IF(AND('User Input'!$I$52='User Input'!$I$24,Ranking!DW27=1),1,0) -> 0 | BD27: =IF(AND('User Input'!$I$52='User Input'!$I$25,Ranking!DX27=1),1,0) -> 0 | BE27: =IF('User Input'!$J$52='User Input'!$J$23,1,IF(AND('User Input'!$J$52='User Input'!$J$24,Ranking!DY27=0),1,0)) -> 1 | BF27: =IF('User Input'!$K$52='User Input'!$K$24,1,IF(AND('User Input'!$K$52='User Input'!$K$23,Ranking!CO27=1),1,0)) -> 0 | BI27: Placeholder
A28: =IF(AND('User Input'!$D$35='User Input'!$D$6,Ranking!BN28=1),1,0) -> 0 | B28: =IF(AND('User Input'!$D$35='User Input'!$D$7,Ranking!BO28=1),1,0) -> 0 | C28: =IF(AND('User Input'!$D$35='User Input'!$D$8,Ranking!BP28=1),1,0) -> 0 | D28: =IF(AND('User Input'!$F$35='User Input'!$F$7,Ranking!BQ28=1),1,0) -> 0 | E28: =IF(AND('User Input'!$F$35='User Input'!$F$6,Ranking!BR28=1),1,0) -> 0 | F28: =IF(AND('User Input'!$F$35='User Input'!$F$8,Ranking!BS28=1),1,0) -> 0 | G28: =IF(AND('User Input'!$F$35='User Input'!$F$9,Ranking!BT28=1),1,0) -> 0 | H28: =IF(AND('User Input'!$F$35='User Input'!$F$10,Ranking!BU28=1),1,0) -> 0 | I28: =IF(BV28=0,1,IF(AND(BV28=1,'User Input'!$G$35='User Input'!$G$6),0,IF(AND(BV28=1,'User Input'!$G$35='User Input'!$G$7),1,0))) -> 1 | J28: =IF(BW28=0,1,IF(AND(BW28=1,'User Input'!$H$35='User Input'!$H$6),1,IF(AND(BW28=1,'User Input'!$H$35='User Input'!$H$7),0))) -> 1 | K28: =IF('User Input'!$I$35='User Input'!$I$6,1,IF(AND('User Input'!$I$35='User Input'!$I$7,Ranking!BX28=0),1,0)) -> 1 | L28: =IF('User Input'!$K$35='User Input'!$K$7,1,IF(AND(OR('User Input'!$K$35='User Input'!$K$6,'User Input'!$K$35='User Input'!$K$8),Ranking!$CZ28="Y"),1,0)) -> 0 | M28: =IF(AND('User Input'!$B$38='User Input'!$B$13,Ranking!CA28=1),1,0) -> 0 | N28: =IF(AND('User Input'!$B$38='User Input'!$B$14,Ranking!CB28=1),1,0) -> 0 | O28: =IF(AND('User Input'!$B$38='User Input'!$B$15,Ranking!CC28=1),1,0) -> 0 | P28: =IF(AND('User Input'!$C$38='User Input'!$C$13,DA28=1),1,0) -> 0 | Q28: =IF(AND('User Input'!$C$38='User Input'!$C$14,Ranking!DB28=1),1,0) -> 0 | R28: =IF(AND('User Input'!$C$38='User Input'!$C$15,Ranking!DC28=1),1,0) -> 0 | S28: =IF(AND('User Input'!$C$38='User Input'!$C$16,Ranking!DD28=1),1,0) -> 0 | T28: =IF(AND('User Input'!$C$38='User Input'!$C$17,Ranking!DE28=1),1,0) -> 0 | U28: =IF(AND('User Input'!$C$38='User Input'!$C$18,Ranking!DF28=1),1,0) -> 0 | V28: =IF('User Input'!$I$38='User Input'!$I$13,1,IF(AND('User Input'!$I$38='User Input'!$I40,Ranking!$BY28>0.8),1,IF(AND('User Input'!$I$38='User Input'!$I$15,Ranking!$BY28>0.9),1,IF(AND('User Input'!$I$38='User Input'!$D$16,Ranking!$BY28>0.95),1,0)))) -> 0 | W28: =IF('User Input'!$D$38='User Input'!$D$13,1,IF(AND('User Input'!$D$38='User Input'!$D$14,Ranking!$BZ28>0.8),1,IF(AND('User Input'!$D$38='User Input'!$D$15,Ranking!$BZ28>0.9),1,IF(AND('User Input'!$D$38='User Input'!$D$16,Ranking!$BZ28>0.95),1,0)))) -> 0 | X28: =IF(AND('User Input'!$E$38='User Input'!$E$13,Ranking!DF28=1),1,0) -> 0 | Y28: =IF(AND('User Input'!$F$58=TRUE,Ranking!DI28=1),1,IF(AND('User Input'!$F$58=FALSE,Ranking!DI28=0),1,0)) -> 0 | Z28: =IF(AND('User Input'!$F$59=TRUE,Ranking!DJ28=1),1,IF(AND('User Input'!$F$59=FALSE,Ranking!DJ28=0),1,0)) -> 1 | AA28: =IF(AND('User Input'!$F$60=TRUE,Ranking!DK28=1),1,IF(AND('User Input'!$F$60=FALSE,Ranking!DK28=0),1,0)) -> 1 | AB28: =IF(AND('User Input'!$F$61=TRUE,Ranking!DL28=1),1,IF(AND('User Input'!$F$61=FALSE,Ranking!DL28=0),1,0)) -> 0 | AC28: =IF(AND('User Input'!$F$62=TRUE,Ranking!DM28=1),1,IF(AND('User Input'!$F$62=FALSE,Ranking!DM28=0),1,0)) -> 0 | AD28: =IF(AND('User Input'!$F$63=TRUE,Ranking!DN28=1),1,IF(AND('User Input'!$F$63=FALSE,Ranking!DN28=0),1,0)) -> 0 | AE28: =IF(AND('User Input'!$F$64=TRUE,Ranking!DO28=1),1,IF(AND('User Input'!$F$64=FALSE,Ranking!DO28=0),1,0)) -> 0 | AF28: =IF(AND('User Input'!$F$65=TRUE,Ranking!DP28=1),1,IF(AND('User Input'!$F$65=FALSE,Ranking!DP28=0),1,0)) -> 0 | AG28: =IF(AND('User Input'!$F$66=TRUE,Ranking!DQ28=1),1,IF(AND('User Input'!$F$66=FALSE,Ranking!DQ28=0),1,0)) -> 0 | AH28: =IF(AND('User Input'!$F$67=TRUE,Ranking!DR28=1),1,IF(AND('User Input'!$F$67=FALSE,Ranking!DR28=0),1,0)) -> 0 | AI28: =IF(Ranking!CV28="Y",1,IF(AND('User Input'!$G$38='User Input'!$G$14,Ranking!CV28="N"),1,0)) -> 0 | AJ28: =IF(OR(Ranking!DG28="Y",'User Input'!$H$38='User Input'!$H$14),1,IF(AND('User Input'!$H$38='User Input'!$H$13,Ranking!DG28="Y"),1,0)) -> 0 | AK28: =IF(AND('User Input'!$B$52='User Input'!$B$23,Ranking!CL28<'User Input'!$A$23),1,0) -> 0 | AL28: =IF(AND('User Input'!$B$52='User Input'!$B$24,Ranking!CL28<'User Input'!$A$24),1,0) -> 0 | AM28: =IF(AND('User Input'!$B$52='User Input'!$B$25,Ranking!CL28<'User Input'!$A$25),1,0) -> 1 | AN28: =IF(AND('User Input'!$B$52='User Input'!$B$26,Ranking!CL28<'User Input'!$A$26),1,0) -> 0 | AO28: =IF('User Input'!$B$52='User Input'!$B$27,1,0) -> 0 | AP28: =IF(AND('User Input'!$C$52='User Input'!$C$23,CE28=1),1,0) -> 0 | AQ28: =IF(CD28=1,0,IF(AND('User Input'!$C$52='User Input'!$C$24,Ranking!CF28=1),1,0)) -> 0 | AR28: =IF(CE28=1,0,IF(AND('User Input'!$C$52='User Input'!$C$25,Ranking!CG28=1),1,0)) -> 0 | AS28: =IF(CF28=1,0,IF(AND('User Input'!$C$52='User Input'!$C$26,Ranking!CH28=1),1,0)) -> 0 | AT28: =IF(CG28=1,0,IF(AND('User Input'!$C$52='User Input'!$C$27,Ranking!CI28=1),1,0)) -> 0 | AU28: =IF(AND('User Input'!$D$52='User Input'!$D$23,Ranking!CJ28>5000),1,0) -> 0 | AV28: =IF('User Input'!$E$52='User Input'!$E$25,1,IF(AND('User Input'!$E$52='User Input'!$E$23,Ranking!CM28=1),1,IF(AND('User Input'!$E$52='User Input'!$E$24,Ranking!CM28=0),1,0))) -> 0 | AW28: =IF(AND('User Input'!$F$52='User Input'!$F$23,Ranking!DS28=1),1,0) -> 0 | AX28: =IF(AND('User Input'!$F$52='User Input'!$F$24,Ranking!DT28=1),1,0) -> 0 | AY28: =IF(AND('User Input'!$F$52='User Input'!$F$25,Ranking!DU28=1),1,0) -> 0 | AZ28: =IF('User Input'!$G$52='User Input'!$G$24,1,IF(AND('User Input'!$G$52='User Input'!$G$23,DH28="Y"),1,0)) -> 0 | BA28: =IF('User Input'!$H$52='User Input'!$H$23,1,IF(AND('User Input'!$H$52='User Input'!$H$24,Ranking!BK28<>"Video"),1,0)) -> 1 | BB28: =IF(AND('User Input'!$I$52='User Input'!$I$23,Ranking!DV28=1),1,0) -> 0 | BC28: =IF(AND('User Input'!$I$52='User Input'!$I$24,Ranking!DW28=1),1,0) -> 0 | BD28: =IF(AND('User Input'!$I$52='User Input'!$I$25,Ranking!DX28=1),1,0) -> 0 | BE28: =IF('User Input'!$J$52='User Input'!$J$23,1,IF(AND('User Input'!$J$52='User Input'!$J$24,Ranking!DY28=0),1,0)) -> 1 | BF28: =IF('User Input'!$K$52='User Input'!$K$24,1,IF(AND('User Input'!$K$52='User Input'!$K$23,Ranking!CO28=1),1,0)) -> 0 | BI28: Placeholder
A29: =IF(AND('User Input'!$D$35='User Input'!$D$6,Ranking!BN29=1),1,0) -> 0 | B29: =IF(AND('User Input'!$D$35='User Input'!$D$7,Ranking!BO29=1),1,0) -> 0 | C29: =IF(AND('User Input'!$D$35='User Input'!$D$8,Ranking!BP29=1),1,0) -> 0 | D29: =IF(AND('User Input'!$F$35='User Input'!$F$7,Ranking!BQ29=1),1,0) -> 0 | E29: =IF(AND('User Input'!$F$35='User Input'!$F$6,Ranking!BR29=1),1,0) -> 0 | F29: =IF(AND('User Input'!$F$35='User Input'!$F$8,Ranking!BS29=1),1,0) -> 0 | G29: =IF(AND('User Input'!$F$35='User Input'!$F$9,Ranking!BT29=1),1,0) -> 0 | H29: =IF(AND('User Input'!$F$35='User Input'!$F$10,Ranking!BU29=1),1,0) -> 0 | I29: =IF(BV29=0,1,IF(AND(BV29=1,'User Input'!$G$35='User Input'!$G$6),0,IF(AND(BV29=1,'User Input'!$G$35='User Input'!$G$7),1,0))) -> 1 | J29: =IF(BW29=0,1,IF(AND(BW29=1,'User Input'!$H$35='User Input'!$H$6),1,IF(AND(BW29=1,'User Input'!$H$35='User Input'!$H$7),0))) -> 1 | K29: =IF('User Input'!$I$35='User Input'!$I$6,1,IF(AND('User Input'!$I$35='User Input'!$I$7,Ranking!BX29=0),1,0)) -> 1 | L29: =IF('User Input'!$K$35='User Input'!$K$7,1,IF(AND(OR('User Input'!$K$35='User Input'!$K$6,'User Input'!$K$35='User Input'!$K$8),Ranking!$CZ29="Y"),1,0)) -> 0 | M29: =IF(AND('User Input'!$B$38='User Input'!$B$13,Ranking!CA29=1),1,0) -> 0 | N29: =IF(AND('User Input'!$B$38='User Input'!$B$14,Ranking!CB29=1),1,0) -> 0 | O29: =IF(AND('User Input'!$B$38='User Input'!$B$15,Ranking!CC29=1),1,0) -> 0 | P29: =IF(AND('User Input'!$C$38='User Input'!$C$13,DA29=1),1,0) -> 0 | Q29: =IF(AND('User Input'!$C$38='User Input'!$C$14,Ranking!DB29=1),1,0) -> 0 | R29: =IF(AND('User Input'!$C$38='User Input'!$C$15,Ranking!DC29=1),1,0) -> 0 | S29: =IF(AND('User Input'!$C$38='User Input'!$C$16,Ranking!DD29=1),1,0) -> 0 | T29: =IF(AND('User Input'!$C$38='User Input'!$C$17,Ranking!DE29=1),1,0) -> 0 | U29: =IF(AND('User Input'!$C$38='User Input'!$C$18,Ranking!DF29=1),1,0) -> 0 | V29: =IF('User Input'!$I$38='User Input'!$I$13,1,IF(AND('User Input'!$I$38='User Input'!$I41,Ranking!$BY29>0.8),1,IF(AND('User Input'!$I$38='User Input'!$I$15,Ranking!$BY29>0.9),1,IF(AND('User Input'!$I$38='User Input'!$D$16,Ranking!$BY29>0.95),1,0)))) -> 0 | W29: =IF('User Input'!$D$38='User Input'!$D$13,1,IF(AND('User Input'!$D$38='User Input'!$D$14,Ranking!$BZ29>0.8),1,IF(AND('User Input'!$D$38='User Input'!$D$15,Ranking!$BZ29>0.9),1,IF(AND('User Input'!$D$38='User Input'!$D$16,Ranking!$BZ29>0.95),1,0)))) -> 0 | X29: =IF(AND('User Input'!$E$38='User Input'!$E$13,Ranking!DF29=1),1,0) -> 0 | Y29: =IF(AND('User Input'!$F$58=TRUE,Ranking!DI29=1),1,IF(AND('User Input'!$F$58=FALSE,Ranking!DI29=0),1,0)) -> 0 | Z29: =IF(AND('User Input'!$F$59=TRUE,Ranking!DJ29=1),1,IF(AND('User Input'!$F$59=FALSE,Ranking!DJ29=0),1,0)) -> 1 | AA29: =IF(AND('User Input'!$F$60=TRUE,Ranking!DK29=1),1,IF(AND('User Input'!$F$60=FALSE,Ranking!DK29=0),1,0)) -> 1 | AB29: =IF(AND('User Input'!$F$61=TRUE,Ranking!DL29=1),1,IF(AND('User Input'!$F$61=FALSE,Ranking!DL29=0),1,0)) -> 0 | AC29: =IF(AND('User Input'!$F$62=TRUE,Ranking!DM29=1),1,IF(AND('User Input'!$F$62=FALSE,Ranking!DM29=0),1,0)) -> 0 | AD29: =IF(AND('User Input'!$F$63=TRUE,Ranking!DN29=1),1,IF(AND('User Input'!$F$63=FALSE,Ranking!DN29=0),1,0)) -> 0 | AE29: =IF(AND('User Input'!$F$64=TRUE,Ranking!DO29=1),1,IF(AND('User Input'!$F$64=FALSE,Ranking!DO29=0),1,0)) -> 0 | AF29: =IF(AND('User Input'!$F$65=TRUE,Ranking!DP29=1),1,IF(AND('User Input'!$F$65=FALSE,Ranking!DP29=0),1,0)) -> 0 | AG29: =IF(AND('User Input'!$F$66=TRUE,Ranking!DQ29=1),1,IF(AND('User Input'!$F$66=FALSE,Ranking!DQ29=0),1,0)) -> 0 | AH29: =IF(AND('User Input'!$F$67=TRUE,Ranking!DR29=1),1,IF(AND('User Input'!$F$67=FALSE,Ranking!DR29=0),1,0)) -> 0 | AI29: =IF(Ranking!CV29="Y",1,IF(AND('User Input'!$G$38='User Input'!$G$14,Ranking!CV29="N"),1,0)) -> 0 | AJ29: =IF(OR(Ranking!DG29="Y",'User Input'!$H$38='User Input'!$H$14),1,IF(AND('User Input'!$H$38='User Input'!$H$13,Ranking!DG29="Y"),1,0)) -> 0 | AK29: =IF(AND('User Input'!$B$52='User Input'!$B$23,Ranking!CL29<'User Input'!$A$23),1,0) -> 0 | AL29: =IF(AND('User Input'!$B$52='User Input'!$B$24,Ranking!CL29<'User Input'!$A$24),1,0) -> 0 | AM29: =IF(AND('User Input'!$B$52='User Input'!$B$25,Ranking!CL29<'User Input'!$A$25),1,0) -> 1 | AN29: =IF(AND('User Input'!$B$52='User Input'!$B$26,Ranking!CL29<'User Input'!$A$26),1,0) -> 0 | AO29: =IF('User Input'!$B$52='User Input'!$B$27,1,0) -> 0 | AP29: =IF(AND('User Input'!$C$52='User Input'!$C$23,CE29=1),1,0) -> 0 | AQ29: =IF(CD29=1,0,IF(AND('User Input'!$C$52='User Input'!$C$24,Ranking!CF29=1),1,0)) -> 0 | AR29: =IF(CE29=1,0,IF(AND('User Input'!$C$52='User Input'!$C$25,Ranking!CG29=1),1,0)) -> 0 | AS29: =IF(CF29=1,0,IF(AND('User Input'!$C$52='User Input'!$C$26,Ranking!CH29=1),1,0)) -> 0 | AT29: =IF(CG29=1,0,IF(AND('User Input'!$C$52='User Input'!$C$27,Ranking!CI29=1),1,0)) -> 0 | AU29: =IF(AND('User Input'!$D$52='User Input'!$D$23,Ranking!CJ29>5000),1,0) -> 0 | AV29: =IF('User Input'!$E$52='User Input'!$E$25,1,IF(AND('User Input'!$E$52='User Input'!$E$23,Ranking!CM29=1),1,IF(AND('User Input'!$E$52='User Input'!$E$24,Ranking!CM29=0),1,0))) -> 0 | AW29: =IF(AND('User Input'!$F$52='User Input'!$F$23,Ranking!DS29=1),1,0) -> 0 | AX29: =IF(AND('User Input'!$F$52='User Input'!$F$24,Ranking!DT29=1),1,0) -> 0 | AY29: =IF(AND('User Input'!$F$52='User Input'!$F$25,Ranking!DU29=1),1,0) -> 0 | AZ29: =IF('User Input'!$G$52='User Input'!$G$24,1,IF(AND('User Input'!$G$52='User Input'!$G$23,DH29="Y"),1,0)) -> 0 | BA29: =IF('User Input'!$H$52='User Input'!$H$23,1,IF(AND('User Input'!$H$52='User Input'!$H$24,Ranking!BK29<>"Video"),1,0)) -> 1 | BB29: =IF(AND('User Input'!$I$52='User Input'!$I$23,Ranking!DV29=1),1,0) -> 0 | BC29: =IF(AND('User Input'!$I$52='User Input'!$I$24,Ranking!DW29=1),1,0) -> 0 | BD29: =IF(AND('User Input'!$I$52='User Input'!$I$25,Ranking!DX29=1),1,0) -> 0 | BE29: =IF('User Input'!$J$52='User Input'!$J$23,1,IF(AND('User Input'!$J$52='User Input'!$J$24,Ranking!DY29=0),1,0)) -> 1 | BF29: =IF('User Input'!$K$52='User Input'!$K$24,1,IF(AND('User Input'!$K$52='User Input'!$K$23,Ranking!CO29=1),1,0)) -> 0 | BI29: Placeholder
A30: =IF(AND('User Input'!$D$35='User Input'!$D$6,Ranking!BN30=1),1,0) -> 0 | B30: =IF(AND('User Input'!$D$35='User Input'!$D$7,Ranking!BO30=1),1,0) -> 0 | C30: =IF(AND('User Input'!$D$35='User Input'!$D$8,Ranking!BP30=1),1,0) -> 0 | D30: =IF(AND('User Input'!$F$35='User Input'!$F$7,Ranking!BQ30=1),1,0) -> 0 | E30: =IF(AND('User Input'!$F$35='User Input'!$F$6,Ranking!BR30=1),1,0) -> 0 | F30: =IF(AND('User Input'!$F$35='User Input'!$F$8,Ranking!BS30=1),1,0) -> 0 | G30: =IF(AND('User Input'!$F$35='User Input'!$F$9,Ranking!BT30=1),1,0) -> 0 | H30: =IF(AND('User Input'!$F$35='User Input'!$F$10,Ranking!BU30=1),1,0) -> 0 | I30: =IF(BV30=0,1,IF(AND(BV30=1,'User Input'!$G$35='User Input'!$G$6),0,IF(AND(BV30=1,'User Input'!$G$35='User Input'!$G$7),1,0))) -> 1 | J30: =IF(BW30=0,1,IF(AND(BW30=1,'User Input'!$H$35='User Input'!$H$6),1,IF(AND(BW30=1,'User Input'!$H$35='User Input'!$H$7),0))) -> 1 | K30: =IF('User Input'!$I$35='User Input'!$I$6,1,IF(AND('User Input'!$I$35='User Input'!$I$7,Ranking!BX30=0),1,0)) -> 1 | L30: =IF('User Input'!$K$35='User Input'!$K$7,1,IF(AND(OR('User Input'!$K$35='User Input'!$K$6,'User Input'!$K$35='User Input'!$K$8),Ranking!$CZ30="Y"),1,0)) -> 0 | M30: =IF(AND('User Input'!$B$38='User Input'!$B$13,Ranking!CA30=1),1,0) -> 0 | N30: =IF(AND('User Input'!$B$38='User Input'!$B$14,Ranking!CB30=1),1,0) -> 0 | O30: =IF(AND('User Input'!$B$38='User Input'!$B$15,Ranking!CC30=1),1,0) -> 0 | P30: =IF(AND('User Input'!$C$38='User Input'!$C$13,DA30=1),1,0) -> 0 | Q30: =IF(AND('User Input'!$C$38='User Input'!$C$14,Ranking!DB30=1),1,0) -> 0 | R30: =IF(AND('User Input'!$C$38='User Input'!$C$15,Ranking!DC30=1),1,0) -> 0 | S30: =IF(AND('User Input'!$C$38='User Input'!$C$16,Ranking!DD30=1),1,0) -> 0 | T30: =IF(AND('User Input'!$C$38='User Input'!$C$17,Ranking!DE30=1),1,0) -> 0 | U30: =IF(AND('User Input'!$C$38='User Input'!$C$18,Ranking!DF30=1),1,0) -> 0 | V30: =IF('User Input'!$I$38='User Input'!$I$13,1,IF(AND('User Input'!$I$38='User Input'!$I42,Ranking!$BY30>0.8),1,IF(AND('User Input'!$I$38='User Input'!$I$15,Ranking!$BY30>0.9),1,IF(AND('User Input'!$I$38='User Input'!$D$16,Ranking!$BY30>0.95),1,0)))) -> 0 | W30: =IF('User Input'!$D$38='User Input'!$D$13,1,IF(AND('User Input'!$D$38='User Input'!$D$14,Ranking!$BZ30>0.8),1,IF(AND('User Input'!$D$38='User Input'!$D$15,Ranking!$BZ30>0.9),1,IF(AND('User Input'!$D$38='User Input'!$D$16,Ranking!$BZ30>0.95),1,0)))) -> 0 | X30: =IF(AND('User Input'!$E$38='User Input'!$E$13,Ranking!DF30=1),1,0) -> 0 | Y30: =IF(AND('User Input'!$F$58=TRUE,Ranking!DI30=1),1,IF(AND('User Input'!$F$58=FALSE,Ranking!DI30=0),1,0)) -> 0 | Z30: =IF(AND('User Input'!$F$59=TRUE,Ranking!DJ30=1),1,IF(AND('User Input'!$F$59=FALSE,Ranking!DJ30=0),1,0)) -> 1 | AA30: =IF(AND('User Input'!$F$60=TRUE,Ranking!DK30=1),1,IF(AND('User Input'!$F$60=FALSE,Ranking!DK30=0),1,0)) -> 1 | AB30: =IF(AND('User Input'!$F$61=TRUE,Ranking!DL30=1),1,IF(AND('User Input'!$F$61=FALSE,Ranking!DL30=0),1,0)) -> 0 | AC30: =IF(AND('User Input'!$F$62=TRUE,Ranking!DM30=1),1,IF(AND('User Input'!$F$62=FALSE,Ranking!DM30=0),1,0)) -> 0 | AD30: =IF(AND('User Input'!$F$63=TRUE,Ranking!DN30=1),1,IF(AND('User Input'!$F$63=FALSE,Ranking!DN30=0),1,0)) -> 0 | AE30: =IF(AND('User Input'!$F$64=TRUE,Ranking!DO30=1),1,IF(AND('User Input'!$F$64=FALSE,Ranking!DO30=0),1,0)) -> 0 | AF30: =IF(AND('User Input'!$F$65=TRUE,Ranking!DP30=1),1,IF(AND('User Input'!$F$65=FALSE,Ranking!DP30=0),1,0)) -> 0 | AG30: =IF(AND('User Input'!$F$66=TRUE,Ranking!DQ30=1),1,IF(AND('User Input'!$F$66=FALSE,Ranking!DQ30=0),1,0)) -> 0 | AH30: =IF(AND('User Input'!$F$67=TRUE,Ranking!DR30=1),1,IF(AND('User Input'!$F$67=FALSE,Ranking!DR30=0),1,0)) -> 0 | AI30: =IF(Ranking!CV30="Y",1,IF(AND('User Input'!$G$38='User Input'!$G$14,Ranking!CV30="N"),1,0)) -> 0 | AJ30: =IF(OR(Ranking!DG30="Y",'User Input'!$H$38='User Input'!$H$14),1,IF(AND('User Input'!$H$38='User Input'!$H$13,Ranking!DG30="Y"),1,0)) -> 0 | AK30: =IF(AND('User Input'!$B$52='User Input'!$B$23,Ranking!CL30<'User Input'!$A$23),1,0) -> 0 | AL30: =IF(AND('User Input'!$B$52='User Input'!$B$24,Ranking!CL30<'User Input'!$A$24),1,0) -> 0 | AM30: =IF(AND('User Input'!$B$52='User Input'!$B$25,Ranking!CL30<'User Input'!$A$25),1,0) -> 1 | AN30: =IF(AND('User Input'!$B$52='User Input'!$B$26,Ranking!CL30<'User Input'!$A$26),1,0) -> 0 | AO30: =IF('User Input'!$B$52='User Input'!$B$27,1,0) -> 0 | AP30: =IF(AND('User Input'!$C$52='User Input'!$C$23,CE30=1),1,0) -> 0 | AQ30: =IF(CD30=1,0,IF(AND('User Input'!$C$52='User Input'!$C$24,Ranking!CF30=1),1,0)) -> 0 | AR30: =IF(CE30=1,0,IF(AND('User Input'!$C$52='User Input'!$C$25,Ranking!CG30=1),1,0)) -> 0 | AS30: =IF(CF30=1,0,IF(AND('User Input'!$C$52='User Input'!$C$26,Ranking!CH30=1),1,0)) -> 0 | AT30: =IF(CG30=1,0,IF(AND('User Input'!$C$52='User Input'!$C$27,Ranking!CI30=1),1,0)) -> 0 | AU30: =IF(AND('User Input'!$D$52='User Input'!$D$23,Ranking!CJ30>5000),1,0) -> 0 | AV30: =IF('User Input'!$E$52='User Input'!$E$25,1,IF(AND('User Input'!$E$52='User Input'!$E$23,Ranking!CM30=1),1,IF(AND('User Input'!$E$52='User Input'!$E$24,Ranking!CM30=0),1,0))) -> 0 | AW30: =IF(AND('User Input'!$F$52='User Input'!$F$23,Ranking!DS30=1),1,0) -> 0 | AX30: =IF(AND('User Input'!$F$52='User Input'!$F$24,Ranking!DT30=1),1,0) -> 0 | AY30: =IF(AND('User Input'!$F$52='User Input'!$F$25,Ranking!DU30=1),1,0) -> 0 | AZ30: =IF('User Input'!$G$52='User Input'!$G$24,1,IF(AND('User Input'!$G$52='User Input'!$G$23,DH30="Y"),1,0)) -> 0 | BA30: =IF('User Input'!$H$52='User Input'!$H$23,1,IF(AND('User Input'!$H$52='User Input'!$H$24,Ranking!BK30<>"Video"),1,0)) -> 1 | BB30: =IF(AND('User Input'!$I$52='User Input'!$I$23,Ranking!DV30=1),1,0) -> 0 | BC30: =IF(AND('User Input'!$I$52='User Input'!$I$24,Ranking!DW30=1),1,0) -> 0 | BD30: =IF(AND('User Input'!$I$52='User Input'!$I$25,Ranking!DX30=1),1,0) -> 0 | BE30: =IF('User Input'!$J$52='User Input'!$J$23,1,IF(AND('User Input'!$J$52='User Input'!$J$24,Ranking!DY30=0),1,0)) -> 1 | BF30: =IF('User Input'!$K$52='User Input'!$K$24,1,IF(AND('User Input'!$K$52='User Input'!$K$23,Ranking!CO30=1),1,0)) -> 0 | BI30: Placeholder
A31: =IF(AND('User Input'!$D$35='User Input'!$D$6,Ranking!BN31=1),1,0) -> 0 | B31: =IF(AND('User Input'!$D$35='User Input'!$D$7,Ranking!BO31=1),1,0) -> 0 | C31: =IF(AND('User Input'!$D$35='User Input'!$D$8,Ranking!BP31=1),1,0) -> 0 | D31: =IF(AND('User Input'!$F$35='User Input'!$F$7,Ranking!BQ31=1),1,0) -> 0 | E31: =IF(AND('User Input'!$F$35='User Input'!$F$6,Ranking!BR31=1),1,0) -> 0 | F31: =IF(AND('User Input'!$F$35='User Input'!$F$8,Ranking!BS31=1),1,0) -> 0 | G31: =IF(AND('User Input'!$F$35='User Input'!$F$9,Ranking!BT31=1),1,0) -> 0 | H31: =IF(AND('User Input'!$F$35='User Input'!$F$10,Ranking!BU31=1),1,0) -> 0 | I31: =IF(BV31=0,1,IF(AND(BV31=1,'User Input'!$G$35='User Input'!$G$6),0,IF(AND(BV31=1,'User Input'!$G$35='User Input'!$G$7),1,0))) -> 1 | J31: =IF(BW31=0,1,IF(AND(BW31=1,'User Input'!$H$35='User Input'!$H$6),1,IF(AND(BW31=1,'User Input'!$H$35='User Input'!$H$7),0))) -> 1 | K31: =IF('User Input'!$I$35='User Input'!$I$6,1,IF(AND('User Input'!$I$35='User Input'!$I$7,Ranking!BX31=0),1,0)) -> 1 | L31: =IF('User Input'!$K$35='User Input'!$K$7,1,IF(AND(OR('User Input'!$K$35='User Input'!$K$6,'User Input'!$K$35='User Input'!$K$8),Ranking!$CZ31="Y"),1,0)) -> 0 | M31: =IF(AND('User Input'!$B$38='User Input'!$B$13,Ranking!CA31=1),1,0) -> 0 | N31: =IF(AND('User Input'!$B$38='User Input'!$B$14,Ranking!CB31=1),1,0) -> 0 | O31: =IF(AND('User Input'!$B$38='User Input'!$B$15,Ranking!CC31=1),1,0) -> 0 | P31: =IF(AND('User Input'!$C$38='User Input'!$C$13,DA31=1),1,0) -> 0 | Q31: =IF(AND('User Input'!$C$38='User Input'!$C$14,Ranking!DB31=1),1,0) -> 0 | R31: =IF(AND('User Input'!$C$38='User Input'!$C$15,Ranking!DC31=1),1,0) -> 0 | S31: =IF(AND('User Input'!$C$38='User Input'!$C$16,Ranking!DD31=1),1,0) -> 0 | T31: =IF(AND('User Input'!$C$38='User Input'!$C$17,Ranking!DE31=1),1,0) -> 0 | U31: =IF(AND('User Input'!$C$38='User Input'!$C$18,Ranking!DF31=1),1,0) -> 0 | V31: =IF('User Input'!$I$38='User Input'!$I$13,1,IF(AND('User Input'!$I$38='User Input'!$I43,Ranking!$BY31>0.8),1,IF(AND('User Input'!$I$38='User Input'!$I$15,Ranking!$BY31>0.9),1,IF(AND('User Input'!$I$38='User Input'!$D$16,Ranking!$BY31>0.95),1,0)))) -> 0 | W31: =IF('User Input'!$D$38='User Input'!$D$13,1,IF(AND('User Input'!$D$38='User Input'!$D$14,Ranking!$BZ31>0.8),1,IF(AND('User Input'!$D$38='User Input'!$D$15,Ranking!$BZ31>0.9),1,IF(AND('User Input'!$D$38='User Input'!$D$16,Ranking!$BZ31>0.95),1,0)))) -> 0 | X31: =IF(AND('User Input'!$E$38='User Input'!$E$13,Ranking!DF31=1),1,0) -> 0 | Y31: =IF(AND('User Input'!$F$58=TRUE,Ranking!DI31=1),1,IF(AND('User Input'!$F$58=FALSE,Ranking!DI31=0),1,0)) -> 0 | Z31: =IF(AND('User Input'!$F$59=TRUE,Ranking!DJ31=1),1,IF(AND('User Input'!$F$59=FALSE,Ranking!DJ31=0),1,0)) -> 1 | AA31: =IF(AND('User Input'!$F$60=TRUE,Ranking!DK31=1),1,IF(AND('User Input'!$F$60=FALSE,Ranking!DK31=0),1,0)) -> 1 | AB31: =IF(AND('User Input'!$F$61=TRUE,Ranking!DL31=1),1,IF(AND('User Input'!$F$61=FALSE,Ranking!DL31=0),1,0)) -> 0 | AC31: =IF(AND('User Input'!$F$62=TRUE,Ranking!DM31=1),1,IF(AND('User Input'!$F$62=FALSE,Ranking!DM31=0),1,0)) -> 0 | AD31: =IF(AND('User Input'!$F$63=TRUE,Ranking!DN31=1),1,IF(AND('User Input'!$F$63=FALSE,Ranking!DN31=0),1,0)) -> 0 | AE31: =IF(AND('User Input'!$F$64=TRUE,Ranking!DO31=1),1,IF(AND('User Input'!$F$64=FALSE,Ranking!DO31=0),1,0)) -> 0 | AF31: =IF(AND('User Input'!$F$65=TRUE,Ranking!DP31=1),1,IF(AND('User Input'!$F$65=FALSE,Ranking!DP31=0),1,0)) -> 0 | AG31: =IF(AND('User Input'!$F$66=TRUE,Ranking!DQ31=1),1,IF(AND('User Input'!$F$66=FALSE,Ranking!DQ31=0),1,0)) -> 0 | AH31: =IF(AND('User Input'!$F$67=TRUE,Ranking!DR31=1),1,IF(AND('User Input'!$F$67=FALSE,Ranking!DR31=0),1,0)) -> 0 | AI31: =IF(Ranking!CV31="Y",1,IF(AND('User Input'!$G$38='User Input'!$G$14,Ranking!CV31="N"),1,0)) -> 0 | AJ31: =IF(OR(Ranking!DG31="Y",'User Input'!$H$38='User Input'!$H$14),1,IF(AND('User Input'!$H$38='User Input'!$H$13,Ranking!DG31="Y"),1,0)) -> 0 | AK31: =IF(AND('User Input'!$B$52='User Input'!$B$23,Ranking!CL31<'User Input'!$A$23),1,0) -> 0 | AL31: =IF(AND('User Input'!$B$52='User Input'!$B$24,Ranking!CL31<'User Input'!$A$24),1,0) -> 0 | AM31: =IF(AND('User Input'!$B$52='User Input'!$B$25,Ranking!CL31<'User Input'!$A$25),1,0) -> 1 | AN31: =IF(AND('User Input'!$B$52='User Input'!$B$26,Ranking!CL31<'User Input'!$A$26),1,0) -> 0 | AO31: =IF('User Input'!$B$52='User Input'!$B$27,1,0) -> 0 | AP31: =IF(AND('User Input'!$C$52='User Input'!$C$23,CE31=1),1,0) -> 0 | AQ31: =IF(CD31=1,0,IF(AND('User Input'!$C$52='User Input'!$C$24,Ranking!CF31=1),1,0)) -> 0 | AR31: =IF(CE31=1,0,IF(AND('User Input'!$C$52='User Input'!$C$25,Ranking!CG31=1),1,0)) -> 0 | AS31: =IF(CF31=1,0,IF(AND('User Input'!$C$52='User Input'!$C$26,Ranking!CH31=1),1,0)) -> 0 | AT31: =IF(CG31=1,0,IF(AND('User Input'!$C$52='User Input'!$C$27,Ranking!CI31=1),1,0)) -> 0 | AU31: =IF(AND('User Input'!$D$52='User Input'!$D$23,Ranking!CJ31>5000),1,0) -> 0 | AV31: =IF('User Input'!$E$52='User Input'!$E$25,1,IF(AND('User Input'!$E$52='User Input'!$E$23,Ranking!CM31=1),1,IF(AND('User Input'!$E$52='User Input'!$E$24,Ranking!CM31=0),1,0))) -> 0 | AW31: =IF(AND('User Input'!$F$52='User Input'!$F$23,Ranking!DS31=1),1,0) -> 0 | AX31: =IF(AND('User Input'!$F$52='User Input'!$F$24,Ranking!DT31=1),1,0) -> 0 | AY31: =IF(AND('User Input'!$F$52='User Input'!$F$25,Ranking!DU31=1),1,0) -> 0 | AZ31: =IF('User Input'!$G$52='User Input'!$G$24,1,IF(AND('User Input'!$G$52='User Input'!$G$23,DH31="Y"),1,0)) -> 0 | BA31: =IF('User Input'!$H$52='User Input'!$H$23,1,IF(AND('User Input'!$H$52='User Input'!$H$24,Ranking!BK31<>"Video"),1,0)) -> 1 | BB31: =IF(AND('User Input'!$I$52='User Input'!$I$23,Ranking!DV31=1),1,0) -> 0 | BC31: =IF(AND('User Input'!$I$52='User Input'!$I$24,Ranking!DW31=1),1,0) -> 0 | BD31: =IF(AND('User Input'!$I$52='User Input'!$I$25,Ranking!DX31=1),1,0) -> 0 | BE31: =IF('User Input'!$J$52='User Input'!$J$23,1,IF(AND('User Input'!$J$52='User Input'!$J$24,Ranking!DY31=0),1,0)) -> 1 | BF31: =IF('User Input'!$K$52='User Input'!$K$24,1,IF(AND('User Input'!$K$52='User Input'!$K$23,Ranking!CO31=1),1,0)) -> 0 | BI31: Placeholder
A32: =IF(AND('User Input'!$D$35='User Input'!$D$6,Ranking!BN32=1),1,0) -> 0 | B32: =IF(AND('User Input'!$D$35='User Input'!$D$7,Ranking!BO32=1),1,0) -> 0 | C32: =IF(AND('User Input'!$D$35='User Input'!$D$8,Ranking!BP32=1),1,0) -> 0 | D32: =IF(AND('User Input'!$F$35='User Input'!$F$7,Ranking!BQ32=1),1,0) -> 0 | E32: =IF(AND('User Input'!$F$35='User Input'!$F$6,Ranking!BR32=1),1,0) -> 0 | F32: =IF(AND('User Input'!$F$35='User Input'!$F$8,Ranking!BS32=1),1,0) -> 0 | G32: =IF(AND('User Input'!$F$35='User Input'!$F$9,Ranking!BT32=1),1,0) -> 0 | H32: =IF(AND('User Input'!$F$35='User Input'!$F$10,Ranking!BU32=1),1,0) -> 0 | I32: =IF(BV32=0,1,IF(AND(BV32=1,'User Input'!$G$35='User Input'!$G$6),0,IF(AND(BV32=1,'User Input'!$G$35='User Input'!$G$7),1,0))) -> 1 | J32: =IF(BW32=0,1,IF(AND(BW32=1,'User Input'!$H$35='User Input'!$H$6),1,IF(AND(BW32=1,'User Input'!$H$35='User Input'!$H$7),0))) -> 1 | K32: =IF('User Input'!$I$35='User Input'!$I$6,1,IF(AND('User Input'!$I$35='User Input'!$I$7,Ranking!BX32=0),1,0)) -> 1 | L32: =IF('User Input'!$K$35='User Input'!$K$7,1,IF(AND(OR('User Input'!$K$35='User Input'!$K$6,'User Input'!$K$35='User Input'!$K$8),Ranking!$CZ32="Y"),1,0)) -> 0 | M32: =IF(AND('User Input'!$B$38='User Input'!$B$13,Ranking!CA32=1),1,0) -> 0 | N32: =IF(AND('User Input'!$B$38='User Input'!$B$14,Ranking!CB32=1),1,0) -> 0 | O32: =IF(AND('User Input'!$B$38='User Input'!$B$15,Ranking!CC32=1),1,0) -> 0 | P32: =IF(AND('User Input'!$C$38='User Input'!$C$13,DA32=1),1,0) -> 0 | Q32: =IF(AND('User Input'!$C$38='User Input'!$C$14,Ranking!DB32=1),1,0) -> 0 | R32: =IF(AND('User Input'!$C$38='User Input'!$C$15,Ranking!DC32=1),1,0) -> 0 | S32: =IF(AND('User Input'!$C$38='User Input'!$C$16,Ranking!DD32=1),1,0) -> 0 | T32: =IF(AND('User Input'!$C$38='User Input'!$C$17,Ranking!DE32=1),1,0) -> 0 | U32: =IF(AND('User Input'!$C$38='User Input'!$C$18,Ranking!DF32=1),1,0) -> 0 | V32: =IF('User Input'!$I$38='User Input'!$I$13,1,IF(AND('User Input'!$I$38='User Input'!$I44,Ranking!$BY32>0.8),1,IF(AND('User Input'!$I$38='User Input'!$I$15,Ranking!$BY32>0.9),1,IF(AND('User Input'!$I$38='User Input'!$D$16,Ranking!$BY32>0.95),1,0)))) -> 0 | W32: =IF('User Input'!$D$38='User Input'!$D$13,1,IF(AND('User Input'!$D$38='User Input'!$D$14,Ranking!$BZ32>0.8),1,IF(AND('User Input'!$D$38='User Input'!$D$15,Ranking!$BZ32>0.9),1,IF(AND('User Input'!$D$38='User Input'!$D$16,Ranking!$BZ32>0.95),1,0)))) -> 0 | X32: =IF(AND('User Input'!$E$38='User Input'!$E$13,Ranking!DF32=1),1,0) -> 0 | Y32: =IF(AND('User Input'!$F$58=TRUE,Ranking!DI32=1),1,IF(AND('User Input'!$F$58=FALSE,Ranking!DI32=0),1,0)) -> 0 | Z32: =IF(AND('User Input'!$F$59=TRUE,Ranking!DJ32=1),1,IF(AND('User Input'!$F$59=FALSE,Ranking!DJ32=0),1,0)) -> 1 | AA32: =IF(AND('User Input'!$F$60=TRUE,Ranking!DK32=1),1,IF(AND('User Input'!$F$60=FALSE,Ranking!DK32=0),1,0)) -> 1 | AB32: =IF(AND('User Input'!$F$61=TRUE,Ranking!DL32=1),1,IF(AND('User Input'!$F$61=FALSE,Ranking!DL32=0),1,0)) -> 0 | AC32: =IF(AND('User Input'!$F$62=TRUE,Ranking!DM32=1),1,IF(AND('User Input'!$F$62=FALSE,Ranking!DM32=0),1,0)) -> 0 | AD32: =IF(AND('User Input'!$F$63=TRUE,Ranking!DN32=1),1,IF(AND('User Input'!$F$63=FALSE,Ranking!DN32=0),1,0)) -> 0 | AE32: =IF(AND('User Input'!$F$64=TRUE,Ranking!DO32=1),1,IF(AND('User Input'!$F$64=FALSE,Ranking!DO32=0),1,0)) -> 0 | AF32: =IF(AND('User Input'!$F$65=TRUE,Ranking!DP32=1),1,IF(AND('User Input'!$F$65=FALSE,Ranking!DP32=0),1,0)) -> 0 | AG32: =IF(AND('User Input'!$F$66=TRUE,Ranking!DQ32=1),1,IF(AND('User Input'!$F$66=FALSE,Ranking!DQ32=0),1,0)) -> 0 | AH32: =IF(AND('User Input'!$F$67=TRUE,Ranking!DR32=1),1,IF(AND('User Input'!$F$67=FALSE,Ranking!DR32=0),1,0)) -> 0 | AI32: =IF(Ranking!CV32="Y",1,IF(AND('User Input'!$G$38='User Input'!$G$14,Ranking!CV32="N"),1,0)) -> 0 | AJ32: =IF(OR(Ranking!DG32="Y",'User Input'!$H$38='User Input'!$H$14),1,IF(AND('User Input'!$H$38='User Input'!$H$13,Ranking!DG32="Y"),1,0)) -> 0 | AK32: =IF(AND('User Input'!$B$52='User Input'!$B$23,Ranking!CL32<'User Input'!$A$23),1,0) -> 0 | AL32: =IF(AND('User Input'!$B$52='User Input'!$B$24,Ranking!CL32<'User Input'!$A$24),1,0) -> 0 | AM32: =IF(AND('User Input'!$B$52='User Input'!$B$25,Ranking!CL32<'User Input'!$A$25),1,0) -> 1 | AN32: =IF(AND('User Input'!$B$52='User Input'!$B$26,Ranking!CL32<'User Input'!$A$26),1,0) -> 0 | AO32: =IF('User Input'!$B$52='User Input'!$B$27,1,0) -> 0 | AP32: =IF(AND('User Input'!$C$52='User Input'!$C$23,CE32=1),1,0) -> 0 | AQ32: =IF(CD32=1,0,IF(AND('User Input'!$C$52='User Input'!$C$24,Ranking!CF32=1),1,0)) -> 0 | AR32: =IF(CE32=1,0,IF(AND('User Input'!$C$52='User Input'!$C$25,Ranking!CG32=1),1,0)) -> 0 | AS32: =IF(CF32=1,0,IF(AND('User Input'!$C$52='User Input'!$C$26,Ranking!CH32=1),1,0)) -> 0 | AT32: =IF(CG32=1,0,IF(AND('User Input'!$C$52='User Input'!$C$27,Ranking!CI32=1),1,0)) -> 0 | AU32: =IF(AND('User Input'!$D$52='User Input'!$D$23,Ranking!CJ32>5000),1,0) -> 0 | AV32: =IF('User Input'!$E$52='User Input'!$E$25,1,IF(AND('User Input'!$E$52='User Input'!$E$23,Ranking!CM32=1),1,IF(AND('User Input'!$E$52='User Input'!$E$24,Ranking!CM32=0),1,0))) -> 0 | AW32: =IF(AND('User Input'!$F$52='User Input'!$F$23,Ranking!DS32=1),1,0) -> 0 | AX32: =IF(AND('User Input'!$F$52='User Input'!$F$24,Ranking!DT32=1),1,0) -> 0 | AY32: =IF(AND('User Input'!$F$52='User Input'!$F$25,Ranking!DU32=1),1,0) -> 0 | AZ32: =IF('User Input'!$G$52='User Input'!$G$24,1,IF(AND('User Input'!$G$52='User Input'!$G$23,DH32="Y"),1,0)) -> 0 | BA32: =IF('User Input'!$H$52='User Input'!$H$23,1,IF(AND('User Input'!$H$52='User Input'!$H$24,Ranking!BK32<>"Video"),1,0)) -> 1 | BB32: =IF(AND('User Input'!$I$52='User Input'!$I$23,Ranking!DV32=1),1,0) -> 0 | BC32: =IF(AND('User Input'!$I$52='User Input'!$I$24,Ranking!DW32=1),1,0) -> 0 | BD32: =IF(AND('User Input'!$I$52='User Input'!$I$25,Ranking!DX32=1),1,0) -> 0 | BE32: =IF('User Input'!$J$52='User Input'!$J$23,1,IF(AND('User Input'!$J$52='User Input'!$J$24,Ranking!DY32=0),1,0)) -> 1 | BF32: =IF('User Input'!$K$52='User Input'!$K$24,1,IF(AND('User Input'!$K$52='User Input'!$K$23,Ranking!CO32=1),1,0)) -> 0 | BI32: Placeholder
A33: =IF(AND('User Input'!$D$35='User Input'!$D$6,Ranking!BN33=1),1,0) -> 0 | B33: =IF(AND('User Input'!$D$35='User Input'!$D$7,Ranking!BO33=1),1,0) -> 0 | C33: =IF(AND('User Input'!$D$35='User Input'!$D$8,Ranking!BP33=1),1,0) -> 0 | D33: =IF(AND('User Input'!$F$35='User Input'!$F$7,Ranking!BQ33=1),1,0) -> 0 | E33: =IF(AND('User Input'!$F$35='User Input'!$F$6,Ranking!BR33=1),1,0) -> 0 | F33: =IF(AND('User Input'!$F$35='User Input'!$F$8,Ranking!BS33=1),1,0) -> 0 | G33: =IF(AND('User Input'!$F$35='User Input'!$F$9,Ranking!BT33=1),1,0) -> 0 | H33: =IF(AND('User Input'!$F$35='User Input'!$F$10,Ranking!BU33=1),1,0) -> 0 | I33: =IF(BV33=0,1,IF(AND(BV33=1,'User Input'!$G$35='User Input'!$G$6),0,IF(AND(BV33=1,'User Input'!$G$35='User Input'!$G$7),1,0))) -> 1 | J33: =IF(BW33=0,1,IF(AND(BW33=1,'User Input'!$H$35='User Input'!$H$6),1,IF(AND(BW33=1,'User Input'!$H$35='User Input'!$H$7),0))) -> 1 | K33: =IF('User Input'!$I$35='User Input'!$I$6,1,IF(AND('User Input'!$I$35='User Input'!$I$7,Ranking!BX33=0),1,0)) -> 1 | L33: =IF('User Input'!$K$35='User Input'!$K$7,1,IF(AND(OR('User Input'!$K$35='User Input'!$K$6,'User Input'!$K$35='User Input'!$K$8),Ranking!$CZ33="Y"),1,0)) -> 0 | M33: =IF(AND('User Input'!$B$38='User Input'!$B$13,Ranking!CA33=1),1,0) -> 0 | N33: =IF(AND('User Input'!$B$38='User Input'!$B$14,Ranking!CB33=1),1,0) -> 0 | O33: =IF(AND('User Input'!$B$38='User Input'!$B$15,Ranking!CC33=1),1,0) -> 0 | P33: =IF(AND('User Input'!$C$38='User Input'!$C$13,DA33=1),1,0) -> 0 | Q33: =IF(AND('User Input'!$C$38='User Input'!$C$14,Ranking!DB33=1),1,0) -> 0 | R33: =IF(AND('User Input'!$C$38='User Input'!$C$15,Ranking!DC33=1),1,0) -> 0 | S33: =IF(AND('User Input'!$C$38='User Input'!$C$16,Ranking!DD33=1),1,0) -> 0 | T33: =IF(AND('User Input'!$C$38='User Input'!$C$17,Ranking!DE33=1),1,0) -> 0 | U33: =IF(AND('User Input'!$C$38='User Input'!$C$18,Ranking!DF33=1),1,0) -> 0 | V33: =IF('User Input'!$I$38='User Input'!$I$13,1,IF(AND('User Input'!$I$38='User Input'!$I45,Ranking!$BY33>0.8),1,IF(AND('User Input'!$I$38='User Input'!$I$15,Ranking!$BY33>0.9),1,IF(AND('User Input'!$I$38='User Input'!$D$16,Ranking!$BY33>0.95),1,0)))) -> 0 | W33: =IF('User Input'!$D$38='User Input'!$D$13,1,IF(AND('User Input'!$D$38='User Input'!$D$14,Ranking!$BZ33>0.8),1,IF(AND('User Input'!$D$38='User Input'!$D$15,Ranking!$BZ33>0.9),1,IF(AND('User Input'!$D$38='User Input'!$D$16,Ranking!$BZ33>0.95),1,0)))) -> 0 | X33: =IF(AND('User Input'!$E$38='User Input'!$E$13,Ranking!DF33=1),1,0) -> 0 | Y33: =IF(AND('User Input'!$F$58=TRUE,Ranking!DI33=1),1,IF(AND('User Input'!$F$58=FALSE,Ranking!DI33=0),1,0)) -> 0 | Z33: =IF(AND('User Input'!$F$59=TRUE,Ranking!DJ33=1),1,IF(AND('User Input'!$F$59=FALSE,Ranking!DJ33=0),1,0)) -> 1 | AA33: =IF(AND('User Input'!$F$60=TRUE,Ranking!DK33=1),1,IF(AND('User Input'!$F$60=FALSE,Ranking!DK33=0),1,0)) -> 1 | AB33: =IF(AND('User Input'!$F$61=TRUE,Ranking!DL33=1),1,IF(AND('User Input'!$F$61=FALSE,Ranking!DL33=0),1,0)) -> 0 | AC33: =IF(AND('User Input'!$F$62=TRUE,Ranking!DM33=1),1,IF(AND('User Input'!$F$62=FALSE,Ranking!DM33=0),1,0)) -> 0 | AD33: =IF(AND('User Input'!$F$63=TRUE,Ranking!DN33=1),1,IF(AND('User Input'!$F$63=FALSE,Ranking!DN33=0),1,0)) -> 0 | AE33: =IF(AND('User Input'!$F$64=TRUE,Ranking!DO33=1),1,IF(AND('User Input'!$F$64=FALSE,Ranking!DO33=0),1,0)) -> 0 | AF33: =IF(AND('User Input'!$F$65=TRUE,Ranking!DP33=1),1,IF(AND('User Input'!$F$65=FALSE,Ranking!DP33=0),1,0)) -> 0 | AG33: =IF(AND('User Input'!$F$66=TRUE,Ranking!DQ33=1),1,IF(AND('User Input'!$F$66=FALSE,Ranking!DQ33=0),1,0)) -> 0 | AH33: =IF(AND('User Input'!$F$67=TRUE,Ranking!DR33=1),1,IF(AND('User Input'!$F$67=FALSE,Ranking!DR33=0),1,0)) -> 0 | AI33: =IF(Ranking!CV33="Y",1,IF(AND('User Input'!$G$38='User Input'!$G$14,Ranking!CV33="N"),1,0)) -> 0 | AJ33: =IF(OR(Ranking!DG33="Y",'User Input'!$H$38='User Input'!$H$14),1,IF(AND('User Input'!$H$38='User Input'!$H$13,Ranking!DG33="Y"),1,0)) -> 0 | AK33: =IF(AND('User Input'!$B$52='User Input'!$B$23,Ranking!CL33<'User Input'!$A$23),1,0) -> 0 | AL33: =IF(AND('User Input'!$B$52='User Input'!$B$24,Ranking!CL33<'User Input'!$A$24),1,0) -> 0 | AM33: =IF(AND('User Input'!$B$52='User Input'!$B$25,Ranking!CL33<'User Input'!$A$25),1,0) -> 1 | AN33: =IF(AND('User Input'!$B$52='User Input'!$B$26,Ranking!CL33<'User Input'!$A$26),1,0) -> 0 | AO33: =IF('User Input'!$B$52='User Input'!$B$27,1,0) -> 0 | AP33: =IF(AND('User Input'!$C$52='User Input'!$C$23,CE33=1),1,0) -> 0 | AQ33: =IF(CD33=1,0,IF(AND('User Input'!$C$52='User Input'!$C$24,Ranking!CF33=1),1,0)) -> 0 | AR33: =IF(CE33=1,0,IF(AND('User Input'!$C$52='User Input'!$C$25,Ranking!CG33=1),1,0)) -> 0 | AS33: =IF(CF33=1,0,IF(AND('User Input'!$C$52='User Input'!$C$26,Ranking!CH33=1),1,0)) -> 0 | AT33: =IF(CG33=1,0,IF(AND('User Input'!$C$52='User Input'!$C$27,Ranking!CI33=1),1,0)) -> 0 | AU33: =IF(AND('User Input'!$D$52='User Input'!$D$23,Ranking!CJ33>5000),1,0) -> 0 | AV33: =IF('User Input'!$E$52='User Input'!$E$25,1,IF(AND('User Input'!$E$52='User Input'!$E$23,Ranking!CM33=1),1,IF(AND('User Input'!$E$52='User Input'!$E$24,Ranking!CM33=0),1,0))) -> 0 | AW33: =IF(AND('User Input'!$F$52='User Input'!$F$23,Ranking!DS33=1),1,0) -> 0 | AX33: =IF(AND('User Input'!$F$52='User Input'!$F$24,Ranking!DT33=1),1,0) -> 0 | AY33: =IF(AND('User Input'!$F$52='User Input'!$F$25,Ranking!DU33=1),1,0) -> 0 | AZ33: =IF('User Input'!$G$52='User Input'!$G$24,1,IF(AND('User Input'!$G$52='User Input'!$G$23,DH33="Y"),1,0)) -> 0 | BA33: =IF('User Input'!$H$52='User Input'!$H$23,1,IF(AND('User Input'!$H$52='User Input'!$H$24,Ranking!BK33<>"Video"),1,0)) -> 1 | BB33: =IF(AND('User Input'!$I$52='User Input'!$I$23,Ranking!DV33=1),1,0) -> 0 | BC33: =IF(AND('User Input'!$I$52='User Input'!$I$24,Ranking!DW33=1),1,0) -> 0 | BD33: =IF(AND('User Input'!$I$52='User Input'!$I$25,Ranking!DX33=1),1,0) -> 0 | BE33: =IF('User Input'!$J$52='User Input'!$J$23,1,IF(AND('User Input'!$J$52='User Input'!$J$24,Ranking!DY33=0),1,0)) -> 1 | BF33: =IF('User Input'!$K$52='User Input'!$K$24,1,IF(AND('User Input'!$K$52='User Input'!$K$23,Ranking!CO33=1),1,0)) -> 0 | BI33: Placeholder
A34: =IF(AND('User Input'!$D$35='User Input'!$D$6,Ranking!BN34=1),1,0) -> 0 | B34: =IF(AND('User Input'!$D$35='User Input'!$D$7,Ranking!BO34=1),1,0) -> 0 | C34: =IF(AND('User Input'!$D$35='User Input'!$D$8,Ranking!BP34=1),1,0) -> 0 | D34: =IF(AND('User Input'!$F$35='User Input'!$F$7,Ranking!BQ34=1),1,0) -> 0 | E34: =IF(AND('User Input'!$F$35='User Input'!$F$6,Ranking!BR34=1),1,0) -> 0 | F34: =IF(AND('User Input'!$F$35='User Input'!$F$8,Ranking!BS34=1),1,0) -> 0 | G34: =IF(AND('User Input'!$F$35='User Input'!$F$9,Ranking!BT34=1),1,0) -> 0 | H34: =IF(AND('User Input'!$F$35='User Input'!$F$10,Ranking!BU34=1),1,0) -> 0 | I34: =IF(BV34=0,1,IF(AND(BV34=1,'User Input'!$G$35='User Input'!$G$6),0,IF(AND(BV34=1,'User Input'!$G$35='User Input'!$G$7),1,0))) -> 1 | J34: =IF(BW34=0,1,IF(AND(BW34=1,'User Input'!$H$35='User Input'!$H$6),1,IF(AND(BW34=1,'User Input'!$H$35='User Input'!$H$7),0))) -> 1 | K34: =IF('User Input'!$I$35='User Input'!$I$6,1,IF(AND('User Input'!$I$35='User Input'!$I$7,Ranking!BX34=0),1,0)) -> 1 | L34: =IF('User Input'!$K$35='User Input'!$K$7,1,IF(AND(OR('User Input'!$K$35='User Input'!$K$6,'User Input'!$K$35='User Input'!$K$8),Ranking!$CZ34="Y"),1,0)) -> 0 | M34: =IF(AND('User Input'!$B$38='User Input'!$B$13,Ranking!CA34=1),1,0) -> 0 | N34: =IF(AND('User Input'!$B$38='User Input'!$B$14,Ranking!CB34=1),1,0) -> 0 | O34: =IF(AND('User Input'!$B$38='User Input'!$B$15,Ranking!CC34=1),1,0) -> 0 | P34: =IF(AND('User Input'!$C$38='User Input'!$C$13,DA34=1),1,0) -> 0 | Q34: =IF(AND('User Input'!$C$38='User Input'!$C$14,Ranking!DB34=1),1,0) -> 0 | R34: =IF(AND('User Input'!$C$38='User Input'!$C$15,Ranking!DC34=1),1,0) -> 0 | S34: =IF(AND('User Input'!$C$38='User Input'!$C$16,Ranking!DD34=1),1,0) -> 0 | T34: =IF(AND('User Input'!$C$38='User Input'!$C$17,Ranking!DE34=1),1,0) -> 0 | U34: =IF(AND('User Input'!$C$38='User Input'!$C$18,Ranking!DF34=1),1,0) -> 0 | V34: =IF('User Input'!$I$38='User Input'!$I$13,1,IF(AND('User Input'!$I$38='User Input'!$I46,Ranking!$BY34>0.8),1,IF(AND('User Input'!$I$38='User Input'!$I$15,Ranking!$BY34>0.9),1,IF(AND('User Input'!$I$38='User Input'!$D$16,Ranking!$BY34>0.95),1,0)))) -> 0 | W34: =IF('User Input'!$D$38='User Input'!$D$13,1,IF(AND('User Input'!$D$38='User Input'!$D$14,Ranking!$BZ34>0.8),1,IF(AND('User Input'!$D$38='User Input'!$D$15,Ranking!$BZ34>0.9),1,IF(AND('User Input'!$D$38='User Input'!$D$16,Ranking!$BZ34>0.95),1,0)))) -> 0 | X34: =IF(AND('User Input'!$E$38='User Input'!$E$13,Ranking!DF34=1),1,0) -> 0 | Y34: =IF(AND('User Input'!$F$58=TRUE,Ranking!DI34=1),1,IF(AND('User Input'!$F$58=FALSE,Ranking!DI34=0),1,0)) -> 0 | Z34: =IF(AND('User Input'!$F$59=TRUE,Ranking!DJ34=1),1,IF(AND('User Input'!$F$59=FALSE,Ranking!DJ34=0),1,0)) -> 1 | AA34: =IF(AND('User Input'!$F$60=TRUE,Ranking!DK34=1),1,IF(AND('User Input'!$F$60=FALSE,Ranking!DK34=0),1,0)) -> 1 | AB34: =IF(AND('User Input'!$F$61=TRUE,Ranking!DL34=1),1,IF(AND('User Input'!$F$61=FALSE,Ranking!DL34=0),1,0)) -> 0 | AC34: =IF(AND('User Input'!$F$62=TRUE,Ranking!DM34=1),1,IF(AND('User Input'!$F$62=FALSE,Ranking!DM34=0),1,0)) -> 0 | AD34: =IF(AND('User Input'!$F$63=TRUE,Ranking!DN34=1),1,IF(AND('User Input'!$F$63=FALSE,Ranking!DN34=0),1,0)) -> 0 | AE34: =IF(AND('User Input'!$F$64=TRUE,Ranking!DO34=1),1,IF(AND('User Input'!$F$64=FALSE,Ranking!DO34=0),1,0)) -> 0 | AF34: =IF(AND('User Input'!$F$65=TRUE,Ranking!DP34=1),1,IF(AND('User Input'!$F$65=FALSE,Ranking!DP34=0),1,0)) -> 0 | AG34: =IF(AND('User Input'!$F$66=TRUE,Ranking!DQ34=1),1,IF(AND('User Input'!$F$66=FALSE,Ranking!DQ34=0),1,0)) -> 0 | AH34: =IF(AND('User Input'!$F$67=TRUE,Ranking!DR34=1),1,IF(AND('User Input'!$F$67=FALSE,Ranking!DR34=0),1,0)) -> 0 | AI34: =IF(Ranking!CV34="Y",1,IF(AND('User Input'!$G$38='User Input'!$G$14,Ranking!CV34="N"),1,0)) -> 0 | AJ34: =IF(OR(Ranking!DG34="Y",'User Input'!$H$38='User Input'!$H$14),1,IF(AND('User Input'!$H$38='User Input'!$H$13,Ranking!DG34="Y"),1,0)) -> 0 | AK34: =IF(AND('User Input'!$B$52='User Input'!$B$23,Ranking!CL34<'User Input'!$A$23),1,0) -> 0 | AL34: =IF(AND('User Input'!$B$52='User Input'!$B$24,Ranking!CL34<'User Input'!$A$24),1,0) -> 0 | AM34: =IF(AND('User Input'!$B$52='User Input'!$B$25,Ranking!CL34<'User Input'!$A$25),1,0) -> 1 | AN34: =IF(AND('User Input'!$B$52='User Input'!$B$26,Ranking!CL34<'User Input'!$A$26),1,0) -> 0 | AO34: =IF('User Input'!$B$52='User Input'!$B$27,1,0) -> 0 | AP34: =IF(AND('User Input'!$C$52='User Input'!$C$23,CE34=1),1,0) -> 0 | AQ34: =IF(CD34=1,0,IF(AND('User Input'!$C$52='User Input'!$C$24,Ranking!CF34=1),1,0)) -> 0 | AR34: =IF(CE34=1,0,IF(AND('User Input'!$C$52='User Input'!$C$25,Ranking!CG34=1),1,0)) -> 0 | AS34: =IF(CF34=1,0,IF(AND('User Input'!$C$52='User Input'!$C$26,Ranking!CH34=1),1,0)) -> 0 | AT34: =IF(CG34=1,0,IF(AND('User Input'!$C$52='User Input'!$C$27,Ranking!CI34=1),1,0)) -> 0 | AU34: =IF(AND('User Input'!$D$52='User Input'!$D$23,Ranking!CJ34>5000),1,0) -> 0 | AV34: =IF('User Input'!$E$52='User Input'!$E$25,1,IF(AND('User Input'!$E$52='User Input'!$E$23,Ranking!CM34=1),1,IF(AND('User Input'!$E$52='User Input'!$E$24,Ranking!CM34=0),1,0))) -> 0 | AW34: =IF(AND('User Input'!$F$52='User Input'!$F$23,Ranking!DS34=1),1,0) -> 0 | AX34: =IF(AND('User Input'!$F$52='User Input'!$F$24,Ranking!DT34=1),1,0) -> 0 | AY34: =IF(AND('User Input'!$F$52='User Input'!$F$25,Ranking!DU34=1),1,0) -> 0 | AZ34: =IF('User Input'!$G$52='User Input'!$G$24,1,IF(AND('User Input'!$G$52='User Input'!$G$23,DH34="Y"),1,0)) -> 0 | BA34: =IF('User Input'!$H$52='User Input'!$H$23,1,IF(AND('User Input'!$H$52='User Input'!$H$24,Ranking!BK34<>"Video"),1,0)) -> 1 | BB34: =IF(AND('User Input'!$I$52='User Input'!$I$23,Ranking!DV34=1),1,0) -> 0 | BC34: =IF(AND('User Input'!$I$52='User Input'!$I$24,Ranking!DW34=1),1,0) -> 0 | BD34: =IF(AND('User Input'!$I$52='User Input'!$I$25,Ranking!DX34=1),1,0) -> 0 | BE34: =IF('User Input'!$J$52='User Input'!$J$23,1,IF(AND('User Input'!$J$52='User Input'!$J$24,Ranking!DY34=0),1,0)) -> 1 | BF34: =IF('User Input'!$K$52='User Input'!$K$24,1,IF(AND('User Input'!$K$52='User Input'!$K$23,Ranking!CO34=1),1,0)) -> 0 | BI34: Placeholder
A35: =IF(AND('User Input'!$D$35='User Input'!$D$6,Ranking!BN35=1),1,0) -> 0 | B35: =IF(AND('User Input'!$D$35='User Input'!$D$7,Ranking!BO35=1),1,0) -> 0 | C35: =IF(AND('User Input'!$D$35='User Input'!$D$8,Ranking!BP35=1),1,0) -> 0 | D35: =IF(AND('User Input'!$F$35='User Input'!$F$7,Ranking!BQ35=1),1,0) -> 0 | E35: =IF(AND('User Input'!$F$35='User Input'!$F$6,Ranking!BR35=1),1,0) -> 0 | F35: =IF(AND('User Input'!$F$35='User Input'!$F$8,Ranking!BS35=1),1,0) -> 0 | G35: =IF(AND('User Input'!$F$35='User Input'!$F$9,Ranking!BT35=1),1,0) -> 0 | H35: =IF(AND('User Input'!$F$35='User Input'!$F$10,Ranking!BU35=1),1,0) -> 0 | I35: =IF(BV35=0,1,IF(AND(BV35=1,'User Input'!$G$35='User Input'!$G$6),0,IF(AND(BV35=1,'User Input'!$G$35='User Input'!$G$7),1,0))) -> 1 | J35: =IF(BW35=0,1,IF(AND(BW35=1,'User Input'!$H$35='User Input'!$H$6),1,IF(AND(BW35=1,'User Input'!$H$35='User Input'!$H$7),0))) -> 1 | K35: =IF('User Input'!$I$35='User Input'!$I$6,1,IF(AND('User Input'!$I$35='User Input'!$I$7,Ranking!BX35=0),1,0)) -> 1 | L35: =IF('User Input'!$K$35='User Input'!$K$7,1,IF(AND(OR('User Input'!$K$35='User Input'!$K$6,'User Input'!$K$35='User Input'!$K$8),Ranking!$CZ35="Y"),1,0)) -> 0 | M35: =IF(AND('User Input'!$B$38='User Input'!$B$13,Ranking!CA35=1),1,0) -> 0 | N35: =IF(AND('User Input'!$B$38='User Input'!$B$14,Ranking!CB35=1),1,0) -> 0 | O35: =IF(AND('User Input'!$B$38='User Input'!$B$15,Ranking!CC35=1),1,0) -> 0 | P35: =IF(AND('User Input'!$C$38='User Input'!$C$13,DA35=1),1,0) -> 0 | Q35: =IF(AND('User Input'!$C$38='User Input'!$C$14,Ranking!DB35=1),1,0) -> 0 | R35: =IF(AND('User Input'!$C$38='User Input'!$C$15,Ranking!DC35=1),1,0) -> 0 | S35: =IF(AND('User Input'!$C$38='User Input'!$C$16,Ranking!DD35=1),1,0) -> 0 | T35: =IF(AND('User Input'!$C$38='User Input'!$C$17,Ranking!DE35=1),1,0) -> 0 | U35: =IF(AND('User Input'!$C$38='User Input'!$C$18,Ranking!DF35=1),1,0) -> 0 | V35: =IF('User Input'!$I$38='User Input'!$I$13,1,IF(AND('User Input'!$I$38='User Input'!$I47,Ranking!$BY35>0.8),1,IF(AND('User Input'!$I$38='User Input'!$I$15,Ranking!$BY35>0.9),1,IF(AND('User Input'!$I$38='User Input'!$D$16,Ranking!$BY35>0.95),1,0)))) -> 0 | W35: =IF('User Input'!$D$38='User Input'!$D$13,1,IF(AND('User Input'!$D$38='User Input'!$D$14,Ranking!$BZ35>0.8),1,IF(AND('User Input'!$D$38='User Input'!$D$15,Ranking!$BZ35>0.9),1,IF(AND('User Input'!$D$38='User Input'!$D$16,Ranking!$BZ35>0.95),1,0)))) -> 0 | X35: =IF(AND('User Input'!$E$38='User Input'!$E$13,Ranking!DF35=1),1,0) -> 0 | Y35: =IF(AND('User Input'!$F$58=TRUE,Ranking!DI35=1),1,IF(AND('User Input'!$F$58=FALSE,Ranking!DI35=0),1,0)) -> 0 | Z35: =IF(AND('User Input'!$F$59=TRUE,Ranking!DJ35=1),1,IF(AND('User Input'!$F$59=FALSE,Ranking!DJ35=0),1,0)) -> 1 | AA35: =IF(AND('User Input'!$F$60=TRUE,Ranking!DK35=1),1,IF(AND('User Input'!$F$60=FALSE,Ranking!DK35=0),1,0)) -> 1 | AB35: =IF(AND('User Input'!$F$61=TRUE,Ranking!DL35=1),1,IF(AND('User Input'!$F$61=FALSE,Ranking!DL35=0),1,0)) -> 0 | AC35: =IF(AND('User Input'!$F$62=TRUE,Ranking!DM35=1),1,IF(AND('User Input'!$F$62=FALSE,Ranking!DM35=0),1,0)) -> 0 | AD35: =IF(AND('User Input'!$F$63=TRUE,Ranking!DN35=1),1,IF(AND('User Input'!$F$63=FALSE,Ranking!DN35=0),1,0)) -> 0 | AE35: =IF(AND('User Input'!$F$64=TRUE,Ranking!DO35=1),1,IF(AND('User Input'!$F$64=FALSE,Ranking!DO35=0),1,0)) -> 0 | AF35: =IF(AND('User Input'!$F$65=TRUE,Ranking!DP35=1),1,IF(AND('User Input'!$F$65=FALSE,Ranking!DP35=0),1,0)) -> 0 | AG35: =IF(AND('User Input'!$F$66=TRUE,Ranking!DQ35=1),1,IF(AND('User Input'!$F$66=FALSE,Ranking!DQ35=0),1,0)) -> 0 | AH35: =IF(AND('User Input'!$F$67=TRUE,Ranking!DR35=1),1,IF(AND('User Input'!$F$67=FALSE,Ranking!DR35=0),1,0)) -> 0 | AI35: =IF(Ranking!CV35="Y",1,IF(AND('User Input'!$G$38='User Input'!$G$14,Ranking!CV35="N"),1,0)) -> 0 | AJ35: =IF(OR(Ranking!DG35="Y",'User Input'!$H$38='User Input'!$H$14),1,IF(AND('User Input'!$H$38='User Input'!$H$13,Ranking!DG35="Y"),1,0)) -> 0 | AK35: =IF(AND('User Input'!$B$52='User Input'!$B$23,Ranking!CL35<'User Input'!$A$23),1,0) -> 0 | AL35: =IF(AND('User Input'!$B$52='User Input'!$B$24,Ranking!CL35<'User Input'!$A$24),1,0) -> 0 | AM35: =IF(AND('User Input'!$B$52='User Input'!$B$25,Ranking!CL35<'User Input'!$A$25),1,0) -> 1 | AN35: =IF(AND('User Input'!$B$52='User Input'!$B$26,Ranking!CL35<'User Input'!$A$26),1,0) -> 0 | AO35: =IF('User Input'!$B$52='User Input'!$B$27,1,0) -> 0 | AP35: =IF(AND('User Input'!$C$52='User Input'!$C$23,CE35=1),1,0) -> 0 | AQ35: =IF(CD35=1,0,IF(AND('User Input'!$C$52='User Input'!$C$24,Ranking!CF35=1),1,0)) -> 0 | AR35: =IF(CE35=1,0,IF(AND('User Input'!$C$52='User Input'!$C$25,Ranking!CG35=1),1,0)) -> 0 | AS35: =IF(CF35=1,0,IF(AND('User Input'!$C$52='User Input'!$C$26,Ranking!CH35=1),1,0)) -> 0 | AT35: =IF(CG35=1,0,IF(AND('User Input'!$C$52='User Input'!$C$27,Ranking!CI35=1),1,0)) -> 0 | AU35: =IF(AND('User Input'!$D$52='User Input'!$D$23,Ranking!CJ35>5000),1,0) -> 0 | AV35: =IF('User Input'!$E$52='User Input'!$E$25,1,IF(AND('User Input'!$E$52='User Input'!$E$23,Ranking!CM35=1),1,IF(AND('User Input'!$E$52='User Input'!$E$24,Ranking!CM35=0),1,0))) -> 0 | AW35: =IF(AND('User Input'!$F$52='User Input'!$F$23,Ranking!DS35=1),1,0) -> 0 | AX35: =IF(AND('User Input'!$F$52='User Input'!$F$24,Ranking!DT35=1),1,0) -> 0 | AY35: =IF(AND('User Input'!$F$52='User Input'!$F$25,Ranking!DU35=1),1,0) -> 0 | AZ35: =IF('User Input'!$G$52='User Input'!$G$24,1,IF(AND('User Input'!$G$52='User Input'!$G$23,DH35="Y"),1,0)) -> 0 | BA35: =IF('User Input'!$H$52='User Input'!$H$23,1,IF(AND('User Input'!$H$52='User Input'!$H$24,Ranking!BK35<>"Video"),1,0)) -> 1 | BB35: =IF(AND('User Input'!$I$52='User Input'!$I$23,Ranking!DV35=1),1,0) -> 0 | BC35: =IF(AND('User Input'!$I$52='User Input'!$I$24,Ranking!DW35=1),1,0) -> 0 | BD35: =IF(AND('User Input'!$I$52='User Input'!$I$25,Ranking!DX35=1),1,0) -> 0 | BE35: =IF('User Input'!$J$52='User Input'!$J$23,1,IF(AND('User Input'!$J$52='User Input'!$J$24,Ranking!DY35=0),1,0)) -> 1 | BF35: =IF('User Input'!$K$52='User Input'!$K$24,1,IF(AND('User Input'!$K$52='User Input'!$K$23,Ranking!CO35=1),1,0)) -> 0 | BI35: Placeholder
A36: =IF(AND('User Input'!$D$35='User Input'!$D$6,Ranking!BN36=1),1,0) -> 0 | B36: =IF(AND('User Input'!$D$35='User Input'!$D$7,Ranking!BO36=1),1,0) -> 0 | C36: =IF(AND('User Input'!$D$35='User Input'!$D$8,Ranking!BP36=1),1,0) -> 0 | D36: =IF(AND('User Input'!$F$35='User Input'!$F$7,Ranking!BQ36=1),1,0) -> 0 | E36: =IF(AND('User Input'!$F$35='User Input'!$F$6,Ranking!BR36=1),1,0) -> 0 | F36: =IF(AND('User Input'!$F$35='User Input'!$F$8,Ranking!BS36=1),1,0) -> 0 | G36: =IF(AND('User Input'!$F$35='User Input'!$F$9,Ranking!BT36=1),1,0) -> 0 | H36: =IF(AND('User Input'!$F$35='User Input'!$F$10,Ranking!BU36=1),1,0) -> 0 | I36: =IF(BV36=0,1,IF(AND(BV36=1,'User Input'!$G$35='User Input'!$G$6),0,IF(AND(BV36=1,'User Input'!$G$35='User Input'!$G$7),1,0))) -> 1 | J36: =IF(BW36=0,1,IF(AND(BW36=1,'User Input'!$H$35='User Input'!$H$6),1,IF(AND(BW36=1,'User Input'!$H$35='User Input'!$H$7),0))) -> 1 | K36: =IF('User Input'!$I$35='User Input'!$I$6,1,IF(AND('User Input'!$I$35='User Input'!$I$7,Ranking!BX36=0),1,0)) -> 1 | L36: =IF('User Input'!$K$35='User Input'!$K$7,1,IF(AND(OR('User Input'!$K$35='User Input'!$K$6,'User Input'!$K$35='User Input'!$K$8),Ranking!$CZ36="Y"),1,0)) -> 0 | M36: =IF(AND('User Input'!$B$38='User Input'!$B$13,Ranking!CA36=1),1,0) -> 0 | N36: =IF(AND('User Input'!$B$38='User Input'!$B$14,Ranking!CB36=1),1,0) -> 0 | O36: =IF(AND('User Input'!$B$38='User Input'!$B$15,Ranking!CC36=1),1,0) -> 0 | P36: =IF(AND('User Input'!$C$38='User Input'!$C$13,DA36=1),1,0) -> 0 | Q36: =IF(AND('User Input'!$C$38='User Input'!$C$14,Ranking!DB36=1),1,0) -> 0 | R36: =IF(AND('User Input'!$C$38='User Input'!$C$15,Ranking!DC36=1),1,0) -> 0 | S36: =IF(AND('User Input'!$C$38='User Input'!$C$16,Ranking!DD36=1),1,0) -> 0 | T36: =IF(AND('User Input'!$C$38='User Input'!$C$17,Ranking!DE36=1),1,0) -> 0 | U36: =IF(AND('User Input'!$C$38='User Input'!$C$18,Ranking!DF36=1),1,0) -> 0 | V36: =IF('User Input'!$I$38='User Input'!$I$13,1,IF(AND('User Input'!$I$38='User Input'!$I48,Ranking!$BY36>0.8),1,IF(AND('User Input'!$I$38='User Input'!$I$15,Ranking!$BY36>0.9),1,IF(AND('User Input'!$I$38='User Input'!$D$16,Ranking!$BY36>0.95),1,0)))) -> 0 | W36: =IF('User Input'!$D$38='User Input'!$D$13,1,IF(AND('User Input'!$D$38='User Input'!$D$14,Ranking!$BZ36>0.8),1,IF(AND('User Input'!$D$38='User Input'!$D$15,Ranking!$BZ36>0.9),1,IF(AND('User Input'!$D$38='User Input'!$D$16,Ranking!$BZ36>0.95),1,0)))) -> 0 | X36: =IF(AND('User Input'!$E$38='User Input'!$E$13,Ranking!DF36=1),1,0) -> 0 | Y36: =IF(AND('User Input'!$F$58=TRUE,Ranking!DI36=1),1,IF(AND('User Input'!$F$58=FALSE,Ranking!DI36=0),1,0)) -> 0 | Z36: =IF(AND('User Input'!$F$59=TRUE,Ranking!DJ36=1),1,IF(AND('User Input'!$F$59=FALSE,Ranking!DJ36=0),1,0)) -> 1 | AA36: =IF(AND('User Input'!$F$60=TRUE,Ranking!DK36=1),1,IF(AND('User Input'!$F$60=FALSE,Ranking!DK36=0),1,0)) -> 1 | AB36: =IF(AND('User Input'!$F$61=TRUE,Ranking!DL36=1),1,IF(AND('User Input'!$F$61=FALSE,Ranking!DL36=0),1,0)) -> 0 | AC36: =IF(AND('User Input'!$F$62=TRUE,Ranking!DM36=1),1,IF(AND('User Input'!$F$62=FALSE,Ranking!DM36=0),1,0)) -> 0 | AD36: =IF(AND('User Input'!$F$63=TRUE,Ranking!DN36=1),1,IF(AND('User Input'!$F$63=FALSE,Ranking!DN36=0),1,0)) -> 0 | AE36: =IF(AND('User Input'!$F$64=TRUE,Ranking!DO36=1),1,IF(AND('User Input'!$F$64=FALSE,Ranking!DO36=0),1,0)) -> 0 | AF36: =IF(AND('User Input'!$F$65=TRUE,Ranking!DP36=1),1,IF(AND('User Input'!$F$65=FALSE,Ranking!DP36=0),1,0)) -> 0 | AG36: =IF(AND('User Input'!$F$66=TRUE,Ranking!DQ36=1),1,IF(AND('User Input'!$F$66=FALSE,Ranking!DQ36=0),1,0)) -> 0 | AH36: =IF(AND('User Input'!$F$67=TRUE,Ranking!DR36=1),1,IF(AND('User Input'!$F$67=FALSE,Ranking!DR36=0),1,0)) -> 0 | AI36: =IF(Ranking!CV36="Y",1,IF(AND('User Input'!$G$38='User Input'!$G$14,Ranking!CV36="N"),1,0)) -> 0 | AJ36: =IF(OR(Ranking!DG36="Y",'User Input'!$H$38='User Input'!$H$14),1,IF(AND('User Input'!$H$38='User Input'!$H$13,Ranking!DG36="Y"),1,0)) -> 0 | AK36: =IF(AND('User Input'!$B$52='User Input'!$B$23,Ranking!CL36<'User Input'!$A$23),1,0) -> 0 | AL36: =IF(AND('User Input'!$B$52='User Input'!$B$24,Ranking!CL36<'User Input'!$A$24),1,0) -> 0 | AM36: =IF(AND('User Input'!$B$52='User Input'!$B$25,Ranking!CL36<'User Input'!$A$25),1,0) -> 1 | AN36: =IF(AND('User Input'!$B$52='User Input'!$B$26,Ranking!CL36<'User Input'!$A$26),1,0) -> 0 | AO36: =IF('User Input'!$B$52='User Input'!$B$27,1,0) -> 0 | AP36: =IF(AND('User Input'!$C$52='User Input'!$C$23,CE36=1),1,0) -> 0 | AQ36: =IF(CD36=1,0,IF(AND('User Input'!$C$52='User Input'!$C$24,Ranking!CF36=1),1,0)) -> 0 | AR36: =IF(CE36=1,0,IF(AND('User Input'!$C$52='User Input'!$C$25,Ranking!CG36=1),1,0)) -> 0 | AS36: =IF(CF36=1,0,IF(AND('User Input'!$C$52='User Input'!$C$26,Ranking!CH36=1),1,0)) -> 0 | AT36: =IF(CG36=1,0,IF(AND('User Input'!$C$52='User Input'!$C$27,Ranking!CI36=1),1,0)) -> 0 | AU36: =IF(AND('User Input'!$D$52='User Input'!$D$23,Ranking!CJ36>5000),1,0) -> 0 | AV36: =IF('User Input'!$E$52='User Input'!$E$25,1,IF(AND('User Input'!$E$52='User Input'!$E$23,Ranking!CM36=1),1,IF(AND('User Input'!$E$52='User Input'!$E$24,Ranking!CM36=0),1,0))) -> 0 | AW36: =IF(AND('User Input'!$F$52='User Input'!$F$23,Ranking!DS36=1),1,0) -> 0 | AX36: =IF(AND('User Input'!$F$52='User Input'!$F$24,Ranking!DT36=1),1,0) -> 0 | AY36: =IF(AND('User Input'!$F$52='User Input'!$F$25,Ranking!DU36=1),1,0) -> 0 | AZ36: =IF('User Input'!$G$52='User Input'!$G$24,1,IF(AND('User Input'!$G$52='User Input'!$G$23,DH36="Y"),1,0)) -> 0 | BA36: =IF('User Input'!$H$52='User Input'!$H$23,1,IF(AND('User Input'!$H$52='User Input'!$H$24,Ranking!BK36<>"Video"),1,0)) -> 1 | BB36: =IF(AND('User Input'!$I$52='User Input'!$I$23,Ranking!DV36=1),1,0) -> 0 | BC36: =IF(AND('User Input'!$I$52='User Input'!$I$24,Ranking!DW36=1),1,0) -> 0 | BD36: =IF(AND('User Input'!$I$52='User Input'!$I$25,Ranking!DX36=1),1,0) -> 0 | BE36: =IF('User Input'!$J$52='User Input'!$J$23,1,IF(AND('User Input'!$J$52='User Input'!$J$24,Ranking!DY36=0),1,0)) -> 1 | BF36: =IF('User Input'!$K$52='User Input'!$K$24,1,IF(AND('User Input'!$K$52='User Input'!$K$23,Ranking!CO36=1),1,0)) -> 0 | BI36: Placeholder
A37: =IF(AND('User Input'!$D$35='User Input'!$D$6,Ranking!BN37=1),1,0) -> 0 | B37: =IF(AND('User Input'!$D$35='User Input'!$D$7,Ranking!BO37=1),1,0) -> 0 | C37: =IF(AND('User Input'!$D$35='User Input'!$D$8,Ranking!BP37=1),1,0) -> 0 | D37: =IF(AND('User Input'!$F$35='User Input'!$F$7,Ranking!BQ37=1),1,0) -> 0 | E37: =IF(AND('User Input'!$F$35='User Input'!$F$6,Ranking!BR37=1),1,0) -> 0 | F37: =IF(AND('User Input'!$F$35='User Input'!$F$8,Ranking!BS37=1),1,0) -> 0 | G37: =IF(AND('User Input'!$F$35='User Input'!$F$9,Ranking!BT37=1),1,0) -> 0 | H37: =IF(AND('User Input'!$F$35='User Input'!$F$10,Ranking!BU37=1),1,0) -> 0 | I37: =IF(BV37=0,1,IF(AND(BV37=1,'User Input'!$G$35='User Input'!$G$6),0,IF(AND(BV37=1,'User Input'!$G$35='User Input'!$G$7),1,0))) -> 1 | J37: =IF(BW37=0,1,IF(AND(BW37=1,'User Input'!$H$35='User Input'!$H$6),1,IF(AND(BW37=1,'User Input'!$H$35='User Input'!$H$7),0))) -> 1 | K37: =IF('User Input'!$I$35='User Input'!$I$6,1,IF(AND('User Input'!$I$35='User Input'!$I$7,Ranking!BX37=0),1,0)) -> 1 | L37: =IF('User Input'!$K$35='User Input'!$K$7,1,IF(AND(OR('User Input'!$K$35='User Input'!$K$6,'User Input'!$K$35='User Input'!$K$8),Ranking!$CZ37="Y"),1,0)) -> 0 | M37: =IF(AND('User Input'!$B$38='User Input'!$B$13,Ranking!CA37=1),1,0) -> 0 | N37: =IF(AND('User Input'!$B$38='User Input'!$B$14,Ranking!CB37=1),1,0) -> 0 | O37: =IF(AND('User Input'!$B$38='User Input'!$B$15,Ranking!CC37=1),1,0) -> 0 | P37: =IF(AND('User Input'!$C$38='User Input'!$C$13,DA37=1),1,0) -> 0 | Q37: =IF(AND('User Input'!$C$38='User Input'!$C$14,Ranking!DB37=1),1,0) -> 0 | R37: =IF(AND('User Input'!$C$38='User Input'!$C$15,Ranking!DC37=1),1,0) -> 0 | S37: =IF(AND('User Input'!$C$38='User Input'!$C$16,Ranking!DD37=1),1,0) -> 0 | T37: =IF(AND('User Input'!$C$38='User Input'!$C$17,Ranking!DE37=1),1,0) -> 0 | U37: =IF(AND('User Input'!$C$38='User Input'!$C$18,Ranking!DF37=1),1,0) -> 0 | V37: =IF('User Input'!$I$38='User Input'!$I$13,1,IF(AND('User Input'!$I$38='User Input'!$I49,Ranking!$BY37>0.8),1,IF(AND('User Input'!$I$38='User Input'!$I$15,Ranking!$BY37>0.9),1,IF(AND('User Input'!$I$38='User Input'!$D$16,Ranking!$BY37>0.95),1,0)))) -> 0 | W37: =IF('User Input'!$D$38='User Input'!$D$13,1,IF(AND('User Input'!$D$38='User Input'!$D$14,Ranking!$BZ37>0.8),1,IF(AND('User Input'!$D$38='User Input'!$D$15,Ranking!$BZ37>0.9),1,IF(AND('User Input'!$D$38='User Input'!$D$16,Ranking!$BZ37>0.95),1,0)))) -> 0 | X37: =IF(AND('User Input'!$E$38='User Input'!$E$13,Ranking!DF37=1),1,0) -> 0 | Y37: =IF(AND('User Input'!$F$58=TRUE,Ranking!DI37=1),1,IF(AND('User Input'!$F$58=FALSE,Ranking!DI37=0),1,0)) -> 0 | Z37: =IF(AND('User Input'!$F$59=TRUE,Ranking!DJ37=1),1,IF(AND('User Input'!$F$59=FALSE,Ranking!DJ37=0),1,0)) -> 1 | AA37: =IF(AND('User Input'!$F$60=TRUE,Ranking!DK37=1),1,IF(AND('User Input'!$F$60=FALSE,Ranking!DK37=0),1,0)) -> 1 | AB37: =IF(AND('User Input'!$F$61=TRUE,Ranking!DL37=1),1,IF(AND('User Input'!$F$61=FALSE,Ranking!DL37=0),1,0)) -> 0 | AC37: =IF(AND('User Input'!$F$62=TRUE,Ranking!DM37=1),1,IF(AND('User Input'!$F$62=FALSE,Ranking!DM37=0),1,0)) -> 0 | AD37: =IF(AND('User Input'!$F$63=TRUE,Ranking!DN37=1),1,IF(AND('User Input'!$F$63=FALSE,Ranking!DN37=0),1,0)) -> 0 | AE37: =IF(AND('User Input'!$F$64=TRUE,Ranking!DO37=1),1,IF(AND('User Input'!$F$64=FALSE,Ranking!DO37=0),1,0)) -> 0 | AF37: =IF(AND('User Input'!$F$65=TRUE,Ranking!DP37=1),1,IF(AND('User Input'!$F$65=FALSE,Ranking!DP37=0),1,0)) -> 0 | AG37: =IF(AND('User Input'!$F$66=TRUE,Ranking!DQ37=1),1,IF(AND('User Input'!$F$66=FALSE,Ranking!DQ37=0),1,0)) -> 0 | AH37: =IF(AND('User Input'!$F$67=TRUE,Ranking!DR37=1),1,IF(AND('User Input'!$F$67=FALSE,Ranking!DR37=0),1,0)) -> 0 | AI37: =IF(Ranking!CV37="Y",1,IF(AND('User Input'!$G$38='User Input'!$G$14,Ranking!CV37="N"),1,0)) -> 0 | AJ37: =IF(OR(Ranking!DG37="Y",'User Input'!$H$38='User Input'!$H$14),1,IF(AND('User Input'!$H$38='User Input'!$H$13,Ranking!DG37="Y"),1,0)) -> 0 | AK37: =IF(AND('User Input'!$B$52='User Input'!$B$23,Ranking!CL37<'User Input'!$A$23),1,0) -> 0 | AL37: =IF(AND('User Input'!$B$52='User Input'!$B$24,Ranking!CL37<'User Input'!$A$24),1,0) -> 0 | AM37: =IF(AND('User Input'!$B$52='User Input'!$B$25,Ranking!CL37<'User Input'!$A$25),1,0) -> 1 | AN37: =IF(AND('User Input'!$B$52='User Input'!$B$26,Ranking!CL37<'User Input'!$A$26),1,0) -> 0 | AO37: =IF('User Input'!$B$52='User Input'!$B$27,1,0) -> 0 | AP37: =IF(AND('User Input'!$C$52='User Input'!$C$23,CE37=1),1,0) -> 0 | AQ37: =IF(CD37=1,0,IF(AND('User Input'!$C$52='User Input'!$C$24,Ranking!CF37=1),1,0)) -> 0 | AR37: =IF(CE37=1,0,IF(AND('User Input'!$C$52='User Input'!$C$25,Ranking!CG37=1),1,0)) -> 0 | AS37: =IF(CF37=1,0,IF(AND('User Input'!$C$52='User Input'!$C$26,Ranking!CH37=1),1,0)) -> 0 | AT37: =IF(CG37=1,0,IF(AND('User Input'!$C$52='User Input'!$C$27,Ranking!CI37=1),1,0)) -> 0 | AU37: =IF(AND('User Input'!$D$52='User Input'!$D$23,Ranking!CJ37>5000),1,0) -> 0 | AV37: =IF('User Input'!$E$52='User Input'!$E$25,1,IF(AND('User Input'!$E$52='User Input'!$E$23,Ranking!CM37=1),1,IF(AND('User Input'!$E$52='User Input'!$E$24,Ranking!CM37=0),1,0))) -> 0 | AW37: =IF(AND('User Input'!$F$52='User Input'!$F$23,Ranking!DS37=1),1,0) -> 0 | AX37: =IF(AND('User Input'!$F$52='User Input'!$F$24,Ranking!DT37=1),1,0) -> 0 | AY37: =IF(AND('User Input'!$F$52='User Input'!$F$25,Ranking!DU37=1),1,0) -> 0 | AZ37: =IF('User Input'!$G$52='User Input'!$G$24,1,IF(AND('User Input'!$G$52='User Input'!$G$23,DH37="Y"),1,0)) -> 0 | BA37: =IF('User Input'!$H$52='User Input'!$H$23,1,IF(AND('User Input'!$H$52='User Input'!$H$24,Ranking!BK37<>"Video"),1,0)) -> 1 | BB37: =IF(AND('User Input'!$I$52='User Input'!$I$23,Ranking!DV37=1),1,0) -> 0 | BC37: =IF(AND('User Input'!$I$52='User Input'!$I$24,Ranking!DW37=1),1,0) -> 0 | BD37: =IF(AND('User Input'!$I$52='User Input'!$I$25,Ranking!DX37=1),1,0) -> 0 | BE37: =IF('User Input'!$J$52='User Input'!$J$23,1,IF(AND('User Input'!$J$52='User Input'!$J$24,Ranking!DY37=0),1,0)) -> 1 | BF37: =IF('User Input'!$K$52='User Input'!$K$24,1,IF(AND('User Input'!$K$52='User Input'!$K$23,Ranking!CO37=1),1,0)) -> 0 | BI37: Placeholder
A38: =IF(AND('User Input'!$D$35='User Input'!$D$6,Ranking!BN38=1),1,0) -> 0 | B38: =IF(AND('User Input'!$D$35='User Input'!$D$7,Ranking!BO38=1),1,0) -> 0 | C38: =IF(AND('User Input'!$D$35='User Input'!$D$8,Ranking!BP38=1),1,0) -> 0 | D38: =IF(AND('User Input'!$F$35='User Input'!$F$7,Ranking!BQ38=1),1,0) -> 0 | E38: =IF(AND('User Input'!$F$35='User Input'!$F$6,Ranking!BR38=1),1,0) -> 0 | F38: =IF(AND('User Input'!$F$35='User Input'!$F$8,Ranking!BS38=1),1,0) -> 0 | G38: =IF(AND('User Input'!$F$35='User Input'!$F$9,Ranking!BT38=1),1,0) -> 0 | H38: =IF(AND('User Input'!$F$35='User Input'!$F$10,Ranking!BU38=1),1,0) -> 0 | I38: =IF(BV38=0,1,IF(AND(BV38=1,'User Input'!$G$35='User Input'!$G$6),0,IF(AND(BV38=1,'User Input'!$G$35='User Input'!$G$7),1,0))) -> 1 | J38: =IF(BW38=0,1,IF(AND(BW38=1,'User Input'!$H$35='User Input'!$H$6),1,IF(AND(BW38=1,'User Input'!$H$35='User Input'!$H$7),0))) -> 1 | K38: =IF('User Input'!$I$35='User Input'!$I$6,1,IF(AND('User Input'!$I$35='User Input'!$I$7,Ranking!BX38=0),1,0)) -> 1 | L38: =IF('User Input'!$K$35='User Input'!$K$7,1,IF(AND(OR('User Input'!$K$35='User Input'!$K$6,'User Input'!$K$35='User Input'!$K$8),Ranking!$CZ38="Y"),1,0)) -> 0 | M38: =IF(AND('User Input'!$B$38='User Input'!$B$13,Ranking!CA38=1),1,0) -> 0 | N38: =IF(AND('User Input'!$B$38='User Input'!$B$14,Ranking!CB38=1),1,0) -> 0 | O38: =IF(AND('User Input'!$B$38='User Input'!$B$15,Ranking!CC38=1),1,0) -> 0 | P38: =IF(AND('User Input'!$C$38='User Input'!$C$13,DA38=1),1,0) -> 0 | Q38: =IF(AND('User Input'!$C$38='User Input'!$C$14,Ranking!DB38=1),1,0) -> 0 | R38: =IF(AND('User Input'!$C$38='User Input'!$C$15,Ranking!DC38=1),1,0) -> 0 | S38: =IF(AND('User Input'!$C$38='User Input'!$C$16,Ranking!DD38=1),1,0) -> 0 | T38: =IF(AND('User Input'!$C$38='User Input'!$C$17,Ranking!DE38=1),1,0) -> 0 | U38: =IF(AND('User Input'!$C$38='User Input'!$C$18,Ranking!DF38=1),1,0) -> 0 | V38: =IF('User Input'!$I$38='User Input'!$I$13,1,IF(AND('User Input'!$I$38='User Input'!$I50,Ranking!$BY38>0.8),1,IF(AND('User Input'!$I$38='User Input'!$I$15,Ranking!$BY38>0.9),1,IF(AND('User Input'!$I$38='User Input'!$D$16,Ranking!$BY38>0.95),1,0)))) -> 0 | W38: =IF('User Input'!$D$38='User Input'!$D$13,1,IF(AND('User Input'!$D$38='User Input'!$D$14,Ranking!$BZ38>0.8),1,IF(AND('User Input'!$D$38='User Input'!$D$15,Ranking!$BZ38>0.9),1,IF(AND('User Input'!$D$38='User Input'!$D$16,Ranking!$BZ38>0.95),1,0)))) -> 0 | X38: =IF(AND('User Input'!$E$38='User Input'!$E$13,Ranking!DF38=1),1,0) -> 0 | Y38: =IF(AND('User Input'!$F$58=TRUE,Ranking!DI38=1),1,IF(AND('User Input'!$F$58=FALSE,Ranking!DI38=0),1,0)) -> 0 | Z38: =IF(AND('User Input'!$F$59=TRUE,Ranking!DJ38=1),1,IF(AND('User Input'!$F$59=FALSE,Ranking!DJ38=0),1,0)) -> 1 | AA38: =IF(AND('User Input'!$F$60=TRUE,Ranking!DK38=1),1,IF(AND('User Input'!$F$60=FALSE,Ranking!DK38=0),1,0)) -> 1 | AB38: =IF(AND('User Input'!$F$61=TRUE,Ranking!DL38=1),1,IF(AND('User Input'!$F$61=FALSE,Ranking!DL38=0),1,0)) -> 0 | AC38: =IF(AND('User Input'!$F$62=TRUE,Ranking!DM38=1),1,IF(AND('User Input'!$F$62=FALSE,Ranking!DM38=0),1,0)) -> 0 | AD38: =IF(AND('User Input'!$F$63=TRUE,Ranking!DN38=1),1,IF(AND('User Input'!$F$63=FALSE,Ranking!DN38=0),1,0)) -> 0 | AE38: =IF(AND('User Input'!$F$64=TRUE,Ranking!DO38=1),1,IF(AND('User Input'!$F$64=FALSE,Ranking!DO38=0),1,0)) -> 0 | AF38: =IF(AND('User Input'!$F$65=TRUE,Ranking!DP38=1),1,IF(AND('User Input'!$F$65=FALSE,Ranking!DP38=0),1,0)) -> 0 | AG38: =IF(AND('User Input'!$F$66=TRUE,Ranking!DQ38=1),1,IF(AND('User Input'!$F$66=FALSE,Ranking!DQ38=0),1,0)) -> 0 | AH38: =IF(AND('User Input'!$F$67=TRUE,Ranking!DR38=1),1,IF(AND('User Input'!$F$67=FALSE,Ranking!DR38=0),1,0)) -> 0 | AI38: =IF(Ranking!CV38="Y",1,IF(AND('User Input'!$G$38='User Input'!$G$14,Ranking!CV38="N"),1,0)) -> 0 | AJ38: =IF(OR(Ranking!DG38="Y",'User Input'!$H$38='User Input'!$H$14),1,IF(AND('User Input'!$H$38='User Input'!$H$13,Ranking!DG38="Y"),1,0)) -> 0 | AK38: =IF(AND('User Input'!$B$52='User Input'!$B$23,Ranking!CL38<'User Input'!$A$23),1,0) -> 0 | AL38: =IF(AND('User Input'!$B$52='User Input'!$B$24,Ranking!CL38<'User Input'!$A$24),1,0) -> 0 | AM38: =IF(AND('User Input'!$B$52='User Input'!$B$25,Ranking!CL38<'User Input'!$A$25),1,0) -> 1 | AN38: =IF(AND('User Input'!$B$52='User Input'!$B$26,Ranking!CL38<'User Input'!$A$26),1,0) -> 0 | AO38: =IF('User Input'!$B$52='User Input'!$B$27,1,0) -> 0 | AP38: =IF(AND('User Input'!$C$52='User Input'!$C$23,CE38=1),1,0) -> 0 | AQ38: =IF(CD38=1,0,IF(AND('User Input'!$C$52='User Input'!$C$24,Ranking!CF38=1),1,0)) -> 0 | AR38: =IF(CE38=1,0,IF(AND('User Input'!$C$52='User Input'!$C$25,Ranking!CG38=1),1,0)) -> 0 | AS38: =IF(CF38=1,0,IF(AND('User Input'!$C$52='User Input'!$C$26,Ranking!CH38=1),1,0)) -> 0 | AT38: =IF(CG38=1,0,IF(AND('User Input'!$C$52='User Input'!$C$27,Ranking!CI38=1),1,0)) -> 0 | AU38: =IF(AND('User Input'!$D$52='User Input'!$D$23,Ranking!CJ38>5000),1,0) -> 0 | AV38: =IF('User Input'!$E$52='User Input'!$E$25,1,IF(AND('User Input'!$E$52='User Input'!$E$23,Ranking!CM38=1),1,IF(AND('User Input'!$E$52='User Input'!$E$24,Ranking!CM38=0),1,0))) -> 0 | AW38: =IF(AND('User Input'!$F$52='User Input'!$F$23,Ranking!DS38=1),1,0) -> 0 | AX38: =IF(AND('User Input'!$F$52='User Input'!$F$24,Ranking!DT38=1),1,0) -> 0 | AY38: =IF(AND('User Input'!$F$52='User Input'!$F$25,Ranking!DU38=1),1,0) -> 0 | AZ38: =IF('User Input'!$G$52='User Input'!$G$24,1,IF(AND('User Input'!$G$52='User Input'!$G$23,DH38="Y"),1,0)) -> 0 | BA38: =IF('User Input'!$H$52='User Input'!$H$23,1,IF(AND('User Input'!$H$52='User Input'!$H$24,Ranking!BK38<>"Video"),1,0)) -> 1 | BB38: =IF(AND('User Input'!$I$52='User Input'!$I$23,Ranking!DV38=1),1,0) -> 0 | BC38: =IF(AND('User Input'!$I$52='User Input'!$I$24,Ranking!DW38=1),1,0) -> 0 | BD38: =IF(AND('User Input'!$I$52='User Input'!$I$25,Ranking!DX38=1),1,0) -> 0 | BE38: =IF('User Input'!$J$52='User Input'!$J$23,1,IF(AND('User Input'!$J$52='User Input'!$J$24,Ranking!DY38=0),1,0)) -> 1 | BF38: =IF('User Input'!$K$52='User Input'!$K$24,1,IF(AND('User Input'!$K$52='User Input'!$K$23,Ranking!CO38=1),1,0)) -> 0 | BI38: Placeholder
A39: =IF(AND('User Input'!$D$35='User Input'!$D$6,Ranking!BN39=1),1,0) -> 0 | B39: =IF(AND('User Input'!$D$35='User Input'!$D$7,Ranking!BO39=1),1,0) -> 0 | C39: =IF(AND('User Input'!$D$35='User Input'!$D$8,Ranking!BP39=1),1,0) -> 0 | D39: =IF(AND('User Input'!$F$35='User Input'!$F$7,Ranking!BQ39=1),1,0) -> 0 | E39: =IF(AND('User Input'!$F$35='User Input'!$F$6,Ranking!BR39=1),1,0) -> 0 | F39: =IF(AND('User Input'!$F$35='User Input'!$F$8,Ranking!BS39=1),1,0) -> 0 | G39: =IF(AND('User Input'!$F$35='User Input'!$F$9,Ranking!BT39=1),1,0) -> 0 | H39: =IF(AND('User Input'!$F$35='User Input'!$F$10,Ranking!BU39=1),1,0) -> 0 | I39: =IF(BV39=0,1,IF(AND(BV39=1,'User Input'!$G$35='User Input'!$G$6),0,IF(AND(BV39=1,'User Input'!$G$35='User Input'!$G$7),1,0))) -> 1 | J39: =IF(BW39=0,1,IF(AND(BW39=1,'User Input'!$H$35='User Input'!$H$6),1,IF(AND(BW39=1,'User Input'!$H$35='User Input'!$H$7),0))) -> 1 | K39: =IF('User Input'!$I$35='User Input'!$I$6,1,IF(AND('User Input'!$I$35='User Input'!$I$7,Ranking!BX39=0),1,0)) -> 1 | L39: =IF('User Input'!$K$35='User Input'!$K$7,1,IF(AND(OR('User Input'!$K$35='User Input'!$K$6,'User Input'!$K$35='User Input'!$K$8),Ranking!$CZ39="Y"),1,0)) -> 0 | M39: =IF(AND('User Input'!$B$38='User Input'!$B$13,Ranking!CA39=1),1,0) -> 0 | N39: =IF(AND('User Input'!$B$38='User Input'!$B$14,Ranking!CB39=1),1,0) -> 0 | O39: =IF(AND('User Input'!$B$38='User Input'!$B$15,Ranking!CC39=1),1,0) -> 0 | P39: =IF(AND('User Input'!$C$38='User Input'!$C$13,DA39=1),1,0) -> 0 | Q39: =IF(AND('User Input'!$C$38='User Input'!$C$14,Ranking!DB39=1),1,0) -> 0 | R39: =IF(AND('User Input'!$C$38='User Input'!$C$15,Ranking!DC39=1),1,0) -> 0 | S39: =IF(AND('User Input'!$C$38='User Input'!$C$16,Ranking!DD39=1),1,0) -> 0 | T39: =IF(AND('User Input'!$C$38='User Input'!$C$17,Ranking!DE39=1),1,0) -> 0 | U39: =IF(AND('User Input'!$C$38='User Input'!$C$18,Ranking!DF39=1),1,0) -> 0 | V39: =IF('User Input'!$I$38='User Input'!$I$13,1,IF(AND('User Input'!$I$38='User Input'!$I51,Ranking!$BY39>0.8),1,IF(AND('User Input'!$I$38='User Input'!$I$15,Ranking!$BY39>0.9),1,IF(AND('User Input'!$I$38='User Input'!$D$16,Ranking!$BY39>0.95),1,0)))) -> 0 | W39: =IF('User Input'!$D$38='User Input'!$D$13,1,IF(AND('User Input'!$D$38='User Input'!$D$14,Ranking!$BZ39>0.8),1,IF(AND('User Input'!$D$38='User Input'!$D$15,Ranking!$BZ39>0.9),1,IF(AND('User Input'!$D$38='User Input'!$D$16,Ranking!$BZ39>0.95),1,0)))) -> 0 | X39: =IF(AND('User Input'!$E$38='User Input'!$E$13,Ranking!DF39=1),1,0) -> 0 | Y39: =IF(AND('User Input'!$F$58=TRUE,Ranking!DI39=1),1,IF(AND('User Input'!$F$58=FALSE,Ranking!DI39=0),1,0)) -> 0 | Z39: =IF(AND('User Input'!$F$59=TRUE,Ranking!DJ39=1),1,IF(AND('User Input'!$F$59=FALSE,Ranking!DJ39=0),1,0)) -> 1 | AA39: =IF(AND('User Input'!$F$60=TRUE,Ranking!DK39=1),1,IF(AND('User Input'!$F$60=FALSE,Ranking!DK39=0),1,0)) -> 1 | AB39: =IF(AND('User Input'!$F$61=TRUE,Ranking!DL39=1),1,IF(AND('User Input'!$F$61=FALSE,Ranking!DL39=0),1,0)) -> 0 | AC39: =IF(AND('User Input'!$F$62=TRUE,Ranking!DM39=1),1,IF(AND('User Input'!$F$62=FALSE,Ranking!DM39=0),1,0)) -> 0 | AD39: =IF(AND('User Input'!$F$63=TRUE,Ranking!DN39=1),1,IF(AND('User Input'!$F$63=FALSE,Ranking!DN39=0),1,0)) -> 0 | AE39: =IF(AND('User Input'!$F$64=TRUE,Ranking!DO39=1),1,IF(AND('User Input'!$F$64=FALSE,Ranking!DO39=0),1,0)) -> 0 | AF39: =IF(AND('User Input'!$F$65=TRUE,Ranking!DP39=1),1,IF(AND('User Input'!$F$65=FALSE,Ranking!DP39=0),1,0)) -> 0 | AG39: =IF(AND('User Input'!$F$66=TRUE,Ranking!DQ39=1),1,IF(AND('User Input'!$F$66=FALSE,Ranking!DQ39=0),1,0)) -> 0 | AH39: =IF(AND('User Input'!$F$67=TRUE,Ranking!DR39=1),1,IF(AND('User Input'!$F$67=FALSE,Ranking!DR39=0),1,0)) -> 0 | AI39: =IF(Ranking!CV39="Y",1,IF(AND('User Input'!$G$38='User Input'!$G$14,Ranking!CV39="N"),1,0)) -> 0 | AJ39: =IF(OR(Ranking!DG39="Y",'User Input'!$H$38='User Input'!$H$14),1,IF(AND('User Input'!$H$38='User Input'!$H$13,Ranking!DG39="Y"),1,0)) -> 0 | AK39: =IF(AND('User Input'!$B$52='User Input'!$B$23,Ranking!CL39<'User Input'!$A$23),1,0) -> 0 | AL39: =IF(AND('User Input'!$B$52='User Input'!$B$24,Ranking!CL39<'User Input'!$A$24),1,0) -> 0 | AM39: =IF(AND('User Input'!$B$52='User Input'!$B$25,Ranking!CL39<'User Input'!$A$25),1,0) -> 1 | AN39: =IF(AND('User Input'!$B$52='User Input'!$B$26,Ranking!CL39<'User Input'!$A$26),1,0) -> 0 | AO39: =IF('User Input'!$B$52='User Input'!$B$27,1,0) -> 0 | AP39: =IF(AND('User Input'!$C$52='User Input'!$C$23,CE39=1),1,0) -> 0 | AQ39: =IF(CD39=1,0,IF(AND('User Input'!$C$52='User Input'!$C$24,Ranking!CF39=1),1,0)) -> 0 | AR39: =IF(CE39=1,0,IF(AND('User Input'!$C$52='User Input'!$C$25,Ranking!CG39=1),1,0)) -> 0 | AS39: =IF(CF39=1,0,IF(AND('User Input'!$C$52='User Input'!$C$26,Ranking!CH39=1),1,0)) -> 0 | AT39: =IF(CG39=1,0,IF(AND('User Input'!$C$52='User Input'!$C$27,Ranking!CI39=1),1,0)) -> 0 | AU39: =IF(AND('User Input'!$D$52='User Input'!$D$23,Ranking!CJ39>5000),1,0) -> 0 | AV39: =IF('User Input'!$E$52='User Input'!$E$25,1,IF(AND('User Input'!$E$52='User Input'!$E$23,Ranking!CM39=1),1,IF(AND('User Input'!$E$52='User Input'!$E$24,Ranking!CM39=0),1,0))) -> 0 | AW39: =IF(AND('User Input'!$F$52='User Input'!$F$23,Ranking!DS39=1),1,0) -> 0 | AX39: =IF(AND('User Input'!$F$52='User Input'!$F$24,Ranking!DT39=1),1,0) -> 0 | AY39: =IF(AND('User Input'!$F$52='User Input'!$F$25,Ranking!DU39=1),1,0) -> 0 | AZ39: =IF('User Input'!$G$52='User Input'!$G$24,1,IF(AND('User Input'!$G$52='User Input'!$G$23,DH39="Y"),1,0)) -> 0 | BA39: =IF('User Input'!$H$52='User Input'!$H$23,1,IF(AND('User Input'!$H$52='User Input'!$H$24,Ranking!BK39<>"Video"),1,0)) -> 1 | BB39: =IF(AND('User Input'!$I$52='User Input'!$I$23,Ranking!DV39=1),1,0) -> 0 | BC39: =IF(AND('User Input'!$I$52='User Input'!$I$24,Ranking!DW39=1),1,0) -> 0 | BD39: =IF(AND('User Input'!$I$52='User Input'!$I$25,Ranking!DX39=1),1,0) -> 0 | BE39: =IF('User Input'!$J$52='User Input'!$J$23,1,IF(AND('User Input'!$J$52='User Input'!$J$24,Ranking!DY39=0),1,0)) -> 1 | BF39: =IF('User Input'!$K$52='User Input'!$K$24,1,IF(AND('User Input'!$K$52='User Input'!$K$23,Ranking!CO39=1),1,0)) -> 0 | BI39: Placeholder
A40: =IF(AND('User Input'!$D$35='User Input'!$D$6,Ranking!BN40=1),1,0) -> 0 | B40: =IF(AND('User Input'!$D$35='User Input'!$D$7,Ranking!BO40=1),1,0) -> 0 | C40: =IF(AND('User Input'!$D$35='User Input'!$D$8,Ranking!BP40=1),1,0) -> 0 | D40: =IF(AND('User Input'!$F$35='User Input'!$F$7,Ranking!BQ40=1),1,0) -> 0 | E40: =IF(AND('User Input'!$F$35='User Input'!$F$6,Ranking!BR40=1),1,0) -> 0 | F40: =IF(AND('User Input'!$F$35='User Input'!$F$8,Ranking!BS40=1),1,0) -> 0 | G40: =IF(AND('User Input'!$F$35='User Input'!$F$9,Ranking!BT40=1),1,0) -> 0 | H40: =IF(AND('User Input'!$F$35='User Input'!$F$10,Ranking!BU40=1),1,0) -> 0 | I40: =IF(BV40=0,1,IF(AND(BV40=1,'User Input'!$G$35='User Input'!$G$6),0,IF(AND(BV40=1,'User Input'!$G$35='User Input'!$G$7),1,0))) -> 1 | J40: =IF(BW40=0,1,IF(AND(BW40=1,'User Input'!$H$35='User Input'!$H$6),1,IF(AND(BW40=1,'User Input'!$H$35='User Input'!$H$7),0))) -> 1 | K40: =IF('User Input'!$I$35='User Input'!$I$6,1,IF(AND('User Input'!$I$35='User Input'!$I$7,Ranking!BX40=0),1,0)) -> 1 | L40: =IF('User Input'!$K$35='User Input'!$K$7,1,IF(AND(OR('User Input'!$K$35='User Input'!$K$6,'User Input'!$K$35='User Input'!$K$8),Ranking!$CZ40="Y"),1,0)) -> 0 | M40: =IF(AND('User Input'!$B$38='User Input'!$B$13,Ranking!CA40=1),1,0) -> 0 | N40: =IF(AND('User Input'!$B$38='User Input'!$B$14,Ranking!CB40=1),1,0) -> 0 | O40: =IF(AND('User Input'!$B$38='User Input'!$B$15,Ranking!CC40=1),1,0) -> 0 | P40: =IF(AND('User Input'!$C$38='User Input'!$C$13,DA40=1),1,0) -> 0 | Q40: =IF(AND('User Input'!$C$38='User Input'!$C$14,Ranking!DB40=1),1,0) -> 0 | R40: =IF(AND('User Input'!$C$38='User Input'!$C$15,Ranking!DC40=1),1,0) -> 0 | S40: =IF(AND('User Input'!$C$38='User Input'!$C$16,Ranking!DD40=1),1,0) -> 0 | T40: =IF(AND('User Input'!$C$38='User Input'!$C$17,Ranking!DE40=1),1,0) -> 0 | U40: =IF(AND('User Input'!$C$38='User Input'!$C$18,Ranking!DF40=1),1,0) -> 0 | V40: =IF('User Input'!$I$38='User Input'!$I$13,1,IF(AND('User Input'!$I$38='User Input'!$I52,Ranking!$BY40>0.8),1,IF(AND('User Input'!$I$38='User Input'!$I$15,Ranking!$BY40>0.9),1,IF(AND('User Input'!$I$38='User Input'!$D$16,Ranking!$BY40>0.95),1,0)))) -> 0 | W40: =IF('User Input'!$D$38='User Input'!$D$13,1,IF(AND('User Input'!$D$38='User Input'!$D$14,Ranking!$BZ40>0.8),1,IF(AND('User Input'!$D$38='User Input'!$D$15,Ranking!$BZ40>0.9),1,IF(AND('User Input'!$D$38='User Input'!$D$16,Ranking!$BZ40>0.95),1,0)))) -> 0 | X40: =IF(AND('User Input'!$E$38='User Input'!$E$13,Ranking!DF40=1),1,0) -> 0 | Y40: =IF(AND('User Input'!$F$58=TRUE,Ranking!DI40=1),1,IF(AND('User Input'!$F$58=FALSE,Ranking!DI40=0),1,0)) -> 0 | Z40: =IF(AND('User Input'!$F$59=TRUE,Ranking!DJ40=1),1,IF(AND('User Input'!$F$59=FALSE,Ranking!DJ40=0),1,0)) -> 1 | AA40: =IF(AND('User Input'!$F$60=TRUE,Ranking!DK40=1),1,IF(AND('User Input'!$F$60=FALSE,Ranking!DK40=0),1,0)) -> 1 | AB40: =IF(AND('User Input'!$F$61=TRUE,Ranking!DL40=1),1,IF(AND('User Input'!$F$61=FALSE,Ranking!DL40=0),1,0)) -> 0 | AC40: =IF(AND('User Input'!$F$62=TRUE,Ranking!DM40=1),1,IF(AND('User Input'!$F$62=FALSE,Ranking!DM40=0),1,0)) -> 0 | AD40: =IF(AND('User Input'!$F$63=TRUE,Ranking!DN40=1),1,IF(AND('User Input'!$F$63=FALSE,Ranking!DN40=0),1,0)) -> 0 | AE40: =IF(AND('User Input'!$F$64=TRUE,Ranking!DO40=1),1,IF(AND('User Input'!$F$64=FALSE,Ranking!DO40=0),1,0)) -> 0 | AF40: =IF(AND('User Input'!$F$65=TRUE,Ranking!DP40=1),1,IF(AND('User Input'!$F$65=FALSE,Ranking!DP40=0),1,0)) -> 0 | AG40: =IF(AND('User Input'!$F$66=TRUE,Ranking!DQ40=1),1,IF(AND('User Input'!$F$66=FALSE,Ranking!DQ40=0),1,0)) -> 0 | AH40: =IF(AND('User Input'!$F$67=TRUE,Ranking!DR40=1),1,IF(AND('User Input'!$F$67=FALSE,Ranking!DR40=0),1,0)) -> 0 | AI40: =IF(Ranking!CV40="Y",1,IF(AND('User Input'!$G$38='User Input'!$G$14,Ranking!CV40="N"),1,0)) -> 0 | AJ40: =IF(OR(Ranking!DG40="Y",'User Input'!$H$38='User Input'!$H$14),1,IF(AND('User Input'!$H$38='User Input'!$H$13,Ranking!DG40="Y"),1,0)) -> 0 | AK40: =IF(AND('User Input'!$B$52='User Input'!$B$23,Ranking!CL40<'User Input'!$A$23),1,0) -> 0 | AL40: =IF(AND('User Input'!$B$52='User Input'!$B$24,Ranking!CL40<'User Input'!$A$24),1,0) -> 0 | AM40: =IF(AND('User Input'!$B$52='User Input'!$B$25,Ranking!CL40<'User Input'!$A$25),1,0) -> 1 | AN40: =IF(AND('User Input'!$B$52='User Input'!$B$26,Ranking!CL40<'User Input'!$A$26),1,0) -> 0 | AO40: =IF('User Input'!$B$52='User Input'!$B$27,1,0) -> 0 | AP40: =IF(AND('User Input'!$C$52='User Input'!$C$23,CE40=1),1,0) -> 0 | AQ40: =IF(CD40=1,0,IF(AND('User Input'!$C$52='User Input'!$C$24,Ranking!CF40=1),1,0)) -> 0 | AR40: =IF(CE40=1,0,IF(AND('User Input'!$C$52='User Input'!$C$25,Ranking!CG40=1),1,0)) -> 0 | AS40: =IF(CF40=1,0,IF(AND('User Input'!$C$52='User Input'!$C$26,Ranking!CH40=1),1,0)) -> 0 | AT40: =IF(CG40=1,0,IF(AND('User Input'!$C$52='User Input'!$C$27,Ranking!CI40=1),1,0)) -> 0 | AU40: =IF(AND('User Input'!$D$52='User Input'!$D$23,Ranking!CJ40>5000),1,0) -> 0 | AV40: =IF('User Input'!$E$52='User Input'!$E$25,1,IF(AND('User Input'!$E$52='User Input'!$E$23,Ranking!CM40=1),1,IF(AND('User Input'!$E$52='User Input'!$E$24,Ranking!CM40=0),1,0))) -> 0 | AW40: =IF(AND('User Input'!$F$52='User Input'!$F$23,Ranking!DS40=1),1,0) -> 0 | AX40: =IF(AND('User Input'!$F$52='User Input'!$F$24,Ranking!DT40=1),1,0) -> 0 | AY40: =IF(AND('User Input'!$F$52='User Input'!$F$25,Ranking!DU40=1),1,0) -> 0 | AZ40: =IF('User Input'!$G$52='User Input'!$G$24,1,IF(AND('User Input'!$G$52='User Input'!$G$23,DH40="Y"),1,0)) -> 0 | BA40: =IF('User Input'!$H$52='User Input'!$H$23,1,IF(AND('User Input'!$H$52='User Input'!$H$24,Ranking!BK40<>"Video"),1,0)) -> 1 | BB40: =IF(AND('User Input'!$I$52='User Input'!$I$23,Ranking!DV40=1),1,0) -> 0 | BC40: =IF(AND('User Input'!$I$52='User Input'!$I$24,Ranking!DW40=1),1,0) -> 0 | BD40: =IF(AND('User Input'!$I$52='User Input'!$I$25,Ranking!DX40=1),1,0) -> 0 | BE40: =IF('User Input'!$J$52='User Input'!$J$23,1,IF(AND('User Input'!$J$52='User Input'!$J$24,Ranking!DY40=0),1,0)) -> 1 | BF40: =IF('User Input'!$K$52='User Input'!$K$24,1,IF(AND('User Input'!$K$52='User Input'!$K$23,Ranking!CO40=1),1,0)) -> 0 | BI40: Placeholder
A41: =IF(AND('User Input'!$D$35='User Input'!$D$6,Ranking!BN41=1),1,0) -> 0 | B41: =IF(AND('User Input'!$D$35='User Input'!$D$7,Ranking!BO41=1),1,0) -> 0 | C41: =IF(AND('User Input'!$D$35='User Input'!$D$8,Ranking!BP41=1),1,0) -> 0 | D41: =IF(AND('User Input'!$F$35='User Input'!$F$7,Ranking!BQ41=1),1,0) -> 0 | E41: =IF(AND('User Input'!$F$35='User Input'!$F$6,Ranking!BR41=1),1,0) -> 0 | F41: =IF(AND('User Input'!$F$35='User Input'!$F$8,Ranking!BS41=1),1,0) -> 0 | G41: =IF(AND('User Input'!$F$35='User Input'!$F$9,Ranking!BT41=1),1,0) -> 0 | H41: =IF(AND('User Input'!$F$35='User Input'!$F$10,Ranking!BU41=1),1,0) -> 0 | I41: =IF(BV41=0,1,IF(AND(BV41=1,'User Input'!$G$35='User Input'!$G$6),0,IF(AND(BV41=1,'User Input'!$G$35='User Input'!$G$7),1,0))) -> 1 | J41: =IF(BW41=0,1,IF(AND(BW41=1,'User Input'!$H$35='User Input'!$H$6),1,IF(AND(BW41=1,'User Input'!$H$35='User Input'!$H$7),0))) -> 1 | K41: =IF('User Input'!$I$35='User Input'!$I$6,1,IF(AND('User Input'!$I$35='User Input'!$I$7,Ranking!BX41=0),1,0)) -> 1 | L41: =IF('User Input'!$K$35='User Input'!$K$7,1,IF(AND(OR('User Input'!$K$35='User Input'!$K$6,'User Input'!$K$35='User Input'!$K$8),Ranking!$CZ41="Y"),1,0)) -> 0 | M41: =IF(AND('User Input'!$B$38='User Input'!$B$13,Ranking!CA41=1),1,0) -> 0 | N41: =IF(AND('User Input'!$B$38='User Input'!$B$14,Ranking!CB41=1),1,0) -> 0 | O41: =IF(AND('User Input'!$B$38='User Input'!$B$15,Ranking!CC41=1),1,0) -> 0 | P41: =IF(AND('User Input'!$C$38='User Input'!$C$13,DA41=1),1,0) -> 0 | Q41: =IF(AND('User Input'!$C$38='User Input'!$C$14,Ranking!DB41=1),1,0) -> 0 | R41: =IF(AND('User Input'!$C$38='User Input'!$C$15,Ranking!DC41=1),1,0) -> 0 | S41: =IF(AND('User Input'!$C$38='User Input'!$C$16,Ranking!DD41=1),1,0) -> 0 | T41: =IF(AND('User Input'!$C$38='User Input'!$C$17,Ranking!DE41=1),1,0) -> 0 | U41: =IF(AND('User Input'!$C$38='User Input'!$C$18,Ranking!DF41=1),1,0) -> 0 | V41: =IF('User Input'!$I$38='User Input'!$I$13,1,IF(AND('User Input'!$I$38='User Input'!$I53,Ranking!$BY41>0.8),1,IF(AND('User Input'!$I$38='User Input'!$I$15,Ranking!$BY41>0.9),1,IF(AND('User Input'!$I$38='User Input'!$D$16,Ranking!$BY41>0.95),1,0)))) -> 0 | W41: =IF('User Input'!$D$38='User Input'!$D$13,1,IF(AND('User Input'!$D$38='User Input'!$D$14,Ranking!$BZ41>0.8),1,IF(AND('User Input'!$D$38='User Input'!$D$15,Ranking!$BZ41>0.9),1,IF(AND('User Input'!$D$38='User Input'!$D$16,Ranking!$BZ41>0.95),1,0)))) -> 0 | X41: =IF(AND('User Input'!$E$38='User Input'!$E$13,Ranking!DF41=1),1,0) -> 0 | Y41: =IF(AND('User Input'!$F$58=TRUE,Ranking!DI41=1),1,IF(AND('User Input'!$F$58=FALSE,Ranking!DI41=0),1,0)) -> 0 | Z41: =IF(AND('User Input'!$F$59=TRUE,Ranking!DJ41=1),1,IF(AND('User Input'!$F$59=FALSE,Ranking!DJ41=0),1,0)) -> 1 | AA41: =IF(AND('User Input'!$F$60=TRUE,Ranking!DK41=1),1,IF(AND('User Input'!$F$60=FALSE,Ranking!DK41=0),1,0)) -> 1 | AB41: =IF(AND('User Input'!$F$61=TRUE,Ranking!DL41=1),1,IF(AND('User Input'!$F$61=FALSE,Ranking!DL41=0),1,0)) -> 0 | AC41: =IF(AND('User Input'!$F$62=TRUE,Ranking!DM41=1),1,IF(AND('User Input'!$F$62=FALSE,Ranking!DM41=0),1,0)) -> 0 | AD41: =IF(AND('User Input'!$F$63=TRUE,Ranking!DN41=1),1,IF(AND('User Input'!$F$63=FALSE,Ranking!DN41=0),1,0)) -> 0 | AE41: =IF(AND('User Input'!$F$64=TRUE,Ranking!DO41=1),1,IF(AND('User Input'!$F$64=FALSE,Ranking!DO41=0),1,0)) -> 0 | AF41: =IF(AND('User Input'!$F$65=TRUE,Ranking!DP41=1),1,IF(AND('User Input'!$F$65=FALSE,Ranking!DP41=0),1,0)) -> 0 | AG41: =IF(AND('User Input'!$F$66=TRUE,Ranking!DQ41=1),1,IF(AND('User Input'!$F$66=FALSE,Ranking!DQ41=0),1,0)) -> 0 | AH41: =IF(AND('User Input'!$F$67=TRUE,Ranking!DR41=1),1,IF(AND('User Input'!$F$67=FALSE,Ranking!DR41=0),1,0)) -> 0 | AI41: =IF(Ranking!CV41="Y",1,IF(AND('User Input'!$G$38='User Input'!$G$14,Ranking!CV41="N"),1,0)) -> 0 | AJ41: =IF(OR(Ranking!DG41="Y",'User Input'!$H$38='User Input'!$H$14),1,IF(AND('User Input'!$H$38='User Input'!$H$13,Ranking!DG41="Y"),1,0)) -> 0 | AK41: =IF(AND('User Input'!$B$52='User Input'!$B$23,Ranking!CL41<'User Input'!$A$23),1,0) -> 0 | AL41: =IF(AND('User Input'!$B$52='User Input'!$B$24,Ranking!CL41<'User Input'!$A$24),1,0) -> 0 | AM41: =IF(AND('User Input'!$B$52='User Input'!$B$25,Ranking!CL41<'User Input'!$A$25),1,0) -> 1 | AN41: =IF(AND('User Input'!$B$52='User Input'!$B$26,Ranking!CL41<'User Input'!$A$26),1,0) -> 0 | AO41: =IF('User Input'!$B$52='User Input'!$B$27,1,0) -> 0 | AP41: =IF(AND('User Input'!$C$52='User Input'!$C$23,CE41=1),1,0) -> 0 | AQ41: =IF(CD41=1,0,IF(AND('User Input'!$C$52='User Input'!$C$24,Ranking!CF41=1),1,0)) -> 0 | AR41: =IF(CE41=1,0,IF(AND('User Input'!$C$52='User Input'!$C$25,Ranking!CG41=1),1,0)) -> 0 | AS41: =IF(CF41=1,0,IF(AND('User Input'!$C$52='User Input'!$C$26,Ranking!CH41=1),1,0)) -> 0 | AT41: =IF(CG41=1,0,IF(AND('User Input'!$C$52='User Input'!$C$27,Ranking!CI41=1),1,0)) -> 0 | AU41: =IF(AND('User Input'!$D$52='User Input'!$D$23,Ranking!CJ41>5000),1,0) -> 0 | AV41: =IF('User Input'!$E$52='User Input'!$E$25,1,IF(AND('User Input'!$E$52='User Input'!$E$23,Ranking!CM41=1),1,IF(AND('User Input'!$E$52='User Input'!$E$24,Ranking!CM41=0),1,0))) -> 0 | AW41: =IF(AND('User Input'!$F$52='User Input'!$F$23,Ranking!DS41=1),1,0) -> 0 | AX41: =IF(AND('User Input'!$F$52='User Input'!$F$24,Ranking!DT41=1),1,0) -> 0 | AY41: =IF(AND('User Input'!$F$52='User Input'!$F$25,Ranking!DU41=1),1,0) -> 0 | AZ41: =IF('User Input'!$G$52='User Input'!$G$24,1,IF(AND('User Input'!$G$52='User Input'!$G$23,DH41="Y"),1,0)) -> 0 | BA41: =IF('User Input'!$H$52='User Input'!$H$23,1,IF(AND('User Input'!$H$52='User Input'!$H$24,Ranking!BK41<>"Video"),1,0)) -> 1 | BB41: =IF(AND('User Input'!$I$52='User Input'!$I$23,Ranking!DV41=1),1,0) -> 0 | BC41: =IF(AND('User Input'!$I$52='User Input'!$I$24,Ranking!DW41=1),1,0) -> 0 | BD41: =IF(AND('User Input'!$I$52='User Input'!$I$25,Ranking!DX41=1),1,0) -> 0 | BE41: =IF('User Input'!$J$52='User Input'!$J$23,1,IF(AND('User Input'!$J$52='User Input'!$J$24,Ranking!DY41=0),1,0)) -> 1 | BF41: =IF('User Input'!$K$52='User Input'!$K$24,1,IF(AND('User Input'!$K$52='User Input'!$K$23,Ranking!CO41=1),1,0)) -> 0 | BI41: Placeholder
A42: =IF(AND('User Input'!$D$35='User Input'!$D$6,Ranking!BN42=1),1,0) -> 0 | B42: =IF(AND('User Input'!$D$35='User Input'!$D$7,Ranking!BO42=1),1,0) -> 0 | C42: =IF(AND('User Input'!$D$35='User Input'!$D$8,Ranking!BP42=1),1,0) -> 0 | D42: =IF(AND('User Input'!$F$35='User Input'!$F$7,Ranking!BQ42=1),1,0) -> 0 | E42: =IF(AND('User Input'!$F$35='User Input'!$F$6,Ranking!BR42=1),1,0) -> 0 | F42: =IF(AND('User Input'!$F$35='User Input'!$F$8,Ranking!BS42=1),1,0) -> 0 | G42: =IF(AND('User Input'!$F$35='User Input'!$F$9,Ranking!BT42=1),1,0) -> 0 | H42: =IF(AND('User Input'!$F$35='User Input'!$F$10,Ranking!BU42=1),1,0) -> 0 | I42: =IF(BV42=0,1,IF(AND(BV42=1,'User Input'!$G$35='User Input'!$G$6),0,IF(AND(BV42=1,'User Input'!$G$35='User Input'!$G$7),1,0))) -> 1 | J42: =IF(BW42=0,1,IF(AND(BW42=1,'User Input'!$H$35='User Input'!$H$6),1,IF(AND(BW42=1,'User Input'!$H$35='User Input'!$H$7),0))) -> 1 | K42: =IF('User Input'!$I$35='User Input'!$I$6,1,IF(AND('User Input'!$I$35='User Input'!$I$7,Ranking!BX42=0),1,0)) -> 1 | L42: =IF('User Input'!$K$35='User Input'!$K$7,1,IF(AND(OR('User Input'!$K$35='User Input'!$K$6,'User Input'!$K$35='User Input'!$K$8),Ranking!$CZ42="Y"),1,0)) -> 0 | M42: =IF(AND('User Input'!$B$38='User Input'!$B$13,Ranking!CA42=1),1,0) -> 0 | N42: =IF(AND('User Input'!$B$38='User Input'!$B$14,Ranking!CB42=1),1,0) -> 0 | O42: =IF(AND('User Input'!$B$38='User Input'!$B$15,Ranking!CC42=1),1,0) -> 0 | P42: =IF(AND('User Input'!$C$38='User Input'!$C$13,DA42=1),1,0) -> 0 | Q42: =IF(AND('User Input'!$C$38='User Input'!$C$14,Ranking!DB42=1),1,0) -> 0 | R42: =IF(AND('User Input'!$C$38='User Input'!$C$15,Ranking!DC42=1),1,0) -> 0 | S42: =IF(AND('User Input'!$C$38='User Input'!$C$16,Ranking!DD42=1),1,0) -> 0 | T42: =IF(AND('User Input'!$C$38='User Input'!$C$17,Ranking!DE42=1),1,0) -> 0 | U42: =IF(AND('User Input'!$C$38='User Input'!$C$18,Ranking!DF42=1),1,0) -> 0 | V42: =IF('User Input'!$I$38='User Input'!$I$13,1,IF(AND('User Input'!$I$38='User Input'!$I54,Ranking!$BY42>0.8),1,IF(AND('User Input'!$I$38='User Input'!$I$15,Ranking!$BY42>0.9),1,IF(AND('User Input'!$I$38='User Input'!$D$16,Ranking!$BY42>0.95),1,0)))) -> 0 | W42: =IF('User Input'!$D$38='User Input'!$D$13,1,IF(AND('User Input'!$D$38='User Input'!$D$14,Ranking!$BZ42>0.8),1,IF(AND('User Input'!$D$38='User Input'!$D$15,Ranking!$BZ42>0.9),1,IF(AND('User Input'!$D$38='User Input'!$D$16,Ranking!$BZ42>0.95),1,0)))) -> 0 | X42: =IF(AND('User Input'!$E$38='User Input'!$E$13,Ranking!DF42=1),1,0) -> 0 | Y42: =IF(AND('User Input'!$F$58=TRUE,Ranking!DI42=1),1,IF(AND('User Input'!$F$58=FALSE,Ranking!DI42=0),1,0)) -> 0 | Z42: =IF(AND('User Input'!$F$59=TRUE,Ranking!DJ42=1),1,IF(AND('User Input'!$F$59=FALSE,Ranking!DJ42=0),1,0)) -> 1 | AA42: =IF(AND('User Input'!$F$60=TRUE,Ranking!DK42=1),1,IF(AND('User Input'!$F$60=FALSE,Ranking!DK42=0),1,0)) -> 1 | AB42: =IF(AND('User Input'!$F$61=TRUE,Ranking!DL42=1),1,IF(AND('User Input'!$F$61=FALSE,Ranking!DL42=0),1,0)) -> 0 | AC42: =IF(AND('User Input'!$F$62=TRUE,Ranking!DM42=1),1,IF(AND('User Input'!$F$62=FALSE,Ranking!DM42=0),1,0)) -> 0 | AD42: =IF(AND('User Input'!$F$63=TRUE,Ranking!DN42=1),1,IF(AND('User Input'!$F$63=FALSE,Ranking!DN42=0),1,0)) -> 0 | AE42: =IF(AND('User Input'!$F$64=TRUE,Ranking!DO42=1),1,IF(AND('User Input'!$F$64=FALSE,Ranking!DO42=0),1,0)) -> 0 | AF42: =IF(AND('User Input'!$F$65=TRUE,Ranking!DP42=1),1,IF(AND('User Input'!$F$65=FALSE,Ranking!DP42=0),1,0)) -> 0 | AG42: =IF(AND('User Input'!$F$66=TRUE,Ranking!DQ42=1),1,IF(AND('User Input'!$F$66=FALSE,Ranking!DQ42=0),1,0)) -> 0 | AH42: =IF(AND('User Input'!$F$67=TRUE,Ranking!DR42=1),1,IF(AND('User Input'!$F$67=FALSE,Ranking!DR42=0),1,0)) -> 0 | AI42: =IF(Ranking!CV42="Y",1,IF(AND('User Input'!$G$38='User Input'!$G$14,Ranking!CV42="N"),1,0)) -> 0 | AJ42: =IF(OR(Ranking!DG42="Y",'User Input'!$H$38='User Input'!$H$14),1,IF(AND('User Input'!$H$38='User Input'!$H$13,Ranking!DG42="Y"),1,0)) -> 0 | AK42: =IF(AND('User Input'!$B$52='User Input'!$B$23,Ranking!CL42<'User Input'!$A$23),1,0) -> 0 | AL42: =IF(AND('User Input'!$B$52='User Input'!$B$24,Ranking!CL42<'User Input'!$A$24),1,0) -> 0 | AM42: =IF(AND('User Input'!$B$52='User Input'!$B$25,Ranking!CL42<'User Input'!$A$25),1,0) -> 1 | AN42: =IF(AND('User Input'!$B$52='User Input'!$B$26,Ranking!CL42<'User Input'!$A$26),1,0) -> 0 | AO42: =IF('User Input'!$B$52='User Input'!$B$27,1,0) -> 0 | AP42: =IF(AND('User Input'!$C$52='User Input'!$C$23,CE42=1),1,0) -> 0 | AQ42: =IF(CD42=1,0,IF(AND('User Input'!$C$52='User Input'!$C$24,Ranking!CF42=1),1,0)) -> 0 | AR42: =IF(CE42=1,0,IF(AND('User Input'!$C$52='User Input'!$C$25,Ranking!CG42=1),1,0)) -> 0 | AS42: =IF(CF42=1,0,IF(AND('User Input'!$C$52='User Input'!$C$26,Ranking!CH42=1),1,0)) -> 0 | AT42: =IF(CG42=1,0,IF(AND('User Input'!$C$52='User Input'!$C$27,Ranking!CI42=1),1,0)) -> 0 | AU42: =IF(AND('User Input'!$D$52='User Input'!$D$23,Ranking!CJ42>5000),1,0) -> 0 | AV42: =IF('User Input'!$E$52='User Input'!$E$25,1,IF(AND('User Input'!$E$52='User Input'!$E$23,Ranking!CM42=1),1,IF(AND('User Input'!$E$52='User Input'!$E$24,Ranking!CM42=0),1,0))) -> 0 | AW42: =IF(AND('User Input'!$F$52='User Input'!$F$23,Ranking!DS42=1),1,0) -> 0 | AX42: =IF(AND('User Input'!$F$52='User Input'!$F$24,Ranking!DT42=1),1,0) -> 0 | AY42: =IF(AND('User Input'!$F$52='User Input'!$F$25,Ranking!DU42=1),1,0) -> 0 | AZ42: =IF('User Input'!$G$52='User Input'!$G$24,1,IF(AND('User Input'!$G$52='User Input'!$G$23,DH42="Y"),1,0)) -> 0 | BA42: =IF('User Input'!$H$52='User Input'!$H$23,1,IF(AND('User Input'!$H$52='User Input'!$H$24,Ranking!BK42<>"Video"),1,0)) -> 1 | BB42: =IF(AND('User Input'!$I$52='User Input'!$I$23,Ranking!DV42=1),1,0) -> 0 | BC42: =IF(AND('User Input'!$I$52='User Input'!$I$24,Ranking!DW42=1),1,0) -> 0 | BD42: =IF(AND('User Input'!$I$52='User Input'!$I$25,Ranking!DX42=1),1,0) -> 0 | BE42: =IF('User Input'!$J$52='User Input'!$J$23,1,IF(AND('User Input'!$J$52='User Input'!$J$24,Ranking!DY42=0),1,0)) -> 1 | BF42: =IF('User Input'!$K$52='User Input'!$K$24,1,IF(AND('User Input'!$K$52='User Input'!$K$23,Ranking!CO42=1),1,0)) -> 0 | BI42: Placeholder
A43: =IF(AND('User Input'!$D$35='User Input'!$D$6,Ranking!BN43=1),1,0) -> 0 | B43: =IF(AND('User Input'!$D$35='User Input'!$D$7,Ranking!BO43=1),1,0) -> 0 | C43: =IF(AND('User Input'!$D$35='User Input'!$D$8,Ranking!BP43=1),1,0) -> 0 | D43: =IF(AND('User Input'!$F$35='User Input'!$F$7,Ranking!BQ43=1),1,0) -> 0 | E43: =IF(AND('User Input'!$F$35='User Input'!$F$6,Ranking!BR43=1),1,0) -> 0 | F43: =IF(AND('User Input'!$F$35='User Input'!$F$8,Ranking!BS43=1),1,0) -> 0 | G43: =IF(AND('User Input'!$F$35='User Input'!$F$9,Ranking!BT43=1),1,0) -> 0 | H43: =IF(AND('User Input'!$F$35='User Input'!$F$10,Ranking!BU43=1),1,0) -> 0 | I43: =IF(BV43=0,1,IF(AND(BV43=1,'User Input'!$G$35='User Input'!$G$6),0,IF(AND(BV43=1,'User Input'!$G$35='User Input'!$G$7),1,0))) -> 1 | J43: =IF(BW43=0,1,IF(AND(BW43=1,'User Input'!$H$35='User Input'!$H$6),1,IF(AND(BW43=1,'User Input'!$H$35='User Input'!$H$7),0))) -> 1 | K43: =IF('User Input'!$I$35='User Input'!$I$6,1,IF(AND('User Input'!$I$35='User Input'!$I$7,Ranking!BX43=0),1,0)) -> 1 | L43: =IF('User Input'!$K$35='User Input'!$K$7,1,IF(AND(OR('User Input'!$K$35='User Input'!$K$6,'User Input'!$K$35='User Input'!$K$8),Ranking!$CZ43="Y"),1,0)) -> 0 | M43: =IF(AND('User Input'!$B$38='User Input'!$B$13,Ranking!CA43=1),1,0) -> 0 | N43: =IF(AND('User Input'!$B$38='User Input'!$B$14,Ranking!CB43=1),1,0) -> 0 | O43: =IF(AND('User Input'!$B$38='User Input'!$B$15,Ranking!CC43=1),1,0) -> 0 | P43: =IF(AND('User Input'!$C$38='User Input'!$C$13,DA43=1),1,0) -> 0 | Q43: =IF(AND('User Input'!$C$38='User Input'!$C$14,Ranking!DB43=1),1,0) -> 0 | R43: =IF(AND('User Input'!$C$38='User Input'!$C$15,Ranking!DC43=1),1,0) -> 0 | S43: =IF(AND('User Input'!$C$38='User Input'!$C$16,Ranking!DD43=1),1,0) -> 0 | T43: =IF(AND('User Input'!$C$38='User Input'!$C$17,Ranking!DE43=1),1,0) -> 0 | U43: =IF(AND('User Input'!$C$38='User Input'!$C$18,Ranking!DF43=1),1,0) -> 0 | V43: =IF('User Input'!$I$38='User Input'!$I$13,1,IF(AND('User Input'!$I$38='User Input'!$I55,Ranking!$BY43>0.8),1,IF(AND('User Input'!$I$38='User Input'!$I$15,Ranking!$BY43>0.9),1,IF(AND('User Input'!$I$38='User Input'!$D$16,Ranking!$BY43>0.95),1,0)))) -> 0 | W43: =IF('User Input'!$D$38='User Input'!$D$13,1,IF(AND('User Input'!$D$38='User Input'!$D$14,Ranking!$BZ43>0.8),1,IF(AND('User Input'!$D$38='User Input'!$D$15,Ranking!$BZ43>0.9),1,IF(AND('User Input'!$D$38='User Input'!$D$16,Ranking!$BZ43>0.95),1,0)))) -> 0 | X43: =IF(AND('User Input'!$E$38='User Input'!$E$13,Ranking!DF43=1),1,0) -> 0 | Y43: =IF(AND('User Input'!$F$58=TRUE,Ranking!DI43=1),1,IF(AND('User Input'!$F$58=FALSE,Ranking!DI43=0),1,0)) -> 0 | Z43: =IF(AND('User Input'!$F$59=TRUE,Ranking!DJ43=1),1,IF(AND('User Input'!$F$59=FALSE,Ranking!DJ43=0),1,0)) -> 1 | AA43: =IF(AND('User Input'!$F$60=TRUE,Ranking!DK43=1),1,IF(AND('User Input'!$F$60=FALSE,Ranking!DK43=0),1,0)) -> 1 | AB43: =IF(AND('User Input'!$F$61=TRUE,Ranking!DL43=1),1,IF(AND('User Input'!$F$61=FALSE,Ranking!DL43=0),1,0)) -> 0 | AC43: =IF(AND('User Input'!$F$62=TRUE,Ranking!DM43=1),1,IF(AND('User Input'!$F$62=FALSE,Ranking!DM43=0),1,0)) -> 0 | AD43: =IF(AND('User Input'!$F$63=TRUE,Ranking!DN43=1),1,IF(AND('User Input'!$F$63=FALSE,Ranking!DN43=0),1,0)) -> 0 | AE43: =IF(AND('User Input'!$F$64=TRUE,Ranking!DO43=1),1,IF(AND('User Input'!$F$64=FALSE,Ranking!DO43=0),1,0)) -> 0 | AF43: =IF(AND('User Input'!$F$65=TRUE,Ranking!DP43=1),1,IF(AND('User Input'!$F$65=FALSE,Ranking!DP43=0),1,0)) -> 0 | AG43: =IF(AND('User Input'!$F$66=TRUE,Ranking!DQ43=1),1,IF(AND('User Input'!$F$66=FALSE,Ranking!DQ43=0),1,0)) -> 0 | AH43: =IF(AND('User Input'!$F$67=TRUE,Ranking!DR43=1),1,IF(AND('User Input'!$F$67=FALSE,Ranking!DR43=0),1,0)) -> 0 | AI43: =IF(Ranking!CV43="Y",1,IF(AND('User Input'!$G$38='User Input'!$G$14,Ranking!CV43="N"),1,0)) -> 0 | AJ43: =IF(OR(Ranking!DG43="Y",'User Input'!$H$38='User Input'!$H$14),1,IF(AND('User Input'!$H$38='User Input'!$H$13,Ranking!DG43="Y"),1,0)) -> 0 | AK43: =IF(AND('User Input'!$B$52='User Input'!$B$23,Ranking!CL43<'User Input'!$A$23),1,0) -> 0 | AL43: =IF(AND('User Input'!$B$52='User Input'!$B$24,Ranking!CL43<'User Input'!$A$24),1,0) -> 0 | AM43: =IF(AND('User Input'!$B$52='User Input'!$B$25,Ranking!CL43<'User Input'!$A$25),1,0) -> 1 | AN43: =IF(AND('User Input'!$B$52='User Input'!$B$26,Ranking!CL43<'User Input'!$A$26),1,0) -> 0 | AO43: =IF('User Input'!$B$52='User Input'!$B$27,1,0) -> 0 | AP43: =IF(AND('User Input'!$C$52='User Input'!$C$23,CE43=1),1,0) -> 0 | AQ43: =IF(CD43=1,0,IF(AND('User Input'!$C$52='User Input'!$C$24,Ranking!CF43=1),1,0)) -> 0 | AR43: =IF(CE43=1,0,IF(AND('User Input'!$C$52='User Input'!$C$25,Ranking!CG43=1),1,0)) -> 0 | AS43: =IF(CF43=1,0,IF(AND('User Input'!$C$52='User Input'!$C$26,Ranking!CH43=1),1,0)) -> 0 | AT43: =IF(CG43=1,0,IF(AND('User Input'!$C$52='User Input'!$C$27,Ranking!CI43=1),1,0)) -> 0 | AU43: =IF(AND('User Input'!$D$52='User Input'!$D$23,Ranking!CJ43>5000),1,0) -> 0 | AV43: =IF('User Input'!$E$52='User Input'!$E$25,1,IF(AND('User Input'!$E$52='User Input'!$E$23,Ranking!CM43=1),1,IF(AND('User Input'!$E$52='User Input'!$E$24,Ranking!CM43=0),1,0))) -> 0 | AW43: =IF(AND('User Input'!$F$52='User Input'!$F$23,Ranking!DS43=1),1,0) -> 0 | AX43: =IF(AND('User Input'!$F$52='User Input'!$F$24,Ranking!DT43=1),1,0) -> 0 | AY43: =IF(AND('User Input'!$F$52='User Input'!$F$25,Ranking!DU43=1),1,0) -> 0 | AZ43: =IF('User Input'!$G$52='User Input'!$G$24,1,IF(AND('User Input'!$G$52='User Input'!$G$23,DH43="Y"),1,0)) -> 0 | BA43: =IF('User Input'!$H$52='User Input'!$H$23,1,IF(AND('User Input'!$H$52='User Input'!$H$24,Ranking!BK43<>"Video"),1,0)) -> 1 | BB43: =IF(AND('User Input'!$I$52='User Input'!$I$23,Ranking!DV43=1),1,0) -> 0 | BC43: =IF(AND('User Input'!$I$52='User Input'!$I$24,Ranking!DW43=1),1,0) -> 0 | BD43: =IF(AND('User Input'!$I$52='User Input'!$I$25,Ranking!DX43=1),1,0) -> 0 | BE43: =IF('User Input'!$J$52='User Input'!$J$23,1,IF(AND('User Input'!$J$52='User Input'!$J$24,Ranking!DY43=0),1,0)) -> 1 | BF43: =IF('User Input'!$K$52='User Input'!$K$24,1,IF(AND('User Input'!$K$52='User Input'!$K$23,Ranking!CO43=1),1,0)) -> 0 | BI43: Placeholder
A44: =IF(AND('User Input'!$D$35='User Input'!$D$6,Ranking!BN44=1),1,0) -> 0 | B44: =IF(AND('User Input'!$D$35='User Input'!$D$7,Ranking!BO44=1),1,0) -> 0 | C44: =IF(AND('User Input'!$D$35='User Input'!$D$8,Ranking!BP44=1),1,0) -> 0 | D44: =IF(AND('User Input'!$F$35='User Input'!$F$7,Ranking!BQ44=1),1,0) -> 0 | E44: =IF(AND('User Input'!$F$35='User Input'!$F$6,Ranking!BR44=1),1,0) -> 0 | F44: =IF(AND('User Input'!$F$35='User Input'!$F$8,Ranking!BS44=1),1,0) -> 0 | G44: =IF(AND('User Input'!$F$35='User Input'!$F$9,Ranking!BT44=1),1,0) -> 0 | H44: =IF(AND('User Input'!$F$35='User Input'!$F$10,Ranking!BU44=1),1,0) -> 0 | I44: =IF(BV44=0,1,IF(AND(BV44=1,'User Input'!$G$35='User Input'!$G$6),0,IF(AND(BV44=1,'User Input'!$G$35='User Input'!$G$7),1,0))) -> 1 | J44: =IF(BW44=0,1,IF(AND(BW44=1,'User Input'!$H$35='User Input'!$H$6),1,IF(AND(BW44=1,'User Input'!$H$35='User Input'!$H$7),0))) -> 1 | K44: =IF('User Input'!$I$35='User Input'!$I$6,1,IF(AND('User Input'!$I$35='User Input'!$I$7,Ranking!BX44=0),1,0)) -> 1 | L44: =IF('User Input'!$K$35='User Input'!$K$7,1,IF(AND(OR('User Input'!$K$35='User Input'!$K$6,'User Input'!$K$35='User Input'!$K$8),Ranking!$CZ44="Y"),1,0)) -> 0 | M44: =IF(AND('User Input'!$B$38='User Input'!$B$13,Ranking!CA44=1),1,0) -> 0 | N44: =IF(AND('User Input'!$B$38='User Input'!$B$14,Ranking!CB44=1),1,0) -> 0 | O44: =IF(AND('User Input'!$B$38='User Input'!$B$15,Ranking!CC44=1),1,0) -> 0 | P44: =IF(AND('User Input'!$C$38='User Input'!$C$13,DA44=1),1,0) -> 0 | Q44: =IF(AND('User Input'!$C$38='User Input'!$C$14,Ranking!DB44=1),1,0) -> 0 | R44: =IF(AND('User Input'!$C$38='User Input'!$C$15,Ranking!DC44=1),1,0) -> 0 | S44: =IF(AND('User Input'!$C$38='User Input'!$C$16,Ranking!DD44=1),1,0) -> 0 | T44: =IF(AND('User Input'!$C$38='User Input'!$C$17,Ranking!DE44=1),1,0) -> 0 | U44: =IF(AND('User Input'!$C$38='User Input'!$C$18,Ranking!DF44=1),1,0) -> 0 | V44: =IF('User Input'!$I$38='User Input'!$I$13,1,IF(AND('User Input'!$I$38='User Input'!$I56,Ranking!$BY44>0.8),1,IF(AND('User Input'!$I$38='User Input'!$I$15,Ranking!$BY44>0.9),1,IF(AND('User Input'!$I$38='User Input'!$D$16,Ranking!$BY44>0.95),1,0)))) -> 0 | W44: =IF('User Input'!$D$38='User Input'!$D$13,1,IF(AND('User Input'!$D$38='User Input'!$D$14,Ranking!$BZ44>0.8),1,IF(AND('User Input'!$D$38='User Input'!$D$15,Ranking!$BZ44>0.9),1,IF(AND('User Input'!$D$38='User Input'!$D$16,Ranking!$BZ44>0.95),1,0)))) -> 0 | X44: =IF(AND('User Input'!$E$38='User Input'!$E$13,Ranking!DF44=1),1,0) -> 0 | Y44: =IF(AND('User Input'!$F$58=TRUE,Ranking!DI44=1),1,IF(AND('User Input'!$F$58=FALSE,Ranking!DI44=0),1,0)) -> 0 | Z44: =IF(AND('User Input'!$F$59=TRUE,Ranking!DJ44=1),1,IF(AND('User Input'!$F$59=FALSE,Ranking!DJ44=0),1,0)) -> 1 | AA44: =IF(AND('User Input'!$F$60=TRUE,Ranking!DK44=1),1,IF(AND('User Input'!$F$60=FALSE,Ranking!DK44=0),1,0)) -> 1 | AB44: =IF(AND('User Input'!$F$61=TRUE,Ranking!DL44=1),1,IF(AND('User Input'!$F$61=FALSE,Ranking!DL44=0),1,0)) -> 0 | AC44: =IF(AND('User Input'!$F$62=TRUE,Ranking!DM44=1),1,IF(AND('User Input'!$F$62=FALSE,Ranking!DM44=0),1,0)) -> 0 | AD44: =IF(AND('User Input'!$F$63=TRUE,Ranking!DN44=1),1,IF(AND('User Input'!$F$63=FALSE,Ranking!DN44=0),1,0)) -> 0 | AE44: =IF(AND('User Input'!$F$64=TRUE,Ranking!DO44=1),1,IF(AND('User Input'!$F$64=FALSE,Ranking!DO44=0),1,0)) -> 0 | AF44: =IF(AND('User Input'!$F$65=TRUE,Ranking!DP44=1),1,IF(AND('User Input'!$F$65=FALSE,Ranking!DP44=0),1,0)) -> 0 | AG44: =IF(AND('User Input'!$F$66=TRUE,Ranking!DQ44=1),1,IF(AND('User Input'!$F$66=FALSE,Ranking!DQ44=0),1,0)) -> 0 | AH44: =IF(AND('User Input'!$F$67=TRUE,Ranking!DR44=1),1,IF(AND('User Input'!$F$67=FALSE,Ranking!DR44=0),1,0)) -> 0 | AI44: =IF(Ranking!CV44="Y",1,IF(AND('User Input'!$G$38='User Input'!$G$14,Ranking!CV44="N"),1,0)) -> 0 | AJ44: =IF(OR(Ranking!DG44="Y",'User Input'!$H$38='User Input'!$H$14),1,IF(AND('User Input'!$H$38='User Input'!$H$13,Ranking!DG44="Y"),1,0)) -> 0 | AK44: =IF(AND('User Input'!$B$52='User Input'!$B$23,Ranking!CL44<'User Input'!$A$23),1,0) -> 0 | AL44: =IF(AND('User Input'!$B$52='User Input'!$B$24,Ranking!CL44<'User Input'!$A$24),1,0) -> 0 | AM44: =IF(AND('User Input'!$B$52='User Input'!$B$25,Ranking!CL44<'User Input'!$A$25),1,0) -> 1 | AN44: =IF(AND('User Input'!$B$52='User Input'!$B$26,Ranking!CL44<'User Input'!$A$26),1,0) -> 0 | AO44: =IF('User Input'!$B$52='User Input'!$B$27,1,0) -> 0 | AP44: =IF(AND('User Input'!$C$52='User Input'!$C$23,CE44=1),1,0) -> 0 | AQ44: =IF(CD44=1,0,IF(AND('User Input'!$C$52='User Input'!$C$24,Ranking!CF44=1),1,0)) -> 0 | AR44: =IF(CE44=1,0,IF(AND('User Input'!$C$52='User Input'!$C$25,Ranking!CG44=1),1,0)) -> 0 | AS44: =IF(CF44=1,0,IF(AND('User Input'!$C$52='User Input'!$C$26,Ranking!CH44=1),1,0)) -> 0 | AT44: =IF(CG44=1,0,IF(AND('User Input'!$C$52='User Input'!$C$27,Ranking!CI44=1),1,0)) -> 0 | AU44: =IF(AND('User Input'!$D$52='User Input'!$D$23,Ranking!CJ44>5000),1,0) -> 0 | AV44: =IF('User Input'!$E$52='User Input'!$E$25,1,IF(AND('User Input'!$E$52='User Input'!$E$23,Ranking!CM44=1),1,IF(AND('User Input'!$E$52='User Input'!$E$24,Ranking!CM44=0),1,0))) -> 0 | AW44: =IF(AND('User Input'!$F$52='User Input'!$F$23,Ranking!DS44=1),1,0) -> 0 | AX44: =IF(AND('User Input'!$F$52='User Input'!$F$24,Ranking!DT44=1),1,0) -> 0 | AY44: =IF(AND('User Input'!$F$52='User Input'!$F$25,Ranking!DU44=1),1,0) -> 0 | AZ44: =IF('User Input'!$G$52='User Input'!$G$24,1,IF(AND('User Input'!$G$52='User Input'!$G$23,DH44="Y"),1,0)) -> 0 | BA44: =IF('User Input'!$H$52='User Input'!$H$23,1,IF(AND('User Input'!$H$52='User Input'!$H$24,Ranking!BK44<>"Video"),1,0)) -> 1 | BB44: =IF(AND('User Input'!$I$52='User Input'!$I$23,Ranking!DV44=1),1,0) -> 0 | BC44: =IF(AND('User Input'!$I$52='User Input'!$I$24,Ranking!DW44=1),1,0) -> 0 | BD44: =IF(AND('User Input'!$I$52='User Input'!$I$25,Ranking!DX44=1),1,0) -> 0 | BE44: =IF('User Input'!$J$52='User Input'!$J$23,1,IF(AND('User Input'!$J$52='User Input'!$J$24,Ranking!DY44=0),1,0)) -> 1 | BF44: =IF('User Input'!$K$52='User Input'!$K$24,1,IF(AND('User Input'!$K$52='User Input'!$K$23,Ranking!CO44=1),1,0)) -> 0 | BI44: Placeholder
A56: Product | B56: Rank | C56: Total Score | D56: Number of Lanes | E56: Location Type | F56: Lighting at Location | G56: Occlusion at Location | H56: Power Supply at Location | I56: Cameras at Location | J56: Time Frame | K56: Study Type | L56: Accuracy Required (COUNT) | M56: Accuracy Required (Detection) | N56: Real-time data access | O56: Outputs needed | P56: Night Vision | Q56: Video Internal Storage | R56: Procurement Budget | S56: Recurring Costs Budget | T56: Inter-division Collaboration | U56: Equipment Ownership | V56: Size of pedestrian program | W56: Quality Control Requirements | X56: Public view on video detection | Y56: Agency Goals | Z56: Installation capacity | AA56: Possibility of manual data transmisstion
A57: =BI2 -> Blue City AI | B57: =RANK(C57,$C$57:$C$57,0) -> 1 | C57: =SUM(D57:AA57) -> 0.4083333333 | D57: =IF(SUM(Ranking!A2:C2)>0,'User Input'!$D$79, -'User Input'!$D$79) -> 0.04166666667 | E57: =IF(SUM(Ranking!D2:H2)>0,'User Input'!$D$80, -1*'User Input'!$D$80) -> 0.04166666667 | F57: =IF(Ranking!I2>0,'User Input'!$D$81, -'User Input'!$D$81) -> 0.04166666667 | G57: =IF(Ranking!J2>0,'User Input'!$D$82, -'User Input'!$D$82) -> 0.04166666667 | H57: =IF(Ranking!K2>0,'User Input'!$D$83, -'User Input'!$D$83) -> 0.04166666667 | I57: =IF(Ranking!L2>0,'User Input'!$D$84, -'User Input'!$D$84) -> -0.04166666667 | J57: =IF(SUM(Ranking!M2:O2)>0,'User Input'!$D$85, -'User Input'!$D$85) -> 0.04166666667 | K57: =IF(SUM(Ranking!P2:U2)>0,'User Input'!$D$86, -'User Input'!$D$86) -> 0.04166666667 | L57: =IF(Ranking!W2>0,'User Input'!$D$87, -'User Input'!$D$87) -> 0.04166666667 | M57: =IF(Ranking!W2>0,'User Input'!$D$88, -'User Input'!$D$88) -> 0.04166666667 | N57: =IF(Ranking!X2>0,'User Input'!$D$89, -'User Input'!$D$89) -> 0.04166666667 | O57: =(COUNTIF(Ranking!Y2:AH2,1)*'User Input'!$D$90/10)-(COUNTIF(Ranking!Y2:AH2,0)*'User Input'!$D$90/10) -> 0.03333333333 | P57: =IF(Ranking!AI2>0,'User Input'!$D$91, -'User Input'!$D$91) -> 0.04166666667 | Q57: =IF(Ranking!AJ2>0,'User Input'!$D$92, -'User Input'!$D$92) -> -0.04166666667 | R57: =IF(SUM(Ranking!AK2:AO2)>0,'User Input'!$D$93, -'User Input'!$D$93) -> -0.04166666667 | S57: =IF(SUM(Ranking!AP2:AT2)>0,'User Input'!$D$94, -'User Input'!$D$94) -> -0.04166666667 | T57: =IF(Ranking!AU2>0,'User Input'!$D$95, -'User Input'!$D$95) -> -0.04166666667 | U57: =IF(Ranking!AV2>0,'User Input'!$D$96, -'User Input'!$D$96) -> 0.04166666667 | V57: =IF(SUM(Ranking!AW2:AY2)>0,'User Input'!$D$97, -'User Input'!$D$97) -> 0.04166666667 | W57: =IF(Ranking!AZ2>0,'User Input'!$D$98, -'User Input'!$D$98) -> -0.04166666667 | X57: =IF(Ranking!BA2>0,'User Input'!$D$99, -'User Input'!$D$99) -> 0.04166666667 | Y57: =IF(SUM(Ranking!BB2:BD2)>0,'User Input'!$D$100, -'User Input'!$D$100) -> -0.04166666667 | Z57: =IF(Ranking!BE2>0,'User Input'!$D$101, -'User Input'!$D$101) -> 0.04166666667 | AA57: =IF(Ranking!BF2>0,'User Input'!$D$102, -'User Input'!$D$102) -> 0.04166666667
A58: =BI3 -> Miovision Scout camera | C58: =SUM(D58:AA58) -> 0.2 | D58: =IF(SUM(Ranking!A3:C3)>0,'User Input'!$D$79, -'User Input'!$D$79) -> -0.04166666667 | E58: =IF(SUM(Ranking!D3:H3)>0,'User Input'!$D$80, -1*'User Input'!$D$80) -> 0.04166666667 | F58: =IF(Ranking!I3>0,'User Input'!$D$81, -'User Input'!$D$81) -> 0.04166666667 | G58: =IF(Ranking!J3>0,'User Input'!$D$82, -'User Input'!$D$82) -> 0.04166666667 | H58: =IF(Ranking!K3>0,'User Input'!$D$83, -'User Input'!$D$83) -> 0.04166666667 | I58: =IF(Ranking!L3>0,'User Input'!$D$84, -'User Input'!$D$84) -> -0.04166666667 | J58: =IF(SUM(Ranking!M3:O3)>0,'User Input'!$D$85, -'User Input'!$D$85) -> -0.04166666667 | K58: =IF(SUM(Ranking!P3:U3)>0,'User Input'!$D$86, -'User Input'!$D$86) -> -0.04166666667 | L58: =IF(Ranking!W3>0,'User Input'!$D$87, -'User Input'!$D$87) -> 0.04166666667 | M58: =IF(Ranking!W3>0,'User Input'!$D$88, -'User Input'!$D$88) -> 0.04166666667 | N58: =IF(Ranking!X3>0,'User Input'!$D$89, -'User Input'!$D$89) -> -0.04166666667 | O58: =(COUNTIF(Ranking!Y3:AH3,1)*'User Input'!$D$90/10)-(COUNTIF(Ranking!Y3:AH3,0)*'User Input'!$D$90/10) -> -0.008333333333 | P58: =IF(Ranking!AI3>0,'User Input'!$D$91, -'User Input'!$D$91) -> 0.04166666667 | Q58: =IF(Ranking!AJ3>0,'User Input'!$D$92, -'User Input'!$D$92) -> 0.04166666667 | R58: =IF(SUM(Ranking!AK3:AO3)>0,'User Input'!$D$93, -'User Input'!$D$93) -> -0.04166666667 | S58: =IF(SUM(Ranking!AP3:AT3)>0,'User Input'!$D$94, -'User Input'!$D$94) -> -0.04166666667 | T58: =IF(Ranking!AU3>0,'User Input'!$D$95, -'User Input'!$D$95) -> -0.04166666667 | U58: =IF(Ranking!AV3>0,'User Input'!$D$96, -'User Input'!$D$96) -> 0.04166666667 | V58: =IF(SUM(Ranking!AW3:AY3)>0,'User Input'!$D$97, -'User Input'!$D$97) -> 0.04166666667 | W58: =IF(Ranking!AZ3>0,'User Input'!$D$98, -'User Input'!$D$98) -> 0.04166666667 | X58: =IF(Ranking!BA3>0,'User Input'!$D$99, -'User Input'!$D$99) -> -0.04166666667 | Y58: =IF(SUM(Ranking!BB3:BD3)>0,'User Input'!$D$100, -'User Input'!$D$100) -> 0.04166666667 | Z58: =IF(Ranking!BE3>0,'User Input'!$D$101, -'User Input'!$D$101) -> 0.04166666667 | AA58: =IF(Ranking!BF3>0,'User Input'!$D$102, -'User Input'!$D$102) -> 0.04166666667
A59: Miovision TrafficLink | C59: 0.5583333333 | D59: =IF(SUM(Ranking!A4:C4)>0,'User Input'!$D$79, -'User Input'!$D$79) -> 0.04166666667 | E59: =IF(SUM(Ranking!D4:H4)>0,'User Input'!$D$80, -1*'User Input'!$D$80) -> 0.04166666667 | F59: =IF(Ranking!I4>0,'User Input'!$D$81, -'User Input'!$D$81) -> 0.04166666667 | G59: =IF(Ranking!J4>0,'User Input'!$D$82, -'User Input'!$D$82) -> 0.04166666667 | H59: =IF(Ranking!K4>0,'User Input'!$D$83, -'User Input'!$D$83) -> 0.04166666667 | I59: =IF(Ranking!L4>0,'User Input'!$D$84, -'User Input'!$D$84) -> -0.04166666667 | J59: =IF(SUM(Ranking!M4:O4)>0,'User Input'!$D$85, -'User Input'!$D$85) -> 0.04166666667 | K59: =IF(SUM(Ranking!P4:U4)>0,'User Input'!$D$86, -'User Input'!$D$86) -> 0.04166666667 | L59: =IF(Ranking!W4>0,'User Input'!$D$87, -'User Input'!$D$87) -> 0.04166666667 | M59: =IF(Ranking!W4>0,'User Input'!$D$88, -'User Input'!$D$88) -> 0.04166666667 | N59: =IF(Ranking!X4>0,'User Input'!$D$89, -'User Input'!$D$89) -> 0.04166666667 | O59: =(COUNTIF(Ranking!Y4:AH4,1)*'User Input'!$D$90/10)-(COUNTIF(Ranking!Y4:AH4,0)*'User Input'!$D$90/10) -> 0.01666666667 | P59: =IF(Ranking!AI4>0,'User Input'!$D$91, -'User Input'!$D$91) -> 0.04166666667 | Q59: =IF(Ranking!AJ4>0,'User Input'!$D$92, -'User Input'!$D$92) -> -0.04166666667 | R59: =IF(SUM(Ranking!AK4:AO4)>0,'User Input'!$D$93, -'User Input'!$D$93) -> -0.04166666667 | S59: =IF(SUM(Ranking!AP4:AT4)>0,'User Input'!$D$94, -'User Input'!$D$94) -> 0.04166666667 | T59: =IF(Ranking!AU4>0,'User Input'!$D$95, -'User Input'!$D$95) -> 0.04166666667 | U59: =IF(Ranking!AV4>0,'User Input'!$D$96, -'User Input'!$D$96) -> 0.04166666667 | V59: =IF(SUM(Ranking!AW4:AY4)>0,'User Input'!$D$97, -'User Input'!$D$97) -> 0.04166666667 | W59: =IF(Ranking!AZ4>0,'User Input'!$D$98, -'User Input'!$D$98) -> 0.04166666667 | X59: =IF(Ranking!BA4>0,'User Input'!$D$99, -'User Input'!$D$99) -> -0.04166666667 | Y59: =IF(SUM(Ranking!BB4:BD4)>0,'User Input'!$D$100, -'User Input'!$D$100) -> -0.04166666667 | Z59: =IF(Ranking!BE4>0,'User Input'!$D$101, -'User Input'!$D$101) -> 0.04166666667 | AA59: =IF(Ranking!BF4>0,'User Input'!$D$102, -'User Input'!$D$102) -> 0.04166666667
A60: Spack Solutions' countCAM3 | C60: 0.2833333333 | D60: =IF(SUM(Ranking!A5:C5)>0,'User Input'!$D$79, -'User Input'!$D$79) -> -0.04166666667 | E60: =IF(SUM(Ranking!D5:H5)>0,'User Input'!$D$80, -1*'User Input'!$D$80) -> 0.04166666667 | F60: =IF(Ranking!I5>0,'User Input'!$D$81, -'User Input'!$D$81) -> 0.04166666667 | G60: =IF(Ranking!J5>0,'User Input'!$D$82, -'User Input'!$D$82) -> 0.04166666667 | H60: =IF(Ranking!K5>0,'User Input'!$D$83, -'User Input'!$D$83) -> 0.04166666667 | I60: =IF(Ranking!L5>0,'User Input'!$D$84, -'User Input'!$D$84) -> -0.04166666667 | J60: =IF(SUM(Ranking!M5:O5)>0,'User Input'!$D$85, -'User Input'!$D$85) -> -0.04166666667 | K60: =IF(SUM(Ranking!P5:U5)>0,'User Input'!$D$86, -'User Input'!$D$86) -> -0.04166666667 | L60: =IF(Ranking!W5>0,'User Input'!$D$87, -'User Input'!$D$87) -> 0.04166666667 | M60: =IF(Ranking!W5>0,'User Input'!$D$88, -'User Input'!$D$88) -> 0.04166666667 | N60: =IF(Ranking!X5>0,'User Input'!$D$89, -'User Input'!$D$89) -> -0.04166666667 | O60: =(COUNTIF(Ranking!Y5:AH5,1)*'User Input'!$D$90/10)-(COUNTIF(Ranking!Y5:AH5,0)*'User Input'!$D$90/10) -> -0.008333333333 | P60: =IF(Ranking!AI5>0,'User Input'!$D$91, -'User Input'!$D$91) -> 0.04166666667 | Q60: =IF(Ranking!AJ5>0,'User Input'!$D$92, -'User Input'!$D$92) -> 0.04166666667 | R60: =IF(SUM(Ranking!AK5:AO5)>0,'User Input'!$D$93, -'User Input'!$D$93) -> 0.04166666667 | S60: =IF(SUM(Ranking!AP5:AT5)>0,'User Input'!$D$94, -'User Input'!$D$94) -> -0.04166666667 | T60: =IF(Ranking!AU5>0,'User Input'!$D$95, -'User Input'!$D$95) -> -0.04166666667 | U60: =IF(Ranking!AV5>0,'User Input'!$D$96, -'User Input'!$D$96) -> 0.04166666667 | V60: =IF(SUM(Ranking!AW5:AY5)>0,'User Input'!$D$97, -'User Input'!$D$97) -> 0.04166666667 | W60: =IF(Ranking!AZ5>0,'User Input'!$D$98, -'User Input'!$D$98) -> 0.04166666667 | X60: =IF(Ranking!BA5>0,'User Input'!$D$99, -'User Input'!$D$99) -> -0.04166666667 | Y60: =IF(SUM(Ranking!BB5:BD5)>0,'User Input'!$D$100, -'User Input'!$D$100) -> 0.04166666667 | Z60: =IF(Ranking!BE5>0,'User Input'!$D$101, -'User Input'!$D$101) -> 0.04166666667 | AA60: =IF(Ranking!BF5>0,'User Input'!$D$102, -'User Input'!$D$102) -> 0.04166666667
A61: Eco-counter CITIX – AI | C61: 0.1166666667 | D61: =IF(SUM(Ranking!A6:C6)>0,'User Input'!$D$79, -'User Input'!$D$79) -> -0.04166666667 | E61: =IF(SUM(Ranking!D6:H6)>0,'User Input'!$D$80, -1*'User Input'!$D$80) -> 0.04166666667 | F61: =IF(Ranking!I6>0,'User Input'!$D$81, -'User Input'!$D$81) -> 0.04166666667 | G61: =IF(Ranking!J6>0,'User Input'!$D$82, -'User Input'!$D$82) -> 0.04166666667 | H61: =IF(Ranking!K6>0,'User Input'!$D$83, -'User Input'!$D$83) -> 0.04166666667 | I61: =IF(Ranking!L6>0,'User Input'!$D$84, -'User Input'!$D$84) -> -0.04166666667 | J61: =IF(SUM(Ranking!M6:O6)>0,'User Input'!$D$85, -'User Input'!$D$85) -> 0.04166666667 | K61: =IF(SUM(Ranking!P6:U6)>0,'User Input'!$D$86, -'User Input'!$D$86) -> -0.04166666667 | L61: =IF(Ranking!W6>0,'User Input'!$D$87, -'User Input'!$D$87) -> 0.04166666667 | M61: =IF(Ranking!W6>0,'User Input'!$D$88, -'User Input'!$D$88) -> 0.04166666667 | N61: =IF(Ranking!X6>0,'User Input'!$D$89, -'User Input'!$D$89) -> -0.04166666667 | O61: =(COUNTIF(Ranking!Y6:AH6,1)*'User Input'!$D$90/10)-(COUNTIF(Ranking!Y6:AH6,0)*'User Input'!$D$90/10) -> -0.008333333333 | P61: =IF(Ranking!AI6>0,'User Input'!$D$91, -'User Input'!$D$91) -> 0.04166666667 | Q61: =IF(Ranking!AJ6>0,'User Input'!$D$92, -'User Input'!$D$92) -> -0.04166666667 | R61: =IF(SUM(Ranking!AK6:AO6)>0,'User Input'!$D$93, -'User Input'!$D$93) -> -0.04166666667 | S61: =IF(SUM(Ranking!AP6:AT6)>0,'User Input'!$D$94, -'User Input'!$D$94) -> 0.04166666667 | T61: =IF(Ranking!AU6>0,'User Input'!$D$95, -'User Input'!$D$95) -> 0.04166666667 | U61: =IF(Ranking!AV6>0,'User Input'!$D$96, -'User Input'!$D$96) -> 0.04166666667 | V61: =IF(SUM(Ranking!AW6:AY6)>0,'User Input'!$D$97, -'User Input'!$D$97) -> 0.04166666667 | W61: =IF(Ranking!AZ6>0,'User Input'!$D$98, -'User Input'!$D$98) -> -0.04166666667 | X61: =IF(Ranking!BA6>0,'User Input'!$D$99, -'User Input'!$D$99) -> -0.04166666667 | Y61: =IF(SUM(Ranking!BB6:BD6)>0,'User Input'!$D$100, -'User Input'!$D$100) -> -0.04166666667 | Z61: =IF(Ranking!BE6>0,'User Input'!$D$101, -'User Input'!$D$101) -> 0.04166666667 | AA61: =IF(Ranking!BF6>0,'User Input'!$D$102, -'User Input'!$D$102) -> -0.04166666667
A62: Numina | C62: 0.03333333333 | D62: =IF(SUM(Ranking!A7:C7)>0,'User Input'!$D$79, -'User Input'!$D$79) -> -0.04166666667 | E62: =IF(SUM(Ranking!D7:H7)>0,'User Input'!$D$80, -1*'User Input'!$D$80) -> 0.04166666667 | F62: =IF(Ranking!I7>0,'User Input'!$D$81, -'User Input'!$D$81) -> 0.04166666667 | G62: =IF(Ranking!J7>0,'User Input'!$D$82, -'User Input'!$D$82) -> 0.04166666667 | H62: =IF(Ranking!K7>0,'User Input'!$D$83, -'User Input'!$D$83) -> 0.04166666667 | I62: =IF(Ranking!L7>0,'User Input'!$D$84, -'User Input'!$D$84) -> -0.04166666667 | J62: =IF(SUM(Ranking!M7:O7)>0,'User Input'!$D$85, -'User Input'!$D$85) -> 0.04166666667 | K62: =IF(SUM(Ranking!P7:U7)>0,'User Input'!$D$86, -'User Input'!$D$86) -> -0.04166666667 | L62: =IF(Ranking!W7>0,'User Input'!$D$87, -'User Input'!$D$87) -> 0.04166666667 | M62: =IF(Ranking!W7>0,'User Input'!$D$88, -'User Input'!$D$88) -> 0.04166666667 | N62: =IF(Ranking!X7>0,'User Input'!$D$89, -'User Input'!$D$89) -> -0.04166666667 | O62: =(COUNTIF(Ranking!Y7:AH7,1)*'User Input'!$D$90/10)-(COUNTIF(Ranking!Y7:AH7,0)*'User Input'!$D$90/10) -> -0.008333333333 | P62: =IF(Ranking!AI7>0,'User Input'!$D$91, -'User Input'!$D$91) -> 0.04166666667 | Q62: =IF(Ranking!AJ7>0,'User Input'!$D$92, -'User Input'!$D$92) -> -0.04166666667 | R62: =IF(SUM(Ranking!AK7:AO7)>0,'User Input'!$D$93, -'User Input'!$D$93) -> -0.04166666667 | S62: =IF(SUM(Ranking!AP7:AT7)>0,'User Input'!$D$94, -'User Input'!$D$94) -> -0.04166666667 | T62: =IF(Ranking!AU7>0,'User Input'!$D$95, -'User Input'!$D$95) -> 0.04166666667 | U62: =IF(Ranking!AV7>0,'User Input'!$D$96, -'User Input'!$D$96) -> -0.04166666667 | V62: =IF(SUM(Ranking!AW7:AY7)>0,'User Input'!$D$97, -'User Input'!$D$97) -> 0.04166666667 | W62: =IF(Ranking!AZ7>0,'User Input'!$D$98, -'User Input'!$D$98) -> 0.04166666667 | X62: =IF(Ranking!BA7>0,'User Input'!$D$99, -'User Input'!$D$99) -> -0.04166666667 | Y62: =IF(SUM(Ranking!BB7:BD7)>0,'User Input'!$D$100, -'User Input'!$D$100) -> -0.04166666667 | Z62: =IF(Ranking!BE7>0,'User Input'!$D$101, -'User Input'!$D$101) -> 0.04166666667 | AA62: =IF(Ranking!BF7>0,'User Input'!$D$102, -'User Input'!$D$102) -> -0.04166666667
A63: Street Simplified | C63: 0.06666666667 | D63: =IF(SUM(Ranking!A8:C8)>0,'User Input'!$D$79, -'User Input'!$D$79) -> 0.04166666667 | E63: =IF(SUM(Ranking!D8:H8)>0,'User Input'!$D$80, -1*'User Input'!$D$80) -> 0.04166666667 | F63: =IF(Ranking!I8>0,'User Input'!$D$81, -'User Input'!$D$81) -> 0.04166666667 | G63: =IF(Ranking!J8>0,'User Input'!$D$82, -'User Input'!$D$82) -> 0.04166666667 | H63: =IF(Ranking!K8>0,'User Input'!$D$83, -'User Input'!$D$83) -> 0.04166666667 | I63: =IF(Ranking!L8>0,'User Input'!$D$84, -'User Input'!$D$84) -> -0.04166666667 | J63: =IF(SUM(Ranking!M8:O8)>0,'User Input'!$D$85, -'User Input'!$D$85) -> -0.04166666667 | K63: =IF(SUM(Ranking!P8:U8)>0,'User Input'!$D$86, -'User Input'!$D$86) -> 0.04166666667 | L63: =IF(Ranking!W8>0,'User Input'!$D$87, -'User Input'!$D$87) -> -0.04166666667 | M63: =IF(Ranking!W8>0,'User Input'!$D$88, -'User Input'!$D$88) -> -0.04166666667 | N63: =IF(Ranking!X8>0,'User Input'!$D$89, -'User Input'!$D$89) -> -0.04166666667 | O63: =(COUNTIF(Ranking!Y8:AH8,1)*'User Input'!$D$90/10)-(COUNTIF(Ranking!Y8:AH8,0)*'User Input'!$D$90/10) -> 0.025 | P63: =IF(Ranking!AI8>0,'User Input'!$D$91, -'User Input'!$D$91) -> 0.04166666667 | Q63: =IF(Ranking!AJ8>0,'User Input'!$D$92, -'User Input'!$D$92) -> 0.04166666667 | R63: =IF(SUM(Ranking!AK8:AO8)>0,'User Input'!$D$93, -'User Input'!$D$93) -> -0.04166666667 | S63: =IF(SUM(Ranking!AP8:AT8)>0,'User Input'!$D$94, -'User Input'!$D$94) -> -0.04166666667 | T63: =IF(Ranking!AU8>0,'User Input'!$D$95, -'User Input'!$D$95) -> -0.04166666667 | U63: =IF(Ranking!AV8>0,'User Input'!$D$96, -'User Input'!$D$96) -> -0.04166666667 | V63: =IF(SUM(Ranking!AW8:AY8)>0,'User Input'!$D$97, -'User Input'!$D$97) -> 0.04166666667 | W63: =IF(Ranking!AZ8>0,'User Input'!$D$98, -'User Input'!$D$98) -> 0.04166666667 | X63: =IF(Ranking!BA8>0,'User Input'!$D$99, -'User Input'!$D$99) -> -0.04166666667 | Y63: =IF(SUM(Ranking!BB8:BD8)>0,'User Input'!$D$100, -'User Input'!$D$100) -> -0.04166666667 | Z63: =IF(Ranking!BE8>0,'User Input'!$D$101, -'User Input'!$D$101) -> 0.04166666667 | AA63: =IF(Ranking!BF8>0,'User Input'!$D$102, -'User Input'!$D$102) -> 0.04166666667
A64: Boulder AI DNN Node | C64: 0.3166666667 | D64: =IF(SUM(Ranking!A9:C9)>0,'User Input'!$D$79, -'User Input'!$D$79) -> -0.04166666667 | E64: =IF(SUM(Ranking!D9:H9)>0,'User Input'!$D$80, -1*'User Input'!$D$80) -> 0.04166666667 | F64: =IF(Ranking!I9>0,'User Input'!$D$81, -'User Input'!$D$81) -> 0.04166666667 | G64: =IF(Ranking!J9>0,'User Input'!$D$82, -'User Input'!$D$82) -> 0.04166666667 | H64: =IF(Ranking!K9>0,'User Input'!$D$83, -'User Input'!$D$83) -> 0.04166666667 | I64: =IF(Ranking!L9>0,'User Input'!$D$84, -'User Input'!$D$84) -> 0.04166666667 | J64: =IF(SUM(Ranking!M9:O9)>0,'User Input'!$D$85, -'User Input'!$D$85) -> 0.04166666667 | K64: =IF(SUM(Ranking!P9:U9)>0,'User Input'!$D$86, -'User Input'!$D$86) -> 0.04166666667 | L64: =IF(Ranking!W9>0,'User Input'!$D$87, -'User Input'!$D$87) -> 0.04166666667 | M64: =IF(Ranking!W9>0,'User Input'!$D$88, -'User Input'!$D$88) -> 0.04166666667 | N64: =IF(Ranking!X9>0,'User Input'!$D$89, -'User Input'!$D$89) -> 0.04166666667 | O64: =(COUNTIF(Ranking!Y9:AH9,1)*'User Input'!$D$90/10)-(COUNTIF(Ranking!Y9:AH9,0)*'User Input'!$D$90/10) -> 0.025 | P64: =IF(Ranking!AI9>0,'User Input'!$D$91, -'User Input'!$D$91) -> 0.04166666667 | Q64: =IF(Ranking!AJ9>0,'User Input'!$D$92, -'User Input'!$D$92) -> -0.04166666667 | R64: =IF(SUM(Ranking!AK9:AO9)>0,'User Input'!$D$93, -'User Input'!$D$93) -> -0.04166666667 | S64: =IF(SUM(Ranking!AP9:AT9)>0,'User Input'!$D$94, -'User Input'!$D$94) -> -0.04166666667 | T64: =IF(Ranking!AU9>0,'User Input'!$D$95, -'User Input'!$D$95) -> 0.04166666667 | U64: =IF(Ranking!AV9>0,'User Input'!$D$96, -'User Input'!$D$96) -> 0.04166666667 | V64: =IF(SUM(Ranking!AW9:AY9)>0,'User Input'!$D$97, -'User Input'!$D$97) -> 0.04166666667 | W64: =IF(Ranking!AZ9>0,'User Input'!$D$98, -'User Input'!$D$98) -> -0.04166666667 | X64: =IF(Ranking!BA9>0,'User Input'!$D$99, -'User Input'!$D$99) -> -0.04166666667 | Y64: =IF(SUM(Ranking!BB9:BD9)>0,'User Input'!$D$100, -'User Input'!$D$100) -> -0.04166666667 | Z64: =IF(Ranking!BE9>0,'User Input'!$D$101, -'User Input'!$D$101) -> 0.04166666667 | AA64: =IF(Ranking!BF9>0,'User Input'!$D$102, -'User Input'!$D$102) -> -0.04166666667
A65: Boulder AI DNN Cam | C65: 0.4833333333 | D65: =IF(SUM(Ranking!A10:C10)>0,'User Input'!$D$79, -'User Input'!$D$79) -> 0.04166666667 | E65: =IF(SUM(Ranking!D10:H10)>0,'User Input'!$D$80, -1*'User Input'!$D$80) -> 0.04166666667 | F65: =IF(Ranking!I10>0,'User Input'!$D$81, -'User Input'!$D$81) -> 0.04166666667 | G65: =IF(Ranking!J10>0,'User Input'!$D$82, -'User Input'!$D$82) -> 0.04166666667 | H65: =IF(Ranking!K10>0,'User Input'!$D$83, -'User Input'!$D$83) -> 0.04166666667 | I65: =IF(Ranking!L10>0,'User Input'!$D$84, -'User Input'!$D$84) -> -0.04166666667 | J65: =IF(SUM(Ranking!M10:O10)>0,'User Input'!$D$85, -'User Input'!$D$85) -> 0.04166666667 | K65: =IF(SUM(Ranking!P10:U10)>0,'User Input'!$D$86, -'User Input'!$D$86) -> 0.04166666667 | L65: =IF(Ranking!W10>0,'User Input'!$D$87, -'User Input'!$D$87) -> 0.04166666667 | M65: =IF(Ranking!W10>0,'User Input'!$D$88, -'User Input'!$D$88) -> 0.04166666667 | N65: =IF(Ranking!X10>0,'User Input'!$D$89, -'User Input'!$D$89) -> 0.04166666667 | O65: =(COUNTIF(Ranking!Y10:AH10,1)*'User Input'!$D$90/10)-(COUNTIF(Ranking!Y10:AH10,0)*'User Input'!$D$90/10) -> 0.025 | P65: =IF(Ranking!AI10>0,'User Input'!$D$91, -'User Input'!$D$91) -> 0.04166666667 | Q65: =IF(Ranking!AJ10>0,'User Input'!$D$92, -'User Input'!$D$92) -> -0.04166666667 | R65: =IF(SUM(Ranking!AK10:AO10)>0,'User Input'!$D$93, -'User Input'!$D$93) -> -0.04166666667 | S65: =IF(SUM(Ranking!AP10:AT10)>0,'User Input'!$D$94, -'User Input'!$D$94) -> -0.04166666667 | T65: =IF(Ranking!AU10>0,'User Input'!$D$95, -'User Input'!$D$95) -> 0.04166666667 | U65: =IF(Ranking!AV10>0,'User Input'!$D$96, -'User Input'!$D$96) -> 0.04166666667 | V65: =IF(SUM(Ranking!AW10:AY10)>0,'User Input'!$D$97, -'User Input'!$D$97) -> 0.04166666667 | W65: =IF(Ranking!AZ10>0,'User Input'!$D$98, -'User Input'!$D$98) -> 0.04166666667 | X65: =IF(Ranking!BA10>0,'User Input'!$D$99, -'User Input'!$D$99) -> -0.04166666667 | Y65: =IF(SUM(Ranking!BB10:BD10)>0,'User Input'!$D$100, -'User Input'!$D$100) -> -0.04166666667 | Z65: =IF(Ranking!BE10>0,'User Input'!$D$101, -'User Input'!$D$101) -> 0.04166666667 | AA65: =IF(Ranking!BF10>0,'User Input'!$D$102, -'User Input'!$D$102) -> 0.04166666667
